Workbook

Sheet PLOT
A1: ProperSort | B1: (Multiple Items)
A3: Row Labels | B3: ME NONOTC | C3: ME OTC | D3: NH | E3: VT | F3: CT | G3: MA | H3: RI | I3: DE | J3: DC | K3: MD | L3: NJ | M3: NY | N3: PA | O3: VA-OTC | P3: OTC | Q3: NY-NJ-CT NA | R3: PA-NJ-MD-DE NA | S3: DC-MD-VA NA | T3: GR-CT NA | U3: BALT NA
A4: 1997 | B4: 0.04701492537 | C4: 0.04921428571 | D4: 0.05205555556 | E4: 0.05024074074 | F4: 0.05664814815 | G4: 0.05375294118 | H4: 0.04765384615 | I4: 0.04604705882 | J4: 0.04141176471 | K4: 0.05028235294 | L4: 0.05221176471 | M4: 0.05321176471 | N4: 0.05217647059 | O4: 0.04407058824 | P4: 0.05927058824 | Q4: 0.05168235294 | R4: 0.05188235294 | S4: 0.04778823529 | T4: 0.0542962963 | U4: 0.04898823529
A5: 1998 | B5: 0.04754411765 | C5: 0.05052941176 | D5: 0.05359259259 | E5: 0.05351851852 | F5: 0.05457407407 | G5: 0.05625882353 | H5: 0.04628301887 | I5: 0.05015294118 | J5: 0.04255294118 | K5: 0.05516666667 | L5: 0.05389411765 | M5: 0.05701176471 | N5: 0.05670588235 | O5: 0.0488 | P5: 0.06523529412 | Q5: 0.05181176471 | R5: 0.05350588235 | S5: 0.05131764706 | T5: 0.05322222222 | U5: 0.05442307692
A6: 1999 | B6: 0.04567741935 | C6: 0.04930588235 | D6: 0.04855555556 | E6: 0.05185185185 | F6: 0.0483452381 | G6: 0.05122352941 | H6: 0.0427 | I6: 0.05003529412 | J6: 0.04517647059 | K6: 0.05402352941 | L6: 0.05218823529 | M6: 0.05643529412 | N6: 0.05727058824 | O6: 0.04898823529 | P6: 0.06331764706 | Q6: 0.05103529412 | R6: 0.05117647059 | S6: 0.055 | T6: 0.05112962963 | U6: 0.0502
A7: 2000 | B7: 0.04528571429 | C7: 0.04701265823 | D7: 0.04857407407 | E7: 0.04920833333 | F7: 0.04763529412 | G7: 0.04965882353 | H7: 0.04962962963 | I7: 0.04897647059 | J7: 0.04295294118 | K7: 0.05330588235 | L7: 0.05356470588 | M7: 0.05589411765 | N7: 0.05548235294 | O7: 0.04872941176 | P7: 0.06221176471 | Q7: 0.05089411765 | R7: 0.05408235294 | S7: 0.05254117647 | T7: 0.05222222222 | U7: 0.05104705882
A8: 2001 | B8: 0.05305555556 | C8: 0.04809411765 | D8: 0.05687037037 | E8: 0.0547037037 | F8: 0.05049411765 | G8: 0.05611764706 | H8: 0.05429166667 | I8: 0.04971428571 | J8: 0.04218823529 | K8: 0.05254117647 | L8: 0.05382352941 | M8: 0.05863529412 | N8: 0.05447058824 | O8: 0.04869411765 | P8: 0.06327058824 | Q8: 0.05285882353 | R8: 0.05397647059 | S8: 0.05130588235 | T8: 0.05514814815 | U8: 0.05064705882
A9: 2002 | B9: 0.04705555556 | C9: 0.04718823529 | D9: 0.05064814815 | E9: 0.04717647059 | F9: 0.04702352941 | G9: 0.05223529412 | H9: 0.054 | I9: 0.04694117647 | J9: 0.04141176471 | K9: 0.04956470588 | L9: 0.05145882353 | M9: 0.05307058824 | N9: 0.04972941176 | O9: 0.04769411765 | P9: 0.05722352941 | Q9: 0.05005882353 | R9: 0.05178823529 | S9: 0.04872941176 | T9: 0.04654117647 | U9: 0.04838823529
A10: 2003 | B10: 0.04436470588 | C10: 0.04894117647 | D10: 0.05461111111 | E10: 0.04856470588 | F10: 0.04627058824 | G10: 0.05103529412 | H10: 0.04866666667 | I10: 0.0454 | J10: 0.03837647059 | K10: 0.04737647059 | L10: 0.05002352941 | M10: 0.05681176471 | N10: 0.05117647059 | O10: 0.04644444444 | P10: 0.06085882353 | Q10: 0.04817647059 | R10: 0.04910588235 | S10: 0.04350588235 | T10: 0.04622352941 | U10: 0.04607058824
A11: 2004 | B11: 0.04662962963 | C11: 0.0496 | D11: 0.04869047619 | E11: 0.04690588235 | F11: 0.04725882353 | G11: 0.05287058824 | H11: 0.0492037037 | I11: 0.0507125 | J11: 0.04055294118 | K11: 0.05972222222 | L11: 0.05370588235 | M11: 0.05638823529 | N11: 0.05395294118 | O11: 0.04791764706 | P11: 0.06174117647 | Q11: 0.05105882353 | R11: 0.05327058824 | S11: 0.04971764706 | T11: 0.0468 | U11: 0.0575
A12: 2005 | B12: 0.04754761905 | C12: 0.04905882353 | D12: 0.05333333333 | E12: 0.04996470588 | F12: 0.04898823529 | G12: 0.05449411765 | H12: 0.04988679245 | I12: 0.04944578313 | J12: 0.0406 | K12: 0.05176190476 | L12: 0.05256470588 | M12: 0.05629411765 | N12: 0.05367058824 | O12: 0.04644705882 | P12: 0.06082352941 | Q12: 0.05123529412 | R12: 0.0518 | S12: 0.0482 | T12: 0.04875294118 | U12: 0.05194444444
A13: 2006 | B13: 0.04507317073 | C13: 0.04807058824 | D13: 0.05183636364 | E13: 0.04618823529 | F13: 0.05056470588 | G13: 0.05198823529 | H13: 0.04931481481 | I13: 0.04831764706 | J13: 0.04661176471 | K13: 0.05187058824 | L13: 0.05475294118 | M13: 0.05381176471 | N13: 0.05287058824 | O13: 0.04837647059 | P13: 0.05963529412 | Q13: 0.05368235294 | R13: 0.05192941176 | S13: 0.05007058824 | T13: 0.05038823529 | U13: 0.04890361446
A14: 2007 | B14: 0.04574117647 | C14: 0.04727058824 | D14: 0.0537037037 | E14: 0.04630588235 | F14: 0.04904819277 | G14: 0.05022352941 | H14: 0.0462037037 | I14: 0.0474 | J14: 0.04531764706 | K14: 0.05211764706 | L14: 0.05118823529 | M14: 0.05428235294 | N14: 0.0524 | O14: 0.0488 | P14: 0.05931764706 | Q14: 0.04894117647 | R14: 0.05058823529 | S14: 0.04969411765 | T14: 0.04871084337 | U14: 0.04515662651
A15: 2008 | B15: 0.04822352941 | C15: 0.04948235294 | D15: 0.05714814815 | E15: 0.04934117647 | F15: 0.0496375 | G15: 0.05278823529 | H15: 0.04924074074 | I15: 0.04771764706 | J15: 0.04272941176 | K15: 0.05165882353 | L15: 0.05122352941 | M15: 0.05576470588 | N15: 0.05234117647 | O15: 0.0495 | P15: 0.05912941176 | Q15: 0.05063529412 | R15: 0.05045882353 | S15: 0.04802352941 | T15: 0.04915 | U15: 0.04638823529
A16: 2009 | B16: 0.04861176471 | C16: 0.05069411765 | D16: 0.05466666667 | E16: 0.04821176471 | F16: 0.04782352941 | G16: 0.05294117647 | H16: 0.04842592593 | I16: 0.04649411765 | J16: 0.04194117647 | K16: 0.05123529412 | L16: 0.0514 | M16: 0.05558823529 | N16: 0.05317647059 | O16: 0.04494117647 | P16: 0.05916470588 | Q16: 0.05061176471 | R16: 0.05124705882 | S16: 0.04714117647 | T16: 0.04759036145 | U16: 0.0465
A17: 2010 | B17: 0.04837647059 | C17: 0.04981176471 | D17: 0.05405882353 | E17: 0.04791764706 | F17: 0.05116470588 | G17: 0.05302352941 | H17: 0.04862352941 | I17: 0.05298809524 | J17: 0.04755294118 | K17: 0.05505882353 | L17: 0.05234117647 | M17: 0.05790588235 | N17: 0.05494117647 | O17: 0.04832941176 | P17: 0.06210588235 | Q17: 0.05238823529 | R17: 0.05268235294 | S17: 0.05129411765 | T17: 0.0504 | U17: 0.05054320988
A18: 2011 | B18: 0.04529411765 | C18: 0.04532941176 | D18: 0.05284705882 | E18: 0.0452 | F18: 0.04554117647 | G18: 0.04761176471 | H18: 0.04550588235 | I18: 0.04747058824 | J18: 0.04350588235 | K18: 0.05064705882 | L18: 0.04769411765 | M18: 0.05304705882 | N18: 0.05138823529 | O18: 0.0467037037 | P18: 0.05729411765 | Q18: 0.04777647059 | R18: 0.04765882353 | S18: 0.04674117647 | T18: 0.04424705882 | U18: 0.04754545455
A19: 2012 | B19: 0.04802352941 | C19: 0.04754117647 | D19: 0.05329411765 | E19: 0.04698823529 | F19: 0.05012941176 | G19: 0.05001176471 | H19: 0.04874117647 | I19: 0.0484 | J19: 0.04687058824 | K19: 0.05335294118 | L19: 0.04891764706 | M19: 0.05415294118 | N19: 0.05428235294 | O19: 0.05003703704 | P19: 0.05952941176 | Q19: 0.04930588235 | R19: 0.04952941176 | S19: 0.05070588235 | T19: 0.04974117647 | U19: 0.0473875
A20: 2013 | B20: 0.0482 | C20: 0.04790588235 | D20: 0.05387058824 | E20: 0.04958823529 | F20: 0.04977647059 | G20: 0.05004705882 | H20: 0.049 | I20: 0.04817647059 | J20: 0.04612941176 | K20: 0.05244705882 | L20: 0.04912941176 | M20: 0.05129411765 | N20: 0.05563529412 | O20: 0.04901851852 | P20: 0.05897647059 | Q20: 0.04891764706 | R20: 0.04961176471 | S20: 0.04945882353 | T20: 0.04934117647 | U20: 0.04765882353
A21: 2014 | B21: 0.04688235294 | C21: 0.04662352941 | D21: 0.0518 | E21: 0.04808235294 | F21: 0.04990588235 | G21: 0.04928235294 | H21: 0.04711764706 | I21: 0.05005882353 | J21: 0.04521176471 | K21: 0.05252941176 | L21: 0.04874117647 | M21: 0.05232941176 | N21: 0.05349411765 | O21: 0.04922222222 | P21: 0.05724705882 | Q21: 0.04996470588 | R21: 0.04941176471 | S21: 0.04927058824 | T21: 0.04903529412 | U21: 0.04610588235
A22: 2015 | B22: 0.04897647059 | C22: 0.04730588235 | D22: 0.05323529412 | E22: 0.04845882353 | F22: 0.04998823529 | G22: 0.04777647059 | H22: 0.04682352941 | I22: 0.04918823529 | J22: 0.04407058824 | K22: 0.05204705882 | L22: 0.04911764706 | M22: 0.05356470588 | N22: 0.05371764706 | O22: 0.04922222222 | P22: 0.05809411765 | Q22: 0.04917647059 | R22: 0.04945882353 | S22: 0.04941176471 | T22: 0.04955294118 | U22: 0.04646428571
A23: 2016 | B23: 0.04528235294 | C23: 0.04558823529 | D23: 0.05245882353 | E23: 0.0464 | F23: 0.04892941176 | G23: 0.04715294118 | H23: 0.04627058824 | I23: 0.04842352941 | J23: 0.04137647059 | K23: 0.04910588235 | L23: 0.0474 | M23: 0.05162352941 | N23: 0.05248235294 | O23: 0.04488888889 | P23: 0.05704705882 | Q23: 0.04852941176 | R23: 0.04821176471 | S23: 0.04572941176 | T23: 0.04816470588 | U23: 0.04471764706
A24: 2017 | B24: 0.04678823529 | C24: 0.04776470588 | D24: 0.054 | E24: 0.04590588235 | F24: 0.04849411765 | G24: 0.04841176471 | H24: 0.04511764706 | I24: 0.04841176471 | J24: 0.04410588235 | K24: 0.05294117647 | L24: 0.04818823529 | M24: 0.05308235294 | N24: 0.05387058824 | O24: 0.04595294118 | P24: 0.05971764706 | Q24: 0.04911764706 | R24: 0.04963529412 | S24: 0.05016470588 | T24: 0.04747058824 | U24: 0.04775294118
A25: 2018 | B25: 0.04958823529 | C25: 0.04809411765 | D25: 0.05304705882 | E25: 0.04756470588 | F25: 0.04909411765 | G25: 0.04988235294 | H25: 0.04791764706 | I25: 0.04938823529 | J25: 0.0456 | K25: 0.05257647059 | L25: 0.04964705882 | M25: 0.05217647059 | N25: 0.0526 | O25: 0.04743529412 | P25: 0.05781176471 | Q25: 0.04922352941 | R25: 0.05002352941 | S25: 0.0502 | T25: 0.04772941176 | U25: 0.04944705882
A26: 2019 | B26: 0.04730588235 | C26: 0.04743529412 | D26: 0.04694117647 | E26: 0.04578823529 | F26: 0.04856470588 | G26: 0.04889411765 | H26: 0.04937647059 | I26: 0.04825882353 | J26: 0.04631764706 | K26: 0.05125882353 | L26: 0.04836470588 | M26: 0.05134117647 | N26: 0.05245882353 | O26: 0.04589411765 | P26: 0.05521176471 | Q26: 0.04851764706 | R26: 0.04908235294 | S26: 0.04881176471 | T26: 0.04772941176 | U26: 0.0496
A27: 2020 | B27: 0.04591764706 | C27: 0.04744705882 | D27: 0.05001176471 | E27: 0.04541176471 | F27: 0.04852941176 | G27: 0.04712941176 | H27: 0.04576470588 | I27: 0.04489411765 | J27: 0.04244705882 | K27: 0.04711764706 | L27: 0.04534117647 | M27: 0.04801176471 | N27: 0.04737647059 | O27: 0.04135294118 | P27: 0.05312941176 | Q27: 0.04815294118 | R27: 0.04505882353 | S27: 0.04427058824 | T27: 0.04587058824 | U27: 0.0457804878
A28: 2021 | B28: 0.04623529412 | C28: 0.04621176471 | D28: 0.04838823529 | E28: 0.04504705882 | F28: 0.04837647059 | G28: 0.04758823529 | H28: 0.04647058824 | I28: 0.04754761905 | J28: 0.04789411765 | K28: 0.05167058824 | L28: 0.04825882353 | M28: 0.05157647059 | N28: 0.05187058824 | O28: 0.04624705882 | P28: 0.05516470588 | Q28: 0.04843529412 | R28: 0.04850588235 | S28: 0.04949411765 | T28: 0.04734117647 | U28: 0.04949411765
A29: 2022 | B29: 0.04484705882 | C29: 0.04524705882 | D29: 0.04728235294 | E29: 0.04585882353 | F29: 0.04723529412 | G29: 0.04696470588 | H29: 0.04522352941 | I29: 0.04661176471 | J29: 0.04384705882 | K29: 0.04962352941 | L29: 0.04631764706 | M29: 0.04878823529 | N29: 0.05082352941 | O29: 0.04368235294 | P29: 0.0534 | Q29: 0.0464 | R29: 0.047 | S29: 0.04725882353 | T29: 0.04630588235 | U29: 0.04702352941
A30: Grand Total | B30: 0.04700245098 | C30: 0.04795460735 | D30: 0.05196898803 | E30: 0.04780039043 | F30: 0.04904719626 | G30: 0.05074479638 | H30: 0.04776631344 | I30: 0.04834409091 | J30: 0.04372126697 | K30: 0.05184062644 | L30: 0.05044072398 | M30: 0.05392669683 | N30: 0.05309095023 | O30: 0.04709072375 | P30: 0.05907420814 | Q30: 0.04994570136 | R30: 0.05041085973 | S30: 0.04907104072 | T30: 0.04864565005 | U30: 0.04849692671
O71: 1st day | P71: last day
O72: 2022-03-01 | P72: 2022-05-24
A73: Click on the CALCULATE MACRO to update the % change between years table below: | O73: ="Average Ozone 8-hr Concentrations " &TEXT(O72,"mmm d")&" - " &TEXT(P72,"mmm d")&" (2021-22 data are preliminary)" -> Average Ozone 8-hr Concentrations Mar 1 - May 24 (2021-22 data are preliminary)
A74: CALCULATE MACRO
A76: Row Labels | B76: ME NONOTC | C76: ME OTC | D76: NH | E76: VT | F76: CT | G76: MA | H76: RI | I76: DE | J76: DC | K76: MD | L76: NJ | M76: NY | N76: PA | O76: VA-OTC | P76: OTC | Q76: NY-NJ-CT NA | R76: PA-NJ-MD-DE NA | S76: DC-MD-VA NA | T76: GR-CT NA | U76: BALT NA
A77: 2021/1997-100% | B77: =IF(B128="","",IF(B104="","",B128/B104-100%)) -> -0.01658263305 | C77: =IF(C128="","",IF(C104="","",C128/C104-100%)) -> -0.06100913515 | D77: -0.07045012242 | E77: -0.1033759025 | F77: -0.1460184989 | G77: -0.1146859269 | H77: -0.02483027109 | I77: 0.0325875368 | J77: 0.1565340909 | K77: 0.02760879738 | L77: -0.07570977918 | M77: -0.03073181517 | N77: -0.005862457723 | O77: 0.04938601175 | P77: -0.06927352124 | Q77: -0.06282722513 | R77: -0.06507936508 | S77: 0.03569670113 | T77: -0.1280956585 | U77: 0.01032660903
A78: 2021/1998-100% | B78: =IF(B128="","",IF(B105="","",B128/B105-100%)) -> -0.0275286112 | C78: =IF(C128="","",IF(C105="","",C128/C105-100%)) -> -0.08544819558 | D78: -0.0971096386 | E78: -0.1582902504 | F78: -0.113563145 | G78: -0.1541196152 | H78: 0.004052660608 | I78: -0.05194754421 | J78: 0.1255183854 | K78: -0.06337302293 | L78: -0.1045623226 | M78: -0.09533635988 | N78: -0.08526970954 | O78: -0.05231436837 | P78: -0.1543733093 | Q78: -0.06516802906 | R78: -0.09344766931 | S78: -0.03553415864 | T78: -0.1104998158 | U78: -0.09056744959
A79: 2021/1999-100% | B79: =IF(B128="","",IF(B106="","",B128/B106-100%)) -> 0.01221335992 | C79: =IF(C128="","",IF(C106="","",C128/C106-100%)) -> -0.06275351945 | D79: -0.003445955041 | E79: -0.1312352941 | F79: 0.0006460303895 | G79: -0.0709692237 | H79: 0.08830417413 | I79: -0.04971840606 | J79: 0.06015625 | K79: -0.04355400697 | L79: -0.07529305681 | M79: -0.08609547634 | N79: -0.09428923583 | O79: -0.05595581172 | P79: -0.1287625418 | Q79: -0.05094513601 | R79: -0.05218390805 | S79: -0.1001069519 | T79: -0.0740950636 | U79: -0.01406140145
A80: 2021/2000-100% | B80: =IF(B128="","",IF(B107="","",B128/B107-100%)) -> 0.02096863982 | C80: =IF(C128="","",IF(C107="","",C128/C107-100%)) -> -0.01703569958 | D80: -0.003825884147 | E80: -0.08456442696 | F80: 0.01555939738 | G80: -0.0416962805 | H80: -0.0636523266 | I80: -0.02917424476 | J80: 0.1150369762 | K80: -0.03067755462 | L80: -0.09905556776 | M80: -0.07724689539 | N80: -0.06509754029 | O80: -0.05094157412 | P80: -0.1132753404 | Q80: -0.0483125289 | R80: -0.1031107244 | S80: -0.05799373041 | T80: -0.09346683354 | U80: -0.03042175617
A81: 2021/2001-100% | B81: =IF(B128="","",IF(B108="","",B128/B108-100%)) -> -0.1285494302 | C81: =IF(C128="","",IF(C108="","",C128/C108-100%)) -> -0.03913894325 | D81: -0.1491485816 | E81: -0.1765263451 | F81: -0.04193849021 | G81: -0.1519916143 | H81: -0.1440567017 | I81: -0.04358237548 | J81: 0.1352481874 | K81: -0.01656963726 | L81: -0.1033879781 | M81: -0.1203852327 | N81: -0.04773218143 | O81: -0.05025368446 | P81: -0.1281145407 | Q81: -0.08368573336 | R81: -0.1013513514 | S81: -0.03531300161 | T81: -0.1415636234 | U81: -0.02276422764
A82: 2021/2002-100% | B82: =IF(B128="","",IF(B109="","",B128/B109-100%)) -> -0.01743176609 | C82: =IF(C128="","",IF(C109="","",C128/C109-100%)) -> -0.02069309399 | D82: -0.0446198516 | E82: -0.04513715711 | F82: 0.02877157868 | G82: -0.08896396396 | H82: -0.1394335512 | I82: 0.01291920277 | J82: 0.1565340909 | K82: 0.04248753857 | L82: -0.06218564243 | M82: -0.02815340279 | N82: 0.04305654128 | O82: -0.03034040454 | P82: -0.03597861842 | Q82: -0.03243243243 | R82: -0.06338028169 | S82: 0.01569290198 | T82: 0.01718907988 | U82: 0.02285436421
A83: 2021/2003-100% | B83: =IF(B128="","",IF(B110="","",B128/B110-100%)) -> 0.04216388226 | C83: =IF(C128="","",IF(C110="","",C128/C110-100%)) -> -0.05576923077 | D83: -0.1139488959 | E83: -0.07243217054 | F83: 0.04551233155 | G83: -0.06754264638 | H83: -0.04512489927 | I83: 0.04730438431 | J83: 0.2480073574 | K83: 0.0906381922 | L83: -0.03527751646 | M83: -0.09215158418 | N83: 0.01356321839 | O83: -0.004249929637 | P83: -0.09356272956 | Q83: 0.005372405372 | R83: -0.01221849545 | S83: 0.1376419686 | T83: 0.02417918045 | U83: 0.07431052094
A84: 2021/2004-100% | B84: =IF(B128="","",IF(B111="","",B128/B111-100%)) -> -0.008456758398 | C84: =IF(C128="","",IF(C111="","",C128/C111-100%)) -> -0.06831119545 | D84: -0.006207392492 | E84: -0.03962879358 | F84: 0.02364948967 | G84: -0.09991099243 | H84: -0.05554694591 | I84: -0.06240830076 | J84: 0.18102698 | K84: -0.1348180575 | L84: -0.1014238773 | M84: -0.08533277697 | N84: -0.03859572612 | O84: -0.0348637368 | P84: -0.1065167683 | Q84: -0.05138248848 | R84: -0.0894434629 | S84: -0.004495977283 | T84: 0.0115635998 | U84: -0.1392327366
A85: 2021/2005-100% | B85: =IF(B128="","",IF(B112="","",B128/B112-100%)) -> -0.02760022387 | C85: =IF(C128="","",IF(C112="","",C128/C112-100%)) -> -0.05803357314 | D85: -0.09272058824 | E85: -0.09842241582 | F85: -0.01248799232 | G85: -0.1267271157 | H85: -0.06847913144 | I85: -0.03838879606 | J85: 0.1796580701 | K85: -0.001764164728 | L85: -0.08191584602 | M85: -0.08380355277 | N85: -0.03353792196 | O85: -0.00430597771 | P85: -0.09303675048 | Q85: -0.05464982778 | R85: -0.06359300477 | S85: 0.02684891384 | T85: -0.02895752896 | U85: -0.04717206669
A86: 2021/2006-100% | B86: =IF(B128="","",IF(B113="","",B128/B113-100%)) -> 0.02578304049 | C86: =IF(C128="","",IF(C113="","",C128/C113-100%)) -> -0.03866862457 | D86: -0.06651948749 | E86: -0.024707081 | F86: -0.0432759423 | G86: -0.0846345327 | H86: -0.05767489121 | I86: -0.01593678621 | J86: 0.0275113579 | K86: -0.003855749603 | L86: -0.1186076493 | M86: -0.04153913424 | N86: -0.0189141077 | O86: -0.04401750973 | P86: -0.07496547643 | Q86: -0.09774271313 | R86: -0.06592659719 | S86: -0.01151315789 | T86: -0.06047163203 | U86: 0.01207483733
A87: 2021/2007-100% | B87: =IF(B128="","",IF(B114="","",B128/B114-100%)) -> 0.01080246914 | C87: =IF(C128="","",IF(C114="","",C128/C114-100%)) -> -0.02239920358 | D87: -0.09897768763 | E87: -0.02718495935 | F87: -0.01369514644 | G87: -0.05247130476 | H87: 0.005776258399 | I87: 0.003114325899 | J87: 0.05685358255 | K87: -0.008577878104 | L87: -0.0572282234 | M87: -0.04984828782 | N87: -0.01010327795 | O87: -0.05231436837 | P87: -0.07001190004 | Q87: -0.01033653846 | R87: -0.0411627907 | S87: -0.004024621212 | T87: -0.02811831633 | U87: 0.09605436625
A88: 2021/2008-100% | B88: =IF(B128="","",IF(B115="","",B128/B115-100%)) -> -0.04122956819 | C88: =IF(C128="","",IF(C115="","",C128/C115-100%)) -> -0.06609605326 | D88: -0.153284282 | E88: -0.08702908918 | F88: -0.02540477284 | G88: -0.09850679741 | H88: -0.05625732805 | I88: -0.003563210294 | J88: 0.1208700441 | K88: 0.0002277385561 | L88: -0.0578778135 | M88: -0.07510548523 | N88: -0.008990784446 | O88: -0.06571598336 | P88: -0.06705133307 | Q88: -0.04344795539 | R88: -0.03870366053 | S88: 0.030622244 | T88: -0.0368021064 | U88: 0.06695409587
A89: 2021/2009-100% | B89: =IF(B128="","",IF(B116="","",B128/B116-100%)) -> -0.04888673766 | C89: =IF(C128="","",IF(C116="","",C128/C116-100%)) -> -0.08841958691 | D89: -0.1148493544 | E89: -0.06564177648 | F89: 0.01156211562 | G89: -0.1011111111 | H89: -0.04037791025 | I89: 0.02265881049 | J89: 0.1419354839 | K89: 0.00849598163 | L89: -0.0611123827 | M89: -0.07216931217 | N89: -0.02455752212 | O89: 0.02905759162 | P89: -0.06760787433 | Q89: -0.0430032543 | R89: -0.05348943985 | S89: 0.04991265286 | T89: -0.005236038719 | U89: 0.06438962682
A90: 2021/2010-100% | B90: =IF(B128="","",IF(B117="","",B128/B117-100%)) -> -0.04426070039 | C90: =IF(C128="","",IF(C117="","",C128/C117-100%)) -> -0.07227208314 | D90: -0.1048966268 | E90: -0.05990670268 | F90: -0.05449528627 | G90: -0.102507211 | H90: -0.04427776434 | I90: -0.1026735565 | J90: 0.007174666007 | K90: -0.06153846154 | L90: -0.07799505507 | M90: -0.1093051605 | N90: -0.05588865096 | O90: -0.04308666018 | P90: -0.1117635916 | Q90: -0.07545474961 | R90: -0.07927646271 | S90: -0.03509174312 | T90: -0.06069094304 | U90: -0.02075634357
A91: 2021/2011-100% | B91: =IF(B128="","",IF(B118="","",B128/B118-100%)) -> 0.02077922078 | C91: =IF(C128="","",IF(C118="","",C128/C118-100%)) -> 0.01946535167 | D91: -0.08437221728 | E91: -0.003383654347 | F91: 0.06225781452 | G91: -0.0004941932296 | H91: 0.02119958635 | I91: 0.001622706084 | J91: 0.1008653326 | K91: 0.02020905923 | L91: 0.01184015787 | M91: -0.02772233311 | N91: 0.009386446886 | O91: -0.009777487522 | P91: -0.03716632444 | Q91: 0.01378970697 | R91: 0.01777338929 | S91: 0.05889755852 | T91: 0.06992821058 | U91: 0.040985266
A92: 2021/2012-100% | B92: =IF(B128="","",IF(B119="","",B128/B119-100%)) -> -0.0372366487 | C92: =IF(C128="","",IF(C119="","",C128/C119-100%)) -> -0.0279633754 | D92: -0.09205298013 | E92: -0.04131196795 | F92: -0.0349683173 | G92: -0.04845918607 | H92: -0.04658460053 | I92: -0.0176111767 | J92: 0.0218373494 | K92: -0.03153252481 | L92: -0.01346801347 | M92: -0.04757766674 | N92: -0.04442999567 | O92: -0.075743458 | P92: -0.0733201581 | Q92: -0.0176568838 | R92: -0.02066508314 | S92: -0.02389791183 | T92: -0.04824976348 | U92: 0.04445513368
A93: 2021/2013-100% | B93: =IF(B128="","",IF(B120="","",B128/B120-100%)) -> -0.04076153283 | C93: =IF(C128="","",IF(C120="","",C128/C120-100%)) -> -0.03536345776 | D93: -0.1017689452 | E93: -0.0915776987 | F93: -0.0281257386 | G93: -0.04913023037 | H93: -0.05162064826 | I93: -0.01305308448 | J93: 0.03825554705 | K93: -0.01480484522 | L93: -0.01772030651 | M93: 0.005504587156 | N93: -0.067667583 | O93: -0.0565390342 | P93: -0.06463195691 | Q93: -0.009860509861 | R93: -0.02229072801 | S93: 0.0007136060894 | T93: -0.04053409633 | U93: 0.03850901012
A94: 2021/2014-100% | B94: =IF(B128="","",IF(B121="","",B128/B121-100%)) -> -0.01380175659 | C94: =IF(C128="","",IF(C121="","",C128/C121-100%)) -> -0.008831693162 | D94: -0.06586418351 | E94: -0.06312698801 | F94: -0.03064592174 | G94: -0.034375746 | H94: -0.01373283396 | I94: -0.0501650719 | J94: 0.05932864949 | K94: -0.0163493841 | L94: -0.009896210476 | M94: -0.01438848921 | N94: -0.03034968111 | O94: -0.0604435002 | P94: -0.03637484587 | Q94: -0.03060984224 | R94: -0.01833333333 | S94: 0.004536771729 | T94: -0.03454894434 | U94: 0.07348813473
A95: 2021/2015-100% | B95: =IF(B128="","",IF(B122="","",B128/B122-100%)) -> -0.05596925294 | C95: =IF(C128="","",IF(C122="","",C128/C122-100%)) -> -0.02312857498 | D95: -0.09104972376 | E95: -0.07040543821 | F95: -0.03224288068 | G95: -0.003939916277 | H95: -0.007537688442 | I95: -0.03335383424 | J95: 0.08675920982 | K95: -0.007233273056 | L95: -0.01748502994 | M95: -0.03711838348 | N95: -0.03438458169 | O95: -0.0604435002 | P95: -0.05042527339 | Q95: -0.01507177033 | R95: -0.01926736441 | S95: 0.001666666667 | T95: -0.04463437797 | U95: 0.06520775874
A96: 2021/2016-100% | B96: =IF(B128="","",IF(B123="","",B128/B123-100%)) -> 0.02104442712 | C96: =IF(C128="","",IF(C123="","",C128/C123-100%)) -> 0.01367741935 | D96: -0.07759587351 | E96: -0.02915821501 | F96: -0.01130079346 | G96: 0.009231536926 | H96: 0.004322400203 | I96: -0.01808852793 | J96: 0.1575206142 | K96: 0.05222807858 | L96: 0.01811863986 | M96: -0.0009115770283 | N96: -0.01165657924 | O96: 0.03025626092 | P96: -0.03299649412 | Q96: -0.001939393939 | R96: 0.006100536847 | S96: 0.08232570105 | T96: -0.01709819248 | U96: 0.1068139963
A97: 2021/2017-100% | B97: =IF(B128="","",IF(B124="","",B128/B124-100%)) -> -0.01181795323 | C97: =IF(C128="","",IF(C124="","",C128/C124-100%)) -> -0.03251231527 | D97: -0.1039215686 | E97: -0.01870835469 | F97: -0.002426006793 | G97: -0.0170109356 | H97: 0.02998696219 | I97: -0.01784991032 | J97: 0.08588957055 | K97: -0.024 | L97: 0.00146484375 | M97: -0.02836879433 | N97: -0.03712601005 | O97: 0.006400409626 | P97: -0.07624113475 | Q97: -0.01389221557 | R97: -0.02275420716 | S97: -0.01336772983 | T97: -0.002726146221 | U97: 0.0364621828
A98: 2021/2018-100% | B98: =IF(B128="","",IF(B125="","",B128/B125-100%)) -> -0.06761565836 | C98: =IF(C128="","",IF(C125="","",C128/C125-100%)) -> -0.03913894325 | D98: -0.0878243513 | E98: -0.05293099184 | F98: -0.01461778097 | G98: -0.04599056604 | H98: -0.03019887061 | I98: -0.03726831371 | J98: 0.05030959752 | K98: -0.01722980533 | L98: -0.02796208531 | M98: -0.0114994363 | N98: -0.01386714382 | O98: -0.02504960317 | P98: -0.04578754579 | Q98: -0.01601338432 | R98: -0.03033866416 | S98: -0.01406140145 | T98: -0.008134089228 | U98: 0.0009517011658
A99: 2021/2019-100% | B99: =IF(B128="","",IF(B126="","",B128/B126-100%)) -> -0.02263118627 | C99: =IF(C128="","",IF(C126="","",C128/C126-100%)) -> -0.02579365079 | D99: 0.03082706767 | E99: -0.01618705036 | F99: -0.003875968992 | G99: -0.02670837344 | H99: -0.05885156064 | I99: -0.01473729424 | J99: 0.03403606807 | K99: 0.008033050264 | L99: -0.002189248358 | M99: 0.004582951421 | N99: -0.01121327652 | O99: 0.007690335811 | P99: -0.0008523332623 | Q99: -0.001697381183 | R99: -0.01174496644 | S99: 0.01397927211 | T99: -0.008134089228 | U99: -0.002134724858
A100: 2021/2020-100% | B100: =IF(B128="","",IF(B127="","",B128/B127-100%)) -> 0.006917755573 | C100: =IF(C128="","",IF(C127="","",C128/C127-100%)) -> -0.02603520952 | D100: -0.03246294989 | E100: -0.008031088083 | F100: -0.003151515152 | G100: 0.009735396905 | H100: 0.01542416452 | I100: 0.05910577019 | J100: 0.1283259424 | K100: 0.09662921348 | L100: 0.06434872859 | M100: 0.07424650821 | N100: 0.09485969704 | O100: 0.1183499289 | P100: 0.03830823738 | Q100: 0.00586366968 | R100: 0.07650130548 | S100: 0.1179909647 | T100: 0.03205950244 | U100: 0.08111817982
A101: 2022/2021-100% | B101: =IF(B129="","",IF(B128="","",B129/B128-100%)) -> -0.03002544529 | C101: =IF(C129="","",IF(C128="","",C129/C128-100%)) -> -0.02087576375 | D101: -0.02285436421 | E101: 0.01802037085 | F101: -0.02358949416 | G101: -0.0131025958 | H101: -0.02683544304 | I101: -0.01968246487 | J101: -0.08450012282 | K101: -0.03961748634 | L101: -0.04022428084 | M101: -0.05406021898 | N101: -0.02018598322 | O101: -0.05545662681 | P101: -0.03198976328 | Q101: -0.042020889 | R101: -0.03104535532 | S101: -0.04516282386 | T101: -0.02186878728 | U101: -0.04991680532
A103: Row Labels | B103: ME NONOTC | C103: ME OTC | D103: NH | E103: VT | F103: CT | G103: MA | H103: RI | I103: DE | J103: DC | K103: MD | L103: NJ | M103: NY | N103: PA | O103: VA-OTC | P103: OTC | Q103: NY-NJ-CT NA | R103: PA-NJ-MD-DE NA | S103: DC-MD-VA NA | T103: GR-CT NA | U103: BALT NA
A104: 1997 | B104: 0.04701492537 | C104: 0.04921428571 | D104: 0.05205555556 | E104: 0.05024074074 | F104: 0.05664814815 | G104: 0.05375294118 | H104: 0.04765384615 | I104: 0.04604705882 | J104: 0.04141176471 | K104: 0.05028235294 | L104: 0.05221176471 | M104: 0.05321176471 | N104: 0.05217647059 | O104: 0.04407058824 | P104: 0.05927058824 | Q104: 0.05168235294 | R104: 0.05188235294 | S104: 0.04778823529 | T104: 0.0542962963 | U104: 0.04898823529
A105: 1998 | B105: 0.04754411765 | C105: 0.05052941176 | D105: 0.05359259259 | E105: 0.05351851852 | F105: 0.05457407407 | G105: 0.05625882353 | H105: 0.04628301887 | I105: 0.05015294118 | J105: 0.04255294118 | K105: 0.05516666667 | L105: 0.05389411765 | M105: 0.05701176471 | N105: 0.05670588235 | O105: 0.0488 | P105: 0.06523529412 | Q105: 0.05181176471 | R105: 0.05350588235 | S105: 0.05131764706 | T105: 0.05322222222 | U105: 0.05442307692
A106: 1999 | B106: 0.04567741935 | C106: 0.04930588235 | D106: 0.04855555556 | E106: 0.05185185185 | F106: 0.0483452381 | G106: 0.05122352941 | H106: 0.0427 | I106: 0.05003529412 | J106: 0.04517647059 | K106: 0.05402352941 | L106: 0.05218823529 | M106: 0.05643529412 | N106: 0.05727058824 | O106: 0.04898823529 | P106: 0.06331764706 | Q106: 0.05103529412 | R106: 0.05117647059 | S106: 0.055 | T106: 0.05112962963 | U106: 0.0502
A107: 2000 | B107: 0.04528571429 | C107: 0.04701265823 | D107: 0.04857407407 | E107: 0.04920833333 | F107: 0.04763529412 | G107: 0.04965882353 | H107: 0.04962962963 | I107: 0.04897647059 | J107: 0.04295294118 | K107: 0.05330588235 | L107: 0.05356470588 | M107: 0.05589411765 | N107: 0.05548235294 | O107: 0.04872941176 | P107: 0.06221176471 | Q107: 0.05089411765 | R107: 0.05408235294 | S107: 0.05254117647 | T107: 0.05222222222 | U107: 0.05104705882
A108: 2001 | B108: 0.05305555556 | C108: 0.04809411765 | D108: 0.05687037037 | E108: 0.0547037037 | F108: 0.05049411765 | G108: 0.05611764706 | H108: 0.05429166667 | I108: 0.04971428571 | J108: 0.04218823529 | K108: 0.05254117647 | L108: 0.05382352941 | M108: 0.05863529412 | N108: 0.05447058824 | O108: 0.04869411765 | P108: 0.06327058824 | Q108: 0.05285882353 | R108: 0.05397647059 | S108: 0.05130588235 | T108: 0.05514814815 | U108: 0.05064705882
A109: 2002 | B109: 0.04705555556 | C109: 0.04718823529 | D109: 0.05064814815 | E109: 0.04717647059 | F109: 0.04702352941 | G109: 0.05223529412 | H109: 0.054 | I109: 0.04694117647 | J109: 0.04141176471 | K109: 0.04956470588 | L109: 0.05145882353 | M109: 0.05307058824 | N109: 0.04972941176 | O109: 0.04769411765 | P109: 0.05722352941 | Q109: 0.05005882353 | R109: 0.05178823529 | S109: 0.04872941176 | T109: 0.04654117647 | U109: 0.04838823529
A110: 2003 | B110: 0.04436470588 | C110: 0.04894117647 | D110: 0.05461111111 | E110: 0.04856470588 | F110: 0.04627058824 | G110: 0.05103529412 | H110: 0.04866666667 | I110: 0.0454 | J110: 0.03837647059 | K110: 0.04737647059 | L110: 0.05002352941 | M110: 0.05681176471 | N110: 0.05117647059 | O110: 0.04644444444 | P110: 0.06085882353 | Q110: 0.04817647059 | R110: 0.04910588235 | S110: 0.04350588235 | T110: 0.04622352941 | U110: 0.04607058824
A111: 2004 | B111: 0.04662962963 | C111: 0.0496 | D111: 0.04869047619 | E111: 0.04690588235 | F111: 0.04725882353 | G111: 0.05287058824 | H111: 0.0492037037 | I111: 0.0507125 | J111: 0.04055294118 | K111: 0.05972222222 | L111: 0.05370588235 | M111: 0.05638823529 | N111: 0.05395294118 | O111: 0.04791764706 | P111: 0.06174117647 | Q111: 0.05105882353 | R111: 0.05327058824 | S111: 0.04971764706 | T111: 0.0468 | U111: 0.0575
A112: 2005 | B112: 0.04754761905 | C112: 0.04905882353 | D112: 0.05333333333 | E112: 0.04996470588 | F112: 0.04898823529 | G112: 0.05449411765 | H112: 0.04988679245 | I112: 0.04944578313 | J112: 0.0406 | K112: 0.05176190476 | L112: 0.05256470588 | M112: 0.05629411765 | N112: 0.05367058824 | O112: 0.04644705882 | P112: 0.06082352941 | Q112: 0.05123529412 | R112: 0.0518 | S112: 0.0482 | T112: 0.04875294118 | U112: 0.05194444444
A113: 2006 | B113: 0.04507317073 | C113: 0.04807058824 | D113: 0.05183636364 | E113: 0.04618823529 | F113: 0.05056470588 | G113: 0.05198823529 | H113: 0.04931481481 | I113: 0.04831764706 | J113: 0.04661176471 | K113: 0.05187058824 | L113: 0.05475294118 | M113: 0.05381176471 | N113: 0.05287058824 | O113: 0.04837647059 | P113: 0.05963529412 | Q113: 0.05368235294 | R113: 0.05192941176 | S113: 0.05007058824 | T113: 0.05038823529 | U113: 0.04890361446
A114: 2007 | B114: 0.04574117647 | C114: 0.04727058824 | D114: 0.0537037037 | E114: 0.04630588235 | F114: 0.04904819277 | G114: 0.05022352941 | H114: 0.0462037037 | I114: 0.0474 | J114: 0.04531764706 | K114: 0.05211764706 | L114: 0.05118823529 | M114: 0.05428235294 | N114: 0.0524 | O114: 0.0488 | P114: 0.05931764706 | Q114: 0.04894117647 | R114: 0.05058823529 | S114: 0.04969411765 | T114: 0.04871084337 | U114: 0.04515662651
A115: 2008 | B115: 0.04822352941 | C115: 0.04948235294 | D115: 0.05714814815 | E115: 0.04934117647 | F115: 0.0496375 | G115: 0.05278823529 | H115: 0.04924074074 | I115: 0.04771764706 | J115: 0.04272941176 | K115: 0.05165882353 | L115: 0.05122352941 | M115: 0.05576470588 | N115: 0.05234117647 | O115: 0.0495 | P115: 0.05912941176 | Q115: 0.05063529412 | R115: 0.05045882353 | S115: 0.04802352941 | T115: 0.04915 | U115: 0.04638823529
A116: 2009 | B116: 0.04861176471 | C116: 0.05069411765 | D116: 0.05466666667 | E116: 0.04821176471 | F116: 0.04782352941 | G116: 0.05294117647 | H116: 0.04842592593 | I116: 0.04649411765 | J116: 0.04194117647 | K116: 0.05123529412 | L116: 0.0514 | M116: 0.05558823529 | N116: 0.05317647059 | O116: 0.04494117647 | P116: 0.05916470588 | Q116: 0.05061176471 | R116: 0.05124705882 | S116: 0.04714117647 | T116: 0.04759036145 | U116: 0.0465
A117: 2010 | B117: 0.04837647059 | C117: 0.04981176471 | D117: 0.05405882353 | E117: 0.04791764706 | F117: 0.05116470588 | G117: 0.05302352941 | H117: 0.04862352941 | I117: 0.05298809524 | J117: 0.04755294118 | K117: 0.05505882353 | L117: 0.05234117647 | M117: 0.05790588235 | N117: 0.05494117647 | O117: 0.04832941176 | P117: 0.06210588235 | Q117: 0.05238823529 | R117: 0.05268235294 | S117: 0.05129411765 | T117: 0.0504 | U117: 0.05054320988
A118: 2011 | B118: 0.04529411765 | C118: 0.04532941176 | D118: 0.05284705882 | E118: 0.0452 | F118: 0.04554117647 | G118: 0.04761176471 | H118: 0.04550588235 | I118: 0.04747058824 | J118: 0.04350588235 | K118: 0.05064705882 | L118: 0.04769411765 | M118: 0.05304705882 | N118: 0.05138823529 | O118: 0.0467037037 | P118: 0.05729411765 | Q118: 0.04777647059 | R118: 0.04765882353 | S118: 0.04674117647 | T118: 0.04424705882 | U118: 0.04754545455
A119: 2012 | B119: 0.04802352941 | C119: 0.04754117647 | D119: 0.05329411765 | E119: 0.04698823529 | F119: 0.05012941176 | G119: 0.05001176471 | H119: 0.04874117647 | I119: 0.0484 | J119: 0.04687058824 | K119: 0.05335294118 | L119: 0.04891764706 | M119: 0.05415294118 | N119: 0.05428235294 | O119: 0.05003703704 | P119: 0.05952941176 | Q119: 0.04930588235 | R119: 0.04952941176 | S119: 0.05070588235 | T119: 0.04974117647 | U119: 0.0473875
A120: 2013 | B120: 0.0482 | C120: 0.04790588235 | D120: 0.05387058824 | E120: 0.04958823529 | F120: 0.04977647059 | G120: 0.05004705882 | H120: 0.049 | I120: 0.04817647059 | J120: 0.04612941176 | K120: 0.05244705882 | L120: 0.04912941176 | M120: 0.05129411765 | N120: 0.05563529412 | O120: 0.04901851852 | P120: 0.05897647059 | Q120: 0.04891764706 | R120: 0.04961176471 | S120: 0.04945882353 | T120: 0.04934117647 | U120: 0.04765882353
A121: 2014 | B121: 0.04688235294 | C121: 0.04662352941 | D121: 0.0518 | E121: 0.04808235294 | F121: 0.04990588235 | G121: 0.04928235294 | H121: 0.04711764706 | I121: 0.05005882353 | J121: 0.04521176471 | K121: 0.05252941176 | L121: 0.04874117647 | M121: 0.05232941176 | N121: 0.05349411765 | O121: 0.04922222222 | P121: 0.05724705882 | Q121: 0.04996470588 | R121: 0.04941176471 | S121: 0.04927058824 | T121: 0.04903529412 | U121: 0.04610588235
A122: 2015 | B122: 0.04897647059 | C122: 0.04730588235 | D122: 0.05323529412 | E122: 0.04845882353 | F122: 0.04998823529 | G122: 0.04777647059 | H122: 0.04682352941 | I122: 0.04918823529 | J122: 0.04407058824 | K122: 0.05204705882 | L122: 0.04911764706 | M122: 0.05356470588 | N122: 0.05371764706 | O122: 0.04922222222 | P122: 0.05809411765 | Q122: 0.04917647059 | R122: 0.04945882353 | S122: 0.04941176471 | T122: 0.04955294118 | U122: 0.04646428571
A123: 2016 | B123: 0.04528235294 | C123: 0.04558823529 | D123: 0.05245882353 | E123: 0.0464 | F123: 0.04892941176 | G123: 0.04715294118 | H123: 0.04627058824 | I123: 0.04842352941 | J123: 0.04137647059 | K123: 0.04910588235 | L123: 0.0474 | M123: 0.05162352941 | N123: 0.05248235294 | O123: 0.04488888889 | P123: 0.05704705882 | Q123: 0.04852941176 | R123: 0.04821176471 | S123: 0.04572941176 | T123: 0.04816470588 | U123: 0.04471764706
A124: 2017 | B124: 0.04678823529 | C124: 0.04776470588 | D124: 0.054 | E124: 0.04590588235 | F124: 0.04849411765 | G124: 0.04841176471 | H124: 0.04511764706 | I124: 0.04841176471 | J124: 0.04410588235 | K124: 0.05294117647 | L124: 0.04818823529 | M124: 0.05308235294 | N124: 0.05387058824 | O124: 0.04595294118 | P124: 0.05971764706 | Q124: 0.04911764706 | R124: 0.04963529412 | S124: 0.05016470588 | T124: 0.04747058824 | U124: 0.04775294118
A125: 2018 | B125: 0.04958823529 | C125: 0.04809411765 | D125: 0.05304705882 | E125: 0.04756470588 | F125: 0.04909411765 | G125: 0.04988235294 | H125: 0.04791764706 | I125: 0.04938823529 | J125: 0.0456 | K125: 0.05257647059 | L125: 0.04964705882 | M125: 0.05217647059 | N125: 0.0526 | O125: 0.04743529412 | P125: 0.05781176471 | Q125: 0.04922352941 | R125: 0.05002352941 | S125: 0.0502 | T125: 0.04772941176 | U125: 0.04944705882
A126: 2019 | B126: 0.04730588235 | C126: 0.04743529412 | D126: 0.04694117647 | E126: 0.04578823529 | F126: 0.04856470588 | G126: 0.04889411765 | H126: 0.04937647059 | I126: 0.04825882353 | J126: 0.04631764706 | K126: 0.05125882353 | L126: 0.04836470588 | M126: 0.05134117647 | N126: 0.05245882353 | O126: 0.04589411765 | P126: 0.05521176471 | Q126: 0.04851764706 | R126: 0.04908235294 | S126: 0.04881176471 | T126: 0.04772941176 | U126: 0.0496
A127: 2020 | B127: 0.04591764706 | C127: 0.04744705882 | D127: 0.05001176471 | E127: 0.04541176471 | F127: 0.04852941176 | G127: 0.04712941176 | H127: 0.04576470588 | I127: 0.04489411765 | J127: 0.04244705882 | K127: 0.04711764706 | L127: 0.04534117647 | M127: 0.04801176471 | N127: 0.04737647059 | O127: 0.04135294118 | P127: 0.05312941176 | Q127: 0.04815294118 | R127: 0.04505882353 | S127: 0.04427058824 | T127: 0.04587058824 | U127: 0.0457804878
A128: 2021 | B128: 0.04623529412 | C128: 0.04621176471 | D128: 0.04838823529 | E128: 0.04504705882 | F128: 0.04837647059 | G128: 0.04758823529 | H128: 0.04647058824 | I128: 0.04754761905 | J128: 0.04789411765 | K128: 0.05167058824 | L128: 0.04825882353 | M128: 0.05157647059 | N128: 0.05187058824 | O128: 0.04624705882 | P128: 0.05516470588 | Q128: 0.04843529412 | R128: 0.04850588235 | S128: 0.04949411765 | T128: 0.04734117647 | U128: 0.04949411765
A129: 2022 | B129: 0.04484705882 | C129: 0.04524705882 | D129: 0.04728235294 | E129: 0.04585882353 | F129: 0.04723529412 | G129: 0.04696470588 | H129: 0.04522352941 | I129: 0.04661176471 | J129: 0.04384705882 | K129: 0.04962352941 | L129: 0.04631764706 | M129: 0.04878823529 | N129: 0.05082352941 | O129: 0.04368235294 | P129: 0.0534 | Q129: 0.0464 | R129: 0.047 | S129: 0.04725882353 | T129: 0.04630588235 | U129: 0.04702352941

Sheet DATA
A1: EXCEPTIONAL EVENT DATA NOT EXCLUDED | AB1: =COUNT(AB6:AB9501) -> 5657 | AC1: 3856 | AD1: 5129 | AE1: 3629 | AF1: 1485 | AG1: 2143 | AH1: 4939 | AI1: 504 | AJ1: 790 | AK1: 3475 | AL1: 5804 | AM1: 3031 | AN1: 1608 | AO1: =COUNT(AO6:AO9501) -> 4569 | AP1: 181 | AQ1: 4757 | AR1: 4740 | AS1: 4572 | AT1: 6286 | AU1: 6524 | AV1: 768 | AW1: 5205 | AX1: 5682 | AY1: 574 | AZ1: 4608 | BA1: 904 | BB1: 2005 | BC1: 2859 | BD1: 4718 | BE1: 3833 | BF1: 7120 | BG1: 2203 | BH1: 8536 | BI1: 6212 | BJ1: 7299 | BK1: 3800 | BL1: 7169 | BM1: 6662 | BN1: 5031 | BO1: 8435 | BP1: 9149 | BQ1: 3213 | BR1: 3165 | BS1: 1298 | BT1: 6990 | BU1: 311 | BV1: 180 | BW1: 4951 | BX1: 8672 | BY1: 1174 | BZ1: 359 | CA1: 4729 | CB1: 696 | CC1: 980 | CD1: 1509 | CE1: =COUNT(CE6:CE9501) -> 0 | CF1: 383 | CG1: 4958 | CH1: 4687 | CI1: 2049 | CJ1: 3931 | CK1: 2190 | CL1: 1503 | CM1: 5208 | CN1: =COUNT(CN6:CN9501) -> 8505 | CO1: 266 | CP1: 1039 | CQ1: 3705 | CR1: 5480 | CS1: 5375 | CT1: 5388 | CU1: 3540 | CV1: 3938 | CW1: 5114 | CX1: 6320 | CY1: 6389 | CZ1: 5472 | DA1: 5482 | DB1: 5268 | DC1: 1427 | DD1: 5917 | DE1: 1038 | DF1: 4379 | DG1: 3749 | DH1: 5055 | DI1: 241 | DJ1: 595 | DK1: 319 | DL1: 3088 | DM1: 6803 | DN1: 1374 | DO1: 2938 | DP1: 2867 | DQ1: 3465 | DR1: 1304 | DS1: 3179 | DT1: 4737 | DU1: 1061 | DV1: 8582 | DW1: 2619 | DX1: 2227 | DY1: 4951 | DZ1: 2935 | EA1: 1492 | EB1: 8507 | EC1: 3433 | ED1: 8923 | EE1: 5948 | EF1: 2528 | EG1: 378 | EH1: 586 | EI1: =COUNT(EI6:EI9501) -> 416 | EJ1: 5239 | EK1: 2946 | EL1: 177 | EM1: 3138 | EN1: 8189 | EO1: 932 | EP1: 6996 | EQ1: 4096 | ER1: 583 | ES1: 4039 | ET1: 1154 | EU1: 6930 | EV1: 5758 | EW1: 4308 | EX1: 1366 | EY1: 1487 | EZ1: =COUNT(EZ6:EZ9501) -> 5476 | FA1: 3911 | FB1: 434 | FC1: 258 | FD1: 1930 | FE1: 1316 | FF1: 3530 | FG1: 5875 | FH1: 1277 | FI1: 4056 | FJ1: 790 | FK1: 1328 | FL1: 999 | FM1: 5780 | FN1: 291 | FO1: 3605 | FP1: 4045 | FQ1: 1315 | FR1: 2214 | FS1: 3861 | FT1: 5341 | FU1: 500 | FV1: 2374 | FW1: 3892 | FX1: 3645 | FY1: 4003 | FZ1: 8035 | GA1: 8923 | GB1: 4655 | GC1: 1023 | GD1: 619 | GE1: 7740 | GF1: 8728 | GG1: 9096 | GH1: 9012 | GI1: 3949 | GJ1: 8991 | GK1: 6369 | GL1: 9049 | GM1: 6361 | GN1: 5688 | GO1: 318 | GP1: 4048 | GQ1: 8945 | GR1: 271 | GS1: 635 | GT1: 7004 | GU1: 9041 | GV1: 8078 | GW1: 5482 | GX1: 5416 | GY1: 8753 | GZ1: 8714 | HA1: 7858 | HB1: 8765 | HC1: 3620 | HD1: 2608 | HE1: 8864 | HF1: 7768 | HG1: 7206 | HH1: 5196 | HI1: 2419 | HJ1: 6072 | HK1: 1163 | HL1: =COUNT(HL6:HL9501) -> 1636 | HM1: 5216 | HN1: 6915 | HO1: 4657 | HP1: 8487 | HQ1: 7249 | HR1: 5819 | HS1: 7578 | HT1: 221 | HU1: 1203 | HV1: 2641 | HW1: 7118 | HX1: 3863 | HY1: 5430 | HZ1: 992 | IA1: 4632 | IB1: 8519 | IC1: 5203 | ID1: 5507 | IE1: 8688 | IF1: 5486 | IG1: 7571 | IH1: 855 | II1: 3977 | IJ1: 5666 | IK1: 7004 | IL1: 8907 | IM1: 2575 | IN1: 1999 | IO1: 3877 | IP1: 8820 | IQ1: 3607 | IR1: 6293 | IS1: 910 | IT1: 8740 | IU1: 6681 | IV1: 6708 | IW1: 6703 | IX1: 6699 | IY1: 1459 | IZ1: 4241 | JA1: 1937 | JB1: 210 | JC1: 4575 | JD1: 6621 | JE1: 3116 | JF1: 6695 | JG1: 6795 | JH1: 6075 | JI1: 1656 | JJ1: 3954 | JK1: 627 | JL1: 5953 | JM1: 6487 | JN1: 6327 | JO1: 6620 | JP1: 6780 | JQ1: 3889 | JR1: 6727 | JS1: 1291 | JT1: 6481 | JU1: 6222 | JV1: 5133 | JW1: 6639 | JX1: =COUNT(JX6:JX9501) -> 6702 | JY1: 6845 | JZ1: 4366 | KA1: 6852 | KB1: 3167 | KC1: =COUNT(KC6:KC9501) -> 382 | KD1: 6783 | KE1: 3918 | KF1: 6763 | KG1: 5756 | KH1: 1041 | KI1: 1545 | KJ1: 6795 | KK1: 3806 | KL1: 428 | KM1: 4835 | KN1: 6652 | KO1: 6575 | KP1: 614 | KQ1: 4691 | KR1: 4179 | KS1: 8648 | KT1: 3660 | KU1: 8755 | KV1: 2928 | KW1: 3583 | KX1: 901 | KY1: 3830 | KZ1: 6184 | LA1: 6798 | LB1: 5439 | LC1: 6615 | LD1: 2219 | LE1: 3995 | LF1: 6452 | LG1: 6804 | LH1: 4103 | LI1: 4708 | LJ1: 100 | LK1: 6075 | LL1: 4890 | LM1: 311 | LN1: 8069 | LO1: 8169 | LP1: 2201 | LQ1: 5790 | LR1: 4451 | LS1: 3841 | LT1: 5433 | LU1: 1495 | LV1: 2555 | LW1: 4388 | LX1: 5434 | LY1: 5747 | LZ1: 3244 | MA1: 262 | MC1: =COUNT(MC6:MC9501) -> 5151
A2: 1997-2021 data | C2: 5/28/2022 AQS | F2: Site Name | O2: =IF(COUNT(ER2:EU2)+COUNT(EW2:FR2)=0,"",MAX(ER2:EU2,EW2:FR2)) ->  | P2: formula w/o Mt Washington | V2: =IF(COUNT(AO2:EU2)+COUNT(EW2:MA2)=0,"",MAX(AO2:EU2,EW2:MA2)) ->  | AB2: MIC MAC Tribe-Presque Isle | AC2: Ashland | AD2: Gardiner-combined | AE2: North Lovell | AF2: Bethel | AG2: Penobscot Nation-Old Town | AH2: Holden-Riders Bluff | AI2: Howland | AJ2: Dover-Foxcroft | AK2: Jonesport | AL2: SIPAYIK-B Pleasant Point - Passamaquoddy Tribe combined | AM2: Shapleigh-Ballpark | AN2: Roosevelt Campobello | AO2: Greenwich | AP2: Bridgeport | AQ2: Danbury | AR2: Stratford | AS2: Westport | AT2: East Hartford | AU2: Cornwall (Mohawk Mt) | AV2: Torrington | AW2: Middletown-combined | AX2: New Haven-B | AY2: New Haven-A | AZ2: Madison-combined | BA2: Hamden | BB2: Groton | BC2: Groton Fort Griswold | BD2: Stafford | BE2: Abington | BF2: Killens | BG2: River Rd Park, Belle | BH2: LUMS2 | BI2: BCSP | BJ2: BELLFNT2 | BK2: Wilmington-MLK Blvd | BL2: Seaford | BM2: Lewes | BN2: Takoma Park | BO2: RIVER_Terrace | BP2: McMillan Reservoir | BQ2: TakomaRec | BR2: Durham | BS2: Portland-EMPACT | BT2: Cape Elizabeth | BU2: Seawall | BV2: Bar Harbor-McFarland Hill-0101 | BW2: Bar Harbor-Cadillac Mt Summit | BX2: Bar Harbor-McFarland Hill-0103 | BY2: Castine | BZ2: Winter Harbor-Schoodic Point | CA2: Port Clyde-Marshall Pt | CB2: Phippsburg | CC2: Georgetown-Reid SP | CD2: Bowdoinham | CE2: Popham Beach SP | CF2: Hollis | CG2: Hollis/West Buxton | CH2: Kennebunkport | CI2: Kittery | CJ2: Davidsonville | CK2: Fort Meade | CL2: GLEN BURNIE | CM2: Padonia | CN2: Essex | CO2: Hart Miller Island | CP2: CALVERT-A | CQ2: CALVERT-B | CR2: South Carroll | CS2: Fair Hill | CT2: Southern Maryland | CU2: Horn Point | CV2: Blackwater NWR | CW2: Frederick Co. | CX2: Piney Run | CY2: Edgewood | CZ2: Aldino | DA2: Millington | DB2: Rockville | DC2: Greenbelt | DD2: HU-Beltsville | DE2: Suitland | DF2: Prince Georges Co. Equestrian Ctr | DG2: Beltsville | DH2: Hagerstown | DI2: Baltimore-A | DJ2: Baltimore-B | DK2: Ponca Street | DL2: Furley E.S.Rec Center | DM2: Truro | DN2: Pittsfield | DO2: Adams | DP2: Fairhaven | DQ2: Fall River | DR2: Easton | DS2: Fairhaven2 | DT2: Wampanoag Laboratory - Martha's Vineyard | DU2: Lawrence | DV2: Lynn | DW2: Newbury-A | DX2: Newbury-B | DY2: Haverhill | DZ2: Greenfield | EA2: Agawam | EB2: Chicopee | EC2: AMHERST | ED2: Ware | EE2: Chelmsford LAB | EF2: Stow | EG2: Sudbury | EH2: Waltham | EI2: Weymouth | EJ2: E Milton (Blue Hill) | EK2: Brockton | EL2: Scituate | EM2: Boston-Long Island | EN2: Boston-Roxbury | EO2: Chelsea | EP2: Worcester | EQ2: Uxbridge | ER2: Laconia-A | ES2: Laconia-B | ET2: Conway | EU2: Keene | EV2: Mt Washington Summit | EW2: Mt Washington Base | EX2: Pittsburg | EY2: Haverhill | EZ2: Lebanon | FA2: Woodstock | FB2: Manchester-A | FC2: Manchester-B | FD2: Manchester-C | FE2: Nashua-A | FF2: Nashua-Gilson | FG2: Peterborough-Miller State Park | FH2: Concord-A | FI2: Concord-B | FJ2: Portsmouth-PVS | FK2: Rye-A | FL2: Brentwood | FM2: Portsmouth-Pierce Island | FN2: Portsmouth-Port Authority | FO2: Rye-Odiorne State Park | FP2: Londonderry-Moose Hill | FQ2: Rochester | FR2: Claremont | FS2: Nacote Creek | FT2: Brigantine | FU2: Cliffside Park | FV2: Teaneck | FW2: Leonia | FX2: Camden-Spruce St | FY2: Camden | FZ2: Ancora | GA2: Millville | GB2: Newark Firehouse | GC2: Newark-A | GD2: Newark-B | GE2: Clarksboro | GF2: Bayonne | GG2: Flemington | GH2: Rider U | GI2: Wash Crossing | GJ2: Rutgers U | GK2: Monmouth U | GL2: Chester | GM2: Colliers Mills | GN2: Ramapo | GO2: Plainfield 2 | GP2: Columbia Site | GQ2: Loudonville | GR2: NYC-IS155 | GS2: NYC-Morrisania Center | GT2: NYC-IS52 | GU2: NYBG-Bronx-combined | GV2: Dunkirk | GW2: Westfield | GX2: Elmira | GY2: Millbrook | GZ2: Amherst | HA2: Whiteface Mountain Summit | HB2: Whiteface Mt Base | HC2: Huntington Wildlife Forest | HD2: St Regis Mohawk-combined | HE2: Piseco Lake | HF2: Nicks Lake | HG2: Perch River | HH2: Camp Georgetown | HI2: Rochester-A | HJ2: Rochester-B | HK2: NYC-Mabel Dean HS Annex | HL2: NYC-Roof WTC | HM2: NYC-CCNY | HN2: Middleport | HO2: Camden | HP2: E Syracuse | HQ2: Valley Central High School | HR2: Fulton | HS2: Mt Ninham | HT2: NYC-Queens College | HU2: NYC-QBORO | HV2: NYC-College Pt | HW2: NYC-Queens | HX2: Grafton Lake | HY2: NYC-Susan Wagner HS | HZ2: Fresh Kills | IA2: Rockland County | IB2: Stillwater | IC2: Schenectady | ID2: Pinnacle State Park | IE2: Babylon | IF2: Riverhead | IG2: Suffolk County-combined | IH2: Flax Pond | II2: Connecticut Hill | IJ2: Belleayre Mountain | IK2: Williamson | IL2: White Plains | IM2: AREN | IN2: BIGL | IO2: Arendtsville | IP2: BAPC 301 39TH STREET BLDG #7 | IQ2: PITT | IR2: South Fayette | IS2: Penn Hills | IT2: Harrison Township-combined | IU2: Kittanning | IV2: HOOK | IW2: BRI1 | IX2: Beaver Falls | IY2: Kutztown | IZ2: KUT2 | JA2: REA1 | JB2: REA2 | JC2: REA3 | JD2: Altoona | JE2: Towanda | JF2: Bristol | JG2: Johnstown | JH2: State College | JI2: PENN | JJ2: Penn State | JK2: West Chester | JL2: NEWG | JM2: MOSH | JN2: Harrisburg | JO2: Hershey | JP2: Chester | JQ2: Kane Exp Forest | JR2: Erie | JS2: Uniontown | JT2: METH | JU2: HOLB | JV2: Strongstown | JW2: PECK | JX2: Scranton | JY2: Lancaster | JZ2: LAN1 | KA2: New Castle | KB2: Lebanon | KC2: Lebanon Birch Rd | KD2: Allentown | KE2: Nanticoke | KF2: Wilkes-Barre | KG2: Montoursville | KH2: Williamsport | KI2: TIAD | KJ2: Farrell | KK2: MK Goddard | KL2: NARSTO-Kunkletown | KM2: Pocono | KN2: Norristown | KO2: FREE | KP2: Easton-A | KQ2: Easton-B | KR2: LITT | KS2: LAB-combined | KT2: ROX | KU2: NEA | KV2: NEW | KW2: ELM | KX2: Pennypack Park-Phil | KY2: Laurel Hill | KZ2: TIOGA | LA2: Charleroi | LB2: Washington | LC2: FLOR | LD2: Houston | LE2: MURR | LF2: Greensburg | LG2: York | LH2: YOR1 | LI2: W Greenwich | LJ2: Providence | LK2: E Providence | LL2: Narragansett | LM2: East Matunuck | LN2: Bennington | LO2: Underhill | LP2: Rutland | LQ2: AURORA HILLS | LR2: CUB RUN | LS2: MT VERNON | LT2: Franconia | LU2: Seven Corners | LV2: Annandale | LW2: LEWINSVILLE | LX2: ASHBURN | LY2: JAMES S.LONG PARK | LZ2: ALEXANDRIA HEALTH | MA2: ALEXANDRIA TRANSPORTATION | MC2: Portland-Deering Oaks
A3: 2022 data | C3: AIRNOW-Tech | F3: Years | O3: =IF(COUNT(ER3:FR3)=0,"",MAX(ER3:FR3)) ->  | P3: formula w/ Mt Washington | V3: =IF(COUNT(AO3:MA3)=0,"",MAX(AO3:MA3)) -> 2022 | W3: 2008 2015 | X3: 2008 2015 | Y3: 2008 2015 | Z3: 2008 2015 | AA3: 2008 2015 | AB3: 2006-21 | AC3: 2011-21 | AD3: 1980-21 | AE3: 1992-15 | AF3: 2016-21 | AG3: 2006-15 | AH3: 1993-21 | AI3: 2011-12 | AJ3: 1998-01 | AK3: 1989-95, 05-21 | AL3: 2006-21 | AM3: 2008-21 | AN3: 1995-05 | AO3: NY-NJ-CT | AP3: NY-NJ-CT | AQ3: NY-NJ-CT | AR3: NY-NJ-CT | AS3: NY-NJ-CT | AT3: GR CT | AU3: GR CT | AV3: GR CT | AW3: NY-NJ-CT | AX3: NY-NJ-CT | AY3: NY-NJ-CT | AZ3: NY-NJ-CT | BA3: NY-NJ-CT | BB3: GR CT | BC3: GR CT | BD3: GR CT | BE3: GR CT | BF3: 1997-21 | BG3: PA-NJ-MD-DE | BH3: PA-NJ-MD-DE | BI3: PA-NJ-MD-DE | BJ3: PA-NJ-MD-DE | BK3: PA-NJ-MD-DE | BL3: 1997-21 | BM3: 1998-21 | BN3: DC-MD-VA | BO3: DC-MD-VA | BP3: DC-MD-VA | BQ3: DC-MD-VA | BR3: 2006-21 | BS3: 2003-06 | BT3: 1981-21 | BU3: 2000-01 | BV3: 1989-97 | BW3: 1995-21 | BX3: 1998-21 | BY3: 2001-07 | BZ3: 2003-04 | CA3: 1987-21 | CB3: 1993-00 | CC3: 2002-07 | CD3: 2008-15 | CE3: 2022 | CF3: 1997-98 | CG3: 1999-20 | CH3: 1983-21 | CI3: 1995-07 | CJ3: BALT | CK3: BALT | CL3: BALT | CM3: BALT | CN3: BALT | CO3: BALT | CP3: DC-MD-VA | CQ3: DC-MD-VA | CR3: BALT | CS3: PA-NJ-MD-DE | CT3: DC-MD-VA | CU3: 2012-21 | CV3: 2011-21 | CW3: DC-MD-VA | CX3: 2004-21 | CY3: BALT | CZ3: BALT | DA3: 1997-21 | DB3: DC-MD-VA | DC3: DC-MD-VA | DD3: DC-MD-VA | DE3: DC-MD-VA | DF3: DC-MD-VA | DG3: DC-MD-VA | DH3: 1999-21 | DI3: BALT | DJ3: BALT | DK3: BALT | DL3: BALT | DM3: 1997-21 | DN3: 2018-21 | DO3: 1997-14 | DP3: 1997-12 | DQ3: 2012-21 | DR3: 1997-01 | DS3: 2013-21 | DT3: 2004-21 | DU3: 1997-02 | DV3: 1997-21 | DW3: 1997-09 | DX3: 2010-17 | DY3: 2004-21 | DZ3: 2014-21 | EA3: 1997-02 | EB3: 1997-21 | EC3: 1997-14 | ED3: 1997-21 | EE3: 2005-21 | EF3: 1998-11 | EG3: 1997-98 | EH3: 1997-99 | EI3: 2021 | EJ3: 2002-21 | EK3: 2014-21 | EL3: 1997 | EM3: 1999-14 | EN3: 1999-21 | EO3: 1997-99 | EP3: 1997-21 | EQ3: 2009-21 | ER3: 1997-99 | ES3: 2001-21 | ET3: 1997-02 | EU3: 1997-21 | EV3: 1997-21 | EW3: 1997-21 | EX3: 1997-99, 2000-07 | EY3: 1997-04 | EZ3: 2005-21 | FA3: 2011-21 | FB3: 1997-99 | FC3: 1999-00 | FD3: 2001-10 | FE3: 1997-03 | FF3: 2003-21 | FG3: 2002-21 | FH3: 1997-03 | FI3: 2004-21 | FJ3: 1997-00 | FK3: 1997-03 | FL3: 1998-03 | FM3: 2003-21 | FN3: 2001-03 | FO3: 2003-21 | FP3: 2011-21 | FQ3: 1997-03 | FR3: 1997-08 | FS3: PA-NJ-MD-DE | FT3: PA-NJ-MD-DE | FU3: NY-NJ-CT | FV3: NY-NJ-CT | FW3: NY-NJ-CT | FX3: PA-NJ-MD-DE | FY3: PA-NJ-MD-DE | FZ3: PA-NJ-MD-DE | GA3: PA-NJ-MD-DE | GB3: NY-NJ-CT | GC3: NY-NJ-CT | GD3: NY-NJ-CT | GE3: PA-NJ-MD-DE | GF3: NY-NJ-CT | GG3: NY-NJ-CT | GH3: PA-NJ-MD-DE | GI3: PA-NJ-MD-DE | GJ3: NY-NJ-CT | GK3: NY-NJ-CT | GL3: NY-NJ-CT | GM3: PA-NJ-MD-DE | GN3: NY-NJ-CT | GO3: NY-NJ-CT | GP3: NY-NJ-CT | GQ3: 1997-21 | GR3: NY-NJ-CT | GS3: NY-NJ-CT | GT3: NY-NJ-CT | GU3: NY-NJ-CT | GV3: 1999-21 | GW3: 1997-12 | GX3: 1997-12 | GY3: 1997-21 | GZ3: 1997-21 | HA3: 1997-21 | HB3: 1997-21 | HC3: 2011-21 | HD3: 2004-17 | HE3: 1997-21 | HF3: 1997-19 | HG3: 1997-21 | HH3: 1997-12 | HI3: 1997-04 | HJ3: 2004-21 | HK3: NY-NJ-CT | HL3: NY-NJ-CT | HM3: NY-NJ-CT | HN3: 1997-21 | HO3: 1997-12 | HP3: 1997-21 | HQ3: 1997-21 | HR3: 2002-21 | HS3: 1997-21 | HT3: NY-NJ-CT | HU3: NY-NJ-CT | HV3: NY-NJ-CT | HW3: NY-NJ-CT | HX3: 2002-12 | HY3: NY-NJ-CT | HZ3: NY-NJ-CT | IA3: NY-NJ-CT | IB3: 1997-21 | IC3: 1997-11 | ID3: 2006-21 | IE3: NY-NJ-CT | IF3: NY-NJ-CT | IG3: NY-NJ-CT | IH3: NY-NJ-CT | II3: 2011-21 | IJ3: 1997-12 | IK3: 1997-21 | IL3: NY-NJ-CT | IM3: 2014-21 | IN3: 2002-11 | IO3: 2011-21 | IP3: 1997-21 | IQ3: 1998-13 | IR3: 1997-21 | IS3: 1997-01 | IT3: 1997-21 | IU3: 1997-21 | IV3: 1997-21 | IW3: 1997-21 | IX3: 1997-21 | IY3: 1997-03 | IZ3: 2008-21 | JA3: 1997-06 | JB3: 2006-07 | JC3: 2007-21 | JD3: 1997-21 | JE3: 2013-21 | JF3: PA-NJ-MD-DE | JG3: 1997-21 | JH3: 2000-21 | JI3: 1997-04 | JJ3: 2011-21 | JK3: PA-NJ-MD-DE | JL3: PA-NJ-MD-DE | JM3: 1997-21 | JN3: 1997-11, 13-21 | JO3: 1997-21 | JP3: PA-NJ-MD-DE | JQ3: 2011-21 | JR3: 1997-21 | JS3: 2018-21 | JT3: 1997-21 | JU3: 1997-21 | JV3: 2005-21 | JW3: 1997-21 | JX3: 1997-21 | JY3: 1997-21 | JZ3: 2008-21 | KA3: 1997-21 | KB3: 2011-20 | KC3: 2021 | KD3: 1997-21 | KE3: 1997-14 | KF3: 1997-21 | KG3: 2002-21 | KH3: 1997-01 | KI3: 1997-04 | KJ3: 1997-21 | KK3: 2011-21 | KL3: 1997-99 | KM3: 2006-21 | KN3: PA-NJ-MD-DE | KO3: 1997-21 | KP3: 1997-99 | KQ3: 1999-18 | KR3: 1997-14 | KS3: PA-NJ-MD-DE | KT3: PA-NJ-MD-DE | KU3: PA-NJ-MD-DE | KV3: PA-NJ-MD-DE | KW3: PA-NJ-MD-DE | KX3: PA-NJ-MD-DE | KY3: 2011-21 | KZ3: 1999-21 | LA3: 1997-21 | LB3: 1997-18 | LC3: 1997-21 | LD3: 2012-15, 18-21 | LE3: 1997-14 | LF3: 1997, 1999-21 | LG3: 1997-21 | LH3: 2008-21 | LI3: 1997-21 | LJ3: 1997 | LK3: 1997-21 | LL3: 1997-21 | LM3: 2020 | LN3: 1997-21 | LO3: 1997-21 | LP3: 2016-21 | LQ3: DC-MD-VA | LR3: DC-MD-VA | LS3: DC-MD-VA | LT3: DC-MD-VA | LU3: DC-MD-VA | LV3: DC-MD-VA | LW3: DC-MD-VA | LX3: DC-MD-VA | LY3: DC-MD-VA | LZ3: DC-MD-VA | MA3: DC-MD-VA | MC3: 2008-21
A4: 10/1 - 12/312021 Delaware data | C4: AIRNOW-Tech | F4: site ID | I4: # sites > 70 ppb | W4: NY-NJ-CT | X4: PA-NJ-MD-DE | Y4: DC-MD-VA | Z4: GR-CT | AA4: BALT | AB4: 8-HR O3 | AC4: 8-HR O3 | AD4: 8-HR O3 | AE4: 8-HR O3 | AF4: 8-HR O3 | AG4: 8-HR O3 | AH4: 8-HR O3 | AI4: 8-HR O3 | AJ4: 8-HR O3 | AK4: 8-HR O3 | AL4: 8-HR O3 | AM4: 8-HR O3 | AN4: 8-HR O3 | AO4: 8-HR O3 | AP4: 8-HR O3 | AQ4: 8-HR O3 | AR4: 8-HR O3 | AS4: 8-HR O3 | AT4: 8-HR O3 | AU4: 8-HR O3 | AV4: 8-HR O3 | AW4: 8-HR O3 | AX4: 8-HR O3 | AY4: 8-HR O3 | AZ4: 8-HR O3 | BA4: 8-HR O3 | BB4: 8-HR O3 | BC4: 8-HR O3 | BD4: 8-HR O3 | BE4: 8-HR O3 | BF4: 8-HR O3 | BG4: 8-HR O3 | BH4: 8-HR O3 | BI4: 8-HR O3 | BJ4: 8-HR O3 | BK4: 8-HR O3 | BL4: 8-HR O3 | BM4: 8-HR O3 | BN4: 8-HR O3 | BO4: 8-HR O3 | BP4: 8-HR O3 | BQ4: 8-HR O3 | BR4: 8-HR O3 | BS4: 8-HR O3 | BT4: 8-HR O3 | BU4: 8-HR O3 | BV4: 8-HR O3 | BW4: 8-HR O3 | BX4: 8-HR O3 | BY4: 8-HR O3 | BZ4: 8-HR O3 | CA4: 8-HR O3 | CB4: 8-HR O3 | CC4: 8-HR O3 | CD4: 8-HR O3 | CE4: 8-HR O3 | CF4: 8-HR O3 | CG4: 8-HR O3 | CH4: 8-HR O3 | CI4: 8-HR O3 | CJ4: 8-HR O3 | CK4: 8-HR O3 | CL4: 8-HR O3 | CM4: 8-HR O3 | CN4: 8-HR O3 | CO4: 8-HR O3 | CP4: 8-HR O3 | CQ4: 8-HR O3 | CR4: 8-HR O3 | CS4: 8-HR O3 | CT4: 8-HR O3 | CU4: 8-HR O3 | CV4: 8-HR O3 | CW4: 8-HR O3 | CX4: 8-HR O3 | CY4: 8-HR O3 | CZ4: 8-HR O3 | DA4: 8-HR O3 | DB4: 8-HR O3 | DC4: 8-HR O3 | DD4: 8-HR O3 | DE4: 8-HR O3 | DF4: 8-HR O3 | DG4: 8-HR O3 | DH4: 8-HR O3 | DI4: 8-HR O3 | DJ4: 8-HR O3 | DK4: 8-HR O3 | DL4: 8-HR O3 | DM4: 8-HR O3 | DN4: 8-HR O3 | DO4: 8-HR O3 | DP4: 8-HR O3 | DQ4: 8-HR O3 | DR4: 8-HR O3 | DS4: 8-HR O3 | DT4: 8-HR O3 | DU4: 8-HR O3 | DV4: 8-HR O3 | DW4: 8-HR O3 | DX4: 8-HR O3 | DY4: 8-HR O3 | DZ4: 8-HR O3 | EA4: 8-HR O3 | EB4: 8-HR O3 | EC4: 8-HR O3 | ED4: 8-HR O3 | EE4: 8-HR O3 | EF4: 8-HR O3 | EG4: 8-HR O3 | EH4: 8-HR O3 | EI4: 8-HR O3 | EJ4: 8-HR O3 | EK4: 8-HR O3 | EL4: 8-HR O3 | EM4: 8-HR O3 | EN4: 8-HR O3 | EO4: 8-HR O3 | EP4: 8-HR O3 | EQ4: 8-HR O3 | ER4: 8-HR O3 | ES4: 8-HR O3 | ET4: 8-HR O3 | EU4: 8-HR O3 | EV4: 8-HR O3 | EW4: 8-HR O3 | EX4: 8-HR O3 | EY4: 8-HR O3 | EZ4: 8-HR O3 | FA4: 8-HR O3 | FB4: 8-HR O3 | FC4: 8-HR O3 | FD4: 8-HR O3 | FE4: 8-HR O3 | FF4: 8-HR O3 | FG4: 8-HR O3 | FH4: 8-HR O3 | FI4: 8-HR O3 | FJ4: 8-HR O3 | FK4: 8-HR O3 | FL4: 8-HR O3 | FM4: 8-HR O3 | FN4: 8-HR O3 | FO4: 8-HR O3 | FP4: 8-HR O3 | FQ4: 8-HR O3 | FR4: 8-HR O3 | FS4: 8-HR O3 | FT4: 8-HR O3 | FU4: 8-HR O3 | FV4: 8-HR O3 | FW4: 8-HR O3 | FX4: 8-HR O3 | FY4: 8-HR O3 | FZ4: 8-HR O3 | GA4: 8-HR O3 | GB4: 8-HR O3 | GC4: 8-HR O3 | GD4: 8-HR O3 | GE4: 8-HR O3 | GF4: 8-HR O3 | GG4: 8-HR O3 | GH4: 8-HR O3 | GI4: 8-HR O3 | GJ4: 8-HR O3 | GK4: 8-HR O3 | GL4: 8-HR O3 | GM4: 8-HR O3 | GN4: 8-HR O3 | GO4: 8-HR O3 | GP4: 8-HR O3 | GQ4: 8-HR O3 | GR4: 8-HR O3 | GS4: 8-HR O3 | GT4: 8-HR O3 | GU4: 8-HR O3 | GV4: 8-HR O3 | GW4: 8-HR O3 | GX4: 8-HR O3 | GY4: 8-HR O3 | GZ4: 8-HR O3 | HA4: 8-HR O3 | HB4: 8-HR O3 | HC4: 8-HR O3 | HD4: 8-HR O3 | HE4: 8-HR O3 | HF4: 8-HR O3 | HG4: 8-HR O3 | HH4: 8-HR O3 | HI4: 8-HR O3 | HJ4: 8-HR O3 | HK4: 8-HR O3 | HL4: 8-HR O3 | HM4: 8-HR O3 | HN4: 8-HR O3 | HO4: 8-HR O3 | HP4: 8-HR O3 | HQ4: 8-HR O3 | HR4: 8-HR O3 | HS4: 8-HR O3 | HT4: 8-HR O3 | HU4: 8-HR O3 | HV4: 8-HR O3 | HW4: 8-HR O3 | HX4: 8-HR O3 | HY4: 8-HR O3 | HZ4: 8-HR O3 | IA4: 8-HR O3 | IB4: 8-HR O3 | IC4: 8-HR O3 | ID4: 8-HR O3 | IE4: 8-HR O3 | IF4: 8-HR O3 | IG4: 8-HR O3 | IH4: 8-HR O3 | II4: 8-HR O3 | IJ4: 8-HR O3 | IK4: 8-HR O3 | IL4: 8-HR O3 | IM4: 8-HR O3 | IN4: 8-HR O3 | IO4: 8-HR O3 | IP4: 8-HR O3 | IQ4: 8-HR O3 | IR4: 8-HR O3 | IS4: 8-HR O3 | IT4: 8-HR O3 | IU4: 8-HR O3 | IV4: 8-HR O3 | IW4: 8-HR O3 | IX4: 8-HR O3 | IY4: 8-HR O3 | IZ4: 8-HR O3 | JA4: 8-HR O3 | JB4: 8-HR O3 | JC4: 8-HR O3 | JD4: 8-HR O3 | JE4: 8-HR O3 | JF4: 8-HR O3 | JG4: 8-HR O3 | JH4: 8-HR O3 | JI4: 8-HR O3 | JJ4: 8-HR O3 | JK4: 8-HR O3 | JL4: 8-HR O3 | JM4: 8-HR O3 | JN4: 8-HR O3 | JO4: 8-HR O3 | JP4: 8-HR O3 | JQ4: 8-HR O3 | JR4: 8-HR O3 | JS4: 8-HR O3 | JT4: 8-HR O3 | JU4: 8-HR O3 | JV4: 8-HR O3 | JW4: 8-HR O3 | JX4: 8-HR O3 | JY4: 8-HR O3 | JZ4: 8-HR O3 | KA4: 8-HR O3 | KB4: 8-HR O3 | KC4: 8-HR O3 | KD4: 8-HR O3 | KE4: 8-HR O3 | KF4: 8-HR O3 | KG4: 8-HR O3 | KH4: 8-HR O3 | KI4: 8-HR O3 | KJ4: 8-HR O3 | KK4: 8-HR O3 | KL4: 8-HR O3 | KM4: 8-HR O3 | KN4: 8-HR O3 | KO4: 8-HR O3 | KP4: 8-HR O3 | KQ4: 8-HR O3 | KR4: 8-HR O3 | KS4: 8-HR O3 | KT4: 8-HR O3 | KU4: 8-HR O3 | KV4: 8-HR O3 | KW4: 8-HR O3 | KX4: 8-HR O3 | KY4: 8-HR O3 | KZ4: 8-HR O3 | LA4: 8-HR O3 | LB4: 8-HR O3 | LC4: 8-HR O3 | LD4: 8-HR O3 | LE4: 8-HR O3 | LF4: 8-HR O3 | LG4: 8-HR O3 | LH4: 8-HR O3 | LI4: 8-HR O3 | LJ4: 8-HR O3 | LK4: 8-HR O3 | LL4: 8-HR O3 | LM4: 8-HR O3 | LN4: 8-HR O3 | LO4: 8-HR O3 | LP4: 8-HR O3 | LQ4: 8-HR O3 | LR4: 8-HR O3 | LS4: 8-HR O3 | LT4: 8-HR O3 | LU4: 8-HR O3 | LV4: 8-HR O3 | LW4: 8-HR O3 | LX4: 8-HR O3 | LY4: 8-HR O3 | LZ4: 8-HR O3 | MA4: 8-HR O3 | MC4: 8-HR O3
A5: DATE | B5: Month Day | C5: ProperDate | D5: ProperSort | E5: MONTH | F5: DAY | G5: YEAR | H5: ME NONOTC OZONE | I5: CT OZONE | J5: DE OZONE | K5: DC OZONE | L5: ME OTC OZONE | M5: MD OZONE | N5: MA OZONE | O5: NH OZONE | P5: NJ OZONE | Q5: NY OZONE | R5: PA OZONE | S5: RI OZONE | T5: VT OZONE | U5: VA-OTC OZONE | V5: OTC OZONE | W5: NY-NJ-CT NA OZONE | X5: PA-NJ-MD-DE NA OZONE | Y5: DC-MD-VA NA OZONE | Z5: GR-CT NA OZONE | AA5: BALT NA OZONE | AB5: 23-003-1100 | AC5: 23-003-9991 | AD5: 23-011-2001/2005 | AE5: 23-017-3001 | AF5: 23-017-3002 | AG5: 23-019-1100 | AH5: 23-019-4008 | AI5: 23-019-9991 | AJ5: 23-021-0003 | AK5: 23-029-0019 | AL5: 23-029-0031 -0032 -0033 | AM5: 23-031-0040 | AN5: CC-004-0002 | AO5: 09-001-0017 | AP5: 09-001-0113 | AQ5: 09-001-1123 | AR5: 09-001-3007 | AS5: 09-001-9003 | AT5: 09-003-1003 | AU5: 09-005-0005 | AV5: 09-005-0006 | AW5: 09-007-0007/9007 | AX5: 09-009-0027 | AY5: 09-009-1123 | AZ5: 09-009-3002/9002 | BA5: 09-009-9005 | BB5: 09-011-0008 | BC5: 09-011-0124 | BD5: 09-013-1001 | BE5: 09-015-9991 | BF5: 100010002 | BG5: 100031003 | BH5: 100031007 | BI5: 100031010 | BJ5: 100031013 | BK5: 100032004 | BL5: 100051002 | BM5: 100051003 | BN5: 110010025 | BO5: 110010041 | BP5: 110010043 | BQ5: 110010050 | BR5: 23-001-0014-2 | BS5: 23-005-0027 | BT5: 23-005-2003 | BU5: 23-009-0001 | BV5: 23-009-0101 | BW5: 23-009-0102 | BX5: 23-009-0103 | BY5: 23-009-0301 | BZ5: 23-009-0401 | CA5: 23-013-0004 | CB5: 23-023-0003 | CC5: 23-023-0004 | CD5: 23-023-0006 | CE5: 23-023-0007 | CF5: 23-031-0037 | CG5: 23-031-0038 | CH5: 23-031-2002 | CI5: 23-031-3002 | CJ5: 240030014 | CK5: 240030019 | CL5: 240031003 | CM5: 240051007 | CN5: 240053001 | CO5: 240053474 | CP5: 240090010 | CQ5: 240090011 | CR5: 240130001 | CS5: 240150003 | CT5: 240170010 | CU5: 24-019-0004 | CV5: 24-019-9991 | CW5: 240210037 | CX5: 240230002 | CY5: 240251001 | CZ5: 240259001 | DA5: 240290002 | DB5: 240313001 | DC5: 240330002 | DD5: 240330030 | DE5: 240338001 | DF5: 240338003 | DG5: 240339991 | DH5: 240430009 | DI5: 245100050 | DJ5: 245100051 | DK5: 245100053 | DL5: 245100054 | DM5: 250010002 | DN5: 250030008 | DO5: 250034002 | DP5: 250051002 | DQ5: 250051004 | DR5: 250051005 | DS5: 250051006 | DT5: 250070001 | DU5: 25-009-0005 | DV5: 250092006 | DW5: 250094004 | DX5: 25-009-4005 | DY5: 25-009-5005 | DZ5: 250112005 | EA5: 250130003 | EB5: 250130008 | EC5: 250150103 | ED5: 250154002 | EE5: 250170009 | EF5: 250171102 | EG5: 250171801 | EH5: 250174003 | EI5: 250212005 | EJ5: 250213003 | EK5: 250230005 | EL5: 250232001 | EM5: 250250041 | EN5: 250250042 | EO5: 250251003 | EP5: 250270015 | EQ5: 250270024 | ER5: 33-001-2003 | ES5: 33-001-2004 | ET5: 330031002 | EU5: 330050007 | EV5: 330074001 | EW5: 330074002 | EX5: 330074003 | EY5: 33-009-0008 | EZ5: 33-009-0010 | FA5: 33-009-9991 | FB5: 33-011-0016 | FC5: 33-011-0019 | FD5: 33-011-0020 | FE5: 33-011-1010 | FF5: 33-011-1011 | FG5: 330115001 | FH5: 33-013-0007 | FI5: 33-013-1007 | FJ5: 33-015-0009 | FK5: 33-015-0012 | FL5: 330150013 | FM5: 33-015-0014 | FN5: 33-015-0015 | FO5: 33-015-0016 | FP5: 33-015-0018 | FQ5: 330173002 | FR5: 330190003 | FS5: 340010005 | FT5: 340010006 | FU5: 340030001 | FV5: 340030005 | FW5: 34-003-0006 | FX5: 340070002 | FY5: 340070003 | FZ5: 340071001 | GA5: 340110007 | GB5: 340130003 | GC5: 340130011 | GD5: 340130016 | GE5: 340150002 | GF5: 340170006 | GG5: 340190001 | GH5: 340210005 | GI5: 340219991 | GJ5: 340230011 | GK5: 340250005 | GL5: 340273001 | GM5: 340290006 | GN5: 340315001 | GO5: 340390008 | GP5: 340410007 | GQ5: 360010012 | GR5: 360050073 | GS5: 360050080 | GT5: 360050110 | GU5: 36-005-0083/0133 | GV5: 360130006 | GW5: 360130011 | GX5: 360150003 | GY5: 360270007 | GZ5: 360290002 | HA5: 360310002 | HB5: 360310003 | HC5: 360319991 | HD5: 36-033-7003 | HE5: 360410005 | HF5: 360430005 | HG5: 360450002 | HH5: 360530006 | HI5: 360551004 | HJ5: 360551007 | HK5: 360610010 | HL5: 360610063 | HM5: 360610135 | HN5: 360631006 | HO5: 360650004 | HP5: 360671015 | HQ5: 360715001 | HR5: 360750003 | HS5: 360790005 | HT5: 360810004 | HU5: 360810097 | HV5: 360810098 | HW5: 360810124 | HX5: 360830004 | HY5: 360850067 | HZ5: 360850111 | IA5: 360870005 | IB5: 360910004 | IC5: 360930003 | ID5: 361010003 | IE5: 361030002 | IF5: 361030004 | IG5: 36-103-0009 | IH5: 361030044 | II5: 361099991 | IJ5: 361111005 | IK5: 361173001 | IL5: 361192004 | IM5: 420010001 | IN5: 420010002 | IO5: 420019991 | IP5: 420030008 | IQ5: 420030010 | IR5: 420030067 | IS5: 420030088 | IT5: 42-003-1005/1008 | IU5: 420050001 | IV5: 420070002 | IW5: 420070005 | IX5: 420070014 | IY5: 420110001 | IZ5: 420110006 | JA5: 420110009 | JB5: 420110010 | JC5: 420110011 | JD5: 420130801 | JE5: 420150011 | JF5: 420170012 | JG5: 420210011 | JH5: 420270100 | JI5: 420274000 | JJ5: 420279991 | JK5: 420290050 | JL5: 420290100 | JM5: 420334000 | JN5: 420430401 | JO5: 420431100 | JP5: 420450002 | JQ5: 420479991 | JR5: 420490003 | JS5: 420510524 | JT5: 420550001 | JU5: 420590002 | JV5: 420630004 | JW5: 420690101 | JX5: 420692006 | JY5: 420710007 | JZ5: 42-071-0012 | KA5: 420730015 | KB5: 420750100 | KC5: 420750101 | KD5: 420770004 | KE5: 420791100 | KF5: 420791101 | KG5: 420810100 | KH5: 420810403 | KI5: 420814000 | KJ5: 420850100 | KK5: 420859991 | KL5: 420890001 | KM5: 420890002 | KN5: 420910013 | KO5: 420950025 | KP5: 420950100 | KQ5: 420958000 | KR5: 420990301 | KS5: 421010004 | KT5: 421010014 | KU5: 421010024 | KV5: 421010048 | KW5: 421010136 | KX5: 421011002 | KY5: 421119991 | KZ5: 421174000 | LA5: 421250005 | LB5: 421250200 | LC5: 421255001 | LD5: 421255200 | LE5: 421290006 | LF5: 421290008 | LG5: 421330008 | LH5: 421330011 | LI5: 44-003-0002 | LJ5: 44-007-0012 | LK5: 44-007-1010 | LL5: 44-009-0007 | LM5: 44-009-0008 | LN5: 50-003-0004 | LO5: 50-007-0007 | LP5: 50-021-0002 | LQ5: 510130020 | LR5: 510590005 | LS5: 510590018 | LT5: 510590030 | LU5: 510591004 | LV5: 510591005 | LW5: 510595001 | LX5: 511071005 | LY5: 511530009 | LZ5: 515100009 | MA5: 515100021 | MC5: 23-005-0029
A6: 1997-01-01 | B6: Jan 01 | C6: =DATE(G6,E6,F6) -> 1997-01-01 | D6: =TEXT(E6,"00")&"-"&TEXT(C6,"MMM")&" "&TEXT(F6,"00") -> 01-Jan 01 | E6: 1 | F6: 1 | G6: 1997 | H6: =IF(COUNT(AB6:AN6)=0,"",MAX(AB6:AN6)) ->  | I6: =IF(COUNT(AO6:BE6)=0,"",MAX(AO6:BE6)) ->  | J6: =IF(COUNT(BF6:BM6)=0,"",MAX(BF6:BM6)) -> 0.022 | K6: =IF(COUNT(BN6:BQ6)=0,"",MAX(BN6:BQ6)) -> 0.015 | L6: =IF(COUNT(BR6:CI6)=0,"",MAX(BR6:CI6)) -> 0.032 | M6: =IF(COUNT(CJ6:DL6)=0,"",MAX(CJ6:DL6)) -> 0.023 | N6: =IF(COUNT(DM6:EQ6)=0,"",MAX(DM6:EQ6)) -> 0.034 | O6: =IF(COUNT(ER6:FR6)=0,"",MAX(ER6:FR6)) ->  | P6: =IF(COUNT(FS6:GP6)=0,"",MAX(FS6:GP6)) -> 0.034 | Q6: =IF(COUNT(GQ6:IL6)=0,"",MAX(GQ6:IL6)) -> 0.049 | R6: =IF(COUNT(IM6:LH6)=0,"",MAX(IM6:LH6)) -> 0.022 | S6: =IF(COUNT(LI6:LM6)=0,"",MAX(LI6:LM6)) ->  | T6: =IF(COUNT(LN6:LP6)=0,"",MAX(LN6:LP6)) ->  | U6: =IF(COUNT(LQ6:MA6)=0,"",MAX(LQ6:MA6)) -> 0.019 | V6: =IF(COUNT(AO6:MA6)=0,"",MAX(AO6:MA6)) -> 0.049 | W6: =IF(COUNT(AO6:AS6)+COUNT(AW6:BA6)+COUNT(FU6:FW6)+COUNT(GB6:GD6)+COUNT(GF6:GG6)+COUNT(GJ6:GL6)+COUNT(GN6:GP6)+COUNT(GR6:GU6)+COUNT(HK6:HM6)+COUNT(HT6:HW6)+COUNT(HY6:IA6)+COUNT(IE6:IH6)+COUNT(IL6)=0,"",MAX(AO6:AS6,AW6:BA6,FU6:FW6,GB6:GD6,GF6:GG6,GJ6:GL6,GN6:GP6,GR6:GU6,HK6:HM6,HT6:HW6,HY6:IA6,IE6:IH6,IL6)) -> 0.033 | X6: =IF(COUNT(BG6:BK6)+COUNT(CS6)+COUNT(FS6:FT6)+COUNT(FX6:GA6)+COUNT(GE6)+COUNT(GH6:GI6)+COUNT(GM6)+COUNT(JF6)+COUNT(JK6:JL6)+COUNT(JP6)+COUNT(KN6)+COUNT(KS6:KX6)=0,"",MAX(BG6:BK6,CS6,FS6:FT6,FX6:GA6,GE6,GH6:GI6,GM6,JF6,JK6:JL6,JP6,KN6,KS6:KX6)) -> 0.034 | Y6: =IF(COUNT(BN6:BQ6)+COUNT(CP6:CQ6)+COUNT(CT6)+COUNT(CW6)+COUNT(DB6:DG6)+COUNT(LQ6:MA6)=0,"",MAX(BN6:BQ6,CP6:CQ6,CT6,CW6,DB6:DG6,LQ6:MA6)) -> 0.019 | Z6: =IF(COUNT(AT6:AV6)+COUNT(BB6:BE6)=0,"",MAX(AT6:AV6,BB6:BE6)) ->  | AA6: =IF(COUNT(CJ6:CO6)+COUNT(CR6)+COUNT(CY6:CZ6)+COUNT(DI6:DL6)=0,"",MAX(CJ6:CO6,CR6,CY6:CZ6,DI6:DL6)) -> 0.023 | BG6: 0.022 | BH6: 0.021 | BN6: 0.014 | BO6: 0.013 | BP6: 0.015 | BT6: 0.032 | CK6: 0.02 | CN6: 0.023 | CY6: 0.023 | DR6: 0.033 | DV6: 0.032 | DW6: 0.027 | EA6: 0.027 | EB6: 0.027 | ED6: 0.033 | EO6: 0.021 | EP6: 0.034 | FS6: 0.034 | FU6: 0.01 | FY6: 0.022 | FZ6: 0.03 | GA6: 0.029 | GC6: 0.011 | GE6: 0.023 | GF6: 0.013 | GG6: 0.023 | GH6: 0.019 | GJ6: 0.016 | GK6: 0.028 | GL6: 0.026 | GM6: 0.03 | GO6: 0.017 | GQ6: 0.026 | GW6: 0.019 | GX6: 0.025 | GY6: 0.029 | GZ6: 0.022 | HA6: 0.049 | HB6: 0.032 | HE6: 0.03 | HF6: 0.035 | HH6: 0.03 | HI6: 0.023 | HL6: 0.033 | HN6: 0.022 | HO6: 0.031 | HP6: 0.022 | HT6: 0.015 | IB6: 0.028 | IC6: 0.02 | IE6: 0.025 | IJ6: 0.033 | IK6: 0.022 | IL6: 0.026 | IT6: 0.009 | KS6: 0.016 | KU6: 0.022 | LR6: 0.015 | LS6: 0.019 | LU6: 0.013 | LW6: 0.013
A7: 1997-01-02 | B7: Jan 02 | C7: =DATE(G7,E7,F7) -> 1997-01-02 | D7: =TEXT(E7,"00")&"-"&TEXT(C7,"MMM")&" "&TEXT(F7,"00") -> 01-Jan 02 | E7: 1 | F7: 2 | G7: 1997 | H7: =IF(COUNT(AB7:AN7)=0,"",MAX(AB7:AN7)) ->  | J7: 0.002 | K7: 0.002 | L7: =IF(COUNT(BR7:CI7)=0,"",MAX(BR7:CI7)) -> 0.019 | M7: 0.005 | N7: 0.016 | P7: 0.013 | Q7: 0.021 | R7: 0.014 | U7: 0.004 | V7: 0.021 | W7: 0.016 | X7: 0.013 | Y7: 0.004 | Z7: =IF(COUNT(AT7:AV7)+COUNT(BB7:BE7)=0,"",MAX(AT7:AV7,BB7:BE7)) ->  | AA7: =IF(COUNT(CJ7:CO7)+COUNT(CR7)+COUNT(CY7:CZ7)+COUNT(DI7:DL7)=0,"",MAX(CJ7:CO7,CR7,CY7:CZ7,DI7:DL7)) -> 0.005 | BG7: 0.002 | BN7: 0.002 | BO7: 0.002 | BP7: 0.002 | BT7: 0.019 | CK7: 0.005 | CN7: 0.003 | CY7: 0.002 | DR7: 0.013 | DV7: 0.009 | DW7: 0.007 | EA7: 0.007 | EB7: 0.004 | ED7: 0.009 | EO7: 0.004 | EP7: 0.016 | FS7: 0.013 | FU7: 0.003 | FY7: 0.003 | FZ7: 0.012 | GA7: 0.01 | GC7: 0.002 | GE7: 0.006 | GF7: 0.003 | GG7: 0.003 | GH7: 0.004 | GJ7: 0.004 | GK7: 0.007 | GL7: 0.005 | GM7: 0.012 | GO7: 0.003 | GX7: 0.002 | GY7: 0.007 | GZ7: 0.013 | HA7: 0.021 | HB7: 0.012 | HE7: 0.008 | HF7: 0.008 | HH7: 0.008 | HI7: 0.005 | HL7: 0.016 | HN7: 0.009 | HO7: 0.007 | HT7: 0.002 | IB7: 0.006 | IC7: 0.005 | IE7: 0.005 | IJ7: 0.013 | IL7: 0.002 | IT7: 0.014 | KS7: 0.003 | KU7: 0.004 | LR7: 0.004 | LS7: 0.004 | LU7: 0.002 | LW7: 0.002
A8: 1997-01-03 | B8: Jan 03 | C8: 1997-01-03 | D8: 01-Jan 03 | E8: 1 | F8: 3 | G8: 1997 | J8: 0.002 | K8: 0.002 | L8: 0.019 | M8: 0.005 | N8: 0.015 | P8: 0.008 | Q8: 0.023 | R8: 0.008 | U8: 0.003 | V8: 0.023 | W8: 0.014 | X8: 0.007 | Y8: 0.003 | AA8: 0.005 | BG8: 0.002 | BN8: 0.001 | BO8: 0.002 | BP8: 0.001 | BT8: 0.019 | CK8: 0.004 | CN8: 0.001 | CY8: 0.005 | DR8: 0.004 | DV8: 0.005 | DW8: 0.006 | EA8: 0.01 | EB8: 0.013 | ED8: 0.015 | EO8: 0.001 | EP8: 0.008 | FS8: 0.005 | FU8: 0.002 | FY8: 0.003 | FZ8: 0.007 | GA8: 0.006 | GC8: 0.001 | GE8: 0.005 | GF8: 0.002 | GG8: 0.006 | GH8: 0.007 | GJ8: 0.006 | GK8: 0.005 | GL8: 0.008 | GM8: 0.007 | GO8: 0.003 | GQ8: 0.013 | GW8: 0.003 | GX8: 0.005 | GY8: 0.005 | GZ8: 0.005 | HA8: 0.023 | HB8: 0.021 | HE8: 0.016 | HF8: 0.013 | HH8: 0.018 | HI8: 0.006 | HL8: 0.014 | HN8: 0.009 | HO8: 0.007 | HP8: 0.002 | HT8: 0.002 | IB8: 0.006 | IC8: 0.009 | IE8: 0.004 | IJ8: 0.019 | IK8: 0.011 | IL8: 0.002 | IT8: 0.008 | KS8: 0.004 | KU8: 0.004 | LR8: 0.003 | LS8: 0.003 | LU8: 0.002 | LW8: 0.001
A9: 1997-01-04 | B9: Jan 04 | C9: 1997-01-04 | D9: 01-Jan 04 | E9: 1 | F9: 4 | G9: 1997 | J9: 0.001 | K9: 0.012 | L9: 0.023 | M9: 0.007 | N9: 0.016 | P9: 0.015 | Q9: 0.042 | R9: 0.021 | U9: 0.025 | V9: 0.042 | W9: 0.017 | X9: 0.015 | Y9: 0.025 | AA9: 0.007 | BG9: 0.001 | BN9: 0.011 | BO9: 0.009 | BP9: 0.012 | BT9: 0.023 | CK9: 0.007 | CN9: 0.003 | CY9: 0.003 | DR9: 0.007 | DV9: 0.015 | DW9: 0.016 | EA9: 0.013 | EB9: 0.009 | ED9: 0.015 | EO9: 0.01 | EP9: 0.004 | FS9: 0.015 | FU9: 0.002 | FY9: 0.002 | FZ9: 0.009 | GA9: 0.011 | GC9: 0.001 | GE9: 0.004 | GF9: 0.002 | GG9: 0.003 | GH9: 0.005 | GJ9: 0.005 | GK9: 0.007 | GL9: 0.005 | GM9: 0.007 | GO9: 0.003 | GQ9: 0.011 | GW9: 0.008 | GX9: 0.006 | GY9: 0.01 | GZ9: 0.013 | HA9: 0.042 | HB9: 0.023 | HE9: 0.02 | HF9: 0.019 | HH9: 0.016 | HI9: 0.007 | HL9: 0.017 | HN9: 0.012 | HO9: 0.012 | HP9: 0.008 | HT9: 0.001 | IB9: 0.005 | IC9: 0.006 | IE9: 0.008 | IJ9: 0.013 | IK9: 0.008 | IL9: 0.007 | IT9: 0.021 | KS9: 0.001 | KU9: 0.004 | LR9: 0.025 | LS9: 0.021 | LU9: 0.015 | LW9: 0.012
A10: 1997-01-05 | B10: Jan 05 | C10: 1997-01-05 | D10: 01-Jan 05 | E10: 1 | F10: 5 | G10: 1997 | J10: 0.029 | K10: 0.031 | L10: 0.022 | M10: 0.031 | N10: 0.018 | P10: 0.032 | Q10: 0.033 | R10: 0.033 | U10: 0.029 | V10: 0.033 | W10: 0.026 | X10: 0.032 | Y10: 0.031 | AA10: 0.031 | BG10: 0.029 | BH10: 0.028 | BN10: 0.031 | BO10: 0.018 | BP10: 0.026 | BT10: 0.022 | CK10: 0.03 | CN10: 0.027 | CY10: 0.031 | DR10: 0.017 | DV10: 0.01 | DW10: 0.018 | EA10: 0.011 | EB10: 0.009 | ED10: 0.013 | EO10: 0.007 | EP10: 0.015 | FS10: 0.026 | FU10: 0.013 | FY10: 0.024 | FZ10: 0.029 | GA10: 0.032 | GC10: 0.014 | GF10: 0.013 | GG10: 0.025 | GH10: 0.028 | GJ10: 0.025 | GK10: 0.026 | GL10: 0.024 | GM10: 0.03 | GO10: 0.019 | GQ10: 0.021 | GW10: 0.014 | GX10: 0.027 | GY10: 0.015 | GZ10: 0.025 | HA10: 0.032 | HB10: 0.033 | HE10: 0.027 | HF10: 0.023 | HH10: 0.025 | HI10: 0.022 | HL10: 0.025 | HN10: 0.022 | HO10: 0.022 | HP10: 0.02 | HT10: 0.009 | IB10: 0.02 | IC10: 0.016 | IE10: 0.012 | IJ10: 0.029 | IK10: 0.024 | IL10: 0.016 | IT10: 0.033 | KS10: 0.025 | KU10: 0.03 | LR10: 0.028 | LS10: 0.029 | LU10: 0.024 | LW10: 0.018
A11: 1997-01-06 | B11: Jan 06 | C11: 1997-01-06 | D11: 01-Jan 06 | E11: 1 | F11: 6 | G11: 1997 | J11: 0.03 | K11: 0.03 | L11: 0.031 | M11: 0.035 | N11: 0.033 | P11: 0.035 | Q11: 0.038 | R11: 0.027 | U11: 0.036 | V11: 0.038 | W11: 0.032 | X11: 0.035 | Y11: 0.036 | AA11: 0.035 | BG11: 0.03 | BH11: 0.03 | BN11: 0.03 | BO11: 0.023 | BP11: 0.03 | BT11: 0.031 | CK11: 0.035 | CN11: 0.025 | CY11: 0.034 | DR11: 0.029 | DV11: 0.028 | DW11: 0.021 | EA11: 0.033 | EB11: 0.027 | ED11: 0.032 | EO11: 0.018 | EP11: 0.03 | FS11: 0.035 | FU11: 0.023 | FY11: 0.023 | FZ11: 0.031 | GA11: 0.032 | GC11: 0.023 | GE11: 0.03 | GF11: 0.023 | GG11: 0.032 | GH11: 0.031 | GJ11: 0.03 | GK11: 0.029 | GL11: 0.031 | GM11: 0.031 | GO11: 0.027 | GQ11: 0.032 | GW11: 0.016 | GX11: 0.023 | GY11: 0.029 | GZ11: 0.029 | HA11: 0.038 | HB11: 0.038 | HE11: 0.03 | HF11: 0.03 | HH11: 0.033 | HI11: 0.027 | HL11: 0.024 | HN11: 0.024 | HO11: 0.032 | HP11: 0.032 | HT11: 0.019 | IC11: 0.03 | IE11: 0.024 | IJ11: 0.028 | IK11: 0.032 | IL11: 0.027 | IT11: 0.019 | KS11: 0.018 | KU11: 0.027 | LR11: 0.036 | LS11: 0.03 | LU11: 0.026 | LW11: 0.028
A12: 1997-01-07 | B12: Jan 07 | C12: 1997-01-07 | D12: 01-Jan 07 | E12: 1 | F12: 7 | G12: 1997 | J12: 0.028 | K12: 0.027 | L12: 0.037 | M12: 0.032 | N12: 0.038 | P12: 0.033 | Q12: 0.038 | R12: 0.029 | U12: 0.031 | V12: 0.038 | W12: 0.033 | X12: 0.03 | Y12: 0.031 | AA12: 0.032 | BG12: 0.028 | BH12: 0.026 | BN12: 0.026 | BO12: 0.021 | BP12: 0.027 | BT12: 0.037 | CK12: 0.032 | CN12: 0.022 | CY12: 0.032 | DR12: 0.037 | DV12: 0.037 | DW12: 0.033 | EA12: 0.038 | EB12: 0.033 | ED12: 0.036 | EO12: 0.029 | EP12: 0.036 | FS12: 0.028 | FU12: 0.025 | FY12: 0.023 | FZ12: 0.028 | GA12: 0.029 | GC12: 0.026 | GE12: 0.026 | GF12: 0.025 | GG12: 0.031 | GH12: 0.03 | GJ12: 0.028 | GK12: 0.028 | GL12: 0.033 | GM12: 0.03 | GO12: 0.031 | GQ12: 0.035 | GX12: 0.027 | GY12: 0.036 | GZ12: 0.028 | HA12: 0.037 | HB12: 0.037 | HE12: 0.036 | HF12: 0.036 | HH12: 0.036 | HI12: 0.026 | HL12: 0.028 | HN12: 0.028 | HO12: 0.036 | HP12: 0.031 | IB12: 0.033 | IC12: 0.033 | IE12: 0.03 | IJ12: 0.038 | IK12: 0.038 | IL12: 0.031 | IT12: 0.025 | KS12: 0.022 | KU12: 0.029 | LR12: 0.031 | LS12: 0.024 | LU12: 0.023 | LW12: 0.024
A13: 1997-01-08 | B13: Jan 08 | C13: 1997-01-08 | D13: 01-Jan 08 | E13: 1 | F13: 8 | G13: 1997 | J13: 0.029 | K13: 0.021 | L13: 0.031 | M13: 0.032 | N13: 0.035 | P13: 0.037 | Q13: 0.039 | R13: 0.033 | U13: 0.024 | V13: 0.039 | W13: 0.037 | X13: 0.037 | Y13: 0.024 | AA13: 0.032 | BG13: 0.029 | BH13: 0.027 | BN13: 0.017 | BO13: 0.014 | BP13: 0.021 | BT13: 0.031 | CK13: 0.027 | CN13: 0.022 | CY13: 0.032 | DR13: 0.035 | DV13: 0.035 | DW13: 0.03 | EA13: 0.034 | EB13: 0.031 | EO13: 0.026 | EP13: 0.034 | FS13: 0.032 | FU13: 0.026 | FY13: 0.025 | FZ13: 0.032 | GA13: 0.03 | GC13: 0.026 | GE13: 0.029 | GF13: 0.026 | GG13: 0.037 | GH13: 0.035 | GJ13: 0.032 | GK13: 0.029 | GL13: 0.036 | GM13: 0.037 | GO13: 0.033 | GQ13: 0.032 | GW13: 0.037 | GX13: 0.026 | GY13: 0.035 | GZ13: 0.029 | HA13: 0.039 | HB13: 0.037 | HE13: 0.034 | HF13: 0.033 | HH13: 0.038 | HI13: 0.027 | HN13: 0.028 | HO13: 0.033 | HP13: 0.03 | HT13: 0.019 | IB13: 0.031 | IC13: 0.029 | IE13: 0.03 | IJ13: 0.038 | IK13: 0.038 | IL13: 0.031 | IT13: 0.029 | KS13: 0.024 | KU13: 0.033 | LR13: 0.024 | LS13: 0.016 | LU13: 0.017 | LW13: 0.017
A14: 1997-01-09 | B14: Jan 09 | C14: 1997-01-09 | D14: 01-Jan 09 | E14: 1 | F14: 9 | G14: 1997 | J14: 0.007 | K14: 0.009 | L14: 0.035 | M14: 0.023 | N14: 0.031 | P14: 0.028 | Q14: 0.041 | R14: 0.025 | U14: 0.017 | V14: 0.041 | W14: 0.027 | X14: 0.028 | Y14: 0.017 | AA14: 0.023 | BG14: 0.007 | BN14: 0.009 | BO14: 0.006 | BP14: 0.008 | BT14: 0.035 | CK14: 0.02 | CN14: 0.015 | CY14: 0.023 | DR14: 0.025 | DV14: 0.029 | DW14: 0.031 | EA14: 0.021 | EB14: 0.019 | ED14: 0.03 | EO14: 0.022 | EP14: 0.029 | FS14: 0.028 | FU14: 0.005 | FY14: 0.005 | FZ14: 0.019 | GA14: 0.019 | GC14: 0.003 | GE14: 0.006 | GF14: 0.002 | GG14: 0.014 | GH14: 0.01 | GJ14: 0.007 | GK14: 0.027 | GL14: 0.016 | GM14: 0.021 | GO14: 0.006 | GQ14: 0.012 | GW14: 0.036 | GX14: 0.026 | GY14: 0.029 | GZ14: 0.026 | HA14: 0.041 | HB14: 0.029 | HE14: 0.031 | HF14: 0.037 | HH14: 0.035 | HI14: 0.019 | HO14: 0.029 | HP14: 0.01 | HT14: 0.003 | IB14: 0.022 | IC14: 0.012 | IE14: 0.017 | IJ14: 0.033 | IK14: 0.019 | IL14: 0.018 | IT14: 0.025 | KU14: 0.007 | LR14: 0.01 | LS14: 0.017 | LU14: 0.007 | LW14: 0.006
A15: 1997-01-10 | B15: Jan 10 | C15: 1997-01-10 | D15: 01-Jan 10 | E15: 1 | F15: 10 | G15: 1997 | J15: 0.021 | K15: 0.024 | L15: 0.02 | M15: 0.033 | N15: 0.024 | P15: 0.029 | Q15: 0.029 | R15: 0.024 | U15: 0.033 | V15: 0.033 | W15: 0.026 | X15: 0.029 | Y15: 0.033 | AA15: 0.033 | BG15: 0.02 | BH15: 0.021 | BN15: 0.023 | BO15: 0.024 | BP15: 0.022 | BT15: 0.02 | CK15: 0.033 | CN15: 0.015 | CY15: 0.025 | DR15: 0.022 | DV15: 0.017 | DW15: 0.022 | EA15: 0.024 | EB15: 0.016 | ED15: 0.022 | EO15: 0.011 | EP15: 0.022 | FS15: 0.027 | FU15: 0.014 | FY15: 0.015 | FZ15: 0.029 | GA15: 0.026 | GC15: 0.012 | GE15: 0.025 | GF15: 0.015 | GG15: 0.025 | GH15: 0.023 | GJ15: 0.024 | GK15: 0.022 | GL15: 0.026 | GM15: 0.027 | GO15: 0.018 | GQ15: 0.01 | GW15: 0.025 | GX15: 0.023 | GY15: 0.024 | GZ15: 0.019 | HA15: 0.026 | HB15: 0.026 | HE15: 0.025 | HF15: 0.024 | HH15: 0.028 | HI15: 0.017 | HN15: 0.019 | HO15: 0.024 | HP15: 0.025 | IB15: 0.015 | IC15: 0.013 | IE15: 0.015 | IJ15: 0.029 | IK15: 0.021 | IL15: 0.016 | IT15: 0.024 | KS15: 0.013 | KU15: 0.019 | LR15: 0.033 | LS15: 0.031 | LU15: 0.026 | LW15: 0.017
A16: 1997-01-11 | B16: Jan 11 | C16: 1997-01-11 | D16: 01-Jan 11 | E16: 1 | F16: 11 | G16: 1997 | J16: 0.026 | K16: 0.029 | L16: 0.025 | M16: 0.033 | N16: 0.028 | P16: 0.029 | Q16: 0.033 | R16: 0.023 | U16: 0.032 | V16: 0.033 | W16: 0.027 | X16: 0.029 | Y16: 0.032 | AA16: 0.033 | BG16: 0.025 | BH16: 0.026 | BN16: 0.027 | BO16: 0.028 | BP16: 0.029 | BT16: 0.025 | CK16: 0.033 | CN16: 0.021 | CY16: 0.03 | DR16: 0.028 | DV16: 0.025 | DW16: 0.024 | EA16: 0.028 | EB16: 0.024 | ED16: 0.027 | EO16: 0.017 | EP16: 0.027 | FS16: 0.026 | FU16: 0.021 | FY16: 0.019 | FZ16: 0.026 | GA16: 0.029 | GC16: 0.019 | GE16: 0.024 | GF16: 0.022 | GG16: 0.025 | GH16: 0.025 | GJ16: 0.024 | GK16: 0.024 | GL16: 0.024 | GM16: 0.025 | GO16: 0.023 | GQ16: 0.024 | GW16: 0.025 | GX16: 0.025 | GY16: 0.028 | GZ16: 0.021 | HA16: 0.033 | HB16: 0.033 | HE16: 0.024 | HF16: 0.025 | HH16: 0.025 | HI16: 0.018 | HN16: 0.022 | HO16: 0.024 | HP16: 0.024 | HT16: 0.017 | IB16: 0.025 | IC16: 0.022 | IE16: 0.021 | IJ16: 0.028 | IK16: 0.02 | IL16: 0.027 | IT16: 0.017 | KS16: 0.016 | KU16: 0.023 | LR16: 0.032 | LS16: 0.025 | LU16: 0.025 | LW16: 0.025
A17: 1997-01-12 | B17: Jan 12 | C17: 1997-01-12 | D17: 01-Jan 12 | E17: 1 | F17: 12 | G17: 1997 | J17: 0.024 | K17: 0.026 | L17: 0.03 | M17: 0.03 | N17: 0.03 | P17: 0.028 | Q17: 0.033 | R17: 0.029 | U17: 0.028 | V17: 0.033 | W17: 0.027 | X17: 0.028 | Y17: 0.028 | AA17: 0.03 | BG17: 0.024 | BH17: 0.023 | BN17: 0.024 | BO17: 0.024 | BP17: 0.026 | BT17: 0.03 | CK17: 0.03 | CN17: 0.018 | CY17: 0.025 | DR17: 0.029 | DV17: 0.028 | DW17: 0.027 | EA17: 0.03 | EB17: 0.025 | ED17: 0.028 | EO17: 0.021 | EP17: 0.027 | FS17: 0.025 | FU17: 0.02 | FY17: 0.02 | FZ17: 0.026 | GA17: 0.027 | GC17: 0.019 | GE17: 0.025 | GF17: 0.021 | GG17: 0.027 | GH17: 0.028 | GJ17: 0.025 | GK17: 0.023 | GL17: 0.025 | GM17: 0.027 | GO17: 0.024 | GQ17: 0.026 | GW17: 0.026 | GX17: 0.025 | GY17: 0.029 | GZ17: 0.021 | HA17: 0.032 | HB17: 0.033 | HE17: 0.028 | HF17: 0.03 | HH17: 0.029 | HI17: 0.024 | HN17: 0.024 | HO17: 0.028 | HP17: 0.028 | HT17: 0.015 | IB17: 0.028 | IC17: 0.025 | IE17: 0.021 | IJ17: 0.029 | IK17: 0.025 | IL17: 0.025 | IT17: 0.029 | KS17: 0.018 | KU17: 0.026 | LR17: 0.028 | LS17: 0.024 | LU17: 0.021 | LW17: 0.023
A18: 1997-01-13 | B18: Jan 13 | C18: 1997-01-13 | D18: 01-Jan 13 | E18: 1 | F18: 13 | G18: 1997 | J18: 0.023 | K18: 0.021 | L18: 0.03 | M18: 0.031 | N18: 0.032 | P18: 0.028 | Q18: 0.036 | R18: 0.022 | U18: 0.023 | V18: 0.036 | W18: 0.028 | X18: 0.025 | Y18: 0.023 | AA18: 0.031 | BG18: 0.023 | BH18: 0.022 | BN18: 0.018 | BO18: 0.017 | BP18: 0.021 | BT18: 0.03 | CK18: 0.031 | CN18: 0.024 | CY18: 0.03 | DR18: 0.032 | DV18: 0.031 | DW18: 0.028 | EA18: 0.027 | EB18: 0.026 | ED18: 0.03 | EO18: 0.021 | EP18: 0.03 | FS18: 0.024 | FU18: 0.017 | FY18: 0.015 | FZ18: 0.022 | GA18: 0.023 | GC18: 0.016 | GE18: 0.024 | GF18: 0.019 | GG18: 0.024 | GH18: 0.025 | GJ18: 0.02 | GK18: 0.019 | GL18: 0.028 | GM18: 0.022 | GO18: 0.02 | GQ18: 0.012 | GW18: 0.021 | GX18: 0.019 | GY18: 0.024 | GZ18: 0.016 | HA18: 0.036 | HB18: 0.036 | HE18: 0.028 | HF18: 0.034 | HH18: 0.026 | HI18: 0.013 | HN18: 0.019 | HO18: 0.02 | HT18: 0.012 | IB18: 0.021 | IC18: 0.016 | IE18: 0.018 | IJ18: 0.026 | IK18: 0.016 | IL18: 0.021 | IT18: 0.016 | KS18: 0.013 | KU18: 0.022 | LR18: 0.023 | LS18: 0.016 | LU18: 0.018 | LW18: 0.019
A19: 1997-01-14 | B19: Jan 14 | C19: 1997-01-14 | D19: 01-Jan 14 | E19: 1 | F19: 14 | G19: 1997 | J19: 0.023 | K19: 0.017 | L19: 0.031 | M19: 0.022 | N19: 0.026 | P19: 0.025 | Q19: 0.036 | R19: 0.021 | U19: 0.025 | V19: 0.036 | W19: 0.025 | X19: 0.023 | Y19: 0.025 | AA19: 0.022 | BG19: 0.023 | BH19: 0.02 | BN19: 0.013 | BO19: 0.013 | BP19: 0.017 | BT19: 0.031 | CK19: 0.022 | CN19: 0.016 | CY19: 0.022 | DR19: 0.026 | DV19: 0.025 | DW19: 0.025 | EA19: 0.025 | EB19: 0.02 | ED19: 0.026 | EO19: 0.017 | EP19: 0.025 | FS19: 0.018 | FU19: 0.015 | FY19: 0.015 | FZ19: 0.022 | GA19: 0.022 | GC19: 0.014 | GE19: 0.02 | GF19: 0.017 | GG19: 0.022 | GH19: 0.022 | GJ19: 0.019 | GK19: 0.016 | GL19: 0.025 | GM19: 0.017 | GO19: 0.02 | GQ19: 0.011 | GW19: 0.02 | GX19: 0.019 | GY19: 0.025 | GZ19: 0.018 | HA19: 0.036 | HE19: 0.023 | HF19: 0.027 | HH19: 0.027 | HI19: 0.018 | HN19: 0.02 | HO19: 0.024 | HP19: 0.02 | HT19: 0.01 | IB19: 0.02 | IC19: 0.019 | IE19: 0.017 | IJ19: 0.027 | IK19: 0.02 | IL19: 0.018 | IT19: 0.017 | KS19: 0.015 | KU19: 0.021 | LR19: 0.025 | LS19: 0.014 | LU19: 0.015 | LW19: 0.015
A20: 1997-01-15 | B20: Jan 15 | C20: 1997-01-15 | D20: 01-Jan 15 | E20: 1 | F20: 15 | G20: 1997 | J20: 0.019 | K20: 0.011 | L20: 0.032 | M20: 0.022 | N20: 0.029 | P20: 0.036 | Q20: 0.04 | R20: 0.018 | U20: 0.022 | V20: 0.04 | W20: 0.029 | X20: 0.036 | Y20: 0.022 | AA20: 0.022 | BG20: 0.011 | BH20: 0.019 | BN20: 0.008 | BO20: 0.01 | BP20: 0.011 | BT20: 0.032 | CK20: 0.017 | CN20: 0.012 | CY20: 0.022 | DR20: 0.022 | DV20: 0.018 | DW20: 0.02 | EA20: 0.029 | EB20: 0.019 | ED20: 0.026 | EO20: 0.009 | EP20: 0.025 | FS20: 0.036 | FU20: 0.008 | FY20: 0.011 | FZ20: 0.025 | GA20: 0.028 | GC20: 0.007 | GE20: 0.022 | GF20: 0.008 | GG20: 0.018 | GH20: 0.013 | GJ20: 0.014 | GK20: 0.026 | GL20: 0.017 | GM20: 0.03 | GO20: 0.01 | GQ20: 0.014 | GW20: 0.027 | GX20: 0.021 | GY20: 0.025 | GZ20: 0.02 | HA20: 0.04 | HB20: 0.036 | HE20: 0.028 | HF20: 0.032 | HH20: 0.029 | HI20: 0.021 | HL20: 0.029 | HN20: 0.023 | HO20: 0.025 | HP20: 0.024 | HT20: 0.012 | IB20: 0.026 | IC20: 0.023 | IE20: 0.029 | IJ20: 0.035 | IK20: 0.02 | IL20: 0.01 | IT20: 0.018 | KS20: 0.006 | KU20: 0.012 | LR20: 0.017 | LS20: 0.022 | LU20: 0.011 | LW20: 0.009
A21: 1997-01-16 | B21: Jan 16 | C21: 1997-01-16 | D21: 01-Jan 16 | E21: 1 | F21: 16 | G21: 1997 | J21: 0.025 | K21: 0.027 | L21: 0.039 | M21: 0.027 | N21: 0.037 | P21: 0.031 | Q21: 0.034 | R21: 0.027 | U21: 0.029 | V21: 0.039 | W21: 0.031 | X21: 0.03 | Y21: 0.029 | AA21: 0.027 | BG21: 0.025 | BH21: 0.024 | BN21: 0.027 | BO21: 0.027 | BP21: 0.027 | BT21: 0.039 | CK21: 0.027 | CN21: 0.021 | CY21: 0.026 | DR21: 0.037 | DV21: 0.032 | DW21: 0.033 | EA21: 0.032 | EB21: 0.029 | ED21: 0.032 | EO21: 0.025 | EP21: 0.033 | FS21: 0.027 | FU21: 0.025 | FY21: 0.02 | GA21: 0.027 | GC21: 0.025 | GE21: 0.026 | GF21: 0.023 | GG21: 0.031 | GH21: 0.03 | GJ21: 0.028 | GK21: 0.026 | GL21: 0.031 | GM21: 0.026 | GO21: 0.03 | GQ21: 0.032 | GW21: 0.034 | GX21: 0.027 | GY21: 0.031 | GZ21: 0.026 | HA21: 0.033 | HB21: 0.033 | HE21: 0.033 | HF21: 0.033 | HH21: 0.032 | HI21: 0.027 | HL21: 0.022 | HN21: 0.028 | HO21: 0.032 | HP21: 0.029 | IC21: 0.03 | IE21: 0.028 | IJ21: 0.032 | IK21: 0.033 | IL21: 0.03 | IT21: 0.026 | KU21: 0.027 | LR21: 0.029 | LS21: 0.028 | LU21: 0.025 | LW21: 0.024
A22: 1997-01-17 | B22: Jan 17 | C22: 1997-01-17 | D22: 01-Jan 17 | E22: 1 | F22: 17 | G22: 1997 | J22: 0.028 | K22: 0.026 | L22: 0.034 | M22: 0.03 | N22: 0.034 | P22: 0.03 | Q22: 0.034 | R22: 0.028 | U22: 0.029 | V22: 0.034 | W22: 0.03 | X22: 0.03 | Y22: 0.029 | AA22: 0.03 | BG22: 0.028 | BH22: 0.027 | BN22: 0.026 | BO22: 0.024 | BP22: 0.026 | BT22: 0.034 | CK22: 0.03 | CN22: 0.022 | CY22: 0.029 | DR22: 0.034 | DV22: 0.034 | DW22: 0.032 | EA22: 0.033 | EB22: 0.029 | ED22: 0.033 | EO22: 0.026 | EP22: 0.032 | FS22: 0.03 | FU22: 0.023 | FY22: 0.022 | FZ22: 0.029 | GA22: 0.029 | GC22: 0.021 | GF22: 0.023 | GG22: 0.03 | GH22: 0.03 | GJ22: 0.028 | GK22: 0.025 | GL22: 0.028 | GM22: 0.029 | GO22: 0.026 | GQ22: 0.031 | GU22: 0.017 | GW22: 0.031 | GX22: 0.028 | GY22: 0.031 | GZ22: 0.024 | HA22: 0.034 | HB22: 0.034 | HE22: 0.032 | HF22: 0.032 | HH22: 0.032 | HI22: 0.024 | HL22: 0.02 | HN22: 0.026 | HO22: 0.029 | HP22: 0.029 | HT22: 0.02 | IB22: 0.031 | IC22: 0.026 | IE22: 0.026 | IJ22: 0.033 | IK22: 0.027 | IL22: 0.028 | IT22: 0.026 | KU22: 0.028 | LR22: 0.029 | LS22: 0.025 | LU22: 0.023 | LW22: 0.022
A23: 1997-01-18 | B23: Jan 18 | C23: 1997-01-18 | D23: 01-Jan 18 | E23: 1 | F23: 18 | G23: 1997 | J23: 0.027 | K23: 0.024 | L23: 0.031 | M23: 0.028 | N23: 0.033 | P23: 0.031 | Q23: 0.039 | R23: 0.027 | U23: 0.027 | V23: 0.039 | W23: 0.03 | X23: 0.031 | Y23: 0.027 | AA23: 0.028 | BG23: 0.027 | BH23: 0.026 | BN23: 0.024 | BO23: 0.022 | BP23: 0.024 | BT23: 0.031 | CK23: 0.028 | CN23: 0.022 | CY23: 0.028 | DR23: 0.032 | DV23: 0.032 | DW23: 0.028 | EA23: 0.033 | EB23: 0.028 | ED23: 0.032 | EO23: 0.023 | EP23: 0.031 | FS23: 0.03 | FU23: 0.022 | FY23: 0.021 | FZ23: 0.03 | GA23: 0.031 | GC23: 0.023 | GE23: 0.029 | GF23: 0.025 | GG23: 0.03 | GH23: 0.031 | GJ23: 0.026 | GK23: 0.024 | GL23: 0.029 | GM23: 0.031 | GO23: 0.028 | GQ23: 0.032 | GU23: 0.015 | GW23: 0.033 | GX23: 0.027 | GY23: 0.03 | GZ23: 0.032 | HA23: 0.039 | HB23: 0.035 | HE23: 0.034 | HF23: 0.031 | HH23: 0.032 | HI23: 0.029 | HL23: 0.023 | HN23: 0.028 | HO23: 0.032 | HP23: 0.027 | HT23: 0.018 | IB23: 0.029 | IC23: 0.028 | IE23: 0.029 | IJ23: 0.032 | IK23: 0.033 | IL23: 0.028 | IT23: 0.026 | KS23: 0.019 | KU23: 0.027 | LR23: 0.027 | LS23: 0.022 | LU23: 0.02 | LW23: 0.022
A24: 1997-01-19 | B24: Jan 19 | C24: 1997-01-19 | D24: 01-Jan 19 | E24: 1 | F24: 19 | G24: 1997 | J24: 0.028 | K24: 0.022 | L24: 0.035 | M24: 0.028 | N24: 0.035 | P24: 0.034 | Q24: 0.039 | R24: 0.027 | U24: 0.027 | V24: 0.039 | W24: 0.032 | X24: 0.034 | Y24: 0.027 | AA24: 0.028 | BG24: 0.028 | BH24: 0.027 | BN24: 0.022 | BO24: 0.022 | BP24: 0.022 | BT24: 0.035 | CK24: 0.027 | CN24: 0.021 | CY24: 0.028 | DR24: 0.035 | DV24: 0.035 | DW24: 0.033 | EA24: 0.034 | EB24: 0.029 | ED24: 0.033 | EO24: 0.027 | EP24: 0.034 | FS24: 0.032 | FU24: 0.023 | FY24: 0.022 | FZ24: 0.03 | GA24: 0.034 | GC24: 0.028 | GE24: 0.029 | GF24: 0.027 | GG24: 0.032 | GH24: 0.031 | GJ24: 0.03 | GK24: 0.026 | GL24: 0.029 | GM24: 0.029 | GO24: 0.027 | GQ24: 0.025 | GU24: 0.016 | GW24: 0.036 | GX24: 0.031 | GY24: 0.029 | GZ24: 0.03 | HA24: 0.037 | HB24: 0.039 | HE24: 0.032 | HF24: 0.031 | HH24: 0.034 | HI24: 0.027 | HL24: 0.026 | HN24: 0.028 | HO24: 0.025 | HP24: 0.03 | HT24: 0.015 | IB24: 0.027 | IC24: 0.021 | IE24: 0.021 | IJ24: 0.035 | IK24: 0.024 | IL24: 0.027 | IT24: 0.021 | KU24: 0.027 | LR24: 0.027 | LS24: 0.027 | LU24: 0.022 | LW24: 0.02
A25: 1997-01-20 | B25: Jan 20 | C25: 1997-01-20 | D25: 01-Jan 20 | E25: 1 | F25: 20 | G25: 1997 | J25: 0.016 | K25: 0.017 | L25: 0.024 | M25: 0.026 | N25: 0.02 | P25: 0.026 | Q25: 0.034 | R25: 0.031 | U25: 0.022 | V25: 0.034 | W25: 0.026 | X25: 0.026 | Y25: 0.022 | AA25: 0.026 | BG25: 0.013 | BH25: 0.016 | BN25: 0.017 | BO25: 0.012 | BP25: 0.015 | BT25: 0.024 | CK25: 0.025 | CN25: 0.019 | CY25: 0.026 | DR25: 0.02 | DV25: 0.014 | DW25: 0.014 | EA25: 0.018 | EB25: 0.013 | ED25: 0.015 | EO25: 0.008 | EP25: 0.018 | FS25: 0.026 | FU25: 0.01 | FY25: 0.007 | FZ25: 0.024 | GA25: 0.024 | GC25: 0.017 | GE25: 0.019 | GF25: 0.008 | GG25: 0.02 | GH25: 0.016 | GJ25: 0.009 | GK25: 0.018 | GL25: 0.026 | GM25: 0.022 | GO25: 0.018 | GQ25: 0.021 | GU25: 0.008 | GW25: 0.029 | GX25: 0.029 | GY25: 0.02 | GZ25: 0.028 | HA25: 0.034 | HB25: 0.033 | HE25: 0.029 | HF25: 0.031 | HH25: 0.031 | HI25: 0.027 | HL25: 0.019 | HN25: 0.024 | HO25: 0.027 | HP25: 0.025 | HT25: 0.007 | IB25: 0.018 | IC25: 0.015 | IE25: 0.013 | IJ25: 0.029 | IK25: 0.032 | IL25: 0.016 | IT25: 0.031 | KS25: 0.011 | KU25: 0.015 | LR25: 0.022 | LS25: 0.016 | LU25: 0.02 | LW25: 0.02
A26: 1997-01-21 | B26: Jan 21 | C26: 1997-01-21 | D26: 01-Jan 21 | E26: 1 | F26: 21 | G26: 1997 | J26: 0.027 | K26: 0.02 | L26: 0.035 | M26: 0.029 | N26: 0.036 | P26: 0.034 | Q26: 0.048 | R26: 0.028 | U26: 0.028 | V26: 0.048 | W26: 0.034 | X26: 0.031 | Y26: 0.028 | AA26: 0.029 | BG26: 0.025 | BH26: 0.027 | BN26: 0.019 | BO26: 0.017 | BP26: 0.02 | BT26: 0.035 | CK26: 0.026 | CN26: 0.019 | CY26: 0.029 | DR26: 0.036 | DV26: 0.034 | DW26: 0.032 | EA26: 0.035 | EB26: 0.03 | ED26: 0.035 | EO26: 0.023 | EP26: 0.036 | FS26: 0.03 | FU26: 0.02 | FY26: 0.017 | FZ26: 0.025 | GA26: 0.028 | GC26: 0.021 | GE26: 0.027 | GF26: 0.02 | GG26: 0.032 | GH26: 0.031 | GJ26: 0.03 | GK26: 0.024 | GL26: 0.034 | GM26: 0.025 | GO26: 0.028 | GQ26: 0.033 | GU26: 0.016 | GW26: 0.037 | GX26: 0.03 | GY26: 0.035 | GZ26: 0.024 | HA26: 0.048 | HB26: 0.042 | HE26: 0.037 | HF26: 0.036 | HI26: 0.026 | HL26: 0.026 | HN26: 0.025 | HO26: 0.032 | HP26: 0.026 | HT26: 0.013 | IB26: 0.032 | IC26: 0.021 | IE26: 0.022 | IJ26: 0.038 | IL26: 0.026 | IT26: 0.022 | KU26: 0.028 | LR26: 0.028 | LS26: 0.019 | LU26: 0.017 | LW26: 0.018
A27: 1997-01-22 | B27: Jan 22 | C27: 1997-01-22 | D27: 01-Jan 22 | E27: 1 | F27: 22 | G27: 1997 | J27: 0.007 | K27: 0.014 | L27: 0.033 | M27: 0.024 | N27: 0.036 | P27: 0.042 | Q27: 0.039 | R27: 0.029 | U27: 0.026 | V27: 0.042 | W27: 0.031 | X27: 0.042 | Y27: 0.026 | AA27: 0.024 | BG27: 0.007 | BN27: 0.007 | BO27: 0.014 | BP27: 0.009 | BT27: 0.033 | CK27: 0.02 | CN27: 0.01 | CY27: 0.024 | DR27: 0.036 | DV27: 0.029 | DW27: 0.032 | EA27: 0.017 | EB27: 0.012 | ED27: 0.025 | EO27: 0.022 | EP27: 0.034 | FS27: 0.042 | FU27: 0.009 | FY27: 0.013 | FZ27: 0.038 | GA27: 0.038 | GC27: 0.003 | GE27: 0.027 | GF27: 0.011 | GG27: 0.018 | GH27: 0.017 | GJ27: 0.017 | GK27: 0.03 | GL27: 0.018 | GM27: 0.039 | GO27: 0.007 | GQ27: 0.018 | GU27: 0.004 | GW27: 0.035 | GX27: 0.026 | GY27: 0.02 | GZ27: 0.025 | HA27: 0.037 | HB27: 0.039 | HE27: 0.031 | HF27: 0.032 | HH27: 0.03 | HI27: 0.026 | HL27: 0.03 | HN27: 0.027 | HO27: 0.03 | HP27: 0.031 | HT27: 0.013 | IB27: 0.024 | IC27: 0.016 | IE27: 0.031 | IJ27: 0.037 | IK27: 0.028 | IL27: 0.006 | IT27: 0.029 | KU27: 0.011 | LR27: 0.026 | LS27: 0.023 | LU27: 0.015 | LW27: 0.014
A28: 1997-01-23 | B28: Jan 23 | C28: 1997-01-23 | D28: 01-Jan 23 | E28: 1 | F28: 23 | G28: 1997 | J28: 0.023 | K28: 0.023 | L28: 0.037 | M28: 0.031 | N28: 0.037 | P28: 0.029 | Q28: 0.044 | R28: 0.022 | U28: 0.029 | V28: 0.044 | W28: 0.032 | X28: 0.028 | Y28: 0.029 | AA28: 0.031 | BG28: 0.023 | BH28: 0.023 | BN28: 0.022 | BO28: 0.018 | BP28: 0.023 | BT28: 0.037 | CK28: 0.031 | CN28: 0.023 | CY28: 0.031 | DR28: 0.027 | DV28: 0.036 | DW28: 0.034 | EA28: 0.034 | EB28: 0.036 | ED28: 0.037 | EO28: 0.025 | EP28: 0.035 | FS28: 0.028 | FU28: 0.023 | FY28: 0.014 | FZ28: 0.024 | GA28: 0.027 | GC28: 0.021 | GE28: 0.023 | GF28: 0.023 | GG28: 0.025 | GH28: 0.024 | GJ28: 0.024 | GK28: 0.024 | GL28: 0.029 | GM28: 0.027 | GO28: 0.023 | GQ28: 0.035 | GU28: 0.016 | GW28: 0.031 | GX28: 0.03 | GY28: 0.032 | GZ28: 0.035 | HA28: 0.044 | HB28: 0.038 | HE28: 0.035 | HF28: 0.036 | HH28: 0.031 | HI28: 0.033 | HL28: 0.016 | HN28: 0.03 | HO28: 0.033 | HP28: 0.027 | IC28: 0.027 | IE28: 0.025 | IJ28: 0.032 | IK28: 0.037 | IL28: 0.032 | IT28: 0.022 | KS28: 0.013 | KU28: 0.022 | LR28: 0.029 | LS28: 0.023 | LU28: 0.023 | LW28: 0.024
A29: 1997-01-24 | B29: Jan 24 | C29: 1997-01-24 | D29: 01-Jan 24 | E29: 1 | F29: 24 | G29: 1997 | J29: 0.028 | K29: 0.008 | L29: 0.039 | M29: 0.028 | N29: 0.038 | P29: 0.043 | Q29: 0.037 | R29: 0.026 | U29: 0.011 | V29: 0.043 | W29: 0.038 | X29: 0.043 | Y29: 0.011 | AA29: 0.028 | BG29: 0.023 | BH29: 0.028 | BN29: 0.008 | BO29: 0.006 | BP29: 0.006 | BT29: 0.039 | CK29: 0.019 | CN29: 0.015 | CY29: 0.028 | DR29: 0.034 | DV29: 0.037 | DW29: 0.038 | EA29: 0.025 | EB29: 0.028 | ED29: 0.031 | EO29: 0.033 | EP29: 0.022 | FS29: 0.043 | FU29: 0.01 | FY29: 0.026 | FZ29: 0.041 | GA29: 0.042 | GC29: 0.01 | GE29: 0.035 | GF29: 0.022 | GG29: 0.027 | GH29: 0.032 | GJ29: 0.031 | GK29: 0.038 | GL29: 0.024 | GM29: 0.04 | GO29: 0.026 | GQ29: 0.017 | GU29: 0.013 | GW29: 0.025 | GX29: 0.025 | GY29: 0.032 | GZ29: 0.019 | HB29: 0.037 | HE29: 0.034 | HF29: 0.035 | HH29: 0.033 | HI29: 0.019 | HN29: 0.021 | HO29: 0.031 | HP29: 0.031 | HT29: 0.03 | IB29: 0.028 | IC29: 0.015 | IE29: 0.036 | IJ29: 0.035 | IK29: 0.02 | IL29: 0.033 | IT29: 0.018 | KS29: 0.014 | KU29: 0.026 | LR29: 0.004 | LS29: 0.011 | LU29: 0.003 | LW29: 0.006
A30: 1997-01-25 | B30: Jan 25 | C30: 1997-01-25 | D30: 01-Jan 25 | E30: 1 | F30: 25 | G30: 1997 | J30: 0.023 | K30: 0.022 | L30: 0.037 | M30: 0.026 | N30: 0.034 | P30: 0.028 | Q30: 0.033 | R30: 0.022 | U30: 0.026 | V30: 0.037 | W30: 0.022 | X30: 0.028 | Y30: 0.026 | AA30: 0.026 | BG30: 0.021 | BH30: 0.023 | BN30: 0.022 | BO30: 0.021 | BP30: 0.022 | BT30: 0.037 | CK30: 0.026 | CN30: 0.019 | CY30: 0.026 | DR30: 0.034 | DV30: 0.027 | DW30: 0.03 | EA30: 0.026 | EB30: 0.024 | ED30: 0.027 | EO30: 0.021 | EP30: 0.026 | FS30: 0.024 | FU30: 0.015 | FY30: 0.012 | FZ30: 0.02 | GA30: 0.028 | GC30: 0.011 | GE30: 0.022 | GF30: 0.014 | GG30: 0.021 | GH30: 0.021 | GJ30: 0.021 | GK30: 0.02 | GL30: 0.02 | GM30: 0.02 | GO30: 0.018 | GQ30: 0.029 | GU30: 0.009 | GW30: 0.033 | GX30: 0.023 | GY30: 0.024 | GZ30: 0.027 | HB30: 0.031 | HE30: 0.029 | HF30: 0.029 | HH30: 0.03 | HI30: 0.022 | HL30: 0.016 | HN30: 0.025 | HO30: 0.031 | HP30: 0.029 | HT30: 0.009 | IB30: 0.028 | IC30: 0.027 | IE30: 0.018 | IJ30: 0.03 | IK30: 0.032 | IL30: 0.022 | IT30: 0.022 | KS30: 0.013 | KU30: 0.018 | LR30: 0.026 | LS30: 0.025 | LU30: 0.022 | LW30: 0.023
A31: 1997-01-26 | B31: Jan 26 | C31: 1997-01-26 | D31: 01-Jan 26 | E31: 1 | F31: 26 | G31: 1997 | J31: 0.026 | K31: 0.024 | L31: 0.034 | M31: 0.028 | N31: 0.04 | P31: 0.033 | Q31: 0.038 | R31: 0.023 | U31: 0.026 | V31: 0.04 | W31: 0.033 | X31: 0.029 | Y31: 0.026 | AA31: 0.028 | BG31: 0.026 | BN31: 0.022 | BO31: 0.022 | BP31: 0.024 | BT31: 0.034 | CK31: 0.027 | CN31: 0.021 | CY31: 0.028 | DR31: 0.036 | DV31: 0.04 | DW31: 0.034 | EA31: 0.037 | EB31: 0.034 | ED31: 0.037 | EO31: 0.032 | EP31: 0.037 | FS31: 0.028 | FU31: 0.026 | FY31: 0.02 | FZ31: 0.027 | GA31: 0.029 | GC31: 0.026 | GE31: 0.027 | GF31: 0.029 | GG31: 0.028 | GH31: 0.027 | GJ31: 0.028 | GK31: 0.024 | GL31: 0.033 | GM31: 0.026 | GO31: 0.029 | GQ31: 0.035 | GU31: 0.019 | GW31: 0.033 | GX31: 0.028 | GY31: 0.033 | GZ31: 0.028 | HB31: 0.038 | HE31: 0.036 | HF31: 0.034 | HH31: 0.034 | HI31: 0.027 | HL31: 0.026 | HN31: 0.026 | HO31: 0.031 | HP31: 0.032 | HT31: 0.024 | IB31: 0.036 | IC31: 0.032 | IE31: 0.028 | IJ31: 0.034 | IK31: 0.036 | IL31: 0.031 | IT31: 0.021 | KU31: 0.023 | LR31: 0.026 | LS31: 0.022 | LU31: 0.021 | LW31: 0.023
A32: 1997-01-27 | B32: Jan 27 | C32: 1997-01-27 | D32: 01-Jan 27 | E32: 1 | F32: 27 | G32: 1997 | J32: 0.028 | K32: 0.015 | L32: 0.038 | M32: 0.026 | N32: 0.036 | P32: 0.042 | Q32: 0.037 | R32: 0.022 | U32: 0.026 | V32: 0.042 | W32: 0.037 | X32: 0.042 | Y32: 0.026 | AA32: 0.026 | BG32: 0.016 | BH32: 0.028 | BN32: 0.009 | BO32: 0.015 | BP32: 0.01 | BT32: 0.038 | CK32: 0.026 | CN32: 0.01 | CY32: 0.022 | DR32: 0.034 | DV32: 0.033 | DW32: 0.036 | EA32: 0.017 | EB32: 0.024 | ED32: 0.035 | EO32: 0.026 | EP32: 0.027 | FS32: 0.042 | FU32: 0.02 | FY32: 0.02 | FZ32: 0.039 | GA32: 0.042 | GC32: 0.012 | GE32: 0.034 | GF32: 0.026 | GG32: 0.028 | GH32: 0.027 | GJ32: 0.023 | GK32: 0.035 | GL32: 0.028 | GM32: 0.039 | GO32: 0.019 | GQ32: 0.014 | GU32: 0.015 | GW32: 0.021 | GX32: 0.021 | GY32: 0.031 | GZ32: 0.016 | HB32: 0.035 | HE32: 0.034 | HF32: 0.033 | HH32: 0.03 | HI32: 0.014 | HN32: 0.019 | HO32: 0.031 | HP32: 0.022 | IB32: 0.031 | IC32: 0.017 | IE32: 0.037 | IJ32: 0.031 | IK32: 0.017 | IL32: 0.024 | IT32: 0.018 | KS32: 0.008 | KU32: 0.022 | LR32: 0.015 | LS32: 0.026 | LU32: 0.011 | LW32: 0.009
A33: 1997-01-28 | B33: Jan 28 | C33: 1997-01-28 | D33: 01-Jan 28 | E33: 1 | F33: 28 | G33: 1997 | J33: 0.019 | K33: 0.011 | L33: 0.032 | M33: 0.02 | N33: 0.034 | P33: 0.03 | Q33: 0.038 | R33: 0.026 | U33: 0.02 | V33: 0.038 | W33: 0.03 | X33: 0.025 | Y33: 0.02 | AA33: 0.02 | BG33: 0.019 | BH33: 0.016 | BN33: 0.011 | BO33: 0.009 | BP33: 0.011 | BT33: 0.032 | CK33: 0.018 | CN33: 0.012 | CY33: 0.02 | DR33: 0.029 | DV33: 0.031 | DW33: 0.027 | EA33: 0.033 | EB33: 0.03 | ED33: 0.034 | EO33: 0.019 | EP33: 0.034 | FS33: 0.022 | FU33: 0.017 | FY33: 0.013 | FZ33: 0.022 | GA33: 0.021 | GC33: 0.019 | GE33: 0.019 | GF33: 0.017 | GG33: 0.027 | GH33: 0.025 | GJ33: 0.02 | GK33: 0.02 | GL33: 0.03 | GM33: 0.022 | GO33: 0.023 | GQ33: 0.029 | GU33: 0.014 | GX33: 0.026 | GY33: 0.031 | GZ33: 0.028 | HA33: 0.038 | HB33: 0.038 | HE33: 0.037 | HF33: 0.037 | HH33: 0.035 | HI33: 0.025 | HL33: 0.017 | HN33: 0.028 | HO33: 0.032 | HP33: 0.03 | HT33: 0.016 | IB33: 0.033 | IC33: 0.026 | IE33: 0.024 | IJ33: 0.035 | IK33: 0.033 | IL33: 0.026 | IT33: 0.026 | KU33: 0.021 | LR33: 0.02 | LS33: 0.012 | LU33: 0.013 | LW33: 0.012
A34: 1997-01-29 | B34: Jan 29 | C34: 1997-01-29 | D34: 01-Jan 29 | E34: 1 | F34: 29 | G34: 1997 | J34: 0.03 | K34: 0.021 | L34: 0.036 | M34: 0.03 | N34: 0.04 | P34: 0.035 | Q34: 0.042 | R34: 0.029 | U34: 0.025 | V34: 0.042 | W34: 0.035 | X34: 0.033 | Y34: 0.025 | AA34: 0.03 | BG34: 0.03 | BN34: 0.019 | BO34: 0.017 | BP34: 0.021 | BT34: 0.036 | CK34: 0.029 | CN34: 0.023 | CY34: 0.03 | DR34: 0.037 | DV34: 0.038 | DW34: 0.036 | EA34: 0.039 | EB34: 0.036 | ED34: 0.04 | EO34: 0.03 | EP34: 0.04 | FS34: 0.032 | FU34: 0.027 | FY34: 0.022 | FZ34: 0.027 | GA34: 0.031 | GC34: 0.027 | GE34: 0.028 | GF34: 0.028 | GG34: 0.034 | GH34: 0.033 | GJ34: 0.031 | GK34: 0.027 | GL34: 0.035 | GM34: 0.032 | GO34: 0.031 | GQ34: 0.036 | GU34: 0.022 | GW34: 0.035 | GX34: 0.032 | GY34: 0.037 | GZ34: 0.032 | HA34: 0.042 | HB34: 0.037 | HE34: 0.039 | HF34: 0.038 | HH34: 0.037 | HI34: 0.029 | HL34: 0.019 | HO34: 0.032 | HP34: 0.03 | HT34: 0.022 | IB34: 0.037 | IC34: 0.031 | IE34: 0.029 | IJ34: 0.039 | IK34: 0.035 | IL34: 0.032 | IT34: 0.028 | KU34: 0.029 | LR34: 0.025 | LS34: 0.019 | LU34: 0.021 | LW34: 0.021
A35: 1997-01-30 | B35: Jan 30 | C35: 1997-01-30 | D35: 01-Jan 30 | E35: 1 | F35: 30 | G35: 1997 | J35: 0.014 | K35: 0.014 | L35: 0.034 | M35: 0.023 | N35: 0.032 | P35: 0.038 | Q35: 0.042 | R35: 0.021 | U35: 0.016 | V35: 0.042 | W35: 0.032 | X35: 0.038 | Y35: 0.016 | AA35: 0.023 | BG35: 0.014 | BN35: 0.013 | BO35: 0.013 | BP35: 0.014 | BT35: 0.034 | CK35: 0.02 | CN35: 0.013 | CY35: 0.023 | DR35: 0.022 | DV35: 0.026 | DW35: 0.032 | EA35: 0.023 | EB35: 0.025 | ED35: 0.03 | EO35: 0.015 | EP35: 0.022 | FS35: 0.038 | FU35: 0.009 | FY35: 0.02 | FZ35: 0.035 | GA35: 0.037 | GC35: 0.006 | GE35: 0.028 | GF35: 0.007 | GG35: 0.009 | GH35: 0.019 | GJ35: 0.011 | GK35: 0.032 | GL35: 0.016 | GM35: 0.034 | GO35: 0.006 | GQ35: 0.028 | GU35: 0.013 | GW35: 0.027 | GX35: 0.025 | GY35: 0.032 | HA35: 0.042 | HB35: 0.031 | HE35: 0.034 | HF35: 0.036 | HH35: 0.033 | HI35: 0.019 | HL35: 0.023 | HN35: 0.026 | HO35: 0.032 | HP35: 0.021 | HT35: 0.012 | IB35: 0.033 | IC35: 0.021 | IE35: 0.024 | IJ35: 0.033 | IK35: 0.02 | IL35: 0.025 | IT35: 0.014 | KU35: 0.021 | LR35: 0.016 | LU35: 0.01 | LW35: 0.009
A36: 1997-01-31 | B36: Jan 31 | C36: 1997-01-31 | D36: 01-Jan 31 | E36: 1 | F36: 31 | G36: 1997 | J36: 0.014 | K36: 0.012 | L36: 0.022 | M36: 0.022 | N36: 0.023 | P36: 0.023 | Q36: 0.034 | R36: 0.026 | U36: 0.026 | V36: 0.034 | W36: 0.019 | X36: 0.023 | Y36: 0.026 | AA36: 0.022 | BG36: 0.004 | BH36: 0.014 | BN36: 0.006 | BO36: 0.012 | BP36: 0.008 | BT36: 0.022 | CK36: 0.017 | CN36: 0.011 | CY36: 0.022 | DR36: 0.003 | DV36: 0.014 | DW36: 0.018 | EA36: 0.015 | EB36: 0.017 | ED36: 0.023 | EO36: 0.005 | EP36: 0.02 | FS36: 0.021 | FU36: 0.004 | FY36: 0.007 | FZ36: 0.023 | GA36: 0.022 | GC36: 0.003 | GE36: 0.017 | GF36: 0.004 | GG36: 0.016 | GH36: 0.011 | GJ36: 0.01 | GK36: 0.014 | GL36: 0.019 | GM36: 0.017 | GQ36: 0.014 | GU36: 0.001 | GW36: 0.018 | GX36: 0.013 | GY36: 0.012 | GZ36: 0.01 | HB36: 0.03 | HE36: 0.023 | HF36: 0.028 | HH36: 0.023 | HL36: 0.016 | HN36: 0.014 | HO36: 0.02 | HP36: 0.02 | HT36: 0.005 | IB36: 0.02 | IC36: 0.014 | IE36: 0.018 | IJ36: 0.034 | IK36: 0.012 | IL36: 0.004 | IT36: 0.026 | KU36: 0.007 | LR36: 0.02 | LS36: 0.026 | LU36: 0.009 | LW36: 0.007
A37: 1997-02-01 | B37: Feb 01 | C37: 1997-02-01 | D37: 02-Feb 01 | E37: 2 | F37: 1 | G37: 1997 | J37: 0.026 | K37: 0.025 | L37: 0.01 | M37: 0.03 | N37: 0.025 | P37: 0.027 | Q37: 0.025 | R37: 0.023 | U37: 0.024 | V37: 0.03 | W37: 0.022 | X37: 0.027 | Y37: 0.025 | AA37: 0.03 | BG37: 0.022 | BH37: 0.026 | BN37: 0.021 | BO37: 0.019 | BP37: 0.025 | BT37: 0.01 | CK37: 0.03 | CN37: 0.023 | CY37: 0.029 | DR37: 0.013 | DV37: 0.007 | DW37: 0.001 | EA37: 0.024 | EB37: 0.022 | ED37: 0.025 | EO37: 0.002 | EP37: 0.02 | FS37: 0.025 | FU37: 0.011 | FY37: 0.012 | FZ37: 0.027 | GA37: 0.021 | GC37: 0.01 | GE37: 0.024 | GF37: 0.015 | GG37: 0.021 | GH37: 0.023 | GJ37: 0.017 | GK37: 0.019 | GL37: 0.022 | GM37: 0.024 | GQ37: 0.025 | GU37: 0.006 | GW37: 0.016 | GX37: 0.019 | GY37: 0.014 | GZ37: 0.006 | HA37: 0.02 | HB37: 0.021 | HE37: 0.019 | HF37: 0.017 | HH37: 0.014 | HI37: 0.009 | HL37: 0.014 | HN37: 0.014 | HO37: 0.021 | HP37: 0.01 | HT37: 0.01 | IB37: 0.021 | IC37: 0.022 | IE37: 0.015 | IJ37: 0.025 | IK37: 0.016 | IL37: 0.014 | IT37: 0.023 | KS37: 0.011 | KU37: 0.022 | LR37: 0.024 | LS37: 0.017 | LU37: 0.022 | LW37: 0.024
A38: 1997-02-02 | B38: Feb 02 | C38: 1997-02-02 | D38: 02-Feb 02 | E38: 2 | F38: 2 | G38: 1997 | J38: 0.015 | K38: 0.009 | L38: 0.029 | M38: 0.021 | N38: 0.033 | P38: 0.031 | Q38: 0.04 | R38: 0.019 | U38: 0.014 | V38: 0.04 | W38: 0.031 | X38: 0.029 | Y38: 0.014 | AA38: 0.021 | BG38: 0.013 | BH38: 0.015 | BN38: 0.006 | BO38: 0.009 | BP38: 0.007 | BT38: 0.029 | CK38: 0.016 | CN38: 0.014 | CY38: 0.021 | DR38: 0.027 | DV38: 0.031 | DW38: 0.026 | EA38: 0.031 | EB38: 0.025 | ED38: 0.032 | EO38: 0.022 | EP38: 0.033 | FS38: 0.027 | FU38: 0.012 | FY38: 0.014 | FZ38: 0.025 | GA38: 0.02 | GC38: 0.015 | GE38: 0.021 | GF38: 0.014 | GG38: 0.028 | GH38: 0.024 | GJ38: 0.024 | GK38: 0.017 | GL38: 0.031 | GM38: 0.029 | GQ38: 0.019 | GU38: 0.01 | GW38: 0.023 | GX38: 0.024 | GY38: 0.024 | GZ38: 0.015 | HA38: 0.04 | HB38: 0.028 | HE38: 0.022 | HF38: 0.022 | HH38: 0.025 | HI38: 0.018 | HL38: 0.022 | HN38: 0.019 | HO38: 0.019 | HP38: 0.021 | HT38: 0.015 | IB38: 0.022 | IC38: 0.018 | IE38: 0.027 | IJ38: 0.03 | IK38: 0.012 | IL38: 0.018 | IT38: 0.009 | KS38: 0.01 | KU38: 0.019 | LR38: 0.011 | LS38: 0.014 | LU38: 0.005 | LW38: 0.006
A39: 1997-02-03 | B39: Feb 03 | C39: 1997-02-03 | D39: 02-Feb 03 | E39: 2 | F39: 3 | G39: 1997 | J39: 0.016 | K39: 0.012 | L39: 0.029 | M39: 0.016 | N39: 0.024 | P39: 0.027 | Q39: 0.037 | R39: 0.032 | U39: 0.016 | V39: 0.037 | W39: 0.027 | X39: 0.019 | Y39: 0.016 | AA39: 0.016 | BG39: 0.016 | BH39: 0.011 | BN39: 0.012 | BO39: 0.009 | BP39: 0.011 | BT39: 0.029 | CK39: 0.014 | CN39: 0.012 | CY39: 0.016 | DR39: 0.007 | DV39: 0.011 | DW39: 0.019 | EA39: 0.016 | EB39: 0.016 | ED39: 0.024 | EO39: 0.005 | EP39: 0.022 | FS39: 0.015 | FU39: 0.008 | FY39: 0.006 | FZ39: 0.016 | GA39: 0.012 | GC39: 0.004 | GE39: 0.012 | GF39: 0.005 | GG39: 0.023 | GH39: 0.019 | GJ39: 0.009 | GK39: 0.014 | GL39: 0.027 | GM39: 0.015 | GO39: 0.015 | GU39: 0.01 | GW39: 0.035 | GX39: 0.018 | GY39: 0.019 | GZ39: 0.021 | HA39: 0.037 | HB39: 0.023 | HE39: 0.029 | HF39: 0.029 | HH39: 0.031 | HI39: 0.017 | HL39: 0.015 | HN39: 0.023 | HO39: 0.021 | HP39: 0.013 | IC39: 0.016 | IE39: 0.014 | IJ39: 0.034 | IK39: 0.018 | IL39: 0.017 | IT39: 0.032 | KS39: 0.01 | KU39: 0.011 | LR39: 0.016 | LS39: 0.011 | LU39: 0.011 | LW39: 0.012
A40: 1997-02-04 | B40: Feb 04 | C40: 1997-02-04 | D40: 02-Feb 04 | E40: 2 | F40: 4 | G40: 1997 | J40: 0.027 | K40: 0.005 | L40: 0.041 | M40: 0.029 | N40: 0.04 | P40: 0.041 | Q40: 0.044 | R40: 0.03 | U40: 0.012 | V40: 0.044 | W40: 0.037 | X40: 0.041 | Y40: 0.012 | AA40: 0.029 | BG40: 0.015 | BH40: 0.027 | BN40: 0.005 | BO40: 0.005 | BP40: 0.004 | BT40: 0.041 | CK40: 0.02 | CN40: 0.015 | CY40: 0.029 | DR40: 0.036 | DV40: 0.035 | DW40: 0.04 | EA40: 0.022 | EB40: 0.021 | ED40: 0.031 | EO40: 0.03 | FS40: 0.041 | FU40: 0.01 | FY40: 0.022 | FZ40: 0.038 | GA40: 0.037 | GC40: 0.006 | GE40: 0.03 | GF40: 0.021 | GG40: 0.028 | GH40: 0.029 | GJ40: 0.026 | GK40: 0.037 | GL40: 0.018 | GM40: 0.038 | GO40: 0.026 | GQ40: 0.022 | GU40: 0.008 | GX40: 0.024 | GY40: 0.033 | GZ40: 0.02 | HA40: 0.044 | HE40: 0.03 | HF40: 0.033 | HH40: 0.032 | HI40: 0.022 | HL40: 0.029 | HN40: 0.027 | HO40: 0.029 | HP40: 0.028 | HT40: 0.029 | IB40: 0.029 | IC40: 0.022 | IE40: 0.034 | IJ40: 0.034 | IK40: 0.022 | IL40: 0.033 | IT40: 0.03 | KS40: 0.016 | LR40: 0.004 | LS40: 0.012 | LU40: 0.003 | LW40: 0.003
A41: 1997-02-05 | B41: Feb 05 | C41: 1997-02-05 | D41: 02-Feb 05 | E41: 2 | F41: 5 | G41: 1997 | J41: 0.015 | K41: 0.015 | L41: 0.02 | M41: 0.02 | N41: 0.021 | P41: 0.019 | Q41: 0.034 | R41: 0.017 | U41: 0.02 | V41: 0.034 | W41: 0.018 | X41: 0.019 | Y41: 0.02 | AA41: 0.02 | BG41: 0.015 | BH41: 0.014 | BN41: 0.013 | BO41: 0.012 | BP41: 0.015 | BT41: 0.02 | CK41: 0.018 | CN41: 0.014 | CY41: 0.02 | DR41: 0.011 | DV41: 0.009 | EA41: 0.02 | EB41: 0.012 | ED41: 0.02 | EO41: 0.002 | EP41: 0.021 | FS41: 0.017 | FU41: 0.01 | FY41: 0.008 | FZ41: 0.016 | GA41: 0.015 | GC41: 0.008 | GE41: 0.015 | GF41: 0.009 | GG41: 0.017 | GH41: 0.019 | GJ41: 0.015 | GK41: 0.018 | GL41: 0.017 | GM41: 0.018 | GO41: 0.013 | GQ41: 0.023 | GU41: 0.007 | GW41: 0.033 | GX41: 0.025 | GY41: 0.019 | GZ41: 0.029 | HA41: 0.034 | HB41: 0.034 | HE41: 0.027 | HF41: 0.031 | HH41: 0.031 | HI41: 0.024 | HL41: 0.015 | HN41: 0.031 | HO41: 0.029 | HP41: 0.028 | HT41: 0.008 | IB41: 0.022 | IC41: 0.021 | IE41: 0.011 | IJ41: 0.027 | IK41: 0.032 | IL41: 0.015 | IT41: 0.017 | LR41: 0.02 | LU41: 0.013 | LW41: 0.016
A42: 1997-02-06 | B42: Feb 06 | C42: 1997-02-06 | D42: 02-Feb 06 | E42: 2 | F42: 6 | G42: 1997 | J42: 0.031 | K42: 0.025 | L42: 0.035 | M42: 0.03 | N42: 0.04 | P42: 0.035 | Q42: 0.041 | R42: 0.028 | U42: 0.029 | V42: 0.041 | W42: 0.035 | X42: 0.032 | Y42: 0.029 | AA42: 0.03 | BG42: 0.031 | BN42: 0.023 | BO42: 0.02 | BP42: 0.025 | BT42: 0.035 | CK42: 0.028 | CN42: 0.021 | CY42: 0.03 | DR42: 0.034 | DV42: 0.037 | DW42: 0.034 | EA42: 0.039 | EB42: 0.034 | ED42: 0.039 | EO42: 0.028 | EP42: 0.04 | FS42: 0.03 | FU42: 0.026 | FY42: 0.021 | FZ42: 0.03 | GA42: 0.026 | GC42: 0.023 | GE42: 0.03 | GF42: 0.025 | GG42: 0.033 | GH42: 0.032 | GJ42: 0.03 | GK42: 0.027 | GL42: 0.035 | GM42: 0.03 | GO42: 0.029 | GQ42: 0.035 | GW42: 0.033 | GX42: 0.031 | GY42: 0.037 | GZ42: 0.026 | HA42: 0.041 | HB42: 0.04 | HE42: 0.037 | HF42: 0.037 | HH42: 0.036 | HI42: 0.022 | HL42: 0.025 | HN42: 0.033 | HO42: 0.033 | HP42: 0.027 | HT42: 0.022 | IB42: 0.035 | IC42: 0.029 | IE42: 0.025 | IJ42: 0.039 | IK42: 0.028 | IL42: 0.032 | IT42: 0.024 | KS42: 0.019 | KU42: 0.028 | LR42: 0.029 | LS42: 0.026 | LW42: 0.02
A43: 1997-02-07 | B43: Feb 07 | C43: 1997-02-07 | D43: 02-Feb 07 | E43: 2 | F43: 7 | G43: 1997 | J43: 0.007 | K43: 0.006 | L43: 0.038 | M43: 0.01 | N43: 0.03 | P43: 0.024 | Q43: 0.043 | R43: 0.016 | U43: 0.01 | V43: 0.043 | W43: 0.023 | X43: 0.024 | Y43: 0.01 | AA43: 0.01 | BG43: 0.007 | BN43: 0.004 | BO43: 0.006 | BP43: 0.003 | BT43: 0.038 | CK43: 0.007 | CN43: 0.008 | CY43: 0.01 | DR43: 0.025 | DV43: 0.029 | DW43: 0.029 | EA43: 0.03 | EB43: 0.021 | ED43: 0.03 | EO43: 0.018 | EP43: 0.03 | FS43: 0.024 | FU43: 0.014 | FY43: 0.005 | FZ43: 0.018 | GA43: 0.015 | GC43: 0.013 | GE43: 0.012 | GF43: 0.015 | GG43: 0.021 | GJ43: 0.022 | GK43: 0.019 | GL43: 0.023 | GM43: 0.021 | GO43: 0.016 | GQ43: 0.025 | GU43: 0.011 | GW43: 0.031 | GX43: 0.022 | GY43: 0.033 | GZ43: 0.027 | HA43: 0.043 | HB43: 0.038 | HE43: 0.036 | HF43: 0.036 | HH43: 0.035 | HI43: 0.028 | HL43: 0.012 | HN43: 0.033 | HO43: 0.031 | HP43: 0.024 | HT43: 0.01 | IB43: 0.032 | IC43: 0.026 | IE43: 0.015 | IJ43: 0.035 | IK43: 0.032 | IL43: 0.019 | IT43: 0.016 | KS43: 0.008 | KU43: 0.015 | LR43: 0.003 | LS43: 0.01 | LU43: 0.003 | LW43: 0.002
A44: 1997-02-08 | B44: Feb 08 | C44: 1997-02-08 | D44: 02-Feb 08 | E44: 2 | F44: 8 | G44: 1997 | J44: 0.026 | K44: 0.015 | L44: 0.04 | M44: 0.03 | N44: 0.039 | P44: 0.032 | Q44: 0.048 | R44: 0.026 | U44: 0.019 | V44: 0.048 | W44: 0.032 | X44: 0.028 | Y44: 0.019 | AA44: 0.03 | BG44: 0.026 | BH44: 0.022 | BN44: 0.014 | BO44: 0.015 | BP44: 0.013 | BT44: 0.04 | CK44: 0.03 | CN44: 0.022 | CY44: 0.025 | DR44: 0.037 | DV44: 0.038 | DW44: 0.039 | EA44: 0.031 | EB44: 0.032 | ED44: 0.035 | EO44: 0.028 | EP44: 0.034 | FS44: 0.028 | FU44: 0.017 | FY44: 0.017 | FZ44: 0.023 | GA44: 0.02 | GC44: 0.014 | GE44: 0.015 | GF44: 0.015 | GG44: 0.03 | GJ44: 0.025 | GK44: 0.021 | GL44: 0.032 | GM44: 0.023 | GO44: 0.028 | GQ44: 0.039 | GU44: 0.014 | GW44: 0.027 | GX44: 0.034 | GY44: 0.031 | GZ44: 0.034 | HA44: 0.048 | HB44: 0.043 | HE44: 0.039 | HF44: 0.039 | HH44: 0.038 | HI44: 0.031 | HL44: 0.025 | HN44: 0.033 | HO44: 0.037 | HP44: 0.034 | HT44: 0.016 | IB44: 0.037 | IC44: 0.029 | IE44: 0.026 | IJ44: 0.039 | IK44: 0.037 | IL44: 0.028 | IT44: 0.026 | KS44: 0.022 | KU44: 0.025 | LR44: 0.019 | LS44: 0.008 | LU44: 0.014 | LW44: 0.015
A45: 1997-02-09 | B45: Feb 09 | C45: 1997-02-09 | D45: 02-Feb 09 | E45: 2 | F45: 9 | G45: 1997 | J45: 0.039 | K45: 0.031 | L45: 0.041 | M45: 0.046 | N45: 0.045 | P45: 0.043 | Q45: 0.045 | R45: 0.035 | U45: 0.03 | V45: 0.046 | W45: 0.043 | X45: 0.041 | Y45: 0.031 | AA45: 0.046 | BG45: 0.039 | BH45: 0.037 | BN45: 0.027 | BO45: 0.027 | BP45: 0.031 | BT45: 0.041 | CK45: 0.046 | CN45: 0.034 | CY45: 0.042 | DR45: 0.037 | DV45: 0.037 | DW45: 0.036 | EA45: 0.042 | EB45: 0.04 | ED45: 0.045 | EO45: 0.028 | EP45: 0.044 | FS45: 0.037 | FU45: 0.03 | FY45: 0.025 | FZ45: 0.038 | GA45: 0.036 | GC45: 0.031 | GE45: 0.036 | GF45: 0.032 | GG45: 0.039 | GH45: 0.041 | GJ45: 0.039 | GK45: 0.033 | GL45: 0.043 | GM45: 0.038 | GO45: 0.035 | GQ45: 0.037 | GU45: 0.024 | GW45: 0.036 | GX45: 0.035 | GY45: 0.036 | GZ45: 0.032 | HA45: 0.045 | HB45: 0.043 | HE45: 0.042 | HF45: 0.042 | HH45: 0.04 | HI45: 0.025 | HL45: 0.033 | HN45: 0.034 | HO45: 0.036 | HP45: 0.034 | HT45: 0.022 | IB45: 0.04 | IC45: 0.035 | IE45: 0.032 | IJ45: 0.044 | IK45: 0.026 | IL45: 0.035 | IT45: 0.028 | KS45: 0.022 | KU45: 0.035 | LR45: 0.03 | LS45: 0.029 | LU45: 0.026 | LW45: 0.025
A46: 1997-02-10 | B46: Feb 10 | C46: 1997-02-10 | D46: 02-Feb 10 | E46: 2 | F46: 10 | G46: 1997 | J46: 0.027 | K46: 0.015 | L46: 0.039 | M46: 0.022 | N46: 0.041 | P46: 0.035 | Q46: 0.047 | R46: 0.031 | U46: 0.02 | V46: 0.047 | W46: 0.035 | X46: 0.03 | Y46: 0.02 | AA46: 0.022 | BG46: 0.027 | BH46: 0.023 | BN46: 0.014 | BO46: 0.014 | BP46: 0.015 | BT46: 0.039 | CN46: 0.016 | CY46: 0.022 | DR46: 0.033 | DV46: 0.034 | DW46: 0.037 | EA46: 0.04 | EB46: 0.035 | ED46: 0.041 | EO46: 0.028 | EP46: 0.04 | FS46: 0.022 | FU46: 0.023 | FY46: 0.014 | FZ46: 0.023 | GA46: 0.019 | GC46: 0.023 | GE46: 0.024 | GF46: 0.025 | GG46: 0.03 | GH46: 0.03 | GJ46: 0.028 | GK46: 0.022 | GL46: 0.035 | GM46: 0.027 | GO46: 0.027 | GQ46: 0.036 | GU46: 0.018 | GW46: 0.038 | GX46: 0.031 | GY46: 0.04 | GZ46: 0.033 | HA46: 0.047 | HB46: 0.047 | HE46: 0.044 | HF46: 0.043 | HH46: 0.037 | HI46: 0.028 | HL46: 0.024 | HN46: 0.038 | HO46: 0.03 | HP46: 0.032 | HT46: 0.015 | IB46: 0.039 | IC46: 0.034 | IE46: 0.022 | IJ46: 0.039 | IK46: 0.028 | IL46: 0.033 | IT46: 0.031 | KS46: 0.013 | KU46: 0.024 | LR46: 0.02 | LS46: 0.017 | LU46: 0.018 | LW46: 0.02
A47: 1997-02-11 | B47: Feb 11 | C47: 1997-02-11 | D47: 02-Feb 11 | E47: 2 | F47: 11 | G47: 1997 | J47: 0.037 | K47: 0.025 | L47: 0.042 | M47: 0.033 | N47: 0.041 | P47: 0.04 | Q47: 0.044 | R47: 0.036 | U47: 0.027 | V47: 0.044 | W47: 0.039 | X47: 0.04 | Y47: 0.027 | AA47: 0.033 | BG47: 0.037 | BH47: 0.036 | BN47: 0.022 | BO47: 0.018 | BP47: 0.025 | BT47: 0.042 | CN47: 0.027 | CY47: 0.033 | DR47: 0.03 | DV47: 0.035 | DW47: 0.041 | EA47: 0.033 | EB47: 0.028 | ED47: 0.037 | EO47: 0.024 | EP47: 0.031 | FS47: 0.034 | FU47: 0.027 | FY47: 0.027 | FZ47: 0.036 | GA47: 0.034 | GC47: 0.02 | GE47: 0.035 | GF47: 0.021 | GG47: 0.039 | GH47: 0.04 | GJ47: 0.034 | GK47: 0.021 | GL47: 0.039 | GM47: 0.034 | GO47: 0.032 | GQ47: 0.029 | GU47: 0.022 | GX47: 0.029 | GY47: 0.037 | GZ47: 0.027 | HA47: 0.044 | HB47: 0.04 | HE47: 0.042 | HF47: 0.041 | HH47: 0.041 | HI47: 0.023 | HL47: 0.019 | HN47: 0.028 | HO47: 0.032 | HP47: 0.037 | HT47: 0.022 | IB47: 0.04 | IC47: 0.03 | IE47: 0.026 | IJ47: 0.044 | IK47: 0.022 | IL47: 0.033 | IT47: 0.022 | KU47: 0.036 | LR47: 0.027 | LS47: 0.017 | LU47: 0.02 | LW47: 0.022
A48: 1997-02-12 | B48: Feb 12 | C48: 1997-02-12 | D48: 02-Feb 12 | E48: 2 | F48: 12 | G48: 1997 | J48: 0.029 | K48: 0.026 | L48: 0.025 | M48: 0.031 | N48: 0.033 | P48: 0.034 | Q48: 0.04 | R48: 0.037 | U48: 0.029 | V48: 0.04 | W48: 0.034 | X48: 0.03 | Y48: 0.029 | AA48: 0.031 | BG48: 0.029 | BH48: 0.027 | BN48: 0.025 | BO48: 0.024 | BP48: 0.026 | BT48: 0.025 | CN48: 0.028 | CY48: 0.031 | DR48: 0.018 | DV48: 0.023 | DW48: 0.02 | EA48: 0.033 | EB48: 0.03 | ED48: 0.032 | EO48: 0.016 | EP48: 0.028 | FS48: 0.026 | FU48: 0.025 | FY48: 0.02 | FZ48: 0.028 | GA48: 0.025 | GC48: 0.025 | GE48: 0.026 | GF48: 0.022 | GG48: 0.032 | GH48: 0.03 | GJ48: 0.027 | GK48: 0.026 | GL48: 0.034 | GM48: 0.03 | GO48: 0.031 | GU48: 0.02 | GW48: 0.034 | GX48: 0.03 | GY48: 0.032 | GZ48: 0.032 | HA48: 0.04 | HB48: 0.037 | HE48: 0.036 | HF48: 0.036 | HH48: 0.039 | HI48: 0.032 | HN48: 0.036 | HO48: 0.035 | HP48: 0.035 | HT48: 0.02 | IB48: 0.033 | IC48: 0.03 | IE48: 0.025 | IJ48: 0.039 | IK48: 0.038 | IL48: 0.03 | IT48: 0.037 | KS48: 0.024 | KU48: 0.027 | LR48: 0.029 | LS48: 0.023 | LU48: 0.024 | LW48: 0.024
A49: 1997-02-13 | B49: Feb 13 | C49: 1997-02-13 | D49: 02-Feb 13 | E49: 2 | F49: 13 | G49: 1997 | J49: 0.03 | K49: 0.025 | L49: 0.039 | N49: 0.042 | P49: 0.039 | Q49: 0.049 | R49: 0.032 | U49: 0.027 | V49: 0.049 | W49: 0.039 | X49: 0.037 | Y49: 0.027 | BG49: 0.029 | BH49: 0.03 | BN49: 0.023 | BO49: 0.018 | BP49: 0.025 | BT49: 0.039 | DR49: 0.024 | DV49: 0.038 | DW49: 0.037 | EA49: 0.037 | EB49: 0.039 | ED49: 0.042 | EO49: 0.028 | EP49: 0.04 | FS49: 0.036 | FU49: 0.03 | FY49: 0.024 | FZ49: 0.034 | GA49: 0.03 | GC49: 0.026 | GE49: 0.025 | GF49: 0.025 | GG49: 0.039 | GH49: 0.037 | GJ49: 0.032 | GK49: 0.037 | GL49: 0.039 | GM49: 0.034 | GO49: 0.033 | GQ49: 0.038 | GU49: 0.026 | GW49: 0.037 | GX49: 0.035 | GY49: 0.036 | GZ49: 0.034 | HA49: 0.049 | HB49: 0.041 | HE49: 0.04 | HF49: 0.038 | HH49: 0.041 | HI49: 0.032 | HL49: 0.024 | HN49: 0.035 | HO49: 0.035 | HP49: 0.032 | IB49: 0.037 | IC49: 0.029 | IE49: 0.031 | IJ49: 0.043 | IK49: 0.026 | IL49: 0.037 | IT49: 0.031 | KS49: 0.022 | KU49: 0.032 | LR49: 0.027 | LS49: 0.024 | LU49: 0.022 | LW49: 0.024
A50: 1997-02-14 | B50: Feb 14 | C50: 1997-02-14 | D50: 02-Feb 14 | E50: 2 | F50: 14 | G50: 1997 | J50: 0.009 | K50: 0.011 | L50: 0.041 | M50: 0.016 | N50: 0.039 | P50: 0.041 | Q50: 0.043 | R50: 0.012 | U50: 0.021 | V50: 0.043 | W50: 0.037 | X50: 0.041 | Y50: 0.021 | AA50: 0.016 | BG50: 0.009 | BN50: 0.011 | BO50: 0.007 | BP50: 0.011 | BT50: 0.041 | CN50: 0.012 | CY50: 0.016 | DR50: 0.032 | DV50: 0.033 | DW50: 0.039 | EA50: 0.016 | EB50: 0.016 | ED50: 0.03 | EO50: 0.027 | EP50: 0.022 | FS50: 0.041 | FU50: 0.003 | FY50: 0.001 | FZ50: 0.039 | GA50: 0.035 | GC50: 0.001 | GE50: 0.008 | GF50: 0.006 | GG50: 0.006 | GH50: 0.018 | GJ50: 0.015 | GK50: 0.037 | GL50: 0.014 | GM50: 0.039 | GO50: 0.003 | GQ50: 0.016 | GU50: 0.003 | GW50: 0.026 | GX50: 0.019 | GY50: 0.029 | GZ50: 0.017 | HA50: 0.043 | HB50: 0.04 | HE50: 0.032 | HF50: 0.037 | HH50: 0.035 | HL50: 0.017 | HN50: 0.027 | HO50: 0.013 | HP50: 0.012 | HT50: 0.004 | IB50: 0.025 | IC50: 0.006 | IE50: 0.028 | IJ50: 0.037 | IK50: 0.013 | IL50: 0.031 | IT50: 0.012 | KS50: 0.003 | KU50: 0.005 | LR50: 0.021 | LS50: 0.013 | LU50: 0.009 | LW50: 0.011
A51: 1997-02-15 | B51: Feb 15 | C51: 1997-02-15 | D51: 02-Feb 15 | E51: 2 | F51: 15 | G51: 1997 | J51: 0.031 | K51: 0.028 | L51: 0.032 | M51: 0.031 | N51: 0.039 | P51: 0.039 | Q51: 0.04 | R51: 0.037 | U51: 0.031 | V51: 0.04 | W51: 0.039 | X51: 0.035 | Y51: 0.031 | AA51: 0.031 | BG51: 0.031 | BH51: 0.029 | BN51: 0.027 | BO51: 0.023 | BP51: 0.028 | BT51: 0.032 | CN51: 0.028 | CY51: 0.031 | DR51: 0.03 | DV51: 0.035 | DW51: 0.03 | EA51: 0.038 | EB51: 0.036 | ED51: 0.039 | EO51: 0.026 | EP51: 0.038 | FS51: 0.029 | FU51: 0.029 | FY51: 0.021 | FZ51: 0.032 | GA51: 0.029 | GC51: 0.029 | GE51: 0.031 | GF51: 0.031 | GG51: 0.037 | GH51: 0.035 | GJ51: 0.034 | GK51: 0.027 | GL51: 0.039 | GM51: 0.031 | GO51: 0.036 | GQ51: 0.04 | GU51: 0.02 | GW51: 0.04 | GX51: 0.032 | GY51: 0.036 | GZ51: 0.033 | HA51: 0.037 | HB51: 0.037 | HE51: 0.038 | HF51: 0.038 | HH51: 0.038 | HI51: 0.028 | HL51: 0.031 | HN51: 0.038 | HO51: 0.012 | HP51: 0.034 | HT51: 0.028 | IB51: 0.036 | IC51: 0.033 | IE51: 0.03 | IJ51: 0.039 | IK51: 0.038 | IL51: 0.036 | IT51: 0.037 | KS51: 0.023 | KU51: 0.031 | LR51: 0.031 | LS51: 0.027 | LU51: 0.025 | LW51: 0.026
A52: 1997-02-16 | B52: Feb 16 | C52: 1997-02-16 | D52: 02-Feb 16 | E52: 2 | F52: 16 | G52: 1997 | J52: 0.037 | K52: 0.028 | L52: 0.041 | M52: 0.033 | N52: 0.043 | P52: 0.044 | Q52: 0.042 | R52: 0.034 | U52: 0.031 | V52: 0.044 | W52: 0.041 | X52: 0.044 | Y52: 0.031 | AA52: 0.033 | BG52: 0.035 | BH52: 0.037 | BN52: 0.027 | BO52: 0.027 | BP52: 0.028 | BT52: 0.041 | CN52: 0.031 | CY52: 0.033 | DR52: 0.038 | DV52: 0.042 | DW52: 0.038 | EA52: 0.042 | EB52: 0.04 | ED52: 0.043 | EO52: 0.033 | EP52: 0.041 | FS52: 0.044 | FU52: 0.027 | FY52: 0.031 | FZ52: 0.042 | GA52: 0.041 | GC52: 0.029 | GE52: 0.039 | GF52: 0.033 | GG52: 0.041 | GH52: 0.039 | GJ52: 0.039 | GK52: 0.038 | GL52: 0.04 | GM52: 0.041 | GO52: 0.035 | GQ52: 0.04 | GU52: 0.019 | GW52: 0.03 | GX52: 0.038 | GY52: 0.039 | GZ52: 0.035 | HA52: 0.042 | HB52: 0.038 | HE52: 0.039 | HF52: 0.038 | HH52: 0.04 | HI52: 0.034 | HL52: 0.029 | HN52: 0.036 | HO52: 0.011 | HP52: 0.035 | HT52: 0.023 | IB52: 0.037 | IC52: 0.033 | IE52: 0.031 | IJ52: 0.04 | IK52: 0.037 | IL52: 0.032 | IT52: 0.028 | KS52: 0.024 | KU52: 0.034 | LR52: 0.031 | LS52: 0.03 | LU52: 0.027 | LW52: 0.024
A53: 1997-02-17 | B53: Feb 17 | C53: 1997-02-17 | D53: 02-Feb 17 | E53: 2 | F53: 17 | G53: 1997 | J53: 0.038 | K53: 0.034 | L53: 0.039 | M53: 0.038 | N53: 0.043 | P53: 0.042 | Q53: 0.045 | R53: 0.036 | U53: 0.033 | V53: 0.045 | W53: 0.042 | X53: 0.041 | Y53: 0.034 | AA53: 0.038 | BG53: 0.038 | BH53: 0.036 | BN53: 0.032 | BO53: 0.03 | BP53: 0.034 | BT53: 0.039 | CN53: 0.035 | CY53: 0.038 | DR53: 0.036 | DV53: 0.037 | DW53: 0.035 | EA53: 0.04 | EB53: 0.039 | ED53: 0.043 | EO53: 0.03 | EP53: 0.042 | FS53: 0.041 | FU53: 0.033 | FY53: 0.029 | FZ53: 0.037 | GA53: 0.033 | GC53: 0.031 | GE53: 0.036 | GF53: 0.035 | GG53: 0.042 | GH53: 0.041 | GJ53: 0.04 | GK53: 0.029 | GL53: 0.041 | GM53: 0.039 | GO53: 0.037 | GQ53: 0.038 | GU53: 0.028 | GW53: 0.037 | GX53: 0.037 | GY53: 0.04 | GZ53: 0.023 | HA53: 0.045 | HB53: 0.044 | HE53: 0.043 | HF53: 0.042 | HH53: 0.044 | HI53: 0.031 | HL53: 0.028 | HN53: 0.035 | HO53: 0.009 | HP53: 0.038 | HT53: 0.028 | IB53: 0.039 | IC53: 0.03 | IE53: 0.031 | IJ53: 0.045 | IK53: 0.021 | IL53: 0.039 | IT53: 0.026 | KS53: 0.024 | KU53: 0.036 | LR53: 0.033 | LS53: 0.03 | LU53: 0.029 | LW53: 0.028
A54: 1997-02-18 | B54: Feb 18 | C54: 1997-02-18 | D54: 02-Feb 18 | E54: 2 | F54: 18 | G54: 1997 | J54: 0.03 | K54: 0.032 | L54: 0.028 | M54: 0.032 | N54: 0.029 | P54: 0.04 | Q54: 0.046 | R54: 0.031 | U54: 0.037 | V54: 0.046 | W54: 0.034 | X54: 0.04 | Y54: 0.037 | AA54: 0.032 | BG54: 0.019 | BH54: 0.03 | BN54: 0.019 | BO54: 0.032 | BP54: 0.022 | BT54: 0.028 | CN54: 0.022 | CY54: 0.032 | DV54: 0.027 | DW54: 0.025 | EA54: 0.027 | EB54: 0.02 | ED54: 0.024 | EO54: 0.02 | EP54: 0.029 | FS54: 0.04 | FU54: 0.01 | FY54: 0.021 | FZ54: 0.039 | GA54: 0.033 | GC54: 0.013 | GE54: 0.033 | GF54: 0.02 | GG54: 0.025 | GH54: 0.025 | GJ54: 0.023 | GK54: 0.034 | GL54: 0.026 | GM54: 0.039 | GO54: 0.017 | GQ54: 0.027 | GU54: 0.008 | GW54: 0.046 | GX54: 0.031 | GY54: 0.027 | GZ54: 0.042 | HA54: 0.044 | HE54: 0.039 | HF54: 0.035 | HH54: 0.039 | HI54: 0.038 | HL54: 0.023 | HN54: 0.042 | HO54: 0.005 | HP54: 0.04 | HT54: 0.02 | IB54: 0.03 | IC54: 0.024 | IE54: 0.025 | IJ54: 0.044 | IK54: 0.038 | IL54: 0.014 | IT54: 0.031 | KS54: 0.011 | KU54: 0.021 | LR54: 0.033 | LS54: 0.037 | LU54: 0.027 | LW54: 0.025
A55: 1997-02-19 | B55: Feb 19 | C55: 1997-02-19 | D55: 02-Feb 19 | E55: 2 | F55: 19 | G55: 1997 | J55: 0.043 | K55: 0.042 | L55: 0.037 | M55: 0.034 | N55: 0.045 | P55: 0.054 | Q55: 0.054 | R55: 0.043 | U55: 0.054 | V55: 0.054 | W55: 0.052 | X55: 0.054 | Y55: 0.054 | AA55: 0.034 | BG55: 0.035 | BH55: 0.043 | BN55: 0.042 | BO55: 0.036 | BP55: 0.035 | BT55: 0.037 | CN55: 0.032 | CY55: 0.034 | DR55: 0.043 | DV55: 0.043 | DW55: 0.037 | EA55: 0.043 | EB55: 0.035 | ED55: 0.04 | EO55: 0.039 | EP55: 0.045 | FS55: 0.054 | FU55: 0.034 | FY55: 0.027 | FZ55: 0.054 | GA55: 0.043 | GC55: 0.034 | GE55: 0.046 | GF55: 0.036 | GG55: 0.051 | GH55: 0.04 | GJ55: 0.045 | GK55: 0.048 | GL55: 0.052 | GM55: 0.052 | GO55: 0.038 | GQ55: 0.036 | GU55: 0.03 | GW55: 0.042 | GX55: 0.044 | GY55: 0.04 | GZ55: 0.036 | HA55: 0.047 | HB55: 0.048 | HE55: 0.047 | HF55: 0.037 | HH55: 0.048 | HL55: 0.041 | HN55: 0.042 | HO55: 0.018 | HP55: 0.037 | IB55: 0.037 | IC55: 0.032 | IE55: 0.034 | IJ55: 0.054 | IK55: 0.037 | IL55: 0.039 | IT55: 0.043 | KU55: 0.033 | LR55: 0.048 | LS55: 0.054 | LU55: 0.044 | LW55: 0.032
A56: 1997-02-20 | B56: Feb 20 | C56: 1997-02-20 | D56: 02-Feb 20 | E56: 2 | F56: 20 | G56: 1997 | J56: 0.036 | K56: 0.029 | L56: 0.043 | M56: 0.033 | N56: 0.04 | P56: 0.041 | Q56: 0.045 | R56: 0.03 | U56: 0.033 | V56: 0.045 | W56: 0.036 | X56: 0.041 | Y56: 0.033 | AA56: 0.033 | BG56: 0.029 | BH56: 0.036 | BN56: 0.028 | BO56: 0.029 | BP56: 0.028 | BT56: 0.043 | CN56: 0.032 | CY56: 0.033 | DR56: 0.037 | DV56: 0.04 | DW56: 0.04 | EA56: 0.036 | EB56: 0.035 | ED56: 0.04 | EO56: 0.034 | FS56: 0.041 | FU56: 0.023 | FY56: 0.025 | FZ56: 0.035 | GA56: 0.034 | GC56: 0.023 | GE56: 0.033 | GF56: 0.027 | GG56: 0.035 | GH56: 0.033 | GJ56: 0.03 | GK56: 0.032 | GL56: 0.036 | GM56: 0.036 | GO56: 0.03 | GQ56: 0.035 | GU56: 0.021 | GW56: 0.037 | GX56: 0.034 | GY56: 0.036 | GZ56: 0.025 | HA56: 0.045 | HB56: 0.044 | HE56: 0.041 | HF56: 0.039 | HH56: 0.04 | HI56: 0.029 | HL56: 0.031 | HN56: 0.033 | HO56: 0.037 | HP56: 0.034 | HT56: 0.022 | IB56: 0.037 | IC56: 0.032 | IE56: 0.029 | IJ56: 0.04 | IK56: 0.021 | IL56: 0.027 | IT56: 0.026 | KS56: 0.019 | KU56: 0.03 | LR56: 0.033 | LU56: 0.028 | LW56: 0.024
A57: 1997-02-21 | B57: Feb 21 | C57: 1997-02-21 | D57: 02-Feb 21 | E57: 2 | F57: 21 | G57: 1997 | J57: 0.039 | K57: 0.033 | L57: 0.041 | M57: 0.038 | N57: 0.043 | P57: 0.047 | Q57: 0.049 | R57: 0.039 | U57: 0.035 | V57: 0.049 | W57: 0.038 | X57: 0.047 | Y57: 0.035 | AA57: 0.038 | BG57: 0.021 | BH57: 0.039 | BN57: 0.025 | BO57: 0.033 | BP57: 0.027 | BT57: 0.041 | CN57: 0.029 | CY57: 0.038 | DR57: 0.043 | DV57: 0.039 | DW57: 0.041 | EA57: 0.025 | EB57: 0.016 | ED57: 0.033 | EO57: 0.032 | EP57: 0.041 | FS57: 0.045 | FU57: 0.01 | FY57: 0.029 | FZ57: 0.046 | GA57: 0.042 | GC57: 0.007 | GE57: 0.041 | GF57: 0.022 | GG57: 0.036 | GH57: 0.035 | GJ57: 0.034 | GK57: 0.038 | GL57: 0.033 | GM57: 0.047 | GO57: 0.019 | GQ57: 0.028 | GU57: 0.004 | GW57: 0.042 | GX57: 0.039 | GY57: 0.026 | GZ57: 0.033 | HB57: 0.046 | HE57: 0.042 | HF57: 0.04 | HH57: 0.045 | HI57: 0.036 | HL57: 0.035 | HN57: 0.041 | HO57: 0.034 | HP57: 0.041 | HT57: 0.014 | IB57: 0.032 | IC57: 0.024 | IE57: 0.034 | IJ57: 0.049 | IK57: 0.026 | IL57: 0.007 | IT57: 0.039 | KS57: 0.012 | KU57: 0.026 | LR57: 0.032 | LS57: 0.035 | LW57: 0.024
A58: 1997-02-22 | B58: Feb 22 | C58: 1997-02-22 | D58: 02-Feb 22 | E58: 2 | F58: 22 | G58: 1997 | J58: 0.031 | K58: 0.03 | L58: 0.039 | M58: 0.032 | N58: 0.04 | P58: 0.036 | Q58: 0.043 | R58: 0.035 | U58: 0.031 | V58: 0.043 | W58: 0.039 | X58: 0.036 | Y58: 0.031 | AA58: 0.032 | BG58: 0.031 | BH58: 0.031 | BN58: 0.029 | BO58: 0.027 | BP58: 0.03 | BT58: 0.039 | CN58: 0.031 | CY58: 0.032 | DR58: 0.036 | DV58: 0.04 | DW58: 0.037 | EA58: 0.039 | EB58: 0.036 | ED58: 0.038 | EO58: 0.036 | EP58: 0.037 | FS58: 0.036 | FU58: 0.032 | FY58: 0.026 | FZ58: 0.036 | GA58: 0.031 | GC58: 0.028 | GE58: 0.033 | GF58: 0.032 | GG58: 0.036 | GH58: 0.035 | GJ58: 0.034 | GK58: 0.035 | GL58: 0.036 | GM58: 0.036 | GO58: 0.033 | GQ58: 0.039 | GU58: 0.024 | GW58: 0.038 | GX58: 0.033 | GY58: 0.04 | GZ58: 0.034 | HA58: 0.041 | HB58: 0.04 | HF58: 0.04 | HH58: 0.04 | HI58: 0.034 | HL58: 0.028 | HN58: 0.04 | HO58: 0.04 | HP58: 0.036 | HT58: 0.028 | IB58: 0.038 | IC58: 0.035 | IE58: 0.035 | IJ58: 0.043 | IK58: 0.039 | IL58: 0.039 | IT58: 0.035 | KS58: 0.027 | KU58: 0.031 | LR58: 0.031 | LS58: 0.029 | LU58: 0.028 | LW58: 0.029
A59: 1997-02-23 | B59: Feb 23 | C59: 1997-02-23 | D59: 02-Feb 23 | E59: 2 | F59: 23 | G59: 1997 | J59: 0.038 | K59: 0.036 | L59: 0.042 | M59: 0.035 | N59: 0.045 | P59: 0.04 | Q59: 0.045 | R59: 0.034 | U59: 0.039 | V59: 0.045 | W59: 0.04 | X59: 0.04 | Y59: 0.039 | AA59: 0.035 | BG59: 0.038 | BH59: 0.034 | BN59: 0.034 | BO59: 0.035 | BP59: 0.036 | BT59: 0.042 | CN59: 0.034 | CY59: 0.035 | DR59: 0.041 | DV59: 0.045 | DW59: 0.041 | EA59: 0.043 | EB59: 0.04 | ED59: 0.043 | EO59: 0.041 | EP59: 0.042 | FS59: 0.04 | FU59: 0.036 | FY59: 0.031 | FZ59: 0.039 | GA59: 0.037 | GC59: 0.036 | GE59: 0.038 | GF59: 0.039 | GG59: 0.04 | GH59: 0.039 | GJ59: 0.039 | GK59: 0.038 | GL59: 0.039 | GM59: 0.037 | GO59: 0.036 | GQ59: 0.041 | GU59: 0.031 | GW59: 0.038 | GX59: 0.035 | GY59: 0.042 | GZ59: 0.033 | HA59: 0.042 | HB59: 0.042 | HE59: 0.045 | HF59: 0.04 | HH59: 0.041 | HI59: 0.029 | HL59: 0.035 | HN59: 0.038 | HO59: 0.039 | HP59: 0.037 | HT59: 0.034 | IB59: 0.04 | IC59: 0.036 | IE59: 0.034 | IJ59: 0.043 | IK59: 0.035 | IL59: 0.04 | IT59: 0.031 | KS59: 0.025 | KU59: 0.034 | LR59: 0.039 | LS59: 0.037 | LU59: 0.033 | LW59: 0.032
A60: 1997-02-24 | B60: Feb 24 | C60: 1997-02-24 | D60: 02-Feb 24 | E60: 2 | F60: 24 | G60: 1997 | J60: 0.035 | K60: 0.036 | L60: 0.043 | M60: 0.035 | N60: 0.045 | P60: 0.039 | Q60: 0.044 | R60: 0.034 | U60: 0.04 | V60: 0.045 | W60: 0.039 | X60: 0.039 | Y60: 0.04 | AA60: 0.035 | BG60: 0.035 | BH60: 0.034 | BN60: 0.033 | BO60: 0.03 | BP60: 0.036 | BT60: 0.043 | CN60: 0.035 | CY60: 0.035 | DR60: 0.041 | DV60: 0.045 | DW60: 0.041 | EA60: 0.044 | EB60: 0.041 | EO60: 0.039 | EP60: 0.044 | FS60: 0.036 | FU60: 0.031 | FY60: 0.027 | FZ60: 0.035 | GA60: 0.034 | GC60: 0.031 | GE60: 0.035 | GF60: 0.035 | GG60: 0.039 | GH60: 0.039 | GJ60: 0.036 | GK60: 0.036 | GL60: 0.039 | GM60: 0.035 | GO60: 0.037 | GQ60: 0.038 | GW60: 0.041 | GX60: 0.036 | GY60: 0.042 | GZ60: 0.035 | HA60: 0.04 | HB60: 0.04 | HE60: 0.041 | HF60: 0.038 | HH60: 0.042 | HI60: 0.03 | HL60: 0.033 | HN60: 0.037 | HO60: 0.038 | HT60: 0.029 | IC60: 0.033 | IE60: 0.032 | IJ60: 0.044 | IK60: 0.039 | IL60: 0.036 | IT60: 0.034 | KS60: 0.028 | KU60: 0.033 | LR60: 0.04 | LS60: 0.029 | LU60: 0.03 | LW60: 0.032
A61: 1997-02-25 | B61: Feb 25 | C61: 1997-02-25 | D61: 02-Feb 25 | E61: 2 | F61: 25 | G61: 1997 | J61: 0.036 | K61: 0.031 | L61: 0.039 | M61: 0.035 | N61: 0.041 | P61: 0.038 | Q61: 0.041 | R61: 0.032 | U61: 0.032 | V61: 0.041 | W61: 0.036 | X61: 0.038 | Y61: 0.032 | AA61: 0.035 | BG61: 0.036 | BH61: 0.035 | BN61: 0.029 | BO61: 0.025 | BP61: 0.031 | BT61: 0.039 | CN61: 0.035 | CY61: 0.035 | DR61: 0.037 | DV61: 0.04 | DW61: 0.036 | EA61: 0.041 | EB61: 0.035 | ED61: 0.04 | EO61: 0.034 | EP61: 0.04 | FS61: 0.038 | FU61: 0.025 | FY61: 0.026 | FZ61: 0.034 | GA61: 0.034 | GC61: 0.024 | GE61: 0.035 | GF61: 0.028 | GG61: 0.036 | GH61: 0.036 | GJ61: 0.034 | GK61: 0.029 | GL61: 0.034 | GM61: 0.031 | GO61: 0.03 | GQ61: 0.038 | GU61: 0.023 | GX61: 0.035 | GY61: 0.037 | GZ61: 0.032 | HA61: 0.041 | HB61: 0.041 | HE61: 0.041 | HF61: 0.039 | HH61: 0.039 | HI61: 0.032 | HL61: 0.021 | HN61: 0.032 | HO61: 0.036 | HP61: 0.037 | HT61: 0.019 | IB61: 0.037 | IC61: 0.031 | IE61: 0.025 | IJ61: 0.041 | IL61: 0.033 | IT61: 0.025 | KS61: 0.024 | KU61: 0.032 | LR61: 0.032 | LS61: 0.028 | LU61: 0.028 | LW61: 0.027
A62: 1997-02-26 | B62: Feb 26 | C62: 1997-02-26 | D62: 02-Feb 26 | E62: 2 | F62: 26 | G62: 1997 | J62: 0.032 | K62: 0.025 | L62: 0.035 | M62: 0.031 | N62: 0.038 | P62: 0.043 | Q62: 0.048 | R62: 0.018 | U62: 0.035 | V62: 0.048 | W62: 0.041 | X62: 0.043 | Y62: 0.035 | AA62: 0.031 | BG62: 0.018 | BH62: 0.032 | BN62: 0.019 | BO62: 0.025 | BP62: 0.019 | BT62: 0.035 | CN62: 0.022 | CY62: 0.031 | DR62: 0.035 | DV62: 0.029 | DW62: 0.029 | EA62: 0.038 | EB62: 0.028 | ED62: 0.033 | EO62: 0.024 | EP62: 0.033 | FS62: 0.043 | FU62: 0.016 | FY62: 0.023 | FZ62: 0.042 | GA62: 0.037 | GC62: 0.012 | GE62: 0.035 | GF62: 0.025 | GG62: 0.024 | GH62: 0.026 | GJ62: 0.031 | GK62: 0.041 | GL62: 0.028 | GM62: 0.043 | GO62: 0.015 | GQ62: 0.021 | GU62: 0.007 | GW62: 0.04 | GX62: 0.032 | GY62: 0.028 | GZ62: 0.029 | HA62: 0.048 | HB62: 0.048 | HE62: 0.045 | HF62: 0.042 | HH62: 0.041 | HI62: 0.026 | HN62: 0.034 | HO62: 0.038 | HP62: 0.04 | HT62: 0.018 | IB62: 0.03 | IC62: 0.025 | IE62: 0.03 | IJ62: 0.042 | IK62: 0.029 | IL62: 0.018 | IT62: 0.013 | KS62: 0.012 | KU62: 0.018 | LR62: 0.029 | LS62: 0.035 | LU62: 0.021 | LW62: 0.016
A63: 1997-02-27 | B63: Feb 27 | C63: 1997-02-27 | D63: 02-Feb 27 | E63: 2 | F63: 27 | G63: 1997 | J63: 0.032 | K63: 0.021 | L63: 0.022 | M63: 0.028 | N63: 0.027 | P63: 0.039 | Q63: 0.037 | R63: 0.041 | U63: 0.025 | V63: 0.041 | W63: 0.039 | X63: 0.036 | Y63: 0.025 | AA63: 0.028 | BG63: 0.032 | BH63: 0.027 | BN63: 0.021 | BO63: 0.019 | BP63: 0.021 | BT63: 0.022 | CN63: 0.022 | CY63: 0.028 | DR63: 0.023 | DV63: 0.014 | DW63: 0.02 | EA63: 0.027 | EB63: 0.021 | ED63: 0.025 | EO63: 0.011 | EP63: 0.024 | FS63: 0.033 | FU63: 0.03 | FY63: 0.023 | FZ63: 0.033 | GA63: 0.031 | GC63: 0.032 | GF63: 0.031 | GG63: 0.037 | GH63: 0.036 | GJ63: 0.035 | GK63: 0.035 | GL63: 0.039 | GM63: 0.034 | GO63: 0.036 | GQ63: 0.026 | GU63: 0.028 | GW63: 0.026 | GX63: 0.036 | GY63: 0.03 | GZ63: 0.028 | HA63: 0.032 | HB63: 0.031 | HE63: 0.029 | HF63: 0.032 | HH63: 0.03 | HI63: 0.024 | HO63: 0.032 | HP63: 0.029 | HT63: 0.026 | IB63: 0.026 | IC63: 0.024 | IE63: 0.03 | IJ63: 0.037 | IK63: 0.032 | IL63: 0.036 | IT63: 0.041 | KS63: 0.028 | KU63: 0.032 | LR63: 0.023 | LS63: 0.025 | LU63: 0.021
A64: 1997-02-28 | B64: Feb 28 | C64: 1997-02-28 | D64: 02-Feb 28 | E64: 2 | F64: 28 | G64: 1997 | J64: 0.019 | K64: 0.01 | L64: 0.039 | M64: 0.022 | N64: 0.035 | P64: 0.034 | Q64: 0.046 | R64: 0.033 | U64: 0.019 | V64: 0.046 | W64: 0.034 | X64: 0.029 | Y64: 0.019 | AA64: 0.022 | BG64: 0.014 | BH64: 0.019 | BN64: 0.01 | BO64: 0.009 | BP64: 0.008 | BT64: 0.039 | CK64: 0.017 | CN64: 0.016 | CY64: 0.022 | DR64: 0.029 | DV64: 0.031 | DW64: 0.034 | EA64: 0.034 | EB64: 0.027 | ED64: 0.035 | EO64: 0.031 | EP64: 0.033 | FS64: 0.026 | FU64: 0.019 | FY64: 0.014 | FZ64: 0.023 | GA64: 0.018 | GC64: 0.018 | GE64: 0.016 | GG64: 0.031 | GH64: 0.029 | GJ64: 0.024 | GK64: 0.015 | GL64: 0.034 | GM64: 0.025 | GO64: 0.024 | GQ64: 0.029 | GU64: 0.017 | GW64: 0.03 | GX64: 0.028 | GY64: 0.032 | GZ64: 0.034 | HA64: 0.046 | HB64: 0.035 | HE64: 0.036 | HF64: 0.036 | HG64: 0.033 | HH64: 0.034 | HI64: 0.03 | HL64: 0.012 | HN64: 0.036 | HO64: 0.031 | HP64: 0.023 | HT64: 0.015 | IB64: 0.03 | IC64: 0.025 | IE64: 0.022 | IJ64: 0.037 | IK64: 0.034 | IL64: 0.03 | IT64: 0.033 | KS64: 0.014 | KU64: 0.024 | LR64: 0.016 | LS64: 0.019 | LU64: 0.008
A65: 1997-03-01 | B65: Mar 01 | C65: 1997-03-01 | D65: 03-Mar 01 | E65: 3 | F65: 1 | G65: 1997 | J65: 0.011 | K65: 0.008 | L65: 0.042 | M65: 0.013 | N65: 0.037 | P65: 0.029 | Q65: 0.038 | R65: 0.022 | U65: 0.014 | V65: 0.042 | W65: 0.029 | X65: 0.025 | Y65: 0.014 | AA65: 0.013 | BG65: 0.004 | BH65: 0.011 | BN65: 0.006 | BO65: 0.008 | BP65: 0.004 | BT65: 0.042 | CK65: 0.009 | CN65: 0.009 | CY65: 0.013 | DR65: 0.036 | DV65: 0.034 | DW65: 0.037 | EA65: 0.033 | EB65: 0.027 | ED65: 0.036 | EO65: 0.03 | EP65: 0.033 | FS65: 0.024 | FU65: 0.005 | FY65: 0.004 | FZ65: 0.023 | GA65: 0.017 | GC65: 0.005 | GE65: 0.011 | GF65: 0.012 | GG65: 0.018 | GH65: 0.014 | GJ65: 0.019 | GK65: 0.029 | GL65: 0.017 | GM65: 0.025 | GO65: 0.013 | GQ65: 0.027 | GU65: 0.009 | GW65: 0.026 | GX65: 0.021 | GY65: 0.03 | GZ65: 0.022 | HA65: 0.038 | HB65: 0.034 | HE65: 0.02 | HF65: 0.028 | HG65: 0.022 | HH65: 0.018 | HI65: 0.012 | HL65: 0.021 | HN65: 0.022 | HO65: 0.018 | HP65: 0.024 | HT65: 0.014 | IB65: 0.028 | IC65: 0.019 | IE65: 0.023 | IJ65: 0.025 | IK65: 0.013 | IL65: 0.028 | IT65: 0.022 | KS65: 0.004 | KU65: 0.009 | LR65: 0.014 | LS65: 0.011 | LU65: 0.005 | LW65: 0.006
A66: 1997-03-02 | B66: Mar 02 | C66: 1997-03-02 | D66: 03-Mar 02 | E66: 3 | F66: 2 | G66: 1997 | J66: 0.034 | K66: 0.029 | L66: 0.04 | M66: 0.036 | N66: 0.038 | P66: 0.038 | Q66: 0.04 | R66: 0.035 | U66: 0.03 | V66: 0.04 | W66: 0.038 | X66: 0.036 | Y66: 0.03 | AA66: 0.036 | BG66: 0.034 | BH66: 0.032 | BN66: 0.028 | BO66: 0.029 | BP66: 0.029 | BT66: 0.04 | CK66: 0.036 | CN66: 0.029 | CY66: 0.031 | DR66: 0.034 | DV66: 0.036 | DW66: 0.032 | EA66: 0.038 | EB66: 0.032 | ED66: 0.037 | EO66: 0.033 | EP66: 0.036 | FS66: 0.034 | FU66: 0.029 | FY66: 0.027 | FZ66: 0.036 | GA66: 0.034 | GC66: 0.031 | GE66: 0.032 | GF66: 0.02 | GG66: 0.037 | GH66: 0.036 | GJ66: 0.035 | GK66: 0.033 | GL66: 0.038 | GM66: 0.036 | GO66: 0.036 | GQ66: 0.034 | GU66: 0.026 | GW66: 0.037 | GX66: 0.03 | GY66: 0.032 | GZ66: 0.031 | HA66: 0.04 | HB66: 0.039 | HE66: 0.036 | HF66: 0.036 | HG66: 0.037 | HH66: 0.035 | HI66: 0.028 | HL66: 0.035 | HN66: 0.035 | HO66: 0.035 | HP66: 0.031 | HT66: 0.025 | IB66: 0.035 | IC66: 0.03 | IE66: 0.031 | IJ66: 0.036 | IK66: 0.036 | IL66: 0.035 | IT66: 0.035 | KS66: 0.028 | KU66: 0.033 | LR66: 0.03 | LS66: 0.028 | LU66: 0.027 | LW66: 0.026
A67: 1997-03-03 | B67: Mar 03 | C67: 1997-03-03 | D67: 03-Mar 03 | E67: 3 | F67: 3 | G67: 1997 | J67: 0.024 | K67: 0.013 | L67: 0.044 | M67: 0.024 | N67: 0.044 | P67: 0.043 | Q67: 0.044 | R67: 0.026 | U67: 0.011 | V67: 0.044 | W67: 0.038 | X67: 0.043 | Y67: 0.013 | AA67: 0.024 | BG67: 0.017 | BH67: 0.024 | BN67: 0.012 | BO67: 0.012 | BP67: 0.013 | BT67: 0.044 | CK67: 0.02 | CN67: 0.017 | CY67: 0.024 | DR67: 0.04 | DV67: 0.044 | EA67: 0.035 | EB67: 0.035 | EO67: 0.043 | EP67: 0.036 | FS67: 0.043 | FU67: 0.013 | FY67: 0.021 | FZ67: 0.039 | GA67: 0.04 | GC67: 0.009 | GE67: 0.028 | GF67: 0.02 | GG67: 0.019 | GH67: 0.022 | GJ67: 0.014 | GK67: 0.038 | GL67: 0.031 | GM67: 0.039 | GO67: 0.009 | GQ67: 0.037 | GU67: 0.018 | GW67: 0.035 | GX67: 0.031 | GY67: 0.034 | GZ67: 0.037 | HA67: 0.044 | HB67: 0.04 | HE67: 0.041 | HF67: 0.041 | HG67: 0.038 | HH67: 0.039 | HI67: 0.034 | HN67: 0.039 | HO67: 0.038 | HT67: 0.026 | IB67: 0.037 | IC67: 0.027 | IE67: 0.032 | IJ67: 0.036 | IK67: 0.039 | IL67: 0.035 | IT67: 0.026 | KS67: 0.016 | KU67: 0.02 | LU67: 0.011 | LW67: 0.01
A68: 1997-03-04 | B68: Mar 04 | C68: 1997-03-04 | D68: 03-Mar 04 | E68: 3 | F68: 4 | G68: 1997 | J68: 0.007 | K68: 0.011 | L68: 0.045 | M68: 0.027 | N68: 0.041 | P68: 0.043 | Q68: 0.042 | R68: 0.013 | U68: 0.008 | V68: 0.045 | W68: 0.031 | X68: 0.043 | Y68: 0.011 | AA68: 0.027 | BG68: 0.007 | BN68: 0.01 | BO68: 0.011 | BP68: 0.009 | BT68: 0.045 | CK68: 0.026 | CN68: 0.021 | CY68: 0.027 | DV68: 0.039 | DW68: 0.041 | EA68: 0.035 | EB68: 0.028 | ED68: 0.037 | EO68: 0.037 | EP68: 0.029 | FS68: 0.043 | FU68: 0.007 | FY68: 0.004 | FZ68: 0.03 | GA68: 0.018 | GC68: 0.004 | GE68: 0.012 | GG68: 0.017 | GH68: 0.01 | GJ68: 0.011 | GK68: 0.03 | GL68: 0.024 | GM68: 0.03 | GO68: 0.006 | GQ68: 0.028 | GU68: 0.008 | GX68: 0.017 | GY68: 0.035 | HA68: 0.042 | HB68: 0.039 | HE68: 0.037 | HF68: 0.036 | HG68: 0.026 | HH68: 0.034 | HI68: 0.013 | HL68: 0.016 | HN68: 0.017 | HO68: 0.027 | HP68: 0.024 | HT68: 0.012 | IB68: 0.03 | IC68: 0.027 | IE68: 0.021 | IJ68: 0.04 | IK68: 0.015 | IL68: 0.031 | IT68: 0.013 | KS68: 0.004 | KU68: 0.009 | LU68: 0.008 | LW68: 0.005
A69: 1997-03-05 | B69: Mar 05 | C69: 1997-03-05 | D69: 03-Mar 05 | E69: 3 | F69: 5 | G69: 1997 | J69: 0.034 | K69: 0.016 | L69: 0.038 | M69: 0.037 | N69: 0.028 | P69: 0.038 | Q69: 0.038 | R69: 0.019 | U69: 0.016 | V69: 0.038 | W69: 0.033 | X69: 0.038 | Y69: 0.016 | AA69: 0.037 | BG69: 0.022 | BH69: 0.034 | BN69: 0.014 | BO69: 0.016 | BP69: 0.015 | BT69: 0.038 | CK69: 0.037 | CN69: 0.02 | CY69: 0.03 | DR69: 0.025 | DV69: 0.028 | DW69: 0.028 | EA69: 0.02 | EB69: 0.009 | ED69: 0.022 | EO69: 0.027 | EP69: 0.028 | FS69: 0.038 | FU69: 0.003 | FY69: 0.012 | FZ69: 0.036 | GA69: 0.032 | GC69: 0.003 | GE69: 0.029 | GF69: 0.01 | GG69: 0.023 | GH69: 0.021 | GJ69: 0.018 | GK69: 0.03 | GL69: 0.013 | GM69: 0.036 | GO69: 0.01 | GQ69: 0.009 | GU69: 0.004 | GW69: 0.029 | GX69: 0.012 | GY69: 0.018 | GZ69: 0.036 | HA69: 0.03 | HB69: 0.032 | HE69: 0.019 | HF69: 0.018 | HG69: 0.035 | HH69: 0.015 | HI69: 0.03 | HL69: 0.033 | HN69: 0.038 | HO69: 0.009 | HP69: 0.011 | HT69: 0.009 | IB69: 0.021 | IC69: 0.008 | IE69: 0.017 | IJ69: 0.025 | IK69: 0.03 | IL69: 0.013 | IT69: 0.014 | KS69: 0.008 | KU69: 0.019 | LR69: 0.016 | LW69: 0.014
A70: 1997-03-06 | B70: Mar 06 | C70: 1997-03-06 | D70: 03-Mar 06 | E70: 3 | F70: 6 | G70: 1997 | I70: =IF(COUNT(AO70:BE70)=0,"",MAX(AO70:BE70)) ->  | J70: =IF(COUNT(BF70:BM70)=0,"",MAX(BF70:BM70)) -> 0.036 | K70: =IF(COUNT(BN70:BQ70)=0,"",MAX(BN70:BQ70)) -> 0.036 | L70: =IF(COUNT(BR70:CI70)=0,"",MAX(BR70:CI70)) -> 0.04 | M70: =IF(COUNT(CJ70:DL70)=0,"",MAX(CJ70:DL70)) -> 0.043 | N70: =IF(COUNT(DM70:EQ70)=0,"",MAX(DM70:EQ70)) -> 0.046 | O70: =IF(COUNT(ER70:FR70)=0,"",MAX(ER70:FR70)) ->  | P70: =IF(COUNT(FS70:GP70)=0,"",MAX(FS70:GP70)) -> 0.043 | Q70: =IF(COUNT(GQ70:IL70)=0,"",MAX(GQ70:IL70)) -> 0.044 | R70: =IF(COUNT(IM70:LH70)=0,"",MAX(IM70:LH70)) -> 0.039 | S70: =IF(COUNT(LI70:LM70)=0,"",MAX(LI70:LM70)) ->  | T70: =IF(COUNT(LN70:LP70)=0,"",MAX(LN70:LP70)) ->  | U70: =IF(COUNT(LQ70:MA70)=0,"",MAX(LQ70:MA70)) -> 0.033 | V70: =IF(COUNT(AO70:MA70)=0,"",MAX(AO70:MA70)) -> 0.046 | W70: =IF(COUNT(AO70:AS70)+COUNT(AW70:BA70)+COUNT(FU70:FW70)+COUNT(GB70:GD70)+COUNT(GF70:GG70)+COUNT(GJ70:GL70)+COUNT(GN70:GP70)+COUNT(GR70:GU70)+COUNT(HK70:HM70)+COUNT(HT70:HW70)+COUNT(HY70:IA70)+COUNT(IE70:IH70)+COUNT(IL70)=0,"",MAX(AO70:AS70,AW70:BA70,FU70:FW70,GB70:GD70,GF70:GG70,GJ70:GL70,GN70:GP70,GR70:GU70,HK70:HM70,HT70:HW70,HY70:IA70,IE70:IH70,IL70)) -> 0.043 | X70: =IF(COUNT(BG70:BK70)+COUNT(CS70)+COUNT(FS70:FT70)+COUNT(FX70:GA70)+COUNT(GE70)+COUNT(GH70:GI70)+COUNT(GM70)+COUNT(JF70)+COUNT(JK70:JL70)+COUNT(JP70)+COUNT(KN70)+COUNT(KS70:KX70)=0,"",MAX(BG70:BK70,CS70,FS70:FT70,FX70:GA70,GE70,GH70:GI70,GM70,JF70,JK70:JL70,JP70,KN70,KS70:KX70)) -> 0.043 | Y70: =IF(COUNT(BN70:BQ70)+COUNT(CP70:CQ70)+COUNT(CT70)+COUNT(CW70)+COUNT(DB70:DG70)+COUNT(LQ70:MA70)=0,"",MAX(BN70:BQ70,CP70:CQ70,CT70,CW70,DB70:DG70,LQ70:MA70)) -> 0.036 | AA70: 0.043 | BG70: 0.036 | BH70: 0.035 | BN70: 0.034 | BO70: 0.029 | BP70: 0.036 | BT70: 0.04 | CK70: 0.043 | CN70: 0.032 | CY70: 0.039 | DR70: 0.041 | DV70: 0.043 | DW70: 0.037 | EA70: 0.046 | EB70: 0.039 | ED70: 0.042 | EO70: 0.038 | EP70: 0.042 | FS70: 0.043 | FU70: 0.037 | FY70: 0.029 | FZ70: 0.041 | GA70: 0.036 | GC70: 0.034 | GE70: 0.04 | GF70: 0.036 | GG70: 0.041 | GH70: 0.04 | GJ70: 0.039 | GK70: 0.04 | GL70: 0.043 | GM70: 0.038 | GO70: 0.04 | GQ70: 0.04 | GU70: 0.031 | GW70: 0.042 | GX70: 0.034 | GY70: 0.041 | GZ70: 0.038 | HA70: 0.043 | HB70: 0.043 | HF70: 0.042 | HG70: 0.042 | HH70: 0.044 | HI70: 0.034 | HL70: 0.033 | HN70: 0.042 | HO70: 0.041 | HP70: 0.038 | HT70: 0.035 | IC70: 0.035 | IE70: 0.036 | IJ70: 0.044 | IK70: 0.043 | IL70: 0.041 | IT70: 0.039 | KS70: 0.027 | KU70: 0.037 | LR70: 0.033 | LU70: 0.027 | LW70: 0.027
A71: 1997-03-07 | B71: Mar 07 | C71: =DATE(G71,E71,F71) -> 1997-03-07 | D71: =TEXT(E71,"00")&"-"&TEXT(C71,"MMM")&" "&TEXT(F71,"00") -> 03-Mar 07 | E71: 3 | F71: 7 | G71: 1997 | H71: =IF(COUNT(AB71:AN71)=0,"",MAX(AB71:AN71)) ->  | J71: 0.037 | K71: 0.037 | L71: 0.043 | M71: 0.041 | N71: 0.044 | P71: 0.042 | Q71: 0.044 | R71: 0.038 | U71: 0.036 | V71: 0.044 | W71: 0.042 | X71: 0.041 | Y71: 0.037 | Z71: =IF(COUNT(AT71:AV71)+COUNT(BB71:BE71)=0,"",MAX(AT71:AV71,BB71:BE71)) ->  | AA71: =IF(COUNT(CJ71:CO71)+COUNT(CR71)+COUNT(CY71:CZ71)+COUNT(DI71:DL71)=0,"",MAX(CJ71:CO71,CR71,CY71:CZ71,DI71:DL71)) -> 0.041 | BG71: 0.037 | BH71: 0.037 | BL71: 0.035 | BN71: 0.033 | BO71: 0.03 | BP71: 0.037 | BT71: 0.043 | CK71: 0.04 | CN71: 0.033 | CY71: 0.041 | DR71: 0.04 | DV71: 0.042 | DW71: 0.038 | EA71: 0.044 | EB71: 0.041 | EO71: 0.035 | EP71: 0.041 | FS71: 0.041 | FU71: 0.035 | FY71: 0.03 | FZ71: 0.039 | GA71: 0.035 | GC71: 0.033 | GE71: 0.038 | GF71: 0.036 | GG71: 0.042 | GH71: 0.04 | GJ71: 0.039 | GK71: 0.038 | GL71: 0.041 | GM71: 0.037 | GO71: 0.037 | GQ71: 0.039 | GU71: 0.027 | GW71: 0.042 | GX71: 0.035 | GY71: 0.04 | GZ71: 0.037 | HB71: 0.044 | HE71: 0.041 | HF71: 0.04 | HG71: 0.041 | HH71: 0.042 | HI71: 0.032 | HL71: 0.035 | HN71: 0.041 | HO71: 0.037 | HP71: 0.037 | HT71: 0.034 | IB71: 0.039 | IC71: 0.033 | IE71: 0.033 | IJ71: 0.042 | IK71: 0.038 | IL71: 0.038 | IT71: 0.038 | KS71: 0.027 | KU71: 0.036 | LR71: 0.036 | LU71: 0.031
A72: 1997-03-08 | B72: Mar 08 | C72: 1997-03-08 | D72: 03-Mar 08 | E72: 3 | F72: 8 | G72: 1997 | J72: 0.043 | K72: 0.042 | L72: 0.042 | M72: 0.045 | N72: 0.042 | P72: 0.048 | Q72: 0.047 | R72: 0.039 | U72: 0.043 | V72: 0.048 | W72: 0.043 | X72: 0.048 | Y72: 0.043 | AA72: 0.045 | BG72: 0.039 | BH72: 0.039 | BL72: 0.043 | BN72: 0.04 | BO72: 0.037 | BP72: 0.042 | BT72: 0.042 | CK72: 0.045 | CN72: 0.036 | CY72: 0.043 | DR72: 0.032 | DV72: 0.041 | DW72: 0.036 | EA72: 0.042 | EB72: 0.039 | ED72: 0.042 | EO72: 0.034 | EP72: 0.039 | FS72: 0.048 | FU72: 0.036 | FY72: 0.031 | FZ72: 0.044 | GA72: 0.042 | GC72: 0.035 | GE72: 0.037 | GF72: 0.039 | GG72: 0.043 | GH72: 0.043 | GJ72: 0.039 | GK72: 0.038 | GL72: 0.043 | GM72: 0.041 | GO72: 0.041 | GQ72: 0.041 | GU72: 0.028 | GW72: 0.04 | GX72: 0.04 | GY72: 0.037 | GZ72: 0.042 | HA72: 0.043 | HB72: 0.044 | HE72: 0.042 | HF72: 0.041 | HG72: 0.044 | HH72: 0.045 | HI72: 0.036 | HL72: 0.039 | HN72: 0.047 | HO72: 0.04 | HP72: 0.039 | HT72: 0.036 | IB72: 0.04 | IC72: 0.025 | IE72: 0.036 | IJ72: 0.045 | IK72: 0.046 | IL72: 0.041 | IT72: 0.038 | KS72: 0.034 | KU72: 0.039 | LR72: 0.043 | LS72: 0.035 | LU72: 0.037 | LW72: 0.034
A73: 1997-03-09 | B73: Mar 09 | C73: 1997-03-09 | D73: 03-Mar 09 | E73: 3 | F73: 9 | G73: 1997 | J73: 0.045 | K73: 0.041 | L73: 0.046 | M73: 0.046 | N73: 0.045 | P73: 0.051 | Q73: 0.048 | R73: 0.042 | U73: 0.04 | V73: 0.051 | W73: 0.048 | X73: 0.051 | Y73: 0.041 | AA73: 0.046 | BG73: 0.039 | BH73: 0.045 | BL73: 0.043 | BN73: 0.038 | BO73: 0.038 | BP73: 0.041 | BT73: 0.046 | CK73: 0.046 | CN73: 0.039 | CY73: 0.046 | DR73: 0.041 | DV73: 0.042 | DW73: 0.04 | EA73: 0.045 | EB73: 0.04 | ED73: 0.044 | EO73: 0.038 | EP73: 0.041 | FS73: 0.051 | FU73: 0.031 | FY73: 0.037 | FZ73: 0.047 | GA73: 0.044 | GC73: 0.032 | GE73: 0.045 | GF73: 0.038 | GG73: 0.043 | GH73: 0.044 | GJ73: 0.04 | GK73: 0.048 | GL73: 0.04 | GM73: 0.047 | GO73: 0.035 | GQ73: 0.043 | GU73: 0.036 | GW73: 0.048 | GX73: 0.041 | GY73: 0.044 | GZ73: 0.042 | HA73: 0.048 | HB73: 0.046 | HE73: 0.046 | HF73: 0.045 | HG73: 0.048 | HH73: 0.046 | HI73: 0.037 | HL73: 0.042 | HN73: 0.047 | HO73: 0.046 | HP73: 0.044 | HT73: 0.039 | IB73: 0.044 | IC73: 0.038 | IE73: 0.041 | IJ73: 0.046 | IK73: 0.029 | IL73: 0.041 | IT73: 0.041 | KS73: 0.033 | KU73: 0.042 | LR73: 0.04 | LS73: 0.039 | LU73: 0.037
A74: 1997-03-10 | B74: Mar 10 | C74: 1997-03-10 | D74: 03-Mar 10 | E74: 3 | F74: 10 | G74: 1997 | J74: 0.04 | K74: 0.042 | L74: 0.045 | M74: 0.043 | N74: 0.05 | P74: 0.044 | Q74: 0.05 | R74: 0.044 | U74: 0.04 | V74: 0.05 | W74: 0.044 | X74: 0.044 | Y74: 0.042 | AA74: 0.043 | BG74: 0.04 | BN74: 0.04 | BO74: 0.033 | BP74: 0.042 | BT74: 0.045 | CK74: 0.041 | CN74: 0.035 | CY74: 0.043 | DR74: 0.039 | DV74: 0.036 | DW74: 0.035 | EA74: 0.05 | EB74: 0.042 | ED74: 0.048 | EO74: 0.027 | EP74: 0.047 | FS74: 0.044 | FU74: 0.036 | FY74: 0.03 | FZ74: 0.043 | GA74: 0.037 | GC74: 0.032 | GE74: 0.041 | GF74: 0.037 | GG74: 0.044 | GH74: 0.044 | GJ74: 0.039 | GK74: 0.039 | GL74: 0.044 | GM74: 0.042 | GO74: 0.036 | GQ74: 0.028 | GU74: 0.027 | GW74: 0.042 | GX74: 0.039 | GY74: 0.046 | GZ74: 0.034 | HA74: 0.05 | HB74: 0.05 | HE74: 0.05 | HF74: 0.046 | HG74: 0.048 | HH74: 0.05 | HI74: 0.033 | HL74: 0.04 | HN74: 0.043 | HO74: 0.045 | HT74: 0.03 | IB74: 0.048 | IC74: 0.038 | IE74: 0.03 | IJ74: 0.05 | IK74: 0.039 | IL74: 0.04 | IT74: 0.044 | KS74: 0.025 | KU74: 0.038 | LR74: 0.04 | LS74: 0.03 | LU74: 0.033
A75: 1997-03-11 | B75: Mar 11 | C75: 1997-03-11 | D75: 03-Mar 11 | E75: 3 | F75: 11 | G75: 1997 | J75: 0.04 | K75: 0.037 | L75: 0.045 | M75: 0.036 | N75: 0.048 | P75: 0.043 | Q75: 0.051 | R75: 0.044 | U75: 0.034 | V75: 0.051 | W75: 0.043 | X75: 0.043 | Y75: 0.037 | AA75: 0.036 | BG75: 0.038 | BH75: 0.036 | BL75: 0.04 | BN75: 0.037 | BO75: 0.032 | BP75: 0.035 | BT75: 0.045 | CK75: 0.035 | CN75: 0.031 | CY75: 0.036 | DR75: 0.043 | DV75: 0.045 | DW75: 0.041 | EA75: 0.048 | EB75: 0.046 | ED75: 0.046 | EO75: 0.039 | EP75: 0.046 | FS75: 0.043 | FU75: 0.036 | FY75: 0.03 | FZ75: 0.04 | GA75: 0.038 | GC75: 0.037 | GE75: 0.037 | GF75: 0.037 | GG75: 0.04 | GH75: 0.038 | GJ75: 0.039 | GK75: 0.039 | GL75: 0.043 | GM75: 0.039 | GO75: 0.041 | GQ75: 0.027 | GU75: 0.03 | GX75: 0.039 | GY75: 0.043 | GZ75: 0.042 | HA75: 0.049 | HB75: 0.051 | HE75: 0.048 | HF75: 0.046 | HG75: 0.048 | HH75: 0.049 | HI75: 0.04 | HL75: 0.04 | HO75: 0.046 | HP75: 0.04 | HT75: 0.032 | IB75: 0.044 | IC75: 0.036 | IE75: 0.037 | IJ75: 0.048 | IK75: 0.05 | IL75: 0.043 | IT75: 0.044 | KS75: 0.031 | KU75: 0.037 | LR75: 0.034 | LS75: 0.027 | LU75: 0.03
A76: 1997-03-12 | B76: Mar 12 | C76: 1997-03-12 | D76: 03-Mar 12 | E76: 3 | F76: 12 | G76: 1997 | J76: 0.042 | K76: 0.039 | L76: 0.041 | M76: 0.043 | N76: 0.048 | P76: 0.047 | Q76: 0.046 | R76: 0.044 | U76: 0.034 | V76: 0.048 | W76: 0.047 | X76: 0.045 | Y76: 0.039 | AA76: 0.043 | BG76: 0.042 | BH76: 0.041 | BL76: 0.037 | BN76: 0.039 | BO76: 0.035 | BP76: 0.039 | BT76: 0.041 | CK76: 0.041 | CN76: 0.038 | CY76: 0.043 | DR76: 0.044 | DV76: 0.046 | DW76: 0.041 | EA76: 0.048 | EB76: 0.043 | ED76: 0.046 | EO76: 0.039 | EP76: 0.046 | FS76: 0.045 | FU76: 0.039 | FY76: 0.033 | FZ76: 0.043 | GA76: 0.04 | GC76: 0.036 | GE76: 0.042 | GF76: 0.04 | GG76: 0.046 | GH76: 0.043 | GJ76: 0.042 | GK76: 0.041 | GL76: 0.047 | GM76: 0.04 | GQ76: 0.043 | GU76: 0.031 | GX76: 0.038 | GY76: 0.043 | GZ76: 0.041 | HA76: 0.044 | HB76: 0.045 | HE76: 0.046 | HF76: 0.044 | HG76: 0.044 | HH76: 0.046 | HI76: 0.039 | HL76: 0.039 | HN76: 0.043 | HO76: 0.043 | HP76: 0.04 | HT76: 0.037 | IB76: 0.045 | IC76: 0.038 | IE76: 0.036 | IJ76: 0.046 | IK76: 0.045 | IL76: 0.043 | IT76: 0.044 | KS76: 0.034 | KU76: 0.041 | LS76: 0.034 | LU76: 0.034 | LW76: 0.029
A77: 1997-03-13 | B77: Mar 13 | C77: 1997-03-13 | D77: 03-Mar 13 | E77: 3 | F77: 13 | G77: 1997 | J77: 0.04 | K77: 0.031 | L77: 0.039 | M77: 0.038 | N77: 0.046 | P77: 0.044 | Q77: 0.049 | R77: 0.038 | U77: 0.038 | V77: 0.049 | W77: 0.044 | X77: 0.042 | Y77: 0.038 | AA77: 0.038 | BG77: 0.035 | BH77: 0.039 | BL77: 0.04 | BN77: 0.031 | BO77: 0.029 | BP77: 0.029 | BT77: 0.039 | CK77: 0.036 | CN77: 0.033 | CY77: 0.038 | DR77: 0.041 | DV77: 0.043 | DW77: 0.038 | EA77: 0.046 | EB77: 0.044 | ED77: 0.044 | EO77: 0.037 | EP77: 0.043 | FS77: 0.042 | FU77: 0.036 | FY77: 0.027 | FZ77: 0.037 | GA77: 0.035 | GC77: 0.036 | GE77: 0.036 | GF77: 0.039 | GG77: 0.042 | GH77: 0.042 | GJ77: 0.041 | GK77: 0.036 | GL77: 0.044 | GM77: 0.037 | GO77: 0.039 | GQ77: 0.04 | GU77: 0.029 | GX77: 0.04 | GY77: 0.043 | GZ77: 0.038 | HA77: 0.049 | HB77: 0.044 | HE77: 0.043 | HF77: 0.041 | HG77: 0.042 | HH77: 0.042 | HI77: 0.039 | HL77: 0.03 | HN77: 0.042 | HO77: 0.04 | HP77: 0.042 | HT77: 0.032 | IB77: 0.041 | IC77: 0.035 | IE77: 0.033 | IJ77: 0.045 | IK77: 0.039 | IL77: 0.04 | IT77: 0.037 | KS77: 0.029 | KU77: 0.038 | LR77: 0.032 | LS77: 0.038 | LU77: 0.031 | LW77: 0.025
A78: 1997-03-14 | B78: Mar 14 | C78: 1997-03-14 | D78: 03-Mar 14 | E78: 3 | F78: 14 | G78: 1997 | J78: 0.04 | K78: 0.023 | L78: 0.045 | M78: 0.039 | N78: 0.042 | P78: 0.05 | Q78: 0.048 | R78: 0.039 | U78: 0.023 | V78: 0.05 | W78: 0.043 | X78: 0.05 | Y78: 0.023 | AA78: 0.039 | BG78: 0.03 | BH78: 0.04 | BL78: 0.039 | BN78: 0.022 | BO78: 0.021 | BP78: 0.023 | BT78: 0.045 | CK78: 0.027 | CN78: 0.024 | CY78: 0.039 | DR78: 0.03 | DV78: 0.035 | DW78: 0.042 | EA78: 0.023 | EB78: 0.03 | ED78: 0.034 | EO78: 0.023 | EP78: 0.027 | FS78: 0.05 | FU78: 0.009 | FY78: 0.03 | FZ78: 0.046 | GA78: 0.046 | GC78: 0.009 | GE78: 0.043 | GF78: 0.026 | GG78: 0.029 | GH78: 0.031 | GJ78: 0.037 | GK78: 0.043 | GL78: 0.021 | GM78: 0.045 | GO78: 0.018 | GQ78: 0.027 | GU78: 0.013 | GW78: 0.04 | GX78: 0.027 | GY78: 0.034 | GZ78: 0.034 | HA78: 0.048 | HB78: 0.043 | HE78: 0.04 | HF78: 0.042 | HG78: 0.039 | HH78: 0.034 | HI78: 0.034 | HL78: 0.037 | HN78: 0.039 | HO78: 0.036 | HP78: 0.034 | HT78: 0.028 | IB78: 0.035 | IC78: 0.024 | IE78: 0.036 | IJ78: 0.038 | IK78: 0.034 | IL78: 0.031 | IT78: 0.039 | KS78: 0.017 | KU78: 0.03 | LR78: 0.023 | LS78: 0.021 | LU78: 0.021 | LW78: 0.019
A79: 1997-03-15 | B79: Mar 15 | C79: 1997-03-15 | D79: 03-Mar 15 | E79: 3 | F79: 15 | G79: 1997 | J79: 0.039 | K79: 0.036 | L79: 0.048 | M79: 0.041 | N79: 0.048 | P79: 0.046 | Q79: 0.045 | R79: 0.044 | U79: 0.037 | V79: 0.048 | W79: 0.046 | X79: 0.045 | Y79: 0.037 | AA79: 0.041 | BG79: 0.039 | BH79: 0.039 | BL79: 0.038 | BN79: 0.035 | BO79: 0.031 | BP79: 0.036 | BT79: 0.048 | CK79: 0.041 | CN79: 0.034 | CY79: 0.04 | DR79: 0.044 | DV79: 0.047 | DW79: 0.042 | EA79: 0.048 | EB79: 0.046 | ED79: 0.045 | EO79: 0.042 | EP79: 0.045 | FS79: 0.045 | FU79: 0.04 | FY79: 0.034 | FZ79: 0.044 | GA79: 0.041 | GC79: 0.038 | GE79: 0.042 | GF79: 0.042 | GG79: 0.046 | GH79: 0.045 | GJ79: 0.043 | GK79: 0.042 | GL79: 0.045 | GM79: 0.043 | GO79: 0.041 | GQ79: 0.044 | GU79: 0.032 | GW79: 0.043 | GX79: 0.035 | GY79: 0.043 | GZ79: 0.039 | HA79: 0.045 | HB79: 0.045 | HE79: 0.044 | HF79: 0.042 | HG79: 0.044 | HH79: 0.043 | HI79: 0.036 | HL79: 0.038 | HN79: 0.042 | HO79: 0.041 | HP79: 0.038 | HT79: 0.038 | IB79: 0.042 | IC79: 0.037 | IE79: 0.038 | IJ79: 0.045 | IK79: 0.039 | IL79: 0.044 | IT79: 0.044 | KS79: 0.03 | KU79: 0.04 | LR79: 0.037 | LS79: 0.032 | LU79: 0.03 | LW79: 0.028
A80: 1997-03-16 | B80: Mar 16 | C80: 1997-03-16 | D80: 03-Mar 16 | E80: 3 | F80: 16 | G80: 1997 | J80: 0.042 | K80: 0.038 | L80: 0.041 | M80: 0.042 | N80: 0.045 | P80: 0.045 | Q80: 0.046 | R80: 0.043 | U80: 0.037 | V80: 0.046 | W80: 0.045 | X80: 0.045 | Y80: 0.038 | AA80: 0.042 | BG80: 0.042 | BL80: 0.037 | BN80: 0.037 | BO80: 0.036 | BP80: 0.038 | BT80: 0.041 | CK80: 0.041 | CN80: 0.034 | CY80: 0.042 | DR80: 0.041 | DV80: 0.045 | DW80: 0.039 | EA80: 0.045 | EB80: 0.04 | ED80: 0.042 | EO80: 0.041 | EP80: 0.042 | FS80: 0.045 | FU80: 0.04 | FY80: 0.035 | FZ80: 0.044 | GA80: 0.043 | GC80: 0.04 | GE80: 0.043 | GF80: 0.044 | GG80: 0.045 | GH80: 0.044 | GJ80: 0.044 | GK80: 0.041 | GL80: 0.045 | GM80: 0.042 | GO80: 0.042 | GQ80: 0.042 | GU80: 0.032 | GW80: 0.045 | GY80: 0.041 | GZ80: 0.041 | HA80: 0.045 | HB80: 0.046 | HE80: 0.043 | HF80: 0.041 | HG80: 0.044 | HH80: 0.045 | HI80: 0.038 | HL80: 0.038 | HN80: 0.044 | HO80: 0.041 | HP80: 0.041 | HT80: 0.04 | IB80: 0.04 | IC80: 0.036 | IE80: 0.038 | IJ80: 0.044 | IK80: 0.04 | IL80: 0.042 | IT80: 0.043 | KS80: 0.032 | KU80: 0.04 | LR80: 0.037 | LS80: 0.034 | LU80: 0.033 | LW80: 0.031
A81: 1997-03-17 | B81: Mar 17 | C81: 1997-03-17 | D81: 03-Mar 17 | E81: 3 | F81: 17 | G81: 1997 | J81: 0.037 | K81: 0.029 | L81: 0.043 | M81: 0.039 | N81: 0.042 | P81: 0.049 | Q81: 0.047 | R81: 0.031 | U81: 0.034 | V81: 0.049 | W81: 0.037 | X81: 0.049 | Y81: 0.034 | AA81: 0.039 | BG81: 0.028 | BH81: 0.036 | BL81: 0.037 | BN81: 0.028 | BO81: 0.029 | BP81: 0.026 | BT81: 0.043 | CK81: 0.036 | CN81: 0.024 | CY81: 0.039 | DR81: 0.042 | DV81: 0.038 | DW81: 0.037 | EA81: 0.037 | EB81: 0.029 | ED81: 0.037 | FS81: 0.049 | FU81: 0.023 | FY81: 0.029 | FZ81: 0.043 | GA81: 0.039 | GC81: 0.017 | GE81: 0.039 | GF81: 0.031 | GG81: 0.035 | GH81: 0.034 | GJ81: 0.034 | GK81: 0.037 | GL81: 0.035 | GM81: 0.043 | GO81: 0.023 | GQ81: 0.039 | GU81: 0.015 | GW81: 0.038 | GY81: 0.033 | GZ81: 0.038 | HA81: 0.045 | HB81: 0.045 | HE81: 0.045 | HF81: 0.044 | HG81: 0.046 | HH81: 0.044 | HI81: 0.039 | HL81: 0.031 | HN81: 0.043 | HO81: 0.044 | HP81: 0.042 | HT81: 0.026 | IB81: 0.04 | IC81: 0.032 | IE81: 0.034 | IJ81: 0.041 | IK81: 0.047 | IL81: 0.016 | IT81: 0.025 | KS81: 0.019 | KU81: 0.031 | LR81: 0.032 | LS81: 0.034 | LU81: 0.029 | LW81: 0.014
A82: 1997-03-18 | B82: Mar 18 | C82: 1997-03-18 | D82: 03-Mar 18 | E82: 3 | F82: 18 | G82: 1997 | J82: 0.035 | K82: 0.019 | M82: 0.025 | N82: 0.052 | P82: 0.048 | Q82: 0.05 | R82: 0.039 | U82: 0.019 | V82: 0.052 | W82: 0.048 | X82: 0.04 | Y82: 0.019 | AA82: 0.025 | BG82: 0.025 | BL82: 0.035 | BN82: 0.019 | BO82: 0.01 | BP82: 0.019 | CK82: 0.023 | CN82: 0.021 | CY82: 0.025 | DR82: 0.047 | DV82: 0.05 | DW82: 0.044 | EA82: 0.052 | EB82: 0.048 | ED82: 0.049 | EP82: 0.049 | FS82: 0.035 | FU82: 0.037 | FY82: 0.021 | FZ82: 0.034 | GA82: 0.028 | GC82: 0.034 | GE82: 0.026 | GF82: 0.038 | GG82: 0.043 | GH82: 0.039 | GJ82: 0.042 | GK82: 0.034 | GL82: 0.048 | GM82: 0.04 | GO82: 0.039 | GQ82: 0.048 | GU82: 0.031 | GY82: 0.048 | GZ82: 0.044 | HA82: 0.047 | HB82: 0.048 | HE82: 0.048 | HF82: 0.046 | HG82: 0.048 | HH82: 0.048 | HI82: 0.041 | HL82: 0.039 | HN82: 0.044 | HO82: 0.045 | HP82: 0.044 | HT82: 0.031 | IB82: 0.047 | IC82: 0.039 | IE82: 0.034 | IJ82: 0.05 | IK82: 0.044 | IL82: 0.043 | IT82: 0.039 | KS82: 0.021 | KU82: 0.035 | LR82: 0.019 | LS82: 0.017 | LU82: 0.016 | LW82: 0.016
A83: 1997-03-19 | B83: Mar 19 | C83: 1997-03-19 | D83: 03-Mar 19 | E83: 3 | F83: 19 | G83: 1997 | H83: 0.047 | J83: 0.034 | K83: 0.006 | L83: 0.048 | M83: 0.017 | N83: 0.044 | P83: 0.045 | Q83: 0.052 | R83: 0.031 | U83: 0.009 | V83: 0.052 | W83: 0.045 | X83: 0.044 | Y83: 0.009 | AA83: 0.017 | AD83: 0.047 | BF83: 0.029 | BG83: 0.007 | BL83: 0.034 | BN83: 0.005 | BO83: 0.004 | BP83: 0.006 | BT83: 0.048 | CK83: 0.006 | CN83: 0.015 | CY83: 0.017 | DR83: 0.038 | DV83: 0.041 | DW83: 0.043 | EA83: 0.039 | EB83: 0.041 | ED83: 0.044 | EP83: 0.043 | FS83: 0.039 | FU83: 0.027 | FY83: 0.013 | FZ83: 0.03 | GA83: 0.027 | GC83: 0.008 | GE83: 0.015 | GF83: 0.026 | GG83: 0.029 | GH83: 0.031 | GJ83: 0.02 | GK83: 0.045 | GL83: 0.032 | GM83: 0.044 | GO83: 0.016 | GQ83: 0.041 | GU83: 0.024 | GW83: 0.037 | GY83: 0.043 | GZ83: 0.04 | HA83: 0.05 | HB83: 0.049 | HE83: 0.049 | HF83: 0.047 | HG83: 0.05 | HH83: 0.051 | HI83: 0.04 | HL83: 0.04 | HN83: 0.044 | HO83: 0.042 | HP83: 0.04 | IB83: 0.045 | IC83: 0.039 | IE83: 0.036 | IJ83: 0.052 | IK83: 0.035 | IL83: 0.034 | IT83: 0.031 | KS83: 0.009 | KU83: 0.015 | LR83: 0.009 | LS83: 0.003 | LU83: 0.003 | LW83: 0.002
A84: 1997-03-20 | B84: Mar 20 | C84: 1997-03-20 | D84: 03-Mar 20 | E84: 3 | F84: 20 | G84: 1997 | H84: 0.04 | J84: 0.029 | K84: 0.018 | L84: 0.042 | M84: 0.022 | N84: 0.045 | P84: 0.041 | Q84: 0.053 | R84: 0.03 | U84: 0.015 | V84: 0.053 | W84: 0.039 | X84: 0.041 | Y84: 0.018 | AA84: 0.022 | AD84: 0.04 | BF84: 0.029 | BG84: 0.017 | BN84: 0.017 | BO84: 0.011 | BP84: 0.018 | BT84: 0.042 | CK84: 0.022 | CN84: 0.014 | CY84: 0.022 | DR84: 0.045 | DV84: 0.036 | DW84: 0.034 | EA84: 0.044 | EB84: 0.034 | ED84: 0.042 | EP84: 0.043 | FS84: 0.041 | FU84: 0.021 | FY84: 0.011 | FZ84: 0.031 | GA84: 0.027 | GC84: 0.024 | GE84: 0.021 | GF84: 0.022 | GG84: 0.031 | GH84: 0.024 | GJ84: 0.025 | GK84: 0.031 | GL84: 0.039 | GM84: 0.036 | GO84: 0.025 | GQ84: 0.042 | GU84: 0.02 | GW84: 0.039 | GY84: 0.025 | GZ84: 0.032 | HA84: 0.052 | HB84: 0.053 | HE84: 0.052 | HF84: 0.049 | HG84: 0.048 | HH84: 0.044 | HI84: 0.026 | HL84: 0.035 | HN84: 0.037 | HO84: 0.043 | HP84: 0.037 | HT84: 0.02 | IB84: 0.047 | IC84: 0.038 | IE84: 0.028 | IJ84: 0.045 | IK84: 0.027 | IL84: 0.025 | IT84: 0.03 | KS84: 0.011 | KU84: 0.017 | LR84: 0.015 | LS84: 0.012 | LU84: 0.014 | LW84: 0.011
A85: 1997-03-21 | B85: Mar 21 | C85: 1997-03-21 | D85: 03-Mar 21 | E85: 3 | F85: 21 | G85: 1997 | H85: 0.047 | J85: 0.046 | K85: 0.039 | L85: 0.051 | M85: 0.042 | N85: 0.052 | P85: 0.049 | Q85: 0.054 | R85: 0.039 | U85: 0.043 | V85: 0.054 | W85: 0.041 | X85: 0.049 | Y85: 0.043 | AA85: 0.042 | AD85: 0.047 | BF85: 0.046 | BH85: 0.04 | BL85: 0.037 | BN85: 0.029 | BO85: 0.039 | BP85: 0.026 | BT85: 0.051 | CK85: 0.042 | CN85: 0.028 | CY85: 0.038 | DR85: 0.046 | DV85: 0.051 | DW85: 0.047 | EA85: 0.052 | EB85: 0.047 | ED85: 0.049 | EP85: 0.049 | FS85: 0.049 | FU85: 0.025 | FY85: 0.026 | FZ85: 0.046 | GA85: 0.04 | GC85: 0.021 | GE85: 0.04 | GF85: 0.033 | GG85: 0.037 | GH85: 0.033 | GJ85: 0.036 | GK85: 0.041 | GL85: 0.04 | GM85: 0.045 | GO85: 0.028 | GQ85: 0.044 | GU85: 0.023 | GW85: 0.042 | GY85: 0.044 | GZ85: 0.038 | HA85: 0.054 | HB85: 0.051 | HE85: 0.051 | HF85: 0.05 | HG85: 0.052 | HH85: 0.047 | HI85: 0.042 | HL85: 0.041 | HN85: 0.045 | HO85: 0.045 | HP85: 0.043 | HS85: 0.044 | HT85: 0.03 | IB85: 0.048 | IC85: 0.041 | IE85: 0.032 | IJ85: 0.049 | IK85: 0.046 | IL85: 0.033 | IT85: 0.039 | KS85: 0.013 | KU85: 0.023 | LR85: 0.042 | LS85: 0.043 | LU85: 0.027 | LW85: 0.03
A86: 1997-03-22 | B86: Mar 22 | C86: 1997-03-22 | D86: 03-Mar 22 | E86: 3 | F86: 22 | G86: 1997 | H86: 0.04 | J86: 0.042 | K86: 0.04 | L86: 0.043 | M86: 0.04 | N86: 0.05 | P86: 0.048 | Q86: 0.049 | R86: 0.043 | U86: 0.036 | V86: 0.05 | W86: 0.047 | X86: 0.048 | Y86: 0.04 | AA86: 0.04 | AD86: 0.04 | BF86: 0.04 | BG86: 0.042 | BH86: 0.039 | BL86: 0.04 | BN86: 0.037 | BO86: 0.033 | BP86: 0.04 | BT86: 0.043 | CK86: 0.04 | CN86: 0.034 | CY86: 0.04 | DR86: 0.047 | DV86: 0.048 | DW86: 0.044 | EA86: 0.05 | EB86: 0.046 | ED86: 0.05 | EP86: 0.049 | FS86: 0.048 | FU86: 0.042 | FY86: 0.036 | FZ86: 0.046 | GA86: 0.041 | GC86: 0.041 | GE86: 0.042 | GF86: 0.044 | GG86: 0.047 | GH86: 0.047 | GJ86: 0.046 | GK86: 0.044 | GL86: 0.047 | GM86: 0.048 | GO86: 0.045 | GQ86: 0.042 | GU86: 0.033 | GW86: 0.042 | GY86: 0.044 | GZ86: 0.041 | HA86: 0.048 | HB86: 0.049 | HE86: 0.047 | HF86: 0.044 | HG86: 0.041 | HH86: 0.045 | HI86: 0.037 | HL86: 0.045 | HN86: 0.041 | HO86: 0.042 | HP86: 0.039 | HS86: 0.044 | HT86: 0.037 | IB86: 0.046 | IC86: 0.034 | IE86: 0.039 | IF86: 0.043 | IJ86: 0.046 | IK86: 0.042 | IL86: 0.045 | IT86: 0.043 | KS86: 0.033 | KU86: 0.043 | LR86: 0.036 | LS86: 0.034 | LU86: 0.033 | LW86: 0.032
A87: 1997-03-23 | B87: Mar 23 | C87: 1997-03-23 | D87: 03-Mar 23 | E87: 3 | F87: 23 | G87: 1997 | H87: 0.037 | J87: 0.042 | K87: 0.043 | L87: 0.037 | M87: 0.045 | N87: 0.038 | P87: 0.043 | Q87: 0.036 | R87: 0.038 | U87: 0.036 | V87: 0.045 | W87: 0.037 | X87: 0.043 | Y87: 0.043 | AA87: 0.045 | AD87: 0.037 | BF87: 0.042 | BG87: 0.04 | BH87: 0.04 | BL87: 0.042 | BN87: 0.042 | BO87: 0.038 | BP87: 0.043 | BT87: 0.037 | CK87: 0.045 | CN87: 0.038 | CY87: 0.043 | DR87: 0.034 | DV87: 0.037 | DW87: 0.033 | EA87: 0.038 | EB87: 0.032 | ED87: 0.034 | EP87: 0.033 | FS87: 0.043 | FU87: 0.031 | FY87: 0.033 | FZ87: 0.041 | GA87: 0.039 | GC87: 0.031 | GE87: 0.039 | GF87: 0.035 | GG87: 0.037 | GH87: 0.038 | GJ87: 0.036 | GK87: 0.033 | GL87: 0.036 | GM87: 0.038 | GO87: 0.035 | GQ87: 0.033 | GU87: 0.024 | GW87: 0.034 | GY87: 0.034 | GZ87: 0.032 | HA87: 0.035 | HB87: 0.036 | HE87: 0.033 | HF87: 0.029 | HG87: 0.031 | HH87: 0.033 | HI87: 0.029 | HL87: 0.031 | HN87: 0.034 | HO87: 0.028 | HP87: 0.029 | HS87: 0.034 | HT87: 0.031 | IB87: 0.031 | IC87: 0.028 | IE87: 0.03 | IF87: 0.033 | IJ87: 0.035 | IK87: 0.036 | IL87: 0.033 | IT87: 0.038 | KS87: 0.028 | KU87: 0.037 | LR87: 0.036 | LS87: 0.035 | LU87: 0.034 | LW87: 0.033
A88: 1997-03-24 | B88: Mar 24 | C88: 1997-03-24 | D88: 03-Mar 24 | E88: 3 | F88: 24 | G88: 1997 | H88: 0.04 | J88: 0.038 | K88: 0.036 | L88: 0.039 | M88: 0.036 | N88: 0.044 | P88: 0.04 | Q88: 0.047 | R88: 0.038 | U88: 0.03 | V88: 0.047 | W88: 0.038 | X88: 0.04 | Y88: 0.036 | AA88: 0.036 | AD88: 0.04 | BF88: 0.037 | BG88: 0.031 | BH88: 0.035 | BL88: 0.038 | BN88: 0.036 | BO88: 0.03 | BP88: 0.035 | BT88: 0.039 | CK88: 0.036 | CN88: 0.029 | CY88: 0.034 | DR88: 0.04 | DV88: 0.042 | DW88: 0.036 | EA88: 0.044 | EB88: 0.039 | ED88: 0.042 | EP88: 0.042 | FS88: 0.04 | FU88: 0.032 | FY88: 0.026 | FZ88: 0.034 | GA88: 0.033 | GC88: 0.031 | GE88: 0.034 | GF88: 0.035 | GG88: 0.037 | GH88: 0.037 | GJ88: 0.036 | GK88: 0.031 | GL88: 0.038 | GM88: 0.034 | GO88: 0.033 | GQ88: 0.038 | GU88: 0.027 | GW88: 0.036 | GY88: 0.04 | GZ88: 0.031 | HA88: 0.047 | HB88: 0.044 | HE88: 0.042 | HF88: 0.041 | HG88: 0.038 | HH88: 0.037 | HI88: 0.027 | HL88: 0.027 | HO88: 0.036 | HS88: 0.039 | IC88: 0.034 | IE88: 0.03 | IF88: 0.034 | IJ88: 0.041 | IK88: 0.033 | IL88: 0.037 | IT88: 0.038 | KS88: 0.024 | KU88: 0.034 | LR88: 0.03 | LS88: 0.03 | LU88: 0.029 | LW88: 0.023
A89: 1997-03-25 | B89: Mar 25 | C89: 1997-03-25 | D89: 03-Mar 25 | E89: 3 | F89: 25 | G89: 1997 | H89: 0.045 | J89: 0.045 | K89: 0.03 | L89: 0.047 | M89: 0.043 | N89: 0.047 | P89: 0.055 | Q89: 0.047 | R89: 0.053 | U89: 0.034 | V89: 0.055 | W89: 0.047 | X89: 0.055 | Y89: 0.034 | AA89: 0.043 | AD89: 0.045 | BF89: 0.045 | BG89: 0.032 | BH89: 0.041 | BL89: 0.042 | BN89: 0.027 | BO89: 0.028 | BP89: 0.03 | BT89: 0.047 | CK89: 0.038 | CN89: 0.033 | CY89: 0.043 | DR89: 0.047 | DV89: 0.043 | DW89: 0.036 | EA89: 0.039 | EB89: 0.031 | ED89: 0.043 | EO89: 0.042 | EP89: 0.045 | FS89: 0.055 | FU89: 0.031 | FY89: 0.038 | FZ89: 0.049 | GA89: 0.046 | GC89: 0.022 | GE89: 0.045 | GF89: 0.038 | GG89: 0.04 | GH89: 0.043 | GJ89: 0.044 | GK89: 0.046 | GL89: 0.037 | GM89: 0.049 | GO89: 0.035 | GQ89: 0.029 | GY89: 0.035 | GZ89: 0.029 | HA89: 0.046 | HB89: 0.044 | HE89: 0.033 | HF89: 0.037 | HG89: 0.036 | HH89: 0.04 | HI89: 0.027 | HL89: 0.046 | HO89: 0.028 | HP89: 0.038 | HS89: 0.035 | HT89: 0.039 | IB89: 0.03 | IC89: 0.019 | IF89: 0.047 | IJ89: 0.038 | IK89: 0.022 | IL89: 0.033 | IR89: 0.011 | IT89: 0.053 | KS89: 0.031 | KT89: 0.036 | KU89: 0.037 | LR89: 0.028 | LS89: 0.034 | LU89: 0.026 | LW89: 0.022
A90: 1997-03-26 | B90: Mar 26 | C90: 1997-03-26 | D90: 03-Mar 26 | E90: 3 | F90: 26 | G90: 1997 | H90: 0.045 | J90: 0.036 | K90: 0.035 | L90: 0.044 | M90: 0.04 | N90: 0.046 | P90: 0.043 | Q90: 0.046 | R90: 0.041 | U90: 0.033 | V90: 0.046 | W90: 0.043 | X90: 0.042 | Y90: 0.035 | AA90: 0.04 | AD90: 0.045 | BF90: 0.036 | BG90: 0.036 | BH90: 0.035 | BL90: 0.036 | BN90: 0.031 | BO90: 0.028 | BP90: 0.035 | BT90: 0.043 | CA90: 0.044 | CK90: 0.037 | CN90: 0.033 | CY90: 0.04 | DR90: 0.041 | DV90: 0.043 | DW90: 0.039 | EA90: 0.046 | EB90: 0.04 | ED90: 0.044 | EO90: 0.037 | EP90: 0.044 | FS90: 0.042 | FU90: 0.033 | FY90: 0.029 | FZ90: 0.041 | GA90: 0.035 | GC90: 0.031 | GE90: 0.039 | GF90: 0.031 | GG90: 0.043 | GH90: 0.04 | GJ90: 0.039 | GK90: 0.039 | GL90: 0.042 | GM90: 0.039 | GO90: 0.036 | GQ90: 0.041 | GW90: 0.04 | GX90: 0.026 | GY90: 0.04 | GZ90: 0.033 | HA90: 0.046 | HB90: 0.046 | HE90: 0.046 | HF90: 0.044 | HG90: 0.045 | HH90: 0.042 | HI90: 0.034 | HL90: 0.031 | HO90: 0.042 | HP90: 0.034 | HS90: 0.041 | HT90: 0.03 | IB90: 0.042 | IC90: 0.035 | IE90: 0.04 | IF90: 0.04 | IJ90: 0.043 | IK90: 0.039 | IL90: 0.04 | IR90: 0.041 | IT90: 0.04 | KS90: 0.025 | KT90: 0.039 | KU90: 0.037 | LR90: 0.033 | LU90: 0.028 | LW90: 0.026
A91: 1997-03-27 | B91: Mar 27 | C91: 1997-03-27 | D91: 03-Mar 27 | E91: 3 | F91: 27 | G91: 1997 | H91: 0.044 | J91: 0.044 | K91: 0.044 | L91: 0.042 | M91: 0.049 | N91: 0.053 | P91: 0.044 | Q91: 0.055 | R91: 0.046 | U91: 0.043 | V91: 0.055 | W91: 0.044 | X91: 0.043 | Y91: 0.044 | AA91: 0.049 | AD91: 0.044 | BF91: 0.044 | BH91: 0.039 | BL91: 0.037 | BN91: 0.044 | BO91: 0.037 | BP91: 0.042 | BT91: 0.041 | CA91: 0.042 | CK91: 0.049 | CN91: 0.031 | CY91: 0.04 | DR91: 0.044 | DV91: 0.047 | DW91: 0.041 | EA91: 0.052 | EB91: 0.048 | ED91: 0.053 | EO91: 0.041 | EP91: 0.051 | FS91: 0.043 | FU91: 0.032 | FY91: 0.022 | FZ91: 0.042 | GA91: 0.042 | GC91: 0.03 | GE91: 0.038 | GF91: 0.036 | GG91: 0.044 | GH91: 0.04 | GJ91: 0.041 | GK91: 0.032 | GL91: 0.042 | GM91: 0.04 | GO91: 0.035 | GQ91: 0.047 | GU91: 0.024 | GW91: 0.042 | GX91: 0.041 | GZ91: 0.031 | HA91: 0.055 | HB91: 0.055 | HE91: 0.054 | HF91: 0.05 | HG91: 0.038 | HH91: 0.049 | HI91: 0.033 | HL91: 0.039 | HO91: 0.045 | HP91: 0.039 | HS91: 0.045 | HT91: 0.03 | IB91: 0.051 | IC91: 0.038 | IE91: 0.033 | IF91: 0.029 | IJ91: 0.051 | IK91: 0.037 | IL91: 0.036 | IT91: 0.046 | KS91: 0.014 | KT91: 0.04 | KU91: 0.03 | KW91: 0.015 | LR91: 0.043 | LU91: 0.04 | LW91: 0.027
A92: 1997-03-28 | B92: Mar 28 | C92: 1997-03-28 | D92: 03-Mar 28 | E92: 3 | F92: 28 | G92: 1997 | H92: 0.049 | J92: 0.056 | K92: 0.047 | L92: 0.051 | M92: 0.054 | N92: 0.057 | P92: 0.058 | Q92: 0.062 | R92: 0.049 | U92: 0.047 | V92: 0.062 | W92: 0.061 | X92: 0.058 | Y92: 0.047 | AA92: 0.054 | AD92: 0.049 | BF92: 0.056 | BG92: 0.036 | BH92: 0.038 | BL92: 0.051 | BN92: 0.047 | BO92: 0.043 | BP92: 0.042 | BT92: 0.051 | CA92: 0.049 | CK92: 0.046 | CN92: 0.037 | CY92: 0.054 | DR92: 0.053 | DV92: 0.047 | DW92: 0.048 | EA92: 0.057 | EB92: 0.05 | EO92: 0.046 | EP92: 0.052 | FS92: 0.058 | FU92: 0.035 | FY92: 0.041 | FZ92: 0.051 | GA92: 0.053 | GC92: 0.032 | GE92: 0.05 | GF92: 0.046 | GG92: 0.048 | GH92: 0.049 | GJ92: 0.047 | GK92: 0.049 | GL92: 0.053 | GM92: 0.053 | GO92: 0.045 | GQ92: 0.052 | GU92: 0.041 | GW92: 0.048 | GX92: 0.047 | GY92: 0.055 | GZ92: 0.039 | HB92: 0.058 | HE92: 0.057 | HF92: 0.062 | HG92: 0.062 | HH92: 0.058 | HI92: 0.038 | HL92: 0.061 | HN92: 0.044 | HO92: 0.051 | HP92: 0.053 | HS92: 0.055 | HT92: 0.048 | IB92: 0.056 | IC92: 0.046 | IE92: 0.054 | IF92: 0.048 | IJ92: 0.053 | IK92: 0.023 | IL92: 0.051 | IP92: 0.049 | IS92: 0.045 | IT92: 0.047 | KS92: 0.026 | KT92: 0.042 | KU92: 0.043 | KW92: 0.027 | LR92: 0.047 | LU92: 0.041 | LW92: 0.031
A93: 1997-03-29 | B93: Mar 29 | C93: 1997-03-29 | D93: 03-Mar 29 | E93: 3 | F93: 29 | G93: 1997 | H93: 0.038 | J93: 0.045 | K93: 0.049 | L93: 0.043 | M93: 0.048 | N93: 0.041 | P93: 0.052 | Q93: 0.059 | R93: 0.044 | U93: 0.036 | V93: 0.059 | W93: 0.046 | X93: 0.052 | Y93: 0.049 | AA93: 0.048 | AD93: 0.038 | BF93: 0.045 | BG93: 0.035 | BH93: 0.042 | BL93: 0.043 | BN93: 0.049 | BO93: 0.036 | BP93: 0.045 | BT93: 0.043 | CA93: 0.043 | CK93: 0.048 | CN93: 0.036 | CY93: 0.041 | DR93: 0.041 | DV93: 0.026 | DW93: 0.041 | EA93: 0.028 | EB93: 0.026 | ED93: 0.038 | EO93: 0.022 | EP93: 0.03 | FS93: 0.052 | FU93: 0.022 | FY93: 0.032 | FZ93: 0.048 | GA93: 0.046 | GC93: 0.018 | GE93: 0.043 | GF93: 0.021 | GG93: 0.031 | GH93: 0.03 | GJ93: 0.026 | GK93: 0.044 | GL93: 0.037 | GM93: 0.045 | GO93: 0.026 | GQ93: 0.043 | GU93: 0.018 | GW93: 0.036 | GY93: 0.037 | GZ93: 0.029 | HA93: 0.059 | HB93: 0.058 | HE93: 0.048 | HF93: 0.042 | HG93: 0.04 | HH93: 0.035 | HI93: 0.034 | HL93: 0.044 | HN93: 0.039 | HO93: 0.039 | HP93: 0.035 | HS93: 0.028 | HT93: 0.022 | IB93: 0.046 | IC93: 0.036 | IE93: 0.046 | IF93: 0.042 | IJ93: 0.045 | IK93: 0.033 | IL93: 0.026 | IP93: 0.039 | IS93: 0.044 | IT93: 0.044 | KS93: 0.022 | KT93: 0.04 | KU93: 0.033 | KW93: 0.026 | LR93: 0.036 | LU93: 0.033 | LW93: 0.035
A94: 1997-03-30 | B94: Mar 30 | C94: 1997-03-30 | D94: 03-Mar 30 | E94: 3 | F94: 30 | G94: 1997 | H94: 0.045 | J94: 0.052 | K94: 0.052 | L94: 0.054 | M94: 0.051 | N94: 0.06 | P94: 0.059 | Q94: 0.058 | R94: 0.057 | U94: 0.042 | V94: 0.06 | W94: 0.058 | X94: 0.059 | Y94: 0.052 | AA94: 0.051 | AD94: 0.045 | BF94: 0.048 | BG94: 0.052 | BH94: 0.049 | BL94: 0.049 | BN94: 0.052 | BO94: 0.043 | BP94: 0.051 | BT94: 0.054 | CA94: 0.045 | CK94: 0.051 | CN94: 0.044 | CY94: 0.049 | DR94: 0.052 | DV94: 0.06 | DW94: 0.051 | EA94: 0.047 | EB94: 0.04 | ED94: 0.044 | EO94: 0.058 | EP94: 0.044 | FS94: 0.059 | FU94: 0.047 | FY94: 0.048 | FZ94: 0.058 | GA94: 0.053 | GC94: 0.045 | GE94: 0.054 | GF94: 0.05 | GG94: 0.053 | GH94: 0.056 | GJ94: 0.055 | GK94: 0.056 | GL94: 0.051 | GM94: 0.055 | GO94: 0.049 | GQ94: 0.039 | GU94: 0.04 | GW94: 0.036 | GY94: 0.048 | GZ94: 0.032 | HA94: 0.053 | HB94: 0.035 | HE94: 0.041 | HF94: 0.032 | HG94: 0.031 | HH94: 0.036 | HI94: 0.022 | HL94: 0.045 | HN94: 0.032 | HO94: 0.025 | HP94: 0.025 | HS94: 0.05 | HT94: 0.045 | IB94: 0.034 | IC94: 0.033 | IE94: 0.058 | IF94: 0.049 | IJ94: 0.046 | IK94: 0.03 | IL94: 0.051 | IP94: 0.023 | IS94: 0.032 | IT94: 0.036 | KS94: 0.038 | KT94: 0.057 | KU94: 0.053 | KW94: 0.042 | LR94: 0.042 | LU94: 0.041 | LW94: 0.04
A95: 1997-03-31 | B95: Mar 31 | C95: 1997-03-31 | D95: 03-Mar 31 | E95: 3 | F95: 31 | G95: 1997 | H95: 0.039 | J95: 0.035 | K95: 0.041 | L95: 0.039 | M95: 0.037 | N95: 0.042 | P95: 0.039 | Q95: 0.041 | R95: 0.043 | U95: 0.036 | V95: 0.043 | W95: 0.039 | X95: 0.039 | Y95: 0.041 | AA95: 0.037 | AD95: 0.039 | BF95: 0.035 | BG95: 0.034 | BH95: 0.034 | BL95: 0.032 | BN95: 0.041 | BO95: 0.033 | BP95: 0.038 | BT95: 0.039 | CA95: 0.036 | CK95: 0.037 | CN95: 0.031 | CY95: 0.033 | DV95: 0.039 | DW95: 0.036 | EA95: 0.042 | EB95: 0.039 | ED95: 0.041 | EO95: 0.038 | EP95: 0.039 | FS95: 0.036 | FU95: 0.031 | FY95: 0.025 | FZ95: 0.035 | GA95: 0.034 | GC95: 0.03 | GE95: 0.034 | GF95: 0.026 | GG95: 0.038 | GH95: 0.039 | GJ95: 0.032 | GK95: 0.029 | GL95: 0.039 | GM95: 0.036 | GO95: 0.034 | GQ95: 0.038 | GU95: 0.028 | GW95: 0.038 | GZ95: 0.038 | HA95: 0.04 | HB95: 0.04 | HE95: 0.04 | HG95: 0.037 | HH95: 0.036 | HI95: 0.037 | HL95: 0.035 | HN95: 0.038 | HO95: 0.037 | HP95: 0.033 | HT95: 0.03 | IB95: 0.034 | IC95: 0.032 | IF95: 0.036 | IJ95: 0.041 | IK95: 0.039 | IL95: 0.036 | IR95: 0.039 | IS95: 0.041 | IT95: 0.043 | KS95: 0.029 | KT95: 0.037 | KU95: 0.034 | KW95: 0.026 | LR95: 0.036 | LU95: 0.033
A96: 1997-04-01 | B96: Apr 01 | C96: 1997-04-01 | D96: 04-Apr 01 | E96: 4 | F96: 1 | G96: 1997 | H96: 0.045 | I96: 0.051 | J96: 0.047 | K96: 0.047 | L96: 0.046 | M96: 0.05 | N96: 0.056 | O96: 0.051 | P96: 0.05 | Q96: 0.049 | R96: 0.054 | S96: 0.042 | T96: 0.047 | U96: 0.047 | V96: 0.056 | W96: 0.049 | X96: 0.05 | Y96: 0.05 | Z96: 0.051 | AA96: 0.047 | AD96: 0.044 | AE96: 0.045 | AH96: 0.042 | AO96: 0.048 | AP96: 0.046 | AQ96: 0.045 | AR96: 0.045 | AT96: 0.047 | AW96: 0.047 | AY96: 0.04 | AZ96: 0.048 | BB96: 0.046 | BD96: 0.051 | BF96: 0.047 | BG96: 0.045 | BH96: 0.045 | BI96: 0.044 | BL96: 0.046 | BN96: 0.047 | BO96: 0.041 | BP96: 0.043 | BT96: 0.045 | CA96: 0.043 | CH96: 0.044 | CI96: 0.046 | CJ96: 0.038 | CK96: 0.047 | CM96: 0.046 | CN96: 0.037 | CR96: 0.045 | CY96: 0.043 | CZ96: 0.046 | DA96: 0.037 | DB96: 0.049 | DC96: 0.05 | DE96: 0.05 | DI96: 0.046 | DP96: 0.04 | DU96: 0.038 | DV96: 0.042 | DW96: 0.041 | EA96: 0.052 | EB96: 0.046 | EC96: 0.056 | ED96: 0.049 | EG96: 0.056 | EH96: 0.045 | EL96: 0.035 | EO96: 0.04 | EP96: 0.047 | ER96: 0.043 | ET96: 0.051 | EU96: 0.049 | EY96: 0.042 | FB96: 0.046 | FE96: 0.043 | FH96: 0.042 | FJ96: 0.042 | FK96: 0.044 | FQ96: 0.048 | FR96: 0.045 | FS96: 0.05 | FU96: 0.044 | FY96: 0.037 | FZ96: 0.049 | GA96: 0.043 | GC96: 0.04 | GE96: 0.045 | GF96: 0.043 | GG96: 0.049 | GH96: 0.049 | GJ96: 0.046 | GK96: 0.043 | GL96: 0.049 | GM96: 0.05 | GO96: 0.046 | GQ96: 0.047 | GS96: 0.032 | GU96: 0.036 | HA96: 0.046 | HB96: 0.048 | HE96: 0.047 | HF96: 0.047 | HG96: 0.046 | HI96: 0.037 | HL96: 0.043 | HN96: 0.043 | HO96: 0.044 | HP96: 0.042 | HT96: 0.039 | HY96: 0.039 | IB96: 0.042 | IC96: 0.034 | IF96: 0.045 | IJ96: 0.049 | IK96: 0.044 | IL96: 0.047 | IR96: 0.041 | IS96: 0.041 | IT96: 0.048 | IV96: 0.043 | IW96: 0.043 | IX96: 0.039 | IY96: 0.047 | JA96: 0.039 | JD96: 0.046 | JF96: 0.044 | JG96: 0.043 | JI96: 0.047 | JM96: 0.054 | JN96: 0.042 | JO96: 0.043 | JP96: 0.046 | JT96: 0.048 | JW96: 0.046 | JX96: 0.053 | JY96: 0.045 | KA96: 0.038 | KD96: 0.048 | KE96: 0.043 | KF96: 0.047 | KH96: 0.046 | KI96: 0.045 | KJ96: 0.043 | KN96: 0.049 | KP96: 0.048 | KR96: 0.047 | KS96: 0.033 | KT96: 0.047 | KU96: 0.044 | KW96: 0.035 | LA96: 0.041 | LB96: 0.036 | LC96: 0.041 | LE96: 0.039 | LG96: 0.042 | LI96: 0.042 | LK96: 0.035 | LN96: 0.047 | LO96: 0.047 | LQ96: 0.041 | LR96: 0.043 | LU96: 0.04 | LW96: 0.037 | LY96: 0.047 | LZ96: 0.038
A97: 1997-04-02 | B97: Apr 02 | C97: 1997-04-02 | D97: 04-Apr 02 | E97: 4 | F97: 2 | G97: 1997 | H97: 0.046 | I97: 0.051 | J97: 0.047 | K97: 0.048 | L97: 0.048 | M97: 0.054 | N97: 0.061 | O97: 0.05 | P97: 0.053 | Q97: 0.052 | R97: 0.061 | S97: 0.046 | T97: 0.049 | U97: 0.048 | V97: 0.061 | W97: 0.052 | X97: 0.053 | Y97: 0.054 | Z97: 0.051 | AA97: 0.052 | AD97: 0.045 | AE97: 0.045 | AH97: 0.046 | AO97: 0.047 | AP97: 0.044 | AQ97: 0.043 | AR97: 0.046 | AS97: 0.033 | AT97: 0.048 | AW97: 0.048 | AY97: 0.04 | AZ97: 0.05 | BB97: 0.047 | BD97: 0.051 | BF97: 0.047 | BG97: 0.047 | BI97: 0.046 | BL97: 0.047 | BN97: 0.048 | BO97: 0.009 | BP97: 0.045 | BT97: 0.046 | CA97: 0.046 | CH97: 0.046 | CI97: 0.048 | CJ97: 0.049 | CK97: 0.05 | CM97: 0.048 | CN97: 0.044 | CR97: 0.049 | CS97: 0.049 | CT97: 0.047 | CY97: 0.047 | CZ97: 0.052 | DA97: 0.05 | DB97: 0.05 | DC97: 0.054 | DE97: 0.048 | DI97: 0.051 | DP97: 0.041 | DU97: 0.043 | DV97: 0.05 | DW97: 0.045 | EA97: 0.052 | EB97: 0.044 | EC97: 0.057 | ED97: 0.051 | EG97: 0.061 | EH97: 0.05 | EL97: 0.043 | EO97: 0.048 | EP97: 0.049 | ER97: 0.044 | ET97: 0.05 | EU97: 0.05 | EY97: 0.041 | FB97: 0.047 | FE97: 0.044 | FH97: 0.042 | FJ97: 0.045 | FK97: 0.048 | FQ97: 0.048 | FR97: 0.046 | FS97: 0.053 | FU97: 0.043 | FY97: 0.04 | FZ97: 0.05 | GA97: 0.044 | GC97: 0.042 | GE97: 0.048 | GF97: 0.044 | GG97: 0.049 | GH97: 0.048 | GJ97: 0.047 | GK97: 0.047 | GL97: 0.052 | GM97: 0.05 | GO97: 0.045 | GS97: 0.034 | GU97: 0.036 | GW97: 0.05 | GZ97: 0.035 | HA97: 0.048 | HB97: 0.049 | HE97: 0.049 | HF97: 0.049 | HG97: 0.047 | HH97: 0.047 | HI97: 0.04 | HL97: 0.046 | HO97: 0.043 | HP97: 0.04 | HT97: 0.039 | HY97: 0.046 | IB97: 0.044 | IC97: 0.034 | IF97: 0.045 | IJ97: 0.052 | IK97: 0.049 | IL97: 0.046 | IP97: 0.042 | IR97: 0.042 | IS97: 0.046 | IT97: 0.049 | IV97: 0.048 | IW97: 0.049 | IX97: 0.045 | IY97: 0.05 | JA97: 0.038 | JD97: 0.049 | JF97: 0.046 | JG97: 0.038 | JI97: 0.053 | JM97: 0.061 | JN97: 0.046 | JO97: 0.049 | JP97: 0.047 | JR97: 0.034 | JT97: 0.054 | JW97: 0.047 | JX97: 0.053 | JY97: 0.049 | KA97: 0.036 | KD97: 0.05 | KE97: 0.046 | KF97: 0.05 | KH97: 0.051 | KI97: 0.051 | KJ97: 0.049 | KN97: 0.052 | KP97: 0.049 | KR97: 0.051 | KS97: 0.037 | KT97: 0.049 | KU97: 0.045 | KW97: 0.038 | LA97: 0.041 | LB97: 0.037 | LC97: 0.039 | LE97: 0.037 | LG97: 0.044 | LI97: 0.046 | LK97: 0.043 | LN97: 0.049 | LO97: 0.048 | LQ97: 0.043 | LR97: 0.041 | LU97: 0.039 | LW97: 0.036 | LY97: 0.048 | LZ97: 0.037
A98: 1997-04-03 | B98: Apr 03 | C98: 1997-04-03 | D98: 04-Apr 03 | E98: 4 | F98: 3 | G98: 1997 | H98: 0.048 | I98: 0.058 | J98: 0.054 | K98: 0.055 | L98: 0.05 | M98: 0.067 | N98: 0.062 | O98: 0.05 | P98: 0.055 | Q98: 0.065 | R98: 0.059 | S98: 0.046 | T98: 0.05 | U98: 0.062 | V98: 0.067 | W98: 0.055 | X98: 0.054 | Y98: 0.067 | Z98: 0.058 | AA98: 0.057 | AD98: 0.048 | AE98: 0.045 | AH98: 0.048 | AO98: 0.031 | AP98: 0.028 | AQ98: 0.047 | AR98: 0.035 | AS98: 0.04 | AT98: 0.048 | AV98: 0.058 | AY98: 0.031 | AZ98: 0.043 | BB98: 0.044 | BD98: 0.055 | BF98: 0.054 | BG98: 0.031 | BH98: 0.045 | BI98: 0.052 | BL98: 0.048 | BN98: 0.053 | BO98: 0.035 | BP98: 0.055 | BT98: 0.047 | BV98: 0.04 | CA98: 0.05 | CH98: 0.046 | CI98: 0.048 | CJ98: 0.051 | CK98: 0.057 | CM98: 0.052 | CN98: 0.044 | CR98: 0.049 | CS98: 0.051 | CT98: 0.067 | CY98: 0.045 | CZ98: 0.054 | DA98: 0.053 | DB98: 0.058 | DC98: 0.059 | DE98: 0.06 | DI98: 0.056 | DP98: 0.043 | DU98: 0.041 | DV98: 0.048 | DW98: 0.043 | EA98: 0.061 | EB98: 0.05 | EC98: 0.055 | ED98: 0.056 | EG98: 0.062 | EH98: 0.053 | EL98: 0.021 | EO98: 0.043 | EP98: 0.052 | ER98: 0.044 | ET98: 0.05 | EU98: 0.048 | FB98: 0.047 | FE98: 0.042 | FH98: 0.04 | FJ98: 0.042 | FK98: 0.048 | FQ98: 0.044 | FR98: 0.043 | FS98: 0.047 | FU98: 0.02 | FY98: 0.035 | FZ98: 0.052 | GA98: 0.046 | GC98: 0.02 | GE98: 0.045 | GF98: 0.027 | GG98: 0.055 | GH98: 0.054 | GJ98: 0.054 | GK98: 0.039 | GL98: 0.053 | GM98: 0.051 | GO98: 0.037 | GQ98: 0.042 | GS98: 0.02 | GU98: 0.023 | GW98: 0.041 | GZ98: 0.027 | HA98: 0.06 | HE98: 0.056 | HF98: 0.055 | HG98: 0.04 | HH98: 0.052 | HI98: 0.034 | HL98: 0.043 | HO98: 0.043 | HP98: 0.046 | HQ98: 0.055 | HS98: 0.054 | HT98: 0.025 | HY98: 0.038 | IB98: 0.04 | IC98: 0.038 | IE98: 0.035 | IF98: 0.041 | IJ98: 0.065 | IK98: 0.037 | IL98: 0.04 | IP98: 0.043 | IR98: 0.043 | IS98: 0.05 | IT98: 0.052 | IV98: 0.037 | IW98: 0.05 | IX98: 0.049 | IY98: 0.051 | JA98: 0.045 | JD98: 0.04 | JF98: 0.047 | JG98: 0.049 | JI98: 0.051 | JM98: 0.059 | JN98: 0.044 | JO98: 0.048 | JP98: 0.045 | JR98: 0.028 | JT98: 0.054 | JW98: 0.052 | JX98: 0.055 | JY98: 0.05 | KA98: 0.036 | KD98: 0.051 | KE98: 0.049 | KF98: 0.05 | KH98: 0.048 | KI98: 0.051 | KJ98: 0.044 | KN98: 0.051 | KP98: 0.052 | KR98: 0.05 | KS98: 0.034 | KT98: 0.051 | KU98: 0.046 | KW98: 0.031 | LA98: 0.051 | LB98: 0.045 | LC98: 0.048 | LE98: 0.037 | LG98: 0.047 | LI98: 0.046 | LK98: 0.044 | LN98: 0.05 | LO98: 0.047 | LQ98: 0.059 | LR98: 0.052 | LU98: 0.048 | LW98: 0.041 | LY98: 0.062 | LZ98: 0.046
A99: 1997-04-04 | B99: Apr 04 | C99: 1997-04-04 | D99: 04-Apr 04 | E99: 4 | F99: 4 | G99: 1997 | H99: 0.048 | I99: 0.056 | J99: 0.057 | K99: 0.054 | L99: 0.05 | M99: 0.064 | N99: 0.063 | O99: 0.051 | P99: 0.063 | Q99: 0.054 | R99: 0.07 | S99: 0.057 | T99: 0.049 | U99: 0.059 | V99: 0.07 | W99: 0.059 | X99: 0.063 | Y99: 0.064 | Z99: 0.056 | AA99: 0.058 | AD99: 0.048 | AE99: 0.041 | AH99: 0.045 | AO99: 0.053 | AP99: 0.04 | AQ99: 0.046 | AR99: 0.049 | AS99: 0.043 | AT99: 0.051 | AV99: 0.053 | AY99: 0.038 | AZ99: 0.053 | BB99: 0.056 | BD99: 0.054 | BF99: 0.055 | BG99: 0.057 | BI99: 0.056 | BN99: 0.051 | BO99: 0.045 | BP99: 0.054 | BT99: 0.05 | BV99: 0.033 | CA99: 0.041 | CB99: 0.05 | CH99: 0.049 | CI99: 0.049 | CJ99: 0.058 | CK99: 0.054 | CM99: 0.052 | CN99: 0.049 | CR99: 0.052 | CS99: 0.055 | CT99: 0.058 | CY99: 0.05 | CZ99: 0.056 | DA99: 0.055 | DB99: 0.064 | DC99: 0.06 | DE99: 0.056 | DP99: 0.052 | DR99: 0.055 | DU99: 0.045 | DV99: 0.053 | DW99: 0.047 | EA99: 0.056 | EB99: 0.051 | EC99: 0.057 | ED99: 0.053 | EG99: 0.063 | EH99: 0.054 | EL99: 0.042 | EO99: 0.051 | EP99: 0.052 | ER99: 0.04 | ET99: 0.046 | EU99: 0.046 | EY99: 0.035 | FB99: 0.047 | FE99: 0.042 | FH99: 0.036 | FJ99: 0.043 | FK99: 0.051 | FQ99: 0.048 | FR99: 0.04 | FS99: 0.063 | FU99: 0.048 | FY99: 0.048 | FZ99: 0.062 | GA99: 0.054 | GC99: 0.046 | GE99: 0.058 | GF99: 0.048 | GG99: 0.059 | GH99: 0.057 | GJ99: 0.054 | GK99: 0.054 | GL99: 0.056 | GM99: 0.061 | GO99: 0.049 | GQ99: 0.045 | GS99: 0.038 | GU99: 0.04 | GW99: 0.046 | GZ99: 0.039 | HA99: 0.047 | HB99: 0.048 | HE99: 0.048 | HF99: 0.047 | HG99: 0.044 | HH99: 0.049 | HI99: 0.034 | HL99: 0.051 | HN99: 0.048 | HO99: 0.042 | HP99: 0.043 | HQ99: 0.05 | HS99: 0.054 | HY99: 0.054 | IB99: 0.043 | IC99: 0.04 | IE99: 0.046 | IF99: 0.046 | IJ99: 0.054 | IK99: 0.045 | IL99: 0.051 | IP99: 0.054 | IR99: 0.044 | IS99: 0.053 | IT99: 0.06 | IV99: 0.07 | IW99: 0.063 | IX99: 0.058 | IY99: 0.055 | JA99: 0.047 | JD99: 0.051 | JF99: 0.057 | JG99: 0.047 | JI99: 0.056 | JM99: 0.055 | JN99: 0.05 | JO99: 0.052 | JP99: 0.058 | JR99: 0.043 | JT99: 0.058 | JW99: 0.053 | JX99: 0.058 | JY99: 0.056 | KA99: 0.041 | KD99: 0.057 | KE99: 0.05 | KF99: 0.057 | KH99: 0.053 | KI99: 0.055 | KJ99: 0.053 | KN99: 0.062 | KP99: 0.056 | KR99: 0.053 | KS99: 0.04 | KT99: 0.058 | KU99: 0.056 | KW99: 0.046 | LA99: 0.06 | LB99: 0.051 | LC99: 0.059 | LE99: 0.045 | LG99: 0.048 | LI99: 0.057 | LK99: 0.051 | LN99: 0.049 | LO99: 0.041 | LQ99: 0.054 | LR99: 0.044 | LU99: 0.043 | LW99: 0.042 | LY99: 0.059 | LZ99: 0.042
A100: 1997-04-05 | B100: Apr 05 | C100: 1997-04-05 | D100: 04-Apr 05 | E100: 4 | F100: 5 | G100: 1997 | H100: 0.049 | I100: 0.051 | J100: 0.048 | K100: 0.047 | L100: 0.049 | M100: 0.059 | N100: 0.059 | O100: 0.049 | P100: 0.05 | Q100: 0.061 | R100: 0.06 | S100: 0.046 | T100: 0.05 | U100: 0.06 | V100: 0.061 | W100: 0.049 | X100: 0.05 | Y100: 0.06 | Z100: 0.051 | AA100: 0.054 | AD100: 0.049 | AE100: 0.044 | AH100: 0.048 | AO100: 0.04 | AP100: 0.033 | AQ100: 0.044 | AR100: 0.042 | AS100: 0.035 | AT100: 0.042 | AV100: 0.051 | AY100: 0.038 | AZ100: 0.045 | BB100: 0.049 | BD100: 0.049 | BF100: 0.047 | BG100: 0.038 | BH100: 0.048 | BI100: 0.04 | BL100: 0.046 | BN100: 0.045 | BO100: 0.043 | BP100: 0.047 | BT100: 0.047 | BV100: 0.039 | CA100: 0.047 | CB100: 0.049 | CH100: 0.043 | CI100: 0.047 | CJ100: 0.054 | CK100: 0.051 | CM100: 0.047 | CN100: 0.046 | CR100: 0.041 | CS100: 0.05 | CT100: 0.056 | CY100: 0.049 | CZ100: 0.054 | DA100: 0.053 | DB100: 0.056 | DC100: 0.056 | DE100: 0.059 | DP100: 0.045 | DR100: 0.048 | DU100: 0.043 | DV100: 0.042 | DW100: 0.042 | EA100: 0.05 | EB100: 0.043 | EC100: 0.053 | ED100: 0.048 | EG100: 0.059 | EH100: 0.053 | EL100: 0.028 | EO100: 0.043 | EP100: 0.051 | ER100: 0.046 | ET100: 0.049 | EU100: 0.048 | EY100: 0.042 | FB100: 0.049 | FE100: 0.045 | FH100: 0.044 | FJ100: 0.043 | FK100: 0.046 | FQ100: 0.043 | FR100: 0.045 | FS100: 0.05 | FU100: 0.027 | FY100: 0.041 | FZ100: 0.048 | GA100: 0.048 | GC100: 0.032 | GE100: 0.049 | GF100: 0.04 | GG100: 0.047 | GH100: 0.046 | GJ100: 0.045 | GK100: 0.047 | GL100: 0.043 | GM100: 0.047 | GO100: 0.036 | GQ100: 0.05 | GS100: 0.024 | GU100: 0.031 | GW100: 0.055 | GX100: 0.049 | GZ100: 0.047 | HA100: 0.061 | HB100: 0.047 | HE100: 0.05 | HF100: 0.047 | HG100: 0.047 | HH100: 0.053 | HI100: 0.044 | HL100: 0.049 | HN100: 0.047 | HO100: 0.046 | HP100: 0.054 | HQ100: 0.041 | HS100: 0.044 | HT100: 0.037 | HY100: 0.047 | IB100: 0.048 | IC100: 0.043 | IE100: 0.042 | IF100: 0.041 | IJ100: 0.052 | IK100: 0.027 | IL100: 0.04 | IP100: 0.047 | IR100: 0.043 | IS100: 0.06 | IT100: 0.057 | IV100: 0.055 | IW100: 0.046 | IX100: 0.04 | IY100: 0.044 | JA100: 0.043 | JD100: 0.052 | JF100: 0.046 | JG100: 0.052 | JI100: 0.051 | JM100: 0.055 | JN100: 0.044 | JO100: 0.046 | JP100: 0.049 | JR100: 0.048 | JT100: 0.05 | JW100: 0.05 | JX100: 0.057 | JY100: 0.05 | KA100: 0.047 | KD100: 0.047 | KE100: 0.041 | KF100: 0.048 | KH100: 0.048 | KI100: 0.049 | KJ100: 0.052 | KN100: 0.041 | KP100: 0.046 | KR100: 0.045 | KS100: 0.034 | KT100: 0.041 | KU100: 0.046 | KW100: 0.03 | LA100: 0.053 | LB100: 0.051 | LC100: 0.053 | LE100: 0.049 | LG100: 0.052 | LI100: 0.046 | LK100: 0.04 | LN100: 0.05 | LO100: 0.05 | LQ100: 0.048 | LR100: 0.046 | LS100: 0.049 | LU100: 0.039 | LW100: 0.037 | LY100: 0.06 | LZ100: 0.046
A101: 1997-04-06 | B101: Apr 06 | C101: 1997-04-06 | D101: 04-Apr 06 | E101: 4 | F101: 6 | G101: 1997 | H101: 0.051 | I101: 0.047 | J101: 0.035 | K101: 0.026 | L101: 0.046 | M101: 0.036 | N101: 0.05 | O101: 0.045 | P101: 0.043 | Q101: 0.064 | R101: 0.061 | S101: 0.044 | T101: 0.058 | U101: 0.03 | V101: 0.064 | W101: 0.046 | X101: 0.041 | Y101: 0.032 | Z101: 0.047 | AA101: 0.036 | AD101: 0.038 | AE101: 0.035 | AH101: 0.051 | AO101: 0.041 | AP101: 0.032 | AQ101: 0.04 | AR101: 0.04 | AS101: 0.046 | AT101: 0.039 | AV101: 0.042 | AY101: 0.027 | AZ101: 0.044 | BB101: 0.047 | BD101: 0.047 | BF101: 0.035 | BG101: 0.023 | BH101: 0.03 | BI101: 0.029 | BL101: 0.03 | BN101: 0.02 | BO101: 0.026 | BP101: 0.018 | BT101: 0.044 | BV101: 0.036 | CA101: 0.044 | CB101: 0.046 | CH101: 0.044 | CI101: 0.041 | CJ101: 0.029 | CK101: 0.03 | CM101: 0.023 | CN101: 0.021 | CR101: 0.024 | CS101: 0.035 | CT101: 0.031 | CY101: 0.033 | CZ101: 0.036 | DA101: 0.036 | DB101: 0.032 | DC101: 0.03 | DE101: 0.032 | DP101: 0.044 | DR101: 0.042 | DU101: 0.033 | DV101: 0.035 | DW101: 0.036 | EA101: 0.04 | EB101: 0.033 | EC101: 0.043 | ED101: 0.042 | EG101: 0.05 | EH101: 0.043 | EL101: 0.024 | EO101: 0.035 | EP101: 0.042 | ER101: 0.036 | ET101: 0.039 | EU101: 0.041 | EY101: 0.045 | FB101: 0.035 | FE101: 0.032 | FH101: 0.027 | FJ101: 0.036 | FK101: 0.043 | FQ101: 0.028 | FR101: 0.041 | FS101: 0.037 | FU101: 0.021 | FY101: 0.026 | FZ101: 0.037 | GA101: 0.031 | GC101: 0.026 | GE101: 0.033 | GF101: 0.032 | GG101: 0.041 | GH101: 0.039 | GJ101: 0.036 | GK101: 0.041 | GL101: 0.043 | GM101: 0.041 | GO101: 0.032 | GQ101: 0.046 | GS101: 0.014 | GU101: 0.022 | GW101: 0.055 | GX101: 0.054 | GZ101: 0.051 | HA101: 0.064 | HB101: 0.062 | HE101: 0.052 | HF101: 0.058 | HG101: 0.061 | HH101: 0.057 | HI101: 0.052 | HL101: 0.04 | HN101: 0.057 | HO101: 0.056 | HP101: 0.059 | HQ101: 0.039 | HS101: 0.041 | HT101: 0.031 | HY101: 0.041 | IB101: 0.045 | IC101: 0.037 | IE101: 0.037 | IF101: 0.041 | IJ101: 0.055 | IK101: 0.033 | IL101: 0.037 | IP101: 0.044 | IR101: 0.04 | IS101: 0.051 | IT101: 0.05 | IV101: 0.049 | IW101: 0.043 | IX101: 0.042 | IY101: 0.041 | JA101: 0.036 | JD101: 0.05 | JF101: 0.037 | JG101: 0.046 | JI101: 0.053 | JM101: 0.048 | JN101: 0.036 | JO101: 0.033 | JP101: 0.032 | JR101: 0.049 | JT101: 0.042 | JW101: 0.056 | JX101: 0.061 | JY101: 0.035 | KA101: 0.042 | KD101: 0.041 | KE101: 0.048 | KF101: 0.054 | KH101: 0.048 | KI101: 0.054 | KJ101: 0.052 | KN101: 0.031 | KP101: 0.042 | KR101: 0.042 | KS101: 0.018 | KT101: 0.027 | KU101: 0.03 | KW101: 0.016 | LA101: 0.052 | LB101: 0.048 | LC101: 0.046 | LE101: 0.043 | LG101: 0.032 | LI101: 0.044 | LK101: 0.037 | LN101: 0.05 | LO101: 0.058 | LQ101: 0.027 | LR101: 0.022 | LS101: 0.025 | LU101: 0.022 | LW101: 0.02 | LY101: 0.03 | LZ101: 0.024
A102: 1997-04-07 | B102: Apr 07 | C102: 1997-04-07 | D102: 04-Apr 07 | E102: 4 | F102: 7 | G102: 1997 | H102: 0.049 | I102: 0.057 | J102: 0.049 | K102: 0.048 | L102: 0.048 | M102: 0.055 | N102: 0.067 | O102: 0.054 | P102: 0.058 | Q102: 0.054 | R102: 0.054 | S102: 0.044 | T102: 0.048 | U102: 0.049 | V102: 0.067 | W102: 0.053 | X102: 0.058 | Y102: 0.055 | Z102: 0.057 | AA102: 0.052 | AD102: 0.049 | AE102: 0.048 | AH102: 0.045 | AO102: 0.052 | AP102: 0.039 | AQ102: 0.049 | AR102: 0.048 | AS102: 0.052 | AT102: 0.051 | AV102: 0.055 | AY102: 0.042 | AZ102: 0.053 | BB102: 0.05 | BD102: 0.057 | BF102: 0.048 | BG102: 0.048 | BH102: 0.049 | BI102: 0.047 | BL102: 0.048 | BN102: 0.048 | BO102: 0.045 | BP102: 0.048 | BT102: 0.047 | BV102: 0.03 | CA102: 0.036 | CB102: 0.045 | CH102: 0.048 | CJ102: 0.052 | CK102: 0.048 | CM102: 0.048 | CN102: 0.042 | CR102: 0.047 | CS102: 0.05 | CT102: 0.052 | CY102: 0.049 | CZ102: 0.051 | DA102: 0.052 | DB102: 0.055 | DC102: 0.053 | DE102: 0.051 | DI102: 0.049 | DP102: 0.041 | DR102: 0.051 | DU102: 0.046 | DV102: 0.051 | DW102: 0.047 | EA102: 0.057 | EB102: 0.052 | EC102: 0.058 | ED102: 0.054 | EG102: 0.067 | EH102: 0.055 | EL102: 0.038 | EO102: 0.049 | EP102: 0.055 | ER102: 0.047 | ET102: 0.054 | EU102: 0.05 | EY102: 0.048 | FB102: 0.052 | FE102: 0.049 | FH102: 0.044 | FJ102: 0.045 | FK102: 0.051 | FQ102: 0.05 | FR102: 0.048 | FS102: 0.058 | FU102: 0.045 | FY102: 0.04 | FZ102: 0.054 | GA102: 0.049 | GC102: 0.043 | GE102: 0.051 | GF102: 0.043 | GG102: 0.051 | GH102: 0.052 | GJ102: 0.051 | GK102: 0.05 | GL102: 0.049 | GM102: 0.051 | GO102: 0.045 | GQ102: 0.043 | GS102: 0.037 | GU102: 0.036 | GW102: 0.037 | GX102: 0.041 | GZ102: 0.034 | HA102: 0.041 | HB102: 0.041 | HE102: 0.043 | HF102: 0.04 | HG102: 0.036 | HH102: 0.04 | HI102: 0.032 | HL102: 0.046 | HN102: 0.04 | HO102: 0.037 | HQ102: 0.051 | HS102: 0.054 | HT102: 0.044 | HY102: 0.051 | IC102: 0.033 | IE102: 0.041 | IF102: 0.047 | IJ102: 0.052 | IK102: 0.035 | IL102: 0.05 | IP102: 0.047 | IR102: 0.042 | IS102: 0.048 | IT102: 0.048 | IV102: 0.046 | IW102: 0.047 | IX102: 0.046 | IY102: 0.046 | JA102: 0.045 | JD102: 0.04 | JF102: 0.048 | JG102: 0.043 | JI102: 0.048 | JM102: 0.054 | JN102: 0.038 | JO102: 0.043 | JP102: 0.049 | JR102: 0.032 | JT102: 0.049 | JW102: 0.05 | JX102: 0.053 | JY102: 0.044 | KA102: 0.044 | KD102: 0.047 | KE102: 0.046 | KF102: 0.048 | KH102: 0.048 | KI102: 0.048 | KJ102: 0.044 | KN102: 0.051 | KP102: 0.049 | KR102: 0.047 | KS102: 0.038 | KT102: 0.046 | KU102: 0.044 | KW102: 0.039 | LA102: 0.046 | LB102: 0.041 | LC102: 0.044 | LE102: 0.038 | LG102: 0.044 | LK102: 0.044 | LN102: 0.048 | LO102: 0.046 | LQ102: 0.047 | LR102: 0.048 | LS102: 0.038 | LU102: 0.04 | LW102: 0.039 | LY102: 0.049 | LZ102: 0.04
A103: 1997-04-08 | B103: Apr 08 | C103: 1997-04-08 | D103: 04-Apr 08 | E103: 4 | F103: 8 | G103: 1997 | H103: 0.044 | I103: 0.049 | J103: 0.044 | K103: 0.045 | L103: 0.047 | M103: 0.054 | N103: 0.059 | O103: 0.045 | P103: 0.049 | Q103: 0.049 | R103: 0.058 | S103: 0.049 | T103: 0.044 | U103: 0.048 | V103: 0.059 | W103: 0.049 | X103: 0.049 | Y103: 0.054 | Z103: 0.049 | AA103: 0.049 | AD103: 0.044 | AE103: 0.04 | AH103: 0.042 | AO103: 0.048 | AP103: 0.045 | AQ103: 0.044 | AR103: 0.043 | AS103: 0.049 | AT103: 0.045 | AV103: 0.048 | AY103: 0.042 | AZ103: 0.047 | BB103: 0.046 | BD103: 0.049 | BF103: 0.043 | BG103: 0.042 | BH103: 0.044 | BI103: 0.039 | BL103: 0.044 | BN103: 0.045 | BO103: 0.044 | BP103: 0.045 | BT103: 0.045 | BV103: 0.037 | CA103: 0.043 | CB103: 0.047 | CH103: 0.045 | CJ103: 0.049 | CK103: 0.045 | CM103: 0.045 | CN103: 0.04 | CR103: 0.045 | CS103: 0.044 | CT103: 0.053 | CY103: 0.048 | CZ103: 0.048 | DA103: 0.048 | DB103: 0.054 | DC103: 0.053 | DE103: 0.05 | DI103: 0.046 | DP103: 0.044 | DR103: 0.047 | DU103: 0.039 | DV103: 0.049 | DW103: 0.043 | EA103: 0.049 | EB103: 0.043 | ED103: 0.047 | EG103: 0.059 | EH103: 0.05 | EL103: 0.034 | EO103: 0.047 | EP103: 0.046 | ER103: 0.04 | ET103: 0.045 | EU103: 0.043 | EY103: 0.04 | FB103: 0.044 | FE103: 0.045 | FH103: 0.037 | FJ103: 0.041 | FK103: 0.045 | FQ103: 0.041 | FR103: 0.04 | FS103: 0.049 | FU103: 0.041 | FY103: 0.036 | FZ103: 0.046 | GA103: 0.045 | GC103: 0.041 | GE103: 0.043 | GF103: 0.043 | GG103: 0.048 | GH103: 0.048 | GJ103: 0.046 | GK103: 0.046 | GL103: 0.048 | GM103: 0.046 | GO103: 0.044 | GQ103: 0.042 | GS103: 0.035 | GU103: 0.033 | GW103: 0.039 | GX103: 0.038 | GZ103: 0.035 | HA103: 0.041 | HB103: 0.041 | HE103: 0.042 | HG103: 0.039 | HH103: 0.04 | HI103: 0.033 | HL103: 0.045 | HN103: 0.038 | HO103: 0.038 | HP103: 0.033 | HQ103: 0.047 | HS103: 0.049 | HT103: 0.039 | HY103: 0.045 | IB103: 0.041 | IC103: 0.035 | IE103: 0.04 | IF103: 0.043 | IJ103: 0.048 | IK103: 0.037 | IL103: 0.047 | IP103: 0.046 | IR103: 0.038 | IS103: 0.046 | IT103: 0.047 | IV103: 0.044 | IW103: 0.043 | IY103: 0.045 | JA103: 0.043 | JD103: 0.041 | JF103: 0.044 | JG103: 0.043 | JI103: 0.046 | JM103: 0.058 | JN103: 0.039 | JO103: 0.044 | JP103: 0.042 | JR103: 0.035 | JT103: 0.048 | JW103: 0.048 | JX103: 0.046 | JY103: 0.041 | KA103: 0.035 | KD103: 0.046 | KE103: 0.045 | KF103: 0.048 | KH103: 0.046 | KI103: 0.044 | KJ103: 0.038 | KP103: 0.046 | KR103: 0.048 | KS103: 0.034 | KT103: 0.043 | KU103: 0.042 | KW103: 0.036 | LA103: 0.048 | LC103: 0.044 | LE103: 0.037 | LG103: 0.041 | LI103: 0.049 | LN103: 0.044 | LO103: 0.041 | LQ103: 0.047 | LR103: 0.045 | LS103: 0.038 | LU103: 0.036 | LW103: 0.036 | LY103: 0.048 | LZ103: 0.039
A104: 1997-04-09 | B104: Apr 09 | C104: 1997-04-09 | D104: 04-Apr 09 | E104: 4 | F104: 9 | G104: 1997 | H104: 0.038 | I104: 0.043 | J104: 0.041 | K104: 0.038 | L104: 0.039 | M104: 0.045 | N104: 0.05 | O104: 0.041 | P104: 0.046 | Q104: 0.044 | R104: 0.048 | S104: 0.039 | T104: 0.042 | U104: 0.04 | V104: 0.05 | W104: 0.044 | X104: 0.046 | Y104: 0.044 | Z104: 0.042 | AA104: 0.045 | AD104: 0.035 | AE104: 0.038 | AH104: 0.031 | AO104: 0.043 | AP104: 0.034 | AQ104: 0.038 | AR104: 0.039 | AS104: 0.041 | AT104: 0.038 | AV104: 0.042 | AW104: 0.037 | AY104: 0.037 | AZ104: 0.039 | BB104: 0.039 | BD104: 0.039 | BF104: 0.039 | BG104: 0.041 | BH104: 0.041 | BI104: 0.04 | BL104: 0.039 | BN104: 0.037 | BO104: 0.037 | BP104: 0.038 | BT104: 0.031 | BV104: 0.026 | CA104: 0.034 | CB104: 0.038 | CF104: 0.039 | CH104: 0.033 | CI104: 0.034 | CJ104: 0.042 | CK104: 0.045 | CM104: 0.042 | CN104: 0.036 | CR104: 0.043 | CS104: 0.043 | CT104: 0.041 | CY104: 0.043 | CZ104: 0.044 | DA104: 0.045 | DB104: 0.044 | DC104: 0.044 | DE104: 0.041 | DI104: 0.043 | DP104: 0.035 | DR104: 0.036 | DU104: 0.03 | DV104: 0.039 | DW104: 0.034 | EA104: 0.04 | EB104: 0.04 | EC104: 0.044 | ED104: 0.042 | EG104: 0.05 | EH104: 0.04 | EL104: 0.034 | EO104: 0.036 | EP104: 0.04 | ER104: 0.036 | ET104: 0.041 | EU104: 0.037 | EY104: 0.037 | FB104: 0.04 | FE104: 0.037 | FH104: 0.035 | FJ104: 0.033 | FK104: 0.038 | FQ104: 0.037 | FR104: 0.035 | FS104: 0.046 | FU104: 0.038 | FY104: 0.035 | FZ104: 0.043 | GA104: 0.039 | GC104: 0.038 | GE104: 0.042 | GF104: 0.04 | GG104: 0.044 | GH104: 0.044 | GJ104: 0.041 | GL104: 0.044 | GM104: 0.044 | GO104: 0.042 | GQ104: 0.04 | GS104: 0.026 | GU104: 0.03 | GW104: 0.044 | GX104: 0.041 | GZ104: 0.039 | HA104: 0.042 | HB104: 0.043 | HE104: 0.044 | HF104: 0.043 | HG104: 0.042 | HH104: 0.043 | HI104: 0.038 | HL104: 0.043 | HN104: 0.042 | HO104: 0.041 | HP104: 0.039 | HQ104: 0.044 | HS104: 0.044 | HT104: 0.033 | HY104: 0.039 | IB104: 0.041 | IC104: 0.034 | IE104: 0.039 | IF104: 0.041 | IJ104: 0.044 | IK104: 0.044 | IL104: 0.043 | IP104: 0.043 | IR104: 0.028 | IT104: 0.046 | IV104: 0.039 | IW104: 0.04 | IX104: 0.037 | IY104: 0.044 | JA104: 0.035 | JD104: 0.044 | JF104: 0.04 | JG104: 0.037 | JI104: 0.046 | JM104: 0.048 | JN104: 0.041 | JO104: 0.043 | JP104: 0.041 | JT104: 0.046 | JW104: 0.043 | JX104: 0.044 | JY104: 0.042 | KA104: 0.038 | KD104: 0.043 | KE104: 0.041 | KF104: 0.044 | KH104: 0.045 | KJ104: 0.042 | KN104: 0.045 | KP104: 0.043 | KR104: 0.046 | KS104: 0.033 | KT104: 0.043 | KU104: 0.041 | KW104: 0.034 | LA104: 0.039 | LB104: 0.033 | LC104: 0.037 | LE104: 0.036 | LG104: 0.04 | LI104: 0.039 | LK104: 0.038 | LN104: 0.042 | LO104: 0.039 | LQ104: 0.037 | LR104: 0.038 | LS104: 0.031 | LU104: 0.034 | LW104: 0.033 | LY104: 0.04 | LZ104: 0.033
A105: 1997-04-10 | B105: Apr 10 | C105: 1997-04-10 | D105: 04-Apr 10 | E105: 4 | F105: 10 | G105: 1997 | H105: 0.044 | I105: 0.049 | J105: 0.043 | K105: 0.04 | L105: 0.05 | M105: 0.047 | N105: 0.059 | O105: 0.048 | P105: 0.05 | Q105: 0.049 | R105: 0.05 | S105: 0.048 | T105: 0.048 | U105: 0.048 | V105: 0.059 | W105: 0.05 | X105: 0.048 | Y105: 0.048 | Z105: 0.049 | AA105: 0.046 | AD105: 0.044 | AE105: 0.043 | AH105: 0.042 | AN105: 0.042 | AO105: 0.048 | AP105: 0.04 | AQ105: 0.043 | AR105: 0.045 | AS105: 0.044 | AT105: 0.044 | AV105: 0.049 | AW105: 0.043 | AY105: 0.038 | AZ105: 0.047 | BB105: 0.046 | BD105: 0.048 | BF105: 0.042 | BG105: 0.043 | BH105: 0.04 | BI105: 0.042 | BL105: 0.039 | BN105: 0.037 | BO105: 0.034 | BP105: 0.04 | BT105: 0.043 | BV105: 0.036 | CA105: 0.043 | CB105: 0.045 | CF105: 0.05 | CH105: 0.044 | CI105: 0.045 | CJ105: 0.044 | CK105: 0.046 | CM105: 0.044 | CN105: 0.039 | CP105: 0.04 | CR105: 0.046 | CS105: 0.042 | CT105: 0.042 | CY105: 0.046 | CZ105: 0.045 | DA105: 0.047 | DB105: 0.047 | DC105: 0.046 | DE105: 0.042 | DI105: 0.045 | DP105: 0.042 | DR105: 0.046 | DU105: 0.041 | DV105: 0.048 | DW105: 0.044 | EA105: 0.049 | EB105: 0.046 | EC105: 0.051 | ED105: 0.048 | EG105: 0.059 | EH105: 0.049 | EL105: 0.04 | EO105: 0.046 | EP105: 0.047 | ER105: 0.043 | ET105: 0.048 | EU105: 0.046 | EY105: 0.04 | FB105: 0.046 | FE105: 0.044 | FH105: 0.039 | FJ105: 0.041 | FQ105: 0.045 | FR105: 0.043 | FS105: 0.046 | FU105: 0.043 | FY105: 0.037 | FZ105: 0.044 | GA105: 0.04 | GC105: 0.042 | GE105: 0.043 | GF105: 0.047 | GG105: 0.05 | GH105: 0.048 | GJ105: 0.046 | GK105: 0.043 | GL105: 0.049 | GM105: 0.048 | GO105: 0.045 | GQ105: 0.045 | GS105: 0.032 | GU105: 0.036 | GW105: 0.048 | GX105: 0.043 | GY105: 0.047 | GZ105: 0.042 | HA105: 0.047 | HB105: 0.047 | HE105: 0.047 | HF105: 0.047 | HG105: 0.046 | HH105: 0.047 | HI105: 0.04 | HL105: 0.046 | HN105: 0.043 | HO105: 0.045 | HP105: 0.044 | HQ105: 0.048 | HS105: 0.048 | HT105: 0.04 | HY105: 0.047 | IB105: 0.045 | IC105: 0.04 | IE105: 0.044 | IF105: 0.044 | IJ105: 0.049 | IK105: 0.047 | IL105: 0.046 | IP105: 0.049 | IR105: 0.035 | IS105: 0.045 | IT105: 0.05 | IV105: 0.046 | IW105: 0.046 | IX105: 0.044 | IY105: 0.047 | JA105: 0.038 | JD105: 0.046 | JF105: 0.045 | JG105: 0.04 | JI105: 0.049 | JM105: 0.045 | JN105: 0.042 | JO105: 0.043 | JP105: 0.044 | JR105: 0.044 | JT105: 0.049 | JW105: 0.048 | JX105: 0.047 | JY105: 0.044 | KA105: 0.032 | KD105: 0.048 | KE105: 0.045 | KF105: 0.049 | KH105: 0.048 | KJ105: 0.047 | KN105: 0.046 | KR105: 0.046 | KS105: 0.035 | KT105: 0.044 | KU105: 0.042 | KW105: 0.037 | LA105: 0.044 | LB105: 0.038 | LC105: 0.042 | LE105: 0.037 | LG105: 0.041 | LI105: 0.048 | LJ105: 0.041 | LK105: 0.042 | LN105: 0.048 | LO105: 0.046 | LQ105: 0.039 | LR105: 0.044 | LS105: 0.031 | LU105: 0.034 | LW105: 0.035 | LY105: 0.048 | LZ105: 0.033
A106: 1997-04-11 | B106: Apr 11 | C106: 1997-04-11 | D106: 04-Apr 11 | E106: 4 | F106: 11 | G106: 1997 | H106: 0.05 | I106: 0.056 | J106: 0.049 | K106: 0.033 | L106: 0.057 | M106: 0.059 | N106: 0.064 | O106: 0.052 | P106: 0.05 | Q106: 0.054 | R106: 0.051 | S106: 0.051 | T106: 0.052 | U106: 0.04 | V106: 0.064 | W106: 0.047 | X106: 0.05 | Y106: 0.059 | Z106: 0.056 | AA106: 0.054 | AD106: 0.05 | AE106: 0.049 | AH106: 0.049 | AO106: 0.041 | AP106: 0.033 | AQ106: 0.046 | AR106: 0.042 | AS106: 0.045 | AT106: 0.05 | AV106: 0.054 | AW106: 0.047 | AY106: 0.034 | AZ106: 0.047 | BB106: 0.048 | BD106: 0.056 | BF106: 0.043 | BG106: 0.032 | BH106: 0.041 | BI106: 0.035 | BL106: 0.049 | BN106: 0.028 | BO106: 0.033 | BP106: 0.031 | BT106: 0.049 | BV106: 0.044 | CA106: 0.048 | CB106: 0.051 | CF106: 0.057 | CH106: 0.047 | CI106: 0.047 | CJ106: 0.054 | CK106: 0.036 | CM106: 0.026 | CN106: 0.031 | CP106: 0.059 | CS106: 0.042 | CT106: 0.052 | CY106: 0.038 | CZ106: 0.038 | DA106: 0.044 | DB106: 0.035 | DC106: 0.044 | DE106: 0.043 | DI106: 0.026 | DP106: 0.047 | DR106: 0.05 | DU106: 0.044 | DV106: 0.047 | DW106: 0.042 | EA106: 0.055 | EB106: 0.05 | EC106: 0.055 | ED106: 0.052 | EG106: 0.064 | EH106: 0.055 | EL106: 0.016 | EO106: 0.051 | EP106: 0.053 | ER106: 0.05 | ET106: 0.05 | EU106: 0.049 | EY106: 0.048 | FB106: 0.052 | FE106: 0.048 | FH106: 0.045 | FJ106: 0.042 | FK106: 0.048 | FQ106: 0.049 | FR106: 0.049 | FS106: 0.05 | FU106: 0.038 | FY106: 0.031 | FZ106: 0.048 | GA106: 0.044 | GC106: 0.035 | GE106: 0.044 | GF106: 0.038 | GG106: 0.042 | GH106: 0.037 | GJ106: 0.042 | GK106: 0.04 | GL106: 0.045 | GM106: 0.044 | GO106: 0.034 | GQ106: 0.049 | GS106: 0.029 | GU106: 0.033 | GW106: 0.047 | GX106: 0.048 | GY106: 0.052 | GZ106: 0.044 | HA106: 0.053 | HB106: 0.051 | HE106: 0.051 | HF106: 0.051 | HG106: 0.051 | HH106: 0.05 | HI106: 0.043 | HL106: 0.037 | HN106: 0.046 | HO106: 0.048 | HP106: 0.049 | HQ106: 0.052 | HS106: 0.052 | HT106: 0.034 | HY106: 0.041 | IB106: 0.048 | IC106: 0.041 | IE106: 0.036 | IF106: 0.041 | IJ106: 0.054 | IK106: 0.05 | IL106: 0.047 | IP106: 0.032 | IR106: 0.023 | IS106: 0.034 | IT106: 0.039 | IV106: 0.042 | IW106: 0.032 | IX106: 0.036 | IY106: 0.037 | JA106: 0.037 | JD106: 0.039 | JF106: 0.027 | JG106: 0.036 | JI106: 0.046 | JM106: 0.051 | JN106: 0.035 | JO106: 0.032 | JP106: 0.039 | JR106: 0.042 | JT106: 0.046 | JW106: 0.051 | JX106: 0.05 | JY106: 0.038 | KA106: 0.026 | KD106: 0.04 | KE106: 0.047 | KF106: 0.051 | KH106: 0.047 | KJ106: 0.039 | KN106: 0.03 | KP106: 0.04 | KR106: 0.043 | KS106: 0.022 | KT106: 0.03 | KU106: 0.027 | KW106: 0.025 | LA106: 0.034 | LB106: 0.028 | LC106: 0.036 | LE106: 0.035 | LG106: 0.04 | LI106: 0.051 | LK106: 0.046 | LN106: 0.052 | LO106: 0.052 | LQ106: 0.031 | LR106: 0.035 | LS106: 0.036 | LU106: 0.025 | LW106: 0.023 | LY106: 0.04 | LZ106: 0.032
A107: 1997-04-12 | B107: Apr 12 | C107: 1997-04-12 | D107: 04-Apr 12 | E107: 4 | F107: 12 | G107: 1997 | H107: 0.05 | I107: 0.06 | J107: 0.042 | K107: 0.028 | L107: 0.057 | M107: 0.045 | N107: 0.055 | O107: 0.057 | P107: 0.052 | Q107: 0.055 | R107: 0.042 | S107: 0.055 | T107: 0.053 | U107: 0.033 | V107: 0.06 | W107: 0.055 | X107: 0.052 | Y107: 0.043 | Z107: 0.06 | AA107: 0.045 | AD107: 0.05 | AE107: 0.049 | AH107: 0.05 | AO107: 0.05 | AP107: 0.038 | AQ107: 0.04 | AR107: 0.052 | AS107: 0.052 | AT107: 0.047 | AV107: 0.051 | AW107: 0.05 | AY107: 0.03 | AZ107: 0.055 | BB107: 0.06 | BD107: 0.056 | BF107: 0.042 | BG107: 0.032 | BH107: 0.038 | BI107: 0.033 | BL107: 0.041 | BN107: 0.02 | BO107: 0.028 | BP107: 0.02 | BT107: 0.053 | BV107: 0.047 | CA107: 0.051 | CB107: 0.055 | CF107: 0.057 | CH107: 0.052 | CI107: 0.055 | CJ107: 0.038 | CK107: 0.04 | CM107: 0.025 | CN107: 0.029 | CP107: 0.043 | CS107: 0.041 | CT107: 0.04 | CY107: 0.045 | CZ107: 0.043 | DA107: 0.043 | DB107: 0.036 | DC107: 0.034 | DE107: 0.037 | DI107: 0.025 | DP107: 0.053 | DR107: 0.05 | DU107: 0.044 | DV107: 0.051 | DW107: 0.055 | EA107: 0.045 | EB107: 0.044 | EC107: 0.05 | ED107: 0.049 | EG107: 0.051 | EH107: 0.041 | EL107: 0.039 | EO107: 0.054 | EP107: 0.047 | ER107: 0.047 | ET107: 0.05 | EU107: 0.05 | EY107: 0.052 | FB107: 0.046 | FE107: 0.042 | FH107: 0.038 | FJ107: 0.051 | FK107: 0.057 | FQ107: 0.048 | FR107: 0.045 | FS107: 0.052 | FU107: 0.019 | FY107: 0.032 | FZ107: 0.049 | GA107: 0.049 | GC107: 0.012 | GE107: 0.044 | GF107: 0.027 | GG107: 0.037 | GH107: 0.029 | GJ107: 0.041 | GK107: 0.047 | GL107: 0.037 | GM107: 0.048 | GO107: 0.025 | GQ107: 0.047 | GS107: 0.011 | GU107: 0.021 | GW107: 0.033 | GX107: 0.036 | GY107: 0.046 | GZ107: 0.034 | HA107: 0.055 | HB107: 0.051 | HE107: 0.052 | HF107: 0.052 | HG107: 0.047 | HH107: 0.045 | HI107: 0.033 | HL107: 0.048 | HN107: 0.039 | HO107: 0.046 | HP107: 0.04 | HQ107: 0.038 | HS107: 0.045 | HT107: 0.03 | HY107: 0.044 | IB107: 0.049 | IC107: 0.038 | IE107: 0.043 | IF107: 0.047 | IJ107: 0.048 | IK107: 0.029 | IL107: 0.039 | IP107: 0.035 | IR107: 0.03 | IS107: 0.037 | IT107: 0.04 | IV107: 0.038 | IW107: 0.036 | IX107: 0.034 | IY107: 0.022 | JA107: 0.018 | JD107: 0.018 | JF107: 0.041 | JG107: 0.021 | JN107: 0.011 | JO107: 0.012 | JP107: 0.042 | JR107: 0.017 | JT107: 0.041 | JW107: 0.035 | JX107: 0.034 | JY107: 0.034 | KA107: 0.034 | KD107: 0.021 | KE107: 0.024 | KF107: 0.03 | KH107: 0.026 | KJ107: 0.032 | KN107: 0.032 | KP107: 0.022 | KR107: 0.021 | KS107: 0.022 | KT107: 0.029 | KU107: 0.031 | KW107: 0.02 | LA107: 0.033 | LB107: 0.034 | LC107: 0.034 | LE107: 0.029 | LG107: 0.023 | LI107: 0.055 | LK107: 0.044 | LN107: 0.053 | LO107: 0.051 | LQ107: 0.031 | LR107: 0.023 | LS107: 0.032 | LU107: 0.02 | LW107: 0.023 | LY107: 0.033 | LZ107: 0.026
A108: 1997-04-13 | B108: Apr 13 | C108: 1997-04-13 | D108: 04-Apr 13 | E108: 4 | F108: 13 | G108: 1997 | H108: 0.051 | I108: 0.049 | J108: 0.045 | K108: 0.041 | L108: 0.049 | M108: 0.048 | N108: 0.048 | O108: 0.049 | P108: 0.052 | Q108: 0.049 | R108: 0.047 | S108: 0.035 | T108: 0.041 | U108: 0.043 | V108: 0.052 | W108: 0.05 | X108: 0.052 | Y108: 0.045 | Z108: 0.041 | AA108: 0.045 | AD108: 0.042 | AE108: 0.041 | AH108: 0.043 | AN108: 0.051 | AO108: 0.049 | AP108: 0.036 | AQ108: 0.04 | AR108: 0.04 | AS108: 0.042 | AT108: 0.034 | AV108: 0.041 | AW108: 0.034 | AY108: 0.035 | AZ108: 0.04 | BB108: 0.037 | BD108: 0.036 | BF108: 0.044 | BG108: 0.045 | BH108: 0.043 | BI108: 0.043 | BL108: 0.042 | BN108: 0.04 | BO108: 0.04 | BP108: 0.041 | BT108: 0.046 | BV108: 0.037 | CA108: 0.044 | CB108: 0.045 | CF108: 0.049 | CH108: 0.046 | CI108: 0.045 | CJ108: 0.043 | CK108: 0.044 | CM108: 0.044 | CN108: 0.038 | CP108: 0.044 | CS108: 0.045 | CT108: 0.042 | CY108: 0.044 | CZ108: 0.045 | DA108: 0.048 | DB108: 0.045 | DC108: 0.044 | DE108: 0.045 | DI108: 0.045 | DP108: 0.036 | DR108: 0.031 | DU108: 0.031 | DV108: 0.037 | DW108: 0.041 | EA108: 0.039 | EB108: 0.036 | EC108: 0.043 | ED108: 0.039 | EG108: 0.048 | EH108: 0.039 | EL108: 0.026 | EO108: 0.033 | EP108: 0.04 | ER108: 0.044 | ET108: 0.045 | EU108: 0.037 | EY108: 0.039 | FB108: 0.041 | FE108: 0.032 | FH108: 0.033 | FJ108: 0.041 | FK108: 0.049 | FQ108: 0.042 | FR108: 0.038 | FS108: 0.052 | FU108: 0.045 | FY108: 0.038 | FZ108: 0.049 | GA108: 0.046 | GC108: 0.043 | GE108: 0.046 | GF108: 0.045 | GG108: 0.05 | GH108: 0.05 | GJ108: 0.05 | GK108: 0.047 | GL108: 0.048 | GM108: 0.05 | GO108: 0.046 | GQ108: 0.038 | GS108: 0.034 | GU108: 0.037 | GW108: 0.045 | GX108: 0.035 | GY108: 0.041 | GZ108: 0.034 | HA108: 0.044 | HB108: 0.015 | HE108: 0.043 | HF108: 0.042 | HG108: 0.039 | HH108: 0.041 | HI108: 0.033 | HL108: 0.048 | HN108: 0.038 | HO108: 0.038 | HP108: 0.035 | HQ108: 0.043 | HS108: 0.043 | HT108: 0.043 | HY108: 0.049 | IB108: 0.039 | IC108: 0.032 | IE108: 0.043 | IF108: 0.042 | IJ108: 0.044 | IK108: 0.043 | IL108: 0.049 | IP108: 0.041 | IR108: 0.032 | IS108: 0.041 | IT108: 0.042 | IV108: 0.041 | IW108: 0.04 | IX108: 0.039 | IY108: 0.045 | JA108: 0.041 | JD108: 0.042 | JF108: 0.047 | JG108: 0.042 | JI108: 0.044 | JN108: 0.044 | JO108: 0.043 | JP108: 0.047 | JR108: 0.04 | JT108: 0.045 | JW108: 0.045 | JX108: 0.043 | JY108: 0.045 | KA108: 0.041 | KD108: 0.045 | KE108: 0.043 | KF108: 0.046 | KH108: 0.044 | KJ108: 0.045 | KN108: 0.047 | KP108: 0.046 | KR108: 0.046 | KS108: 0.037 | KT108: 0.045 | KU108: 0.044 | KW108: 0.038 | LA108: 0.044 | LB108: 0.038 | LC108: 0.035 | LE108: 0.035 | LG108: 0.043 | LI108: 0.035 | LK108: 0.027 | LN108: 0.039 | LO108: 0.041 | LQ108: 0.041 | LR108: 0.039 | LS108: 0.036 | LW108: 0.035 | LY108: 0.043 | LZ108: 0.039
A109: 1997-04-14 | B109: Apr 14 | C109: 1997-04-14 | D109: 04-Apr 14 | E109: 4 | F109: 14 | G109: 1997 | H109: 0.044 | I109: 0.051 | J109: 0.046 | K109: 0.043 | L109: 0.051 | M109: 0.052 | N109: 0.058 | O109: 0.047 | P109: 0.052 | Q109: 0.048 | R109: 0.06 | S109: 0.049 | T109: 0.048 | U109: 0.05 | V109: 0.06 | W109: 0.05 | X109: 0.052 | Y109: 0.052 | Z109: 0.051 | AA109: 0.051 | AD109: 0.044 | AE109: 0.042 | AH109: 0.043 | AN109: 0.044 | AO109: 0.048 | AP109: 0.04 | AQ109: 0.043 | AR109: 0.045 | AS109: 0.043 | AT109: 0.045 | AV109: 0.051 | AW109: 0.046 | AY109: 0.04 | AZ109: 0.05 | BB109: 0.048 | BD109: 0.049 | BF109: 0.043 | BG109: 0.009 | BI109: 0.046 | BL109: 0.045 | BN109: 0.04 | BO109: 0.04 | BP109: 0.043 | BT109: 0.045 | BV109: 0.036 | CA109: 0.044 | CB109: 0.047 | CF109: 0.051 | CH109: 0.045 | CI109: 0.045 | CJ109: 0.05 | CK109: 0.051 | CM109: 0.048 | CN109: 0.044 | CP109: 0.047 | CR109: 0.049 | CS109: 0.046 | CT109: 0.046 | CY109: 0.049 | CZ109: 0.05 | DA109: 0.05 | DC109: 0.052 | DE109: 0.047 | DI109: 0.051 | DP109: 0.044 | DR109: 0.046 | DU109: 0.041 | DV109: 0.047 | DW109: 0.043 | EB109: 0.046 | EC109: 0.051 | ED109: 0.047 | EG109: 0.058 | EH109: 0.049 | EL109: 0.039 | EO109: 0.046 | EP109: 0.046 | ER109: 0.041 | ET109: 0.047 | EU109: 0.044 | EY109: 0.04 | FB109: 0.045 | FE109: 0.04 | FH109: 0.038 | FJ109: 0.04 | FK109: 0.046 | FQ109: 0.044 | FR109: 0.042 | FS109: 0.052 | FU109: 0.041 | FY109: 0.041 | FZ109: 0.049 | GA109: 0.044 | GC109: 0.039 | GE109: 0.048 | GF109: 0.045 | GG109: 0.049 | GH109: 0.048 | GJ109: 0.047 | GK109: 0.045 | GL109: 0.049 | GM109: 0.05 | GO109: 0.045 | GQ109: 0.045 | GS109: 0.033 | GU109: 0.036 | GW109: 0.048 | GX109: 0.043 | GY109: 0.048 | GZ109: 0.034 | HA109: 0.044 | HB109: 0.042 | HE109: 0.046 | HF109: 0.045 | HG109: 0.042 | HH109: 0.044 | HI109: 0.039 | HL109: 0.043 | HN109: 0.042 | HO109: 0.042 | HQ109: 0.046 | HS109: 0.048 | HT109: 0.039 | HY109: 0.042 | IB109: 0.045 | IC109: 0.039 | IE109: 0.041 | IF109: 0.043 | IJ109: 0.048 | IK109: 0.045 | IL109: 0.045 | IP109: 0.05 | IR109: 0.036 | IS109: 0.047 | IT109: 0.05 | IV109: 0.049 | IW109: 0.048 | IX109: 0.045 | IY109: 0.048 | JA109: 0.039 | JD109: 0.047 | JF109: 0.046 | JG109: 0.038 | JI109: 0.052 | JM109: 0.06 | JN109: 0.047 | JO109: 0.047 | JP109: 0.048 | JR109: 0.042 | JT109: 0.052 | JW109: 0.046 | JX109: 0.047 | JY109: 0.049 | KA109: 0.04 | KD109: 0.049 | KE109: 0.045 | KF109: 0.049 | KH109: 0.051 | KJ109: 0.046 | KN109: 0.05 | KP109: 0.049 | KR109: 0.05 | KS109: 0.036 | KT109: 0.048 | KU109: 0.046 | KW109: 0.039 | LA109: 0.045 | LB109: 0.041 | LC109: 0.039 | LE109: 0.039 | LG109: 0.045 | LI109: 0.049 | LJ109: 0.041 | LK109: 0.043 | LN109: 0.048 | LO109: 0.043 | LQ109: 0.041 | LS109: 0.034 | LU109: 0.038 | LW109: 0.036 | LY109: 0.05 | LZ109: 0.035
A110: 1997-04-15 | B110: Apr 15 | C110: 1997-04-15 | D110: 04-Apr 15 | E110: 4 | F110: 15 | G110: 1997 | H110: 0.047 | I110: 0.051 | J110: 0.052 | K110: 0.046 | L110: 0.054 | M110: 0.057 | N110: 0.063 | O110: 0.05 | P110: 0.051 | Q110: 0.061 | R110: 0.062 | S110: 0.051 | T110: 0.051 | U110: 0.051 | V110: 0.063 | W110: 0.049 | X110: 0.051 | Y110: 0.057 | Z110: 0.051 | AA110: 0.051 | AD110: 0.047 | AE110: 0.046 | AH110: 0.045 | AN110: 0.043 | AO110: 0.037 | AP110: 0.033 | AQ110: 0.044 | AR110: 0.04 | AS110: 0.046 | AT110: 0.048 | AV110: 0.051 | AW110: 0.046 | AY110: 0.034 | AZ110: 0.046 | BB110: 0.046 | BD110: 0.051 | BF110: 0.049 | BG110: 0.049 | BH110: 0.045 | BI110: 0.047 | BL110: 0.052 | BN110: 0.046 | BO110: 0.041 | BT110: 0.045 | BV110: 0.04 | CA110: 0.044 | CB110: 0.046 | CF110: 0.054 | CH110: 0.043 | CI110: 0.046 | CJ110: 0.051 | CK110: 0.05 | CM110: 0.05 | CN110: 0.031 | CP110: 0.057 | CR110: 0.049 | CS110: 0.044 | CT110: 0.05 | CY110: 0.042 | CZ110: 0.05 | DA110: 0.053 | DB110: 0.05 | DC110: 0.052 | DI110: 0.046 | DP110: 0.044 | DR110: 0.049 | DU110: 0.044 | DV110: 0.046 | DW110: 0.043 | EB110: 0.048 | EC110: 0.054 | ED110: 0.052 | EG110: 0.063 | EH110: 0.054 | EL110: 0.012 | EO110: 0.048 | EP110: 0.05 | ER110: 0.045 | ET110: 0.05 | EU110: 0.047 | EY110: 0.041 | FB110: 0.049 | FE110: 0.045 | FH110: 0.044 | FJ110: 0.043 | FK110: 0.046 | FQ110: 0.047 | FR110: 0.044 | FS110: 0.051 | FU110: 0.034 | FY110: 0.036 | FZ110: 0.045 | GA110: 0.046 | GC110: 0.029 | GE110: 0.045 | GF110: 0.029 | GG110: 0.048 | GH110: 0.048 | GJ110: 0.047 | GK110: 0.038 | GL110: 0.049 | GM110: 0.046 | GO110: 0.038 | GQ110: 0.049 | GS110: 0.031 | GU110: 0.035 | GW110: 0.059 | GX110: 0.052 | GY110: 0.05 | GZ110: 0.052 | HA110: 0.061 | HB110: 0.06 | HE110: 0.054 | HF110: 0.054 | HG110: 0.052 | HH110: 0.051 | HI110: 0.046 | HL110: 0.04 | HN110: 0.056 | HO110: 0.051 | HP110: 0.051 | HQ110: 0.05 | HS110: 0.048 | HT110: 0.031 | HY110: 0.03 | IB110: 0.05 | IC110: 0.043 | IE110: 0.036 | IF110: 0.04 | IJ110: 0.055 | IK110: 0.052 | IL110: 0.045 | IP110: 0.049 | IR110: 0.034 | IS110: 0.044 | IT110: 0.044 | IV110: 0.049 | IW110: 0.056 | IX110: 0.051 | IY110: 0.047 | JA110: 0.047 | JD110: 0.049 | JF110: 0.044 | JG110: 0.052 | JI110: 0.057 | JM110: 0.062 | JN110: 0.046 | JO110: 0.047 | JP110: 0.049 | JR110: 0.053 | JT110: 0.06 | JW110: 0.055 | JY110: 0.048 | KA110: 0.048 | KD110: 0.05 | KE110: 0.049 | KF110: 0.053 | KH110: 0.045 | KI110: 0.06 | KJ110: 0.059 | KN110: 0.048 | KP110: 0.05 | KR110: 0.055 | KS110: 0.037 | KT110: 0.046 | KU110: 0.044 | KW110: 0.036 | LA110: 0.054 | LB110: 0.048 | LC110: 0.052 | LE110: 0.037 | LG110: 0.046 | LI110: 0.051 | LK110: 0.041 | LN110: 0.051 | LO110: 0.049 | LQ110: 0.042 | LR110: 0.044 | LS110: 0.035 | LU110: 0.039 | LW110: 0.037 | LY110: 0.051
A111: 1997-04-16 | B111: Apr 16 | C111: 1997-04-16 | D111: 04-Apr 16 | E111: 4 | F111: 16 | G111: 1997 | H111: 0.063 | I111: 0.07 | J111: 0.069 | K111: 0.06 | L111: 0.069 | M111: 0.071 | N111: 0.075 | O111: 0.066 | P111: 0.076 | Q111: 0.068 | R111: 0.065 | S111: 0.064 | T111: 0.067 | U111: 0.066 | V111: 0.076 | W111: 0.068 | X111: 0.076 | Y111: 0.068 | Z111: 0.07 | AA111: 0.071 | AD111: 0.063 | AE111: 0.061 | AH111: 0.061 | AN111: 0.059 | AO111: 0.056 | AP111: 0.04 | AQ111: 0.052 | AR111: 0.062 | AS111: 0.049 | AT111: 0.047 | AV111: 0.063 | AW111: 0.06 | AY111: 0.045 | AZ111: 0.068 | BB111: 0.07 | BD111: 0.06 | BF111: 0.069 | BG111: 0.053 | BH111: 0.063 | BI111: 0.059 | BL111: 0.066 | BN111: 0.052 | BO111: 0.06 | BP111: 0.054 | BT111: 0.055 | BV111: 0.054 | CA111: 0.055 | CB111: 0.055 | CF111: 0.069 | CH111: 0.054 | CI111: 0.056 | CJ111: 0.067 | CK111: 0.067 | CM111: 0.054 | CN111: 0.06 | CR111: 0.06 | CS111: 0.064 | CT111: 0.067 | CY111: 0.071 | CZ111: 0.069 | DA111: 0.071 | DB111: 0.062 | DC111: 0.068 | DI111: 0.052 | DP111: 0.066 | DR111: 0.061 | DU111: 0.055 | DV111: 0.055 | DW111: 0.054 | EB111: 0.053 | EC111: 0.064 | EG111: 0.075 | EH111: 0.067 | EL111: 0.047 | EO111: 0.058 | EP111: 0.063 | ER111: 0.062 | ET111: 0.066 | EU111: 0.061 | EY111: 0.063 | FB111: 0.065 | FE111: 0.059 | FH111: 0.063 | FJ111: 0.052 | FK111: 0.053 | FQ111: 0.06 | FR111: 0.062 | FS111: 0.076 | FU111: 0.051 | FY111: 0.058 | FZ111: 0.074 | GA111: 0.07 | GC111: 0.045 | GE111: 0.068 | GF111: 0.058 | GG111: 0.06 | GH111: 0.061 | GJ111: 0.063 | GK111: 0.062 | GL111: 0.06 | GM111: 0.071 | GO111: 0.047 | GQ111: 0.061 | GS111: 0.029 | GU111: 0.035 | GW111: 0.048 | GX111: 0.048 | GY111: 0.056 | GZ111: 0.045 | HA111: 0.068 | HB111: 0.066 | HE111: 0.065 | HF111: 0.064 | HG111: 0.065 | HH111: 0.059 | HL111: 0.068 | HN111: 0.052 | HO111: 0.058 | HP111: 0.058 | HQ111: 0.057 | HS111: 0.055 | HT111: 0.05 | HY111: 0.066 | IB111: 0.06 | IC111: 0.051 | IE111: 0.06 | IF111: 0.058 | IJ111: 0.064 | IK111: 0.043 | IL111: 0.044 | IP111: 0.055 | IR111: 0.035 | IS111: 0.055 | IT111: 0.057 | IV111: 0.052 | IW111: 0.052 | IX111: 0.052 | IY111: 0.053 | JA111: 0.057 | JD111: 0.048 | JF111: 0.065 | JG111: 0.05 | JI111: 0.056 | JM111: 0.063 | JN111: 0.052 | JO111: 0.053 | JP111: 0.065 | JT111: 0.065 | JW111: 0.058 | JX111: 0.051 | JY111: 0.062 | KA111: 0.042 | KD111: 0.057 | KE111: 0.052 | KF111: 0.055 | KH111: 0.046 | KI111: 0.052 | KJ111: 0.049 | KN111: 0.053 | KP111: 0.057 | KR111: 0.056 | KS111: 0.046 | KT111: 0.059 | KU111: 0.059 | KW111: 0.05 | LA111: 0.057 | LB111: 0.047 | LC111: 0.053 | LE111: 0.043 | LG111: 0.06 | LI111: 0.064 | LK111: 0.051 | LN111: 0.066 | LO111: 0.067 | LQ111: 0.06 | LR111: 0.052 | LS111: 0.051 | LU111: 0.049 | LW111: 0.034 | LY111: 0.066 | LZ111: 0.053
A112: 1997-04-17 | B112: Apr 17 | C112: 1997-04-17 | D112: 04-Apr 17 | E112: 4 | F112: 17 | G112: 1997 | H112: 0.068 | I112: 0.062 | J112: 0.044 | K112: 0.031 | L112: 0.067 | M112: 0.041 | N112: 0.06 | O112: 0.057 | P112: 0.052 | Q112: 0.051 | R112: 0.049 | S112: 0.052 | T112: 0.053 | U112: 0.039 | V112: 0.067 | W112: 0.059 | X112: 0.052 | Y112: 0.039 | Z112: 0.062 | AA112: 0.041 | AD112: 0.053 | AE112: 0.053 | AH112: 0.062 | AN112: 0.068 | AO112: 0.045 | AP112: 0.03 | AQ112: 0.036 | AR112: 0.054 | AS112: 0.054 | AT112: 0.035 | AV112: 0.047 | AW112: 0.048 | AY112: 0.031 | AZ112: 0.059 | BB112: 0.062 | BD112: 0.052 | BF112: 0.039 | BG112: 0.029 | BH112: 0.034 | BI112: 0.038 | BL112: 0.044 | BN112: 0.031 | BO112: 0.03 | BP112: 0.031 | BT112: 0.058 | BV112: 0.052 | BW112: 0.067 | CA112: 0.059 | CB112: 0.061 | CF112: 0.057 | CH112: 0.054 | CI112: 0.053 | CJ112: 0.035 | CK112: 0.036 | CM112: 0.039 | CN112: 0.033 | CP112: 0.034 | CR112: 0.041 | CS112: 0.037 | CT112: 0.037 | CY112: 0.037 | DA112: 0.04 | DB112: 0.037 | DC112: 0.039 | DI112: 0.039 | DP112: 0.06 | DR112: 0.058 | DU112: 0.035 | DV112: 0.048 | DW112: 0.057 | EA112: 0.041 | EB112: 0.037 | EC112: 0.043 | ED112: 0.044 | EG112: 0.05 | EL112: 0.041 | EO112: 0.044 | EP112: 0.047 | ER112: 0.042 | ET112: 0.051 | EU112: 0.032 | EY112: 0.051 | FB112: 0.036 | FE112: 0.031 | FH112: 0.029 | FJ112: 0.051 | FK112: 0.057 | FQ112: 0.041 | FR112: 0.036 | FS112: 0.052 | FU112: 0.028 | FY112: 0.021 | FZ112: 0.038 | GA112: 0.035 | GC112: 0.033 | GE112: 0.031 | GF112: 0.034 | GG112: 0.042 | GH112: 0.038 | GJ112: 0.036 | GK112: 0.031 | GL112: 0.044 | GM112: 0.036 | GO112: 0.038 | GQ112: 0.038 | GS112: 0.023 | GU112: 0.026 | GW112: 0.029 | GX112: 0.025 | GY112: 0.036 | GZ112: 0.028 | HA112: 0.051 | HB112: 0.05 | HE112: 0.051 | HF112: 0.05 | HG112: 0.044 | HH112: 0.039 | HI112: 0.027 | HL112: 0.036 | HN112: 0.031 | HO112: 0.041 | HP112: 0.03 | HQ112: 0.038 | HS112: 0.038 | HT112: 0.023 | HY112: 0.031 | IB112: 0.037 | IC112: 0.036 | IE112: 0.03 | IF112: 0.045 | IJ112: 0.042 | IK112: 0.03 | IL112: 0.039 | IP112: 0.035 | IR112: 0.021 | IS112: 0.033 | IT112: 0.04 | IV112: 0.03 | IW112: 0.033 | IX112: 0.03 | IY112: 0.041 | JA112: 0.032 | JD112: 0.042 | JF112: 0.031 | JG112: 0.033 | JI112: 0.047 | JM112: 0.049 | JN112: 0.042 | JO112: 0.042 | JP112: 0.029 | JT112: 0.048 | JW112: 0.037 | JX112: 0.034 | JY112: 0.039 | KA112: 0.027 | KD112: 0.037 | KE112: 0.036 | KF112: 0.036 | KH112: 0.039 | KI112: 0.042 | KJ112: 0.034 | KN112: 0.033 | KP112: 0.039 | KR112: 0.047 | KS112: 0.024 | KT112: 0.031 | KU112: 0.032 | KW112: 0.021 | LA112: 0.031 | LB112: 0.026 | LC112: 0.029 | LE112: 0.032 | LG112: 0.04 | LI112: 0.052 | LJ112: 0.04 | LK112: 0.049 | LN112: 0.039 | LO112: 0.053 | LQ112: 0.029 | LR112: 0.032 | LS112: 0.026 | LU112: 0.028 | LW112: 0.03 | LY112: 0.039 | LZ112: 0.029
A113: 1997-04-18 | B113: Apr 18 | C113: 1997-04-18 | D113: 04-Apr 18 | E113: 4 | F113: 18 | G113: 1997 | H113: 0.045 | I113: 0.055 | J113: 0.04 | K113: 0.043 | L113: 0.059 | M113: 0.047 | N113: 0.056 | O113: 0.061 | P113: 0.043 | Q113: 0.05 | R113: 0.054 | S113: 0.042 | T113: 0.042 | U113: 0.044 | V113: 0.061 | W113: 0.055 | X113: 0.043 | Y113: 0.047 | Z113: 0.045 | AA113: 0.045 | AD113: 0.044 | AE113: 0.045 | AH113: 0.044 | AN113: 0.036 | AO113: 0.036 | AP113: 0.035 | AQ113: 0.036 | AR113: 0.033 | AS113: 0.055 | AT113: 0.041 | AV113: 0.039 | AW113: 0.036 | AY113: 0.035 | AZ113: 0.039 | BB113: 0.041 | BD113: 0.045 | BF113: 0.04 | BG113: 0.04 | BH113: 0.04 | BI113: 0.04 | BL113: 0.037 | BN113: 0.043 | BO113: 0.039 | BP113: 0.039 | BT113: 0.055 | BV113: 0.036 | BW113: 0.048 | CA113: 0.049 | CB113: 0.053 | CF113: 0.052 | CH113: 0.053 | CI113: 0.059 | CJ113: 0.039 | CK113: 0.042 | CM113: 0.042 | CN113: 0.037 | CP113: 0.047 | CR113: 0.042 | CS113: 0.038 | CT113: 0.041 | CY113: 0.041 | CZ113: 0.045 | DA113: 0.044 | DB113: 0.043 | DC113: 0.046 | DI113: 0.042 | DP113: 0.047 | DR113: 0.045 | DU113: 0.04 | DV113: 0.048 | DW113: 0.056 | EA113: 0.044 | EB113: 0.042 | EC113: 0.045 | ED113: 0.043 | EG113: 0.055 | EH113: 0.043 | EL113: 0.03 | EO113: 0.05 | EP113: 0.049 | ER113: 0.042 | ET113: 0.051 | EU113: 0.04 | EY113: 0.04 | FB113: 0.048 | FE113: 0.044 | FH113: 0.042 | FJ113: 0.055 | FK113: 0.061 | FQ113: 0.052 | FR113: 0.037 | FS113: 0.043 | FU113: 0.032 | FY113: 0.033 | FZ113: 0.042 | GA113: 0.042 | GC113: 0.033 | GE113: 0.04 | GF113: 0.034 | GG113: 0.04 | GH113: 0.041 | GJ113: 0.038 | GK113: 0.035 | GL113: 0.04 | GM113: 0.039 | GO113: 0.039 | GQ113: 0.031 | GS113: 0.025 | GU113: 0.026 | GW113: 0.038 | GX113: 0.034 | GY113: 0.035 | GZ113: 0.034 | HA113: 0.05 | HB113: 0.041 | HE113: 0.04 | HF113: 0.039 | HG113: 0.041 | HH113: 0.041 | HI113: 0.033 | HL113: 0.036 | HN113: 0.035 | HO113: 0.039 | HP113: 0.039 | HS113: 0.038 | HT113: 0.027 | HY113: 0.035 | IB113: 0.033 | IC113: 0.023 | IE113: 0.033 | IF113: 0.034 | IJ113: 0.038 | IK113: 0.042 | IL113: 0.035 | IP113: 0.046 | IR113: 0.046 | IS113: 0.043 | IT113: 0.048 | IV113: 0.042 | IW113: 0.042 | IX113: 0.04 | IY113: 0.041 | JA113: 0.034 | JD113: 0.043 | JF113: 0.04 | JG113: 0.036 | JI113: 0.045 | JM113: 0.054 | JN113: 0.04 | JO113: 0.041 | JP113: 0.041 | JR113: 0.03 | JT113: 0.046 | JW113: 0.041 | JX113: 0.04 | JY113: 0.041 | KA113: 0.027 | KD113: 0.043 | KE113: 0.039 | KF113: 0.041 | KH113: 0.04 | KI113: 0.042 | KJ113: 0.041 | KN113: 0.043 | KP113: 0.04 | KR113: 0.044 | KS113: 0.036 | KT113: 0.041 | KU113: 0.039 | KW113: 0.034 | LA113: 0.044 | LB113: 0.038 | LC113: 0.04 | LE113: 0.04 | LG113: 0.042 | LI113: 0.042 | LJ113: 0.039 | LK113: 0.04 | LN113: 0.036 | LO113: 0.042 | LQ113: 0.038 | LR113: 0.04 | LS113: 0.034 | LU113: 0.035 | LW113: 0.034 | LY113: 0.044
A114: 1997-04-19 | B114: Apr 19 | C114: 1997-04-19 | D114: 04-Apr 19 | E114: 4 | F114: 19 | G114: 1997 | H114: 0.051 | I114: 0.064 | J114: 0.041 | K114: 0.049 | L114: 0.05 | M114: 0.053 | N114: 0.059 | O114: 0.061 | P114: 0.046 | Q114: 0.067 | R114: 0.063 | S114: 0.052 | T114: 0.045 | U114: 0.052 | V114: 0.067 | W114: 0.064 | X114: 0.046 | Y114: 0.053 | Z114: 0.06 | AA114: 0.05 | AD114: 0.041 | AE114: 0.051 | AH114: 0.037 | AN114: 0.04 | AO114: 0.046 | AP114: 0.041 | AQ114: 0.038 | AR114: 0.039 | AS114: 0.064 | AT114: 0.05 | AV114: 0.043 | AW114: 0.052 | AY114: 0.038 | AZ114: 0.057 | BB114: 0.054 | BD114: 0.06 | BF114: 0.04 | BG114: 0.036 | BH114: 0.034 | BI114: 0.036 | BL114: 0.041 | BN114: 0.049 | BO114: 0.046 | BP114: 0.049 | BT114: 0.044 | BV114: 0.032 | BW114: 0.043 | CA114: 0.042 | CB114: 0.042 | CF114: 0.05 | CH114: 0.043 | CI114: 0.048 | CJ114: 0.048 | CK114: 0.05 | CM114: 0.044 | CN114: 0.04 | CP114: 0.053 | CR114: 0.045 | CS114: 0.034 | CT114: 0.051 | CY114: 0.042 | CZ114: 0.044 | DA114: 0.042 | DB114: 0.05 | DC114: 0.053 | DI114: 0.047 | DP114: 0.043 | DR114: 0.047 | DU114: 0.042 | DV114: 0.051 | DW114: 0.048 | EA114: 0.053 | EB114: 0.048 | EC114: 0.05 | ED114: 0.057 | EG114: 0.059 | EH114: 0.049 | EL114: 0.038 | EO114: 0.049 | EP114: 0.057 | ER114: 0.048 | ET114: 0.061 | EU114: 0.04 | EY114: 0.041 | FB114: 0.05 | FE114: 0.045 | FH114: 0.041 | FJ114: 0.047 | FK114: 0.047 | FQ114: 0.051 | FR114: 0.042 | FS114: 0.046 | FU114: 0.041 | FY114: 0.036 | FZ114: 0.046 | GA114: 0.039 | GC114: 0.035 | GE114: 0.039 | GF114: 0.041 | GG114: 0.043 | GH114: 0.043 | GJ114: 0.045 | GK114: 0.039 | GL114: 0.044 | GM114: 0.045 | GO114: 0.044 | GQ114: 0.034 | GS114: 0.03 | GU114: 0.033 | GW114: 0.046 | GX114: 0.033 | GY114: 0.035 | GZ114: 0.033 | HA114: 0.067 | HB114: 0.048 | HE114: 0.048 | HF114: 0.036 | HG114: 0.037 | HH114: 0.036 | HI114: 0.025 | HL114: 0.043 | HN114: 0.036 | HO114: 0.03 | HP114: 0.03 | HS114: 0.04 | HT114: 0.036 | HY114: 0.038 | IB114: 0.038 | IC114: 0.026 | IE114: 0.038 | IF114: 0.045 | IJ114: 0.038 | IK114: 0.037 | IL114: 0.046 | IP114: 0.055 | IR114: 0.051 | IS114: 0.051 | IT114: 0.056 | IV114: 0.051 | IW114: 0.05 | IX114: 0.047 | IY114: 0.04 | JA114: 0.031 | JD114: 0.05 | JF114: 0.041 | JG114: 0.044 | JI114: 0.048 | JM114: 0.063 | JN114: 0.042 | JO114: 0.038 | JP114: 0.039 | JR114: 0.043 | JT114: 0.052 | JW114: 0.037 | JX114: 0.036 | JY114: 0.037 | KA114: 0.032 | KD114: 0.042 | KE114: 0.037 | KF114: 0.038 | KH114: 0.039 | KI114: 0.043 | KJ114: 0.049 | KN114: 0.044 | KP114: 0.041 | KR114: 0.045 | KS114: 0.03 | KT114: 0.044 | KU114: 0.04 | KW114: 0.03 | LA114: 0.05 | LB114: 0.042 | LC114: 0.049 | LE114: 0.048 | LG114: 0.041 | LI114: 0.052 | LJ114: 0.039 | LK114: 0.043 | LN114: 0.045 | LO114: 0.044 | LQ114: 0.046 | LR114: 0.048 | LS114: 0.041 | LU114: 0.043 | LW114: 0.041 | LY114: 0.052
A115: 1997-04-20 | B115: Apr 20 | C115: 1997-04-20 | D115: 04-Apr 20 | E115: 4 | F115: 20 | G115: 1997 | H115: 0.045 | I115: 0.055 | J115: 0.053 | K115: 0.055 | L115: 0.045 | M115: 0.059 | N115: 0.053 | O115: 0.046 | P115: 0.044 | Q115: 0.047 | R115: 0.063 | S115: 0.048 | T115: 0.049 | U115: 0.056 | V115: 0.063 | W115: 0.055 | X115: 0.051 | Y115: 0.058 | Z115: 0.054 | AA115: 0.059 | AD115: 0.041 | AE115: 0.039 | AH115: 0.04 | AN115: 0.045 | AO115: 0.045 | AP115: 0.046 | AQ115: 0.045 | AR115: 0.041 | AS115: 0.055 | AT115: 0.048 | AV115: 0.052 | AW115: 0.046 | AY115: 0.038 | AZ115: 0.045 | BB115: 0.046 | BD115: 0.054 | BF115: 0.053 | BG115: 0.049 | BH115: 0.051 | BI115: 0.05 | BL115: 0.053 | BN115: 0.053 | BO115: 0.053 | BP115: 0.055 | BT115: 0.044 | BV115: 0.034 | BW115: 0.044 | CA115: 0.04 | CB115: 0.044 | CF115: 0.045 | CH115: 0.043 | CI115: 0.044 | CJ115: 0.053 | CK115: 0.056 | CM115: 0.055 | CN115: 0.051 | CP115: 0.057 | CR115: 0.05 | CS115: 0.05 | CT115: 0.055 | CY115: 0.055 | CZ115: 0.059 | DA115: 0.058 | DB115: 0.054 | DC115: 0.058 | DI115: 0.058 | DP115: 0.045 | DR115: 0.048 | DU115: 0.041 | DV115: 0.044 | DW115: 0.041 | EA115: 0.053 | EB115: 0.049 | EC115: 0.053 | ED115: 0.05 | EG115: 0.053 | EH115: 0.046 | EL115: 0.027 | EO115: 0.045 | EP115: 0.045 | ER115: 0.041 | ET115: 0.046 | EU115: 0.044 | EY115: 0.041 | FB115: 0.045 | FE115: 0.041 | FH115: 0.041 | FJ115: 0.04 | FK115: 0.045 | FQ115: 0.041 | FR115: 0.043 | FS115: 0.039 | FU115: 0.041 | FY115: 0.037 | FZ115: 0.043 | GA115: 0.041 | GC115: 0.04 | GE115: 0.042 | GF115: 0.041 | GG115: 0.042 | GH115: 0.044 | GJ115: 0.042 | GK115: 0.035 | GL115: 0.043 | GM115: 0.041 | GO115: 0.039 | GQ115: 0.044 | GS115: 0.034 | GU115: 0.036 | GW115: 0.045 | GX115: 0.036 | GY115: 0.047 | GZ115: 0.033 | HA115: 0.047 | HB115: 0.047 | HE115: 0.043 | HF115: 0.039 | HG115: 0.034 | HH115: 0.033 | HI115: 0.025 | HL115: 0.045 | HN115: 0.03 | HO115: 0.029 | HP115: 0.026 | HS115: 0.047 | HT115: 0.038 | HY115: 0.045 | IB115: 0.042 | IC115: 0.036 | IE115: 0.042 | IF115: 0.037 | IJ115: 0.046 | IK115: 0.022 | IL115: 0.046 | IP115: 0.06 | IR115: 0.063 | IS115: 0.055 | IT115: 0.057 | IV115: 0.061 | IW115: 0.056 | IX115: 0.053 | IY115: 0.044 | JA115: 0.045 | JD115: 0.052 | JF115: 0.043 | JG115: 0.047 | JI115: 0.055 | JM115: 0.062 | JN115: 0.054 | JO115: 0.054 | JP115: 0.045 | JR115: 0.044 | JT115: 0.058 | JW115: 0.037 | JX115: 0.036 | JY115: 0.057 | KA115: 0.036 | KD115: 0.045 | KE115: 0.039 | KF115: 0.038 | KH115: 0.048 | KI115: 0.057 | KJ115: 0.055 | KN115: 0.044 | KP115: 0.042 | KR115: 0.055 | KS115: 0.031 | KT115: 0.044 | KU115: 0.042 | KW115: 0.031 | LA115: 0.059 | LB115: 0.051 | LC115: 0.055 | LE115: 0.051 | LG115: 0.057 | LI115: 0.048 | LK115: 0.042 | LN115: 0.049 | LO115: 0.048 | LQ115: 0.053 | LR115: 0.052 | LS115: 0.048 | LU115: 0.047 | LW115: 0.046 | LY115: 0.056
A116: 1997-04-21 | B116: Apr 21 | C116: 1997-04-21 | D116: 04-Apr 21 | E116: 4 | F116: 21 | G116: 1997 | H116: 0.047 | I116: 0.054 | J116: 0.048 | K116: 0.024 | L116: 0.049 | M116: 0.053 | N116: 0.053 | O116: 0.047 | P116: 0.052 | Q116: 0.051 | R116: 0.063 | S116: 0.047 | T116: 0.045 | U116: 0.038 | V116: 0.063 | W116: 0.054 | X116: 0.052 | Y116: 0.053 | Z116: 0.05 | AA116: 0.042 | AD116: 0.047 | AE116: 0.043 | AH116: 0.044 | AN116: 0.042 | AO116: 0.046 | AP116: 0.04 | AQ116: 0.038 | AR116: 0.04 | AS116: 0.054 | AT116: 0.045 | AV116: 0.05 | AW116: 0.043 | AY116: 0.034 | AZ116: 0.044 | BB116: 0.042 | BD116: 0.048 | BF116: 0.047 | BG116: 0.029 | BI116: 0.04 | BL116: 0.048 | BN116: 0.023 | BO116: 0.016 | BP116: 0.024 | BT116: 0.041 | BV116: 0.036 | BW116: 0.047 | CA116: 0.041 | CB116: 0.043 | CF116: 0.049 | CH116: 0.039 | CI116: 0.042 | CJ116: 0.037 | CK116: 0.036 | CM116: 0.027 | CN116: 0.023 | CP116: 0.053 | CR116: 0.039 | CS116: 0.036 | CT116: 0.044 | CY116: 0.029 | CZ116: 0.042 | DA116: 0.045 | DB116: 0.029 | DC116: 0.041 | DI116: 0.022 | DP116: 0.033 | DR116: 0.048 | DU116: 0.041 | DV116: 0.041 | DW116: 0.04 | EA116: 0.053 | EB116: 0.046 | EC116: 0.053 | ED116: 0.049 | EG116: 0.047 | EH116: 0.04 | EL116: 0.022 | EO116: 0.045 | EP116: 0.042 | ER116: 0.042 | ET116: 0.047 | EU116: 0.046 | EY116: 0.041 | FB116: 0.04 | FE116: 0.024 | FH116: 0.029 | FJ116: 0.038 | FK116: 0.04 | FQ116: 0.041 | FR116: 0.044 | FS116: 0.051 | FU116: 0.042 | FY116: 0.024 | FZ116: 0.052 | GA116: 0.04 | GC116: 0.04 | GE116: 0.04 | GF116: 0.043 | GG116: 0.048 | GH116: 0.043 | GJ116: 0.044 | GK116: 0.042 | GL116: 0.049 | GM116: 0.049 | GO116: 0.04 | GQ116: 0.043 | GS116: 0.035 | GU116: 0.035 | GW116: 0.051 | GX116: 0.049 | GY116: 0.047 | GZ116: 0.038 | HA116: 0.049 | HB116: 0.044 | HE116: 0.045 | HF116: 0.047 | HG116: 0.041 | HH116: 0.043 | HI116: 0.027 | HL116: 0.048 | HN116: 0.039 | HO116: 0.039 | HQ116: 0.049 | HS116: 0.045 | HT116: 0.039 | HY116: 0.046 | IB116: 0.046 | IC116: 0.04 | IE116: 0.038 | IF116: 0.038 | IJ116: 0.048 | IK116: 0.033 | IL116: 0.046 | IP116: 0.046 | IR116: 0.056 | IS116: 0.046 | IT116: 0.051 | IV116: 0.053 | IW116: 0.046 | IX116: 0.045 | IY116: 0.038 | JA116: 0.04 | JD116: 0.049 | JF116: 0.036 | JG116: 0.047 | JI116: 0.056 | JM116: 0.063 | JN116: 0.04 | JO116: 0.038 | JP116: 0.033 | JR116: 0.048 | JT116: 0.051 | JW116: 0.05 | JX116: 0.047 | JY116: 0.039 | KA116: 0.026 | KD116: 0.043 | KE116: 0.043 | KF116: 0.047 | KH116: 0.038 | KI116: 0.054 | KJ116: 0.053 | KN116: 0.037 | KP116: 0.042 | KR116: 0.047 | KS116: 0.022 | KT116: 0.039 | KU116: 0.031 | KW116: 0.023 | LA116: 0.05 | LC116: 0.05 | LE116: 0.038 | LG116: 0.035 | LI116: 0.047 | LJ116: 0.035 | LK116: 0.04 | LN116: 0.045 | LO116: 0.044 | LQ116: 0.021 | LR116: 0.023 | LS116: 0.024 | LU116: 0.026 | LW116: 0.021 | LY116: 0.038
A117: 1997-04-22 | B117: Apr 22 | C117: 1997-04-22 | D117: 04-Apr 22 | E117: 4 | F117: 22 | G117: 1997 | H117: 0.049 | I117: 0.065 | J117: 0.06 | K117: 0.032 | L117: 0.052 | M117: 0.066 | N117: 0.053 | O117: 0.048 | P117: 0.065 | Q117: 0.063 | R117: 0.062 | S117: 0.054 | T117: 0.053 | U117: 0.052 | V117: 0.066 | W117: 0.063 | X117: 0.065 | Y117: 0.059 | Z117: 0.065 | AA117: 0.066 | AD117: 0.049 | AE117: 0.046 | AH117: 0.046 | AN117: 0.047 | AO117: 0.053 | AP117: 0.033 | AQ117: 0.049 | AR117: 0.05 | AS117: 0.057 | AT117: 0.048 | AV117: 0.054 | AW117: 0.053 | AY117: 0.033 | AZ117: 0.06 | BB117: 0.065 | BD117: 0.054 | BF117: 0.06 | BG117: 0.038 | BH117: 0.053 | BI117: 0.049 | BN117: 0.032 | BO117: 0.029 | BP117: 0.03 | BT117: 0.046 | BV117: 0.04 | BW117: 0.05 | CA117: 0.047 | CB117: 0.048 | CF117: 0.052 | CH117: 0.044 | CI117: 0.048 | CJ117: 0.066 | CK117: 0.052 | CM117: 0.049 | CN117: 0.048 | CP117: 0.059 | CR117: 0.052 | CS117: 0.051 | CT117: 0.058 | CY117: 0.061 | CZ117: 0.061 | DA117: 0.06 | DC117: 0.041 | DI117: 0.05 | DP117: 0.046 | DR117: 0.05 | DU117: 0.042 | DV117: 0.042 | DW117: 0.039 | EA117: 0.051 | EB117: 0.051 | EC117: 0.05 | ED117: 0.053 | EG117: 0.041 | EH117: 0.038 | EL117: 0.028 | EO117: 0.047 | EP117: 0.044 | ER117: 0.045 | ET117: 0.046 | EU117: 0.048 | EY117: 0.042 | FB117: 0.042 | FE117: 0.041 | FH117: 0.038 | FJ117: 0.044 | FK117: 0.042 | FQ117: 0.042 | FR117: 0.043 | FS117: 0.065 | FU117: 0.043 | FY117: 0.043 | FZ117: 0.059 | GA117: 0.056 | GC117: 0.034 | GE117: 0.054 | GF117: 0.048 | GG117: 0.045 | GH117: 0.045 | GJ117: 0.043 | GK117: 0.059 | GL117: 0.053 | GM117: 0.059 | GO117: 0.035 | GQ117: 0.054 | GS117: 0.038 | GU117: 0.052 | GW117: 0.036 | GX117: 0.051 | GY117: 0.056 | GZ117: 0.026 | HA117: 0.051 | HB117: 0.05 | HE117: 0.05 | HF117: 0.051 | HG117: 0.048 | HH117: 0.054 | HI117: 0.038 | HK117: 0.038 | HN117: 0.042 | HO117: 0.049 | HP117: 0.053 | HQ117: 0.052 | HS117: 0.053 | HT117: 0.044 | HY117: 0.063 | IB117: 0.05 | IC117: 0.044 | IE117: 0.05 | IF117: 0.048 | IJ117: 0.058 | IK117: 0.046 | IL117: 0.057 | IP117: 0.049 | IR117: 0.054 | IS117: 0.047 | IT117: 0.049 | IV117: 0.047 | IW117: 0.046 | IX117: 0.043 | IY117: 0.054 | JA117: 0.046 | JD117: 0.056 | JG117: 0.052 | JI117: 0.062 | JM117: 0.061 | JN117: 0.049 | JO117: 0.052 | JP117: 0.054 | JR117: 0.011 | JT117: 0.062 | JW117: 0.057 | JX117: 0.055 | JY117: 0.056 | KA117: 0.027 | KD117: 0.058 | KE117: 0.05 | KF117: 0.056 | KH117: 0.047 | KI117: 0.06 | KJ117: 0.036 | KN117: 0.047 | KP117: 0.052 | KR117: 0.059 | KS117: 0.038 | KT117: 0.052 | KU117: 0.049 | KW117: 0.034 | LA117: 0.053 | LC117: 0.048 | LE117: 0.045 | LG117: 0.056 | LI117: 0.054 | LJ117: 0.048 | LN117: 0.053 | LO117: 0.05 | LQ117: 0.03 | LR117: 0.039 | LU117: 0.031 | LW117: 0.03 | LY117: 0.052
A118: 1997-04-23 | B118: Apr 23 | C118: 1997-04-23 | D118: 04-Apr 23 | E118: 4 | F118: 23 | G118: 1997 | H118: 0.045 | I118: 0.059 | J118: 0.052 | K118: 0.042 | L118: 0.051 | M118: 0.056 | N118: 0.064 | O118: 0.049 | P118: 0.06 | Q118: 0.055 | R118: 0.062 | S118: 0.044 | T118: 0.054 | U118: 0.046 | V118: 0.064 | W118: 0.059 | X118: 0.06 | Y118: 0.056 | Z118: 0.057 | AA118: 0.052 | AD118: 0.045 | AE118: 0.044 | AH118: 0.042 | AN118: 0.04 | AO118: 0.043 | AP118: 0.034 | AQ118: 0.042 | AR118: 0.047 | AS118: 0.059 | AT118: 0.051 | AV118: 0.056 | AW118: 0.052 | AY118: 0.032 | AZ118: 0.056 | BB118: 0.056 | BD118: 0.057 | BF118: 0.052 | BG118: 0.035 | BH118: 0.047 | BI118: 0.043 | BL118: 0.049 | BN118: 0.041 | BO118: 0.033 | BP118: 0.042 | BT118: 0.046 | BV118: 0.034 | BW118: 0.044 | CA118: 0.042 | CB118: 0.048 | CF118: 0.051 | CH118: 0.044 | CI118: 0.044 | CJ118: 0.051 | CK118: 0.049 | CM118: 0.048 | CN118: 0.042 | CP118: 0.056 | CR118: 0.042 | CS118: 0.044 | CT118: 0.046 | CY118: 0.051 | CZ118: 0.052 | DA118: 0.052 | DB118: 0.044 | DC118: 0.054 | DE118: 0.044 | DI118: 0.043 | DP118: 0.042 | DU118: 0.039 | DV118: 0.041 | DW118: 0.042 | EA118: 0.053 | EB118: 0.052 | EC118: 0.05 | ED118: 0.064 | EG118: 0.045 | EH118: 0.033 | EL118: 0.033 | EO118: 0.042 | EP118: 0.052 | ER118: 0.046 | ET118: 0.049 | EU118: 0.049 | EY118: 0.043 | FB118: 0.047 | FE118: 0.044 | FH118: 0.041 | FJ118: 0.041 | FK118: 0.045 | FQ118: 0.044 | FR118: 0.048 | FS118: 0.06 | FU118: 0.027 | FY118: 0.041 | FZ118: 0.052 | GA118: 0.047 | GC118: 0.02 | GE118: 0.049 | GF118: 0.041 | GG118: 0.051 | GH118: 0.05 | GJ118: 0.047 | GK118: 0.053 | GL118: 0.044 | GM118: 0.052 | GO118: 0.035 | GQ118: 0.055 | GS118: 0.018 | GU118: 0.027 | GW118: 0.033 | GY118: 0.053 | GZ118: 0.051 | HA118: 0.053 | HB118: 0.052 | HE118: 0.053 | HF118: 0.05 | HG118: 0.051 | HH118: 0.053 | HI118: 0.043 | HK118: 0.023 | HL118: 0.038 | HN118: 0.05 | HO118: 0.049 | HP118: 0.053 | HQ118: 0.047 | HS118: 0.048 | HT118: 0.035 | HY118: 0.055 | IB118: 0.051 | IC118: 0.045 | IE118: 0.047 | IF118: 0.048 | IJ118: 0.054 | IK118: 0.051 | IL118: 0.045 | IP118: 0.038 | IR118: 0.041 | IS118: 0.037 | IT118: 0.047 | IV118: 0.039 | IW118: 0.038 | IX118: 0.027 | IY118: 0.047 | JA118: 0.04 | JD118: 0.052 | JG118: 0.055 | JI118: 0.049 | JM118: 0.062 | JN118: 0.048 | JO118: 0.046 | JP118: 0.05 | JR118: 0.02 | JT118: 0.056 | JW118: 0.048 | JX118: 0.042 | JY118: 0.048 | KA118: 0.023 | KD118: 0.055 | KE118: 0.041 | KF118: 0.043 | KH118: 0.029 | KI118: 0.051 | KJ118: 0.041 | KN118: 0.043 | KP118: 0.05 | KR118: 0.049 | KS118: 0.037 | KT118: 0.046 | KU118: 0.049 | KW118: 0.027 | LA118: 0.046 | LB118: 0.026 | LC118: 0.032 | LE118: 0.045 | LG118: 0.045 | LI118: 0.043 | LK118: 0.044 | LN118: 0.054 | LO118: 0.052 | LQ118: 0.036 | LR118: 0.036 | LU118: 0.039 | LY118: 0.046
A119: 1997-04-24 | B119: Apr 24 | C119: 1997-04-24 | D119: 04-Apr 24 | E119: 4 | F119: 24 | G119: 1997 | H119: 0.048 | I119: 0.044 | J119: 0.043 | K119: 0.047 | L119: 0.046 | M119: 0.053 | N119: 0.05 | O119: 0.044 | P119: 0.045 | Q119: 0.051 | R119: 0.061 | S119: 0.037 | T119: 0.047 | U119: 0.052 | V119: 0.061 | W119: 0.045 | X119: 0.042 | Y119: 0.053 | Z119: 0.042 | AA119: 0.053 | AD119: 0.043 | AE119: 0.041 | AH119: 0.043 | AN119: 0.048 | AO119: 0.039 | AP119: 0.034 | AQ119: 0.034 | AR119: 0.035 | AS119: 0.044 | AT119: 0.036 | AV119: 0.042 | AW119: 0.039 | AY119: 0.026 | AZ119: 0.041 | BB119: 0.04 | BD119: 0.042 | BF119: 0.043 | BG119: 0.035 | BH119: 0.041 | BI119: 0.042 | BL119: 0.043 | BN119: 0.047 | BO119: 0.044 | BP119: 0.047 | BT119: 0.044 | BV119: 0.034 | BW119: 0.046 | CA119: 0.041 | CB119: 0.045 | CF119: 0.046 | CH119: 0.042 | CI119: 0.044 | CJ119: 0.05 | CK119: 0.051 | CM119: 0.048 | CN119: 0.04 | CP119: 0.047 | CR119: 0.048 | CS119: 0.04 | CT119: 0.049 | CY119: 0.041 | CZ119: 0.051 | DA119: 0.048 | DB119: 0.052 | DC119: 0.053 | DE119: 0.048 | DI119: 0.053 | DP119: 0.039 | DR119: 0.038 | DU119: 0.034 | DV119: 0.042 | DW119: 0.041 | EA119: 0.036 | EB119: 0.039 | EC119: 0.038 | ED119: 0.05 | EG119: 0.04 | EH119: 0.04 | EL119: 0.034 | EP119: 0.042 | ER119: 0.04 | ET119: 0.044 | EU119: 0.039 | EY119: 0.037 | FB119: 0.037 | FE119: 0.04 | FH119: 0.027 | FJ119: 0.042 | FK119: 0.044 | FQ119: 0.043 | FR119: 0.037 | FS119: 0.038 | FU119: 0.032 | FY119: 0.032 | FZ119: 0.04 | GA119: 0.035 | GC119: 0.027 | GE119: 0.04 | GF119: 0.033 | GG119: 0.043 | GH119: 0.042 | GJ119: 0.038 | GK119: 0.034 | GL119: 0.045 | GM119: 0.039 | GO119: 0.039 | GQ119: 0.047 | GS119: 0.024 | GU119: 0.03 | GW119: 0.046 | GX119: 0.05 | GY119: 0.044 | GZ119: 0.05 | HA119: 0.046 | HB119: 0.048 | HE119: 0.049 | HF119: 0.05 | HG119: 0.05 | HH119: 0.051 | HI119: 0.041 | HK119: 0.022 | HL119: 0.031 | HN119: 0.051 | HO119: 0.048 | HP119: 0.05 | HQ119: 0.045 | HS119: 0.043 | HY119: 0.036 | IB119: 0.044 | IC119: 0.037 | IE119: 0.033 | IF119: 0.037 | IJ119: 0.05 | IK119: 0.047 | IL119: 0.043 | IP119: 0.047 | IR119: 0.049 | IS119: 0.046 | IT119: 0.054 | IV119: 0.046 | IW119: 0.048 | IX119: 0.046 | IY119: 0.047 | JA119: 0.039 | JD119: 0.051 | JF119: 0.035 | JG119: 0.045 | JI119: 0.053 | JM119: 0.061 | JN119: 0.049 | JO119: 0.05 | JR119: 0.036 | JT119: 0.056 | JW119: 0.049 | JX119: 0.05 | JY119: 0.046 | KA119: 0.03 | KE119: 0.045 | KF119: 0.052 | KH119: 0.048 | KI119: 0.055 | KJ119: 0.046 | KN119: 0.041 | KP119: 0.045 | KR119: 0.052 | KS119: 0.026 | KT119: 0.041 | KU119: 0.04 | KW119: 0.025 | LA119: 0.04 | LB119: 0.039 | LC119: 0.043 | LE119: 0.042 | LG119: 0.045 | LI119: 0.037 | LJ119: 0.029 | LK119: 0.033 | LN119: 0.045 | LO119: 0.047 | LQ119: 0.047 | LR119: 0.04 | LU119: 0.041 | LW119: 0.039 | LY119: 0.052
A120: 1997-04-25 | B120: Apr 25 | C120: 1997-04-25 | D120: 04-Apr 25 | E120: 4 | F120: 25 | G120: 1997 | H120: 0.046 | I120: 0.053 | J120: 0.05 | K120: 0.049 | L120: 0.05 | M120: 0.056 | N120: 0.056 | O120: 0.047 | P120: 0.052 | Q120: 0.05 | R120: 0.057 | S120: 0.032 | T120: 0.051 | U120: 0.051 | V120: 0.057 | W120: 0.053 | X120: 0.051 | Y120: 0.055 | Z120: 0.051 | AA120: 0.056 | AD120: 0.045 | AE120: 0.045 | AH120: 0.046 | AN120: 0.044 | AO120: 0.04 | AP120: 0.027 | AQ120: 0.041 | AR120: 0.034 | AS120: 0.053 | AT120: 0.043 | AV120: 0.051 | AW120: 0.042 | AY120: 0.03 | AZ120: 0.036 | BB120: 0.043 | BD120: 0.046 | BF120: 0.046 | BG120: 0.041 | BH120: 0.05 | BI120: 0.05 | BL120: 0.047 | BN120: 0.046 | BO120: 0.044 | BP120: 0.049 | BT120: 0.047 | BV120: 0.037 | BW120: 0.05 | CA120: 0.046 | CB120: 0.048 | CF120: 0.044 | CH120: 0.045 | CI120: 0.045 | CJ120: 0.052 | CK120: 0.051 | CM120: 0.049 | CN120: 0.038 | CP120: 0.046 | CR120: 0.046 | CS120: 0.045 | CT120: 0.053 | CY120: 0.045 | CZ120: 0.056 | DA120: 0.052 | DB120: 0.05 | DC120: 0.055 | DE120: 0.047 | DI120: 0.046 | DP120: 0.032 | DR120: 0.032 | DU120: 0.03 | DV120: 0.037 | DW120: 0.042 | EB120: 0.045 | EC120: 0.043 | ED120: 0.056 | EG120: 0.036 | EH120: 0.027 | EL120: 0.029 | EP120: 0.042 | ER120: 0.04 | ET120: 0.047 | EU120: 0.039 | EY120: 0.043 | FB120: 0.035 | FE120: 0.035 | FH120: 0.03 | FJ120: 0.041 | FK120: 0.047 | FQ120: 0.034 | FR120: 0.04 | FS120: 0.05 | FU120: 0.04 | FY120: 0.04 | FZ120: 0.05 | GA120: 0.042 | GC120: 0.036 | GE120: 0.046 | GF120: 0.032 | GG120: 0.052 | GH120: 0.05 | GJ120: 0.05 | GK120: 0.033 | GL120: 0.051 | GM120: 0.049 | GO120: 0.046 | GQ120: 0.046 | GS120: 0.033 | GU120: 0.037 | GW120: 0.045 | GX120: 0.044 | GY120: 0.048 | GZ120: 0.034 | HA120: 0.049 | HB120: 0.048 | HE120: 0.05 | HF120: 0.05 | HG120: 0.048 | HH120: 0.049 | HI120: 0.032 | HK120: 0.029 | HL120: 0.046 | HN120: 0.048 | HO120: 0.046 | HP120: 0.047 | HQ120: 0.048 | HS120: 0.048 | HT120: 0.032 | HY120: 0.038 | IB120: 0.044 | IC120: 0.037 | IE120: 0.033 | IF120: 0.035 | IJ120: 0.05 | IK120: 0.047 | IL120: 0.046 | IP120: 0.042 | IR120: 0.047 | IS120: 0.044 | IT120: 0.05 | IV120: 0.045 | IW120: 0.046 | IX120: 0.046 | IY120: 0.05 | JA120: 0.046 | JD120: 0.048 | JF120: 0.046 | JG120: 0.041 | JI120: 0.053 | JM120: 0.057 | JN120: 0.049 | JO120: 0.051 | JP120: 0.046 | JR120: 0.039 | JT120: 0.054 | JW120: 0.051 | JX120: 0.052 | JY120: 0.049 | KA120: 0.027 | KD120: 0.049 | KE120: 0.045 | KF120: 0.047 | KH120: 0.041 | KI120: 0.055 | KJ120: 0.045 | KN120: 0.051 | KP120: 0.05 | KR120: 0.053 | KS120: 0.034 | KT120: 0.05 | KU120: 0.047 | KW120: 0.039 | LA120: 0.045 | LB120: 0.044 | LC120: 0.039 | LE120: 0.037 | LG120: 0.045 | LI120: 0.032 | LJ120: 0.025 | LK120: 0.028 | LN120: 0.049 | LO120: 0.051 | LQ120: 0.044 | LR120: 0.04 | LS120: 0.039 | LU120: 0.042 | LW120: 0.04 | LY120: 0.051 | LZ120: 0.037
A121: 1997-04-26 | B121: Apr 26 | C121: 1997-04-26 | D121: 04-Apr 26 | E121: 4 | F121: 26 | G121: 1997 | H121: 0.05 | I121: 0.054 | J121: 0.052 | K121: 0.052 | L121: 0.055 | M121: 0.059 | N121: 0.062 | O121: 0.056 | P121: 0.06 | Q121: 0.054 | R121: 0.062 | S121: 0.053 | T121: 0.052 | U121: 0.053 | V121: 0.062 | W121: 0.055 | X121: 0.06 | Y121: 0.056 | Z121: 0.054 | AA121: 0.059 | AD121: 0.05 | AE121: 0.049 | AH121: 0.045 | AN121: 0.04 | AO121: 0.053 | AP121: 0.046 | AQ121: 0.047 | AR121: 0.049 | AS121: 0.053 | AT121: 0.051 | AV121: 0.053 | AW121: 0.05 | AY121: 0.045 | AZ121: 0.054 | BB121: 0.053 | BD121: 0.054 | BF121: 0.052 | BG121: 0.052 | BH121: 0.052 | BI121: 0.051 | BL121: 0.052 | BN121: 0.05 | BO121: 0.048 | BP121: 0.052 | BT121: 0.049 | BV121: 0.037 | BW121: 0.049 | CA121: 0.046 | CB121: 0.041 | CF121: 0.055 | CH121: 0.046 | CI121: 0.052 | CJ121: 0.059 | CK121: 0.055 | CM121: 0.051 | CN121: 0.048 | CP121: 0.056 | CR121: 0.047 | CS121: 0.046 | CT121: 0.055 | CY121: 0.051 | CZ121: 0.057 | DA121: 0.057 | DB121: 0.054 | DE121: 0.052 | DI121: 0.054 | DP121: 0.042 | DR121: 0.051 | DV121: 0.053 | DW121: 0.047 | EA121: 0.054 | EB121: 0.05 | EC121: 0.049 | ED121: 0.062 | EG121: 0.057 | EH121: 0.051 | EL121: 0.035 | EP121: 0.05 | ER121: 0.047 | ET121: 0.056 | EU121: 0.048 | EY121: 0.046 | FB121: 0.053 | FE121: 0.051 | FH121: 0.048 | FJ121: 0.048 | FK121: 0.051 | FQ121: 0.051 | FR121: 0.048 | FS121: 0.06 | FU121: 0.047 | FY121: 0.047 | FZ121: 0.057 | GA121: 0.053 | GC121: 0.048 | GE121: 0.053 | GF121: 0.052 | GG121: 0.054 | GH121: 0.053 | GJ121: 0.054 | GK121: 0.048 | GL121: 0.055 | GM121: 0.055 | GO121: 0.049 | GQ121: 0.05 | GS121: 0.039 | GU121: 0.041 | GW121: 0.054 | GX121: 0.049 | GY121: 0.051 | GZ121: 0.043 | HA121: 0.052 | HB121: 0.051 | HE121: 0.049 | HF121: 0.049 | HG121: 0.051 | HH121: 0.049 | HI121: 0.043 | HK121: 0.039 | HL121: 0.05 | HN121: 0.049 | HO121: 0.047 | HP121: 0.047 | HQ121: 0.052 | HS121: 0.052 | HT121: 0.047 | HY121: 0.053 | IB121: 0.047 | IC121: 0.044 | IE121: 0.049 | IF121: 0.047 | IJ121: 0.053 | IK121: 0.05 | IL121: 0.052 | IP121: 0.056 | IR121: 0.057 | IS121: 0.053 | IT121: 0.059 | IV121: 0.058 | IW121: 0.055 | IX121: 0.054 | IY121: 0.05 | JA121: 0.047 | JD121: 0.051 | JF121: 0.049 | JG121: 0.043 | JI121: 0.053 | JM121: 0.062 | JN121: 0.051 | JO121: 0.05 | JP121: 0.054 | JR121: 0.05 | JT121: 0.056 | JW121: 0.053 | JX121: 0.054 | JY121: 0.054 | KA121: 0.047 | KD121: 0.05 | KE121: 0.048 | KF121: 0.053 | KH121: 0.052 | KI121: 0.054 | KJ121: 0.055 | KN121: 0.055 | KP121: 0.054 | KR121: 0.052 | KS121: 0.039 | KT121: 0.054 | KU121: 0.051 | KW121: 0.042 | LA121: 0.053 | LB121: 0.054 | LC121: 0.056 | LE121: 0.051 | LG121: 0.053 | LI121: 0.053 | LJ121: 0.044 | LK121: 0.044 | LN121: 0.051 | LO121: 0.052 | LQ121: 0.048 | LR121: 0.045 | LS121: 0.044 | LU121: 0.045 | LW121: 0.043 | LY121: 0.053 | LZ121: 0.045
A122: 1997-04-27 | B122: Apr 27 | C122: 1997-04-27 | D122: 04-Apr 27 | E122: 4 | F122: 27 | G122: 1997 | H122: 0.049 | I122: 0.063 | J122: 0.059 | K122: 0.047 | L122: 0.054 | M122: 0.065 | N122: 0.069 | O122: 0.056 | P122: 0.07 | Q122: 0.068 | R122: 0.066 | S122: 0.056 | T122: 0.059 | U122: 0.049 | V122: 0.07 | W122: 0.068 | X122: 0.07 | Y122: 0.063 | Z122: 0.063 | AA122: 0.065 | AD122: 0.049 | AE122: 0.048 | AH122: 0.046 | AN122: 0.048 | AO122: 0.061 | AP122: 0.048 | AQ122: 0.058 | AR122: 0.059 | AS122: 0.034 | AT122: 0.054 | AV122: 0.06 | AW122: 0.056 | AY122: 0.047 | AZ122: 0.059 | BB122: 0.063 | BD122: 0.061 | BF122: 0.059 | BG122: 0.055 | BH122: 0.058 | BI122: 0.056 | BL122: 0.058 | BN122: 0.047 | BO122: 0.047 | BP122: 0.047 | BT122: 0.053 | BV122: 0.04 | BW122: 0.048 | CA122: 0.045 | CB122: 0.049 | CF122: 0.054 | CH122: 0.053 | CI122: 0.054 | CJ122: 0.057 | CK122: 0.056 | CM122: 0.051 | CN122: 0.051 | CP122: 0.063 | CR122: 0.05 | CS122: 0.055 | CT122: 0.06 | CY122: 0.058 | CZ122: 0.065 | DA122: 0.063 | DB122: 0.052 | DE122: 0.057 | DI122: 0.052 | DP122: 0.056 | DR122: 0.056 | DV122: 0.05 | DW122: 0.051 | EA122: 0.059 | EB122: 0.055 | EC122: 0.054 | ED122: 0.069 | EG122: 0.063 | EH122: 0.055 | EL122: 0.042 | EP122: 0.057 | ER122: 0.05 | ET122: 0.051 | EU122: 0.053 | EY122: 0.055 | FB122: 0.056 | FE122: 0.055 | FH122: 0.05 | FJ122: 0.054 | FK122: 0.056 | FR122: 0.054 | FS122: 0.07 | FU122: 0.053 | FY122: 0.058 | FZ122: 0.069 | GA122: 0.068 | GC122: 0.045 | GE122: 0.064 | GF122: 0.061 | GG122: 0.064 | GH122: 0.062 | GJ122: 0.061 | GK122: 0.059 | GL122: 0.06 | GM122: 0.066 | GO122: 0.055 | GQ122: 0.055 | GS122: 0.043 | GU122: 0.052 | GW122: 0.059 | GX122: 0.058 | GY122: 0.056 | GZ122: 0.053 | HA122: 0.058 | HB122: 0.055 | HE122: 0.055 | HF122: 0.055 | HG122: 0.052 | HH122: 0.06 | HI122: 0.047 | HK122: 0.049 | HL122: 0.066 | HN122: 0.052 | HO122: 0.056 | HP122: 0.059 | HQ122: 0.055 | HS122: 0.059 | HT122: 0.062 | HY122: 0.068 | IB122: 0.054 | IC122: 0.048 | IE122: 0.06 | IF122: 0.054 | IJ122: 0.058 | IK122: 0.037 | IL122: 0.061 | IP122: 0.049 | IR122: 0.054 | IS122: 0.055 | IT122: 0.049 | IV122: 0.049 | IW122: 0.044 | IX122: 0.048 | IY122: 0.059 | JA122: 0.059 | JD122: 0.054 | JF122: 0.062 | JG122: 0.055 | JI122: 0.058 | JM122: 0.066 | JN122: 0.052 | JO122: 0.053 | JP122: 0.065 | JR122: 0.047 | JT122: 0.061 | JW122: 0.064 | JX122: 0.064 | JY122: 0.06 | KA122: 0.049 | KD122: 0.063 | KE122: 0.056 | KF122: 0.061 | KH122: 0.053 | KI122: 0.061 | KJ122: 0.052 | KN122: 0.059 | KP122: 0.064 | KR122: 0.056 | KS122: 0.05 | KT122: 0.063 | KU122: 0.062 | KW122: 0.048 | LA122: 0.046 | LB122: 0.046 | LC122: 0.047 | LE122: 0.049 | LG122: 0.054 | LI122: 0.056 | LN122: 0.059 | LO122: 0.057 | LQ122: 0.047 | LR122: 0.037 | LS122: 0.048 | LU122: 0.043 | LW122: 0.037 | LY122: 0.049 | LZ122: 0.046
A123: 1997-04-28 | B123: Apr 28 | C123: 1997-04-28 | D123: 04-Apr 28 | E123: 4 | F123: 28 | G123: 1997 | H123: 0.048 | I123: 0.061 | J123: 0.048 | K123: 0.038 | L123: 0.055 | M123: 0.053 | N123: 0.065 | O123: 0.054 | P123: 0.051 | Q123: 0.058 | R123: 0.06 | S123: 0.057 | T123: 0.056 | U123: 0.048 | V123: 0.065 | W123: 0.059 | X123: 0.052 | Y123: 0.048 | Z123: 0.061 | AA123: 0.053 | AD123: 0.045 | AE123: 0.045 | AH123: 0.046 | AN123: 0.048 | AO123: 0.051 | AP123: 0.04 | AQ123: 0.044 | AR123: 0.057 | AS123: 0.046 | AT123: 0.048 | AV123: 0.055 | AW123: 0.053 | AY123: 0.042 | AZ123: 0.059 | BB123: 0.061 | BD123: 0.06 | BF123: 0.046 | BG123: 0.048 | BH123: 0.046 | BI123: 0.048 | BL123: 0.044 | BN123: 0.038 | BO123: 0.036 | BP123: 0.036 | BT123: 0.052 | BV123: 0.044 | BW123: 0.053 | CA123: 0.051 | CB123: 0.052 | CF123: 0.055 | CH123: 0.052 | CI123: 0.054 | CJ123: 0.044 | CK123: 0.043 | CM123: 0.044 | CN123: 0.04 | CP123: 0.042 | CR123: 0.044 | CS123: 0.041 | CT123: 0.04 | CY123: 0.044 | CZ123: 0.053 | DA123: 0.05 | DB123: 0.045 | DE123: 0.041 | DI123: 0.046 | DP123: 0.052 | DR123: 0.051 | DV123: 0.045 | DW123: 0.051 | EA123: 0.052 | EB123: 0.051 | EC123: 0.047 | ED123: 0.065 | EG123: 0.049 | EH123: 0.042 | EL123: 0.033 | EP123: 0.047 | ER123: 0.048 | ET123: 0.046 | EU123: 0.045 | EY123: 0.053 | FB123: 0.045 | FE123: 0.045 | FJ123: 0.049 | FK123: 0.054 | FR123: 0.046 | FS123: 0.05 | FU123: 0.042 | FY123: 0.04 | FZ123: 0.05 | GA123: 0.045 | GC123: 0.044 | GE123: 0.048 | GF123: 0.043 | GG123: 0.051 | GH123: 0.049 | GJ123: 0.046 | GL123: 0.051 | GM123: 0.049 | GO123: 0.048 | GQ123: 0.048 | GS123: 0.034 | GU123: 0.038 | GW123: 0.05 | GY123: 0.053 | GZ123: 0.043 | HA123: 0.058 | HB123: 0.055 | HE123: 0.053 | HF123: 0.054 | HG123: 0.046 | HH123: 0.049 | HI123: 0.03 | HK123: 0.03 | HL123: 0.049 | HN123: 0.042 | HO123: 0.042 | HQ123: 0.047 | HS123: 0.053 | HT123: 0.037 | HY123: 0.047 | IB123: 0.048 | IC123: 0.041 | IE123: 0.042 | IF123: 0.051 | IJ123: 0.054 | IK123: 0.043 | IL123: 0.046 | IP123: 0.053 | IR123: 0.056 | IS123: 0.049 | IT123: 0.056 | IV123: 0.054 | IW123: 0.052 | IX123: 0.05 | IY123: 0.052 | JA123: 0.043 | JD123: 0.051 | JF123: 0.043 | JG123: 0.042 | JI123: 0.055 | JM123: 0.06 | JN123: 0.05 | JO123: 0.051 | JP123: 0.049 | JR123: 0.05 | JT123: 0.056 | JW123: 0.047 | JX123: 0.045 | JY123: 0.05 | KA123: 0.039 | KD123: 0.048 | KE123: 0.048 | KF123: 0.052 | KH123: 0.052 | KI123: 0.054 | KJ123: 0.052 | KN123: 0.052 | KP123: 0.049 | KR123: 0.052 | KS123: 0.042 | KT123: 0.05 | KU123: 0.045 | KW123: 0.04 | LA123: 0.05 | LB123: 0.046 | LC123: 0.053 | LE123: 0.047 | LG123: 0.044 | LI123: 0.057 | LK123: 0.045 | LN123: 0.056 | LO123: 0.054 | LQ123: 0.037 | LS123: 0.033 | LU123: 0.037 | LW123: 0.034 | LY123: 0.048 | LZ123: 0.035
A124: 1997-04-29 | B124: Apr 29 | C124: 1997-04-29 | D124: 04-Apr 29 | E124: 4 | F124: 29 | G124: 1997 | H124: 0.046 | I124: 0.056 | J124: 0.055 | K124: 0.051 | L124: 0.051 | M124: 0.064 | N124: 0.057 | O124: 0.051 | P124: 0.06 | Q124: 0.07 | R124: 0.067 | S124: 0.047 | T124: 0.056 | U124: 0.056 | V124: 0.07 | W124: 0.056 | X124: 0.06 | Y124: 0.061 | Z124: 0.056 | AA124: 0.064 | AD124: 0.044 | AE124: 0.042 | AH124: 0.041 | AN124: 0.046 | AO124: 0.054 | AP124: 0.045 | AQ124: 0.047 | AR124: 0.051 | AS124: 0.049 | AT124: 0.052 | AV124: 0.056 | AW124: 0.052 | AY124: 0.043 | AZ124: 0.056 | BB124: 0.056 | BD124: 0.055 | BF124: 0.052 | BG124: 0.046 | BH124: 0.053 | BI124: 0.055 | BL124: 0.051 | BN124: 0.051 | BO124: 0.045 | BP124: 0.05 | BT124: 0.046 | BV124: 0.035 | BW124: 0.047 | CA124: 0.044 | CB124: 0.046 | CF124: 0.05 | CH124: 0.048 | CI124: 0.051 | CJ124: 0.051 | CK124: 0.05 | CM124: 0.054 | CN124: 0.043 | CP124: 0.051 | CR124: 0.049 | CS124: 0.046 | CT124: 0.049 | CY124: 0.053 | CZ124: 0.064 | DA124: 0.058 | DB124: 0.061 | DE124: 0.047 | DI124: 0.053 | DP124: 0.053 | DR124: 0.052 | DV124: 0.052 | DW124: 0.048 | EA124: 0.055 | EB124: 0.051 | EC124: 0.049 | EG124: 0.057 | EH124: 0.052 | EL124: 0.032 | EO124: 0.05 | EP124: 0.052 | ER124: 0.047 | ET124: 0.05 | EU124: 0.047 | EY124: 0.044 | FB124: 0.051 | FE124: 0.05 | FK124: 0.051 | FQ124: 0.049 | FR124: 0.048 | FS124: 0.06 | FU124: 0.049 | FY124: 0.049 | FZ124: 0.057 | GA124: 0.05 | GC124: 0.048 | GE124: 0.053 | GF124: 0.051 | GG124: 0.055 | GH124: 0.056 | GJ124: 0.054 | GK124: 0.052 | GL124: 0.052 | GM124: 0.058 | GO124: 0.051 | GQ124: 0.049 | GS124: 0.046 | GU124: 0.044 | GX124: 0.056 | GY124: 0.052 | GZ124: 0.049 | HA124: 0.07 | HB124: 0.07 | HE124: 0.052 | HF124: 0.054 | HG124: 0.061 | HI124: 0.05 | HK124: 0.04 | HL124: 0.051 | HN124: 0.055 | HO124: 0.051 | HP124: 0.058 | HQ124: 0.05 | HS124: 0.053 | HT124: 0.047 | HY124: 0.048 | IB124: 0.05 | IC124: 0.042 | IE124: 0.048 | IF124: 0.05 | IJ124: 0.055 | IK124: 0.058 | IL124: 0.053 | IP124: 0.052 | IR124: 0.063 | IS124: 0.048 | IT124: 0.059 | IV124: 0.06 | IW124: 0.044 | IX124: 0.053 | IY124: 0.055 | JA124: 0.05 | JD124: 0.057 | JF124: 0.052 | JI124: 0.058 | JM124: 0.067 | JN124: 0.054 | JO124: 0.055 | JP124: 0.052 | JR124: 0.048 | JT124: 0.062 | JW124: 0.055 | JX124: 0.056 | JY124: 0.059 | KA124: 0.038 | KD124: 0.056 | KE124: 0.051 | KF124: 0.056 | KH124: 0.05 | KI124: 0.056 | KJ124: 0.061 | KN124: 0.054 | KP124: 0.056 | KR124: 0.056 | KS124: 0.041 | KT124: 0.056 | KU124: 0.055 | KW124: 0.037 | LA124: 0.054 | LB124: 0.053 | LC124: 0.055 | LE124: 0.052 | LG124: 0.049 | LK124: 0.047 | LN124: 0.054 | LO124: 0.056 | LQ124: 0.048 | LR124: 0.042 | LS124: 0.043 | LU124: 0.044 | LW124: 0.043 | LY124: 0.056 | LZ124: 0.039
A125: 1997-04-30 | B125: Apr 30 | C125: 1997-04-30 | D125: 04-Apr 30 | E125: 4 | F125: 30 | G125: 1997 | H125: 0.061 | I125: 0.074 | J125: 0.064 | K125: 0.058 | L125: 0.073 | M125: 0.074 | N125: 0.079 | O125: 0.073 | P125: 0.075 | Q125: 0.082 | R125: 0.077 | S125: 0.058 | T125: 0.075 | U125: 0.065 | V125: 0.082 | W125: 0.072 | X125: 0.075 | Y125: 0.074 | Z125: 0.074 | AA125: 0.073 | AD125: 0.059 | AE125: 0.058 | AH125: 0.061 | AN125: 0.055 | AO125: 0.063 | AP125: 0.048 | AQ125: 0.065 | AR125: 0.063 | AS125: 0.046 | AT125: 0.061 | AV125: 0.072 | AW125: 0.067 | AY125: 0.045 | AZ125: 0.067 | BB125: 0.069 | BD125: 0.074 | BF125: 0.064 | BG125: 0.06 | BH125: 0.062 | BI125: 0.063 | BL125: 0.061 | BN125: 0.055 | BO125: 0.058 | BP125: 0.057 | BT125: 0.068 | BV125: 0.057 | BW125: 0.073 | CA125: 0.063 | CB125: 0.069 | CF125: 0.069 | CH125: 0.069 | CI125: 0.067 | CJ125: 0.073 | CK125: 0.071 | CM125: 0.055 | CN125: 0.057 | CP125: 0.069 | CR125: 0.057 | CS125: 0.055 | CT125: 0.066 | CY125: 0.064 | CZ125: 0.071 | DA125: 0.067 | DB125: 0.065 | DC125: 0.074 | DE125: 0.065 | DI125: 0.052 | DP125: 0.067 | DR125: 0.07 | DV125: 0.064 | DW125: 0.066 | EA125: 0.07 | EB125: 0.063 | EC125: 0.063 | ED125: 0.079 | EG125: 0.079 | EH125: 0.072 | EL125: 0.024 | EO125: 0.064 | EP125: 0.073 | ER125: 0.067 | ET125: 0.064 | EU125: 0.064 | EY125: 0.066 | FB125: 0.071 | FE125: 0.073 | FH125: 0.066 | FK125: 0.071 | FQ125: 0.064 | FR125: 0.066 | FS125: 0.075 | FU125: 0.046 | FY125: 0.062 | FZ125: 0.075 | GA125: 0.074 | GC125: 0.039 | GE125: 0.071 | GF125: 0.06 | GG125: 0.07 | GH125: 0.069 | GJ125: 0.071 | GK125: 0.066 | GL125: 0.071 | GM125: 0.075 | GO125: 0.052 | GQ125: 0.07 | GS125: 0.035 | GU125: 0.05 | GW125: 0.074 | GX125: 0.072 | GY125: 0.068 | GZ125: 0.066 | HA125: 0.075 | HB125: 0.074 | HE125: 0.071 | HF125: 0.072 | HG125: 0.082 | HH125: 0.076 | HI125: 0.066 | HK125: 0.041 | HL125: 0.072 | HN125: 0.073 | HO125: 0.071 | HP125: 0.075 | HQ125: 0.068 | HT125: 0.06 | HY125: 0.064 | IB125: 0.071 | IC125: 0.061 | IE125: 0.059 | IF125: 0.061 | IJ125: 0.077 | IK125: 0.05 | IL125: 0.06 | IP125: 0.069 | IR125: 0.077 | IS125: 0.062 | IT125: 0.062 | IV125: 0.074 | IW125: 0.06 | IX125: 0.065 | IY125: 0.064 | JA125: 0.065 | JD125: 0.069 | JF125: 0.069 | JG125: 0.069 | JI125: 0.072 | JM125: 0.077 | JN125: 0.066 | JO125: 0.063 | JP125: 0.071 | JR125: 0.064 | JT125: 0.074 | JW125: 0.072 | JX125: 0.072 | JY125: 0.067 | KA125: 0.048 | KD125: 0.069 | KE125: 0.062 | KF125: 0.068 | KH125: 0.06 | KI125: 0.072 | KJ125: 0.064 | KN125: 0.056 | KP125: 0.069 | KR125: 0.065 | KS125: 0.052 | KT125: 0.066 | KU125: 0.066 | KW125: 0.054 | LA125: 0.064 | LB125: 0.072 | LC125: 0.071 | LE125: 0.052 | LG125: 0.065 | LK125: 0.058 | LN125: 0.075 | LO125: 0.073 | LQ125: 0.052 | LR125: 0.053 | LS125: 0.062 | LU125: 0.054 | LW125: 0.044 | LY125: 0.065 | LZ125: 0.053
... 155 more rows
